{"text_format":"1","workbook":"xlsx","n_sheets":20,"sheets":["Sheet1","Directions","Environmental_S_Config","zRef_Chemistry_Lookup","zRef_Combine_Compounds","1A1 Soil HILs","1A2 Soil Vapour","1A3 Soil HSLs for Vapour no CM","1A3 Soil HSLs for Vapour w CM","1A4 GW HSLs for VapInt no CM","1A4 GW HSLs for VapInt w CM","1A5 SoilVap HSLs Vap Int no CM","1A5 SoilVap HSLs Vap Int w CM","1B6 ESLs no CM","1B6 ESLs w CM","1B7 TPH in soil no CM","1B7 TPH in soil w CM","1C GILs","Table 7 Asbestos HSL ","MonRoundInfo"],"not_rendered":{"charts":0,"images":1,"macros":1,"external_links":3,"defined_names":53,"comments":4,"pivot_tables":0},"unopened":[],"bounds":{"document_bytes":16777216,"sheet_cells":100000,"rows_first":2000,"rows_last":500,"rows_between":2000,"halvings":0,"cell_chars":16384,"cell_head_chars":4096},"cells_cut":0,"cells_raw":0,"read":"whole","date_system":"1900"}

{"sheet":"Sheet1","index":0,"n_rows":0,"n_cols":0,"rows_kept":0,"cut":false,"hidden":true,"merged":[]}

{"sheet":"Directions","index":1,"n_rows":19,"n_cols":2,"rows_kept":19,"cut":false,"hidden":false,"merged":[]}
[]
[null,"These Guidelines have been transposed from the original at http://www.comlaw.gov.au/Details/F2013L00768"]
[]
[]
[]
[null,"Disclaimer: All care has been exercised in the compilation of these guidelines for quick import to ESDAT, however no liability is taken for any error.  \nIt is the responsibility of the user to review the contained data for correctness, application, and to ensure that this compilation meets their requirements; and to ensure their laboratory or field results are compliant with the relevant guidelines. "]
[]
[null,"Last Edited 15 Jun 2016, EScIS"]
[null,"Import of this guideline sucessfully into ESdat requires ESdat 5.1 or later"]
[]
[]
[null,"The import process is:"]
[null,"1. Review the numbers in each of the \"Table\" sheets against requirements."]
[null,"2. Open ESdat and select Import - Environmental Standards and select this file."]
[null,"3. Pick the tables (or parts of) to be imported - note the Environmental_S_Config and zref tables my require importing prior to importing action levels to add descriptions against action levels and to add new compounds"]
[null,"4. Import the standards into ESdat."]
[]
[]
[null,"Note** Certain of these guidelines are depth or matrix dependant.  The appropriate guideline will need to be selected for inclusion on exceedance tables in ESdat.  For matrix dependant guidelines two compilations are provided, one without a Conditional Matrix (no CM) and one with a Conditional Matrix (w CM).  For a Conditional Matrix comparison to work, the Env_Stds_Conditional_Matrix for each Sample must match (ie must be Soi, Silt or Clay as appropiate)"]

{"sheet":"Environmental_S_Config","index":2,"n_rows":63,"n_cols":9,"rows_kept":63,"cut":false,"hidden":false,"merged":[]}
["Project:","NEPM2013a",null,"Table:","[zRef_Environmental_Standards_Config]",null,"Style:","Template","NoLocs"]
["Path:","C:\\Temp\\NEPM\\NEPM2013a.mdb",null,"Parent Tables:"]
[]
["ActionLevelSource","Order","Description"]
[{"$f":"'1A1 Soil HILs'!D25","v":"NEPM 2013 Table 1A(1) HILs Res A Soil"},1]
[{"$f":"'1A1 Soil HILs'!D66","v":"NEPM 2013 Table 1A(1) HILs Res B Soil"},2]
[{"$f":"'1A1 Soil HILs'!D92","v":"NEPM 2013 Table 1A(1) HILs Rec C Soil"},3]
[{"$f":"'1A1 Soil HILs'!D149","v":"NEPM 2013 Table 1A(1) HILs Comm/Ind D Soil"},4]
[{"$f":"'1A2 Soil Vapour'!D7","v":"NEPM 2013 Table 1A(2) Res A Soil Vap VOCC HILs"},5]
[{"$f":"'1A2 Soil Vapour'!D13","v":"NEPM 2013 Table 1A(2) Res B Soil Vap VOCC HILs"},6]
[{"$f":"'1A2 Soil Vapour'!D17","v":"NEPM 2013 Table 1A(2) Rec C Soil Vap VOCC HILs"},7]
[{"$f":"'1A2 Soil Vapour'!D21","v":"NEPM 2013 Table 1A(2) Comm/Ind D Soil Vap VOCC HILs"},8]
[{"$f":"'1A3 Soil HSLs for Vapour no CM'!D20","v":"NEPM 2013 Table 1A(3) Res A/B Soil HSL for Vapour Intrusion, Sand"},9]
[{"$f":"'1A3 Soil HSLs for Vapour no CM'!D45","v":"NEPM 2013 Table 1A(3) Res A/B Soil HSL for Vapour Intrusion, Silt"},10]
[{"$f":"'1A3 Soil HSLs for Vapour no CM'!D66","v":"NEPM 2013 Table 1A(3) Res A/B Soil HSL for Vapour Intrusion, Clay"},11]
[{"$f":"'1A3 Soil HSLs for Vapour no CM'!D111","v":"NEPM 2013 Table 1A(3) Rec C Soil HSL for Vapour Intrusion, Sand"},12]
[{"$f":"'1A3 Soil HSLs for Vapour no CM'!D126","v":"NEPM 2013 Table 1A(3) Rec C Soil HSL for Vapour Intrusion, Silt"},13]
[{"$f":"'1A3 Soil HSLs for Vapour no CM'!D162","v":"NEPM 2013 Table 1A(3) Rec C Soil HSL for Vapour Intrusion, Clay"},14]
[{"$f":"'1A3 Soil HSLs for Vapour no CM'!D181","v":"NEPM 2013 Table 1A(3) Comm/Ind D Soil HSL for Vapour Intrusion, Sand"},15]
[{"$f":"'1A3 Soil HSLs for Vapour no CM'!D213","v":"NEPM 2013 Table 1A(3) Comm/Ind D Soil HSL for Vapour Intrusion, Silt"},16]
[{"$f":"'1A3 Soil HSLs for Vapour no CM'!D246","v":"NEPM 2013 Table 1A(3) Comm/Ind D Soil HSL for Vapour Intrusion, Clay"},17]
[{"$f":"'1A3 Soil HSLs for Vapour w CM'!D23","v":"NEPM 2013 Table 1A(3) Res A/B Soil HSL for Vapour Intrusion"},18]
[{"$f":"'1A3 Soil HSLs for Vapour w CM'!D105","v":"NEPM 2013 Table 1A(3) Rec C Soil HSL for Vapour Intrusion"},19]
[{"$f":"'1A3 Soil HSLs for Vapour w CM'!D185","v":"NEPM 2013 Table 1A(3) Comm/Ind D Soil HSL for Vapour Intrusion"},20]
[{"$f":"'1A4 GW HSLs for VapInt no CM'!D17","v":"NEPM 2013 Table 1A(4) Res HSL A & B GW for Vapour Intrusion, Sand"},21]
[{"$f":"'1A4 GW HSLs for VapInt no CM'!D39","v":"NEPM 2013 Table 1A(4) Res HSL A & B GW for Vapour Intrusion, Silt"},22]
[{"$f":"'1A4 GW HSLs for VapInt no CM'!D53","v":"NEPM 2013 Table 1A(4) Res HSL A & B GW for Vapour Intrusion, Clay"},23]
[{"$f":"'1A4 GW HSLs for VapInt no CM'!D85","v":"NEPM 2013 Table 1A(4) Rec HSL C GW for Vapour Intrusion, Sand"},24]
[{"$f":"'1A4 GW HSLs for VapInt no CM'!D98","v":"NEPM 2013 Table 1A(4) Rec HSL C GW for Vapour Intrusion, Silt"},25]
[{"$f":"'1A4 GW HSLs for VapInt no CM'!D113","v":"NEPM 2013 Table 1A(4) Rec HSL C GW for Vapour Intrusion, Clay"},26]
[{"$f":"'1A4 GW HSLs for VapInt no CM'!D147","v":"NEPM 2013 Table 1A(4) Comm/Ind HSL D GW for Vapour Intrusion, Sand"},27]
[{"$f":"'1A4 GW HSLs for VapInt no CM'!D162","v":"NEPM 2013 Table 1A(4) Comm/Ind HSL D GW for Vapour Intrusion, Silt"},28]
[{"$f":"'1A4 GW HSLs for VapInt no CM'!D183","v":"NEPM 2013 Table 1A(4) Comm/Ind HSL D GW for Vapour Intrusion, Clay"},29]
[{"$f":"'1A4 GW HSLs for VapInt w CM'!D23","v":"NEPM 2013 Table 1A(4) Res HSL A & B GW for Vapour Intrusion"},30]
[{"$f":"'1A4 GW HSLs for VapInt w CM'!D87","v":"NEPM 2013 Table 1A(4) Rec HSL C GW for Vapour Intrusion"},31]
[{"$f":"'1A4 GW HSLs for VapInt w CM'!D145","v":"NEPM 2013 Table 1A(4) Comm/Ind HSL D GW for Vapour Intrusion"},32]
[{"$f":"'1A5 SoilVap HSLs Vap Int no CM'!D9","v":"NEPM 2013 Table 1A(5) Res Soil Vapour HSL A/B for Vapour Intrusion, Sand"},33]
[{"$f":"'1A5 SoilVap HSLs Vap Int no CM'!D14","v":"NEPM 2013 Table 1A(5) Res Soil Vapour HSL A/B for Vapour Intrusion, Silt"},34]
[{"$f":"'1A5 SoilVap HSLs Vap Int no CM'!D23","v":"NEPM 2013 Table 1A(5) Res Soil Vapour HSL A/B for Vapour Intrusion, Clay"},35]
[{"$f":"'1A5 SoilVap HSLs Vap Int no CM'!D113","v":"NEPM 2013 Table 1A(5) Rec C Soil Vapour HSL for Vapour Intrusion, Sand"},36]
[{"$f":"'1A5 SoilVap HSLs Vap Int no CM'!D119","v":"NEPM 2013 Table 1A(5) Rec C Soil Vapour HSL for Vapour Intrusion, Silt"},37]
[{"$f":"'1A5 SoilVap HSLs Vap Int no CM'!D125","v":"NEPM 2013 Table 1A(5) Rec C Soil Vapour HSL for Vapour Intrusion, Clay"},38]
[{"$f":"'1A5 SoilVap HSLs Vap Int w CM'!D21","v":"NEPM 2013 Table 1A(5) Res Soil Vapour HSL A/B for Vapour Intrusion"},39]
[{"$f":"'1A5 SoilVap HSLs Vap Int w CM'!D192","v":"NEPM 2013 Table 1A(5) Rec C Soil Vapour HSL for Vapour Intrusion"},40]
[{"$f":"'1A5 SoilVap HSLs Vap Int w CM'!D222","v":"NEPM 2013 Table 1A(5) Comm/Ind D Soil Vapour HSL for Vapour Intrusion"},41]
[{"$f":"'1B6 ESLs no CM'!D9","v":"NEPM 2013 Table 1B(6) ESLs for Areas of Ecological Significance, Fine Soil"},42]
[{"$f":"'1B6 ESLs no CM'!D18","v":"NEPM 2013 Table 1B(6) ESLs for Urban Res, Fine Soil"},43]
[{"$f":"'1B6 ESLs no CM'!D27","v":"NEPM 2013 Table 1B(6) ESLs for Comm/Ind, Fine Soil"},44]
[{"$f":"'1B6 ESLs no CM'!D36","v":"NEPM 2013 Table 1B(6) ESLs for Areas of Ecological Significance, Coarse Soil"},45]
[{"$f":"'1B6 ESLs no CM'!D45","v":"NEPM 2013 Table 1B(6) ESLs for Urban Res, Coarse Soil"},46]
[{"$f":"'1B6 ESLs no CM'!D54","v":"NEPM 2013 Table 1B(6) ESLs for Comm/Ind, Coarse Soil"},47]
[{"$f":"'1B6 ESLs w CM'!D9","v":"NEPM 2013 Table 1B(6) ESLs for Areas of Ecological Significance"},48]
[{"$f":"'1B6 ESLs w CM'!D18","v":"NEPM 2013 Table 1B(6) ESLs for Urban Res"},49]
[{"$f":"'1B6 ESLs w CM'!D27","v":"NEPM 2013 Table 1B(6) ESLs for Comm/Ind"},50]
[{"$f":"'1B7 TPH in soil no CM'!D7","v":"NEPM 2013 Table 1B(7) Management Limits in Res / Parkland, Fine Soil"},51,"Management limits are applied after consideration of relevant ESLs and HSLs "]
[{"$f":"'1B7 TPH in soil no CM'!D11","v":"NEPM 2013 Table 1B(7) Management Limits in Res / Parkland, Coarse Soil"},52,"Management limits are applied after consideration of relevant ESLs and HSLs "]
[{"$f":"'1B7 TPH in soil no CM'!D14","v":"NEPM 2013 Table 1B(7) Management Limits Comm / Ind, Fine Soil"},53,"Management limits are applied after consideration of relevant ESLs and HSLs "]
[{"$f":"'1B7 TPH in soil no CM'!D18","v":"NEPM 2013 Table 1B(7) Management Limits Comm / Ind, Coarse Soil"},54,"Management limits are applied after consideration of relevant ESLs and HSLs "]
[{"$f":"'1B7 TPH in soil w CM'!D8","v":"NEPM 2013 Table 1B(7) Management Limits in Res / Parkland"},55,"Management limits are applied after consideration of relevant ESLs and HSLs "]
[{"$f":"'1B7 TPH in soil w CM'!D18","v":"NEPM 2013 Table 1B(7) Management Limits Comm / Ind"},56,"Management limits are applied after consideration of relevant ESLs and HSLs "]
[{"$f":"'1C GILs'!D5","v":"NEPM 2013 Table 1C GILs, Fresh Waters"},57,"A Apply to typical slightly-moderately disturbed systems\nB From ADWG\nC May not protect key species from chronic toxicity\nD Possible bioaccumulation & secondary poisoning\nE For changes with pH refer to ANZECC & ARMCANZ (2000)\nH At hardness of 30 mg/L CaCO3"]
[{"$f":"'1C GILs'!D98","v":"NEPM 2013 Table 1C GILs, Marine Waters"},58,"A Apply to typical slightly-moderately disturbed systems\nB From ADWG\nC May not protect key species from chronic toxicity\nD Possible bioaccumulation & secondary poisoning\nE For changes with pH refer to ANZECC & ARMCANZ (2000)\nH At hardness of 30 mg/L CaCO3"]
[{"$f":"'1C GILs'!D130","v":"NEPM 2013 Table 1C GILs, Drinking Water"},59,"A Apply to typical slightly-moderately disturbed systems\nB From ADWG\nC May not protect key species from chronic toxicity\nD Possible bioaccumulation & secondary poisoning\nE For changes with pH refer to ANZECC & ARMCANZ (2000)\nH At hardness of 30 mg/L CaCO3"]

{"sheet":"zRef_Chemistry_Lookup","index":3,"n_rows":25,"n_cols":15,"rows_kept":25,"cut":false,"hidden":false,"merged":[]}
["Project:","Demo Files",null,"Table:","[zRef_Chemistry_Lookup]",null,"Style:","Template",null,"Add New & Update Existing"]
["Path:","C:\\demofiles\\Sample Contam\\Sample01 Contam.mdb",null,"Parent Tables:"]
[]
["ChemCode","ChemName","ChemName_Abbrev","OutputUnits(LiquidMatrix)","OutputUnits(SolidMatrix)","OutputUnits(GasMatrix)","Chem_Group","AlternativeName1","AlternativeName2","AlternativeName3","AlternativeName4","Volatility","equivalent_weight","Validate_OriginalChemNames","Chem_Order"]
["CPAHs as B(a)P TPE","Carcinogenic PAHs as B(a)P TPE","B(A)P_Tox_Equiv","µg/L","mg/kg","µg/m3","PAH/Phenols","'B(A)P_Tox_Equiv","B(a)P Total Potency Equivalent",null,null,"SVOC",null,false,313]
["128639-02-1","Carfentrazone-ethyl",null,"µg/L","mg/kg","µg/m3","Phthalates",null,null,null,null,"SVOC",null,false]
["500008-45-7","Chlorantraniliprole",null,"µg/L","mg/kg","µg/m3","Phthalates",null,null,null,null,"SVOC",null,false]
["121552-61-2","Cyprodinil",null,"µg/L","mg/kg","µg/m3","Phthalates",null,null,null,null,"SVOC",null,false]
["120068-37-3","Fipronil",null,"µg/L","mg/kg","µg/m3","Phthalates",null,null,null,null,"SVOC",null,false]
["81334-34-1","Imazapyr",null,"µg/L","mg/kg","µg/m3","Phthalates",null,null,null,null,"SVOC",null,false]
["108-62-3","Metaldehyde",null,"µg/L","mg/kg","µg/m3","Phthalates",null,null,null,null,"SVOC",null,false]
["137-42-8","Metham (as methylisothiocyanate, MITC)",null,"µg/L","mg/kg","µg/m3","Phthalates",null,null,null,null,"SVOC",null,false]
["9006-42-2","Metiram (as ETU, ethylene thiourea)",null,"µg/L","mg/kg","µg/m3","Phthalates",null,null,null,null,"SVOC",null,false]
["330-95-0","Nicarbazin",null,"µg/L","mg/kg","µg/m3","Phthalates",null,null,null,null,"SVOC",null,false]
["365400-11-9","Pyrasulfatole",null,"µg/L","mg/kg","µg/m3","Phthalates",null,null,null,null,"SVOC",null,false]
["422556-08-9","Pyroxsulam",null,"µg/L","mg/kg","µg/m3","Phthalates",null,null,null,null,"SVOC",null,false]
["203313-25-1","Spirotetramat",null,"µg/L","mg/kg","µg/m3","Phthalates",null,null,null,null,"SVOC",null,false]
["69004-03-1","Toltrazuril",null,"µg/L","mg/kg","µg/m3","Phthalates",null,null,null,null,"SVOC",null,false]
["LAS","Linear alkylbenzene sulfonates\n(LAS)",null,"µg/L","mg/kg","µg/m3","Surfactants",null,null,null,null,"SVOC",null,false]
["AES","Alcohol ethoxylated sulfate (AES)",null,"µg/L","mg/kg","µg/m3","Surfactants",null,null,null,null,"SVOC",null,false]
["AESurfactant","Alcohol ethoxylated surfactants\n(AE)",null,"µg/L","mg/kg","µg/m3","Surfactants",null,null,null,null,"SVOC",null,false]
["17428-41-0","Arsenic  V",null,"µg/L","mg/kg","µg/m3","Metals",null,null,null,null,"other",null,false]
["PBDE_Flame_Retardant","PBDE Flame Retardants (Br1-Br9)",null,"µg/L","mg/kg","µg/m3",null,null,null,null,null,"other",null,false]
["132207-33-1(FA&AF)","Bonded ACM",null,"-","%","-",null,null,null,null,null,"other",null,false]
["132207-33-1(FA&AF)","Friable Asbestos and Asbestos Fines",null,"-","%","-",null,null,null,null,null,"other",null,false]

{"sheet":"zRef_Combine_Compounds","index":4,"n_rows":12,"n_cols":13,"rows_kept":12,"cut":false,"hidden":false,"merged":[]}
["Project:",12,null,"Table:","[zRef_Combine_Compounds]",null,"Style:","Template",null,null,null,null,"http://chemfinder.cambridgesoft.com/result.asp?polyQuery=2-cyclohexyl-4,6-dinitrophenol"]
["Path:","C:\\ESIS\\ESDATNetwork\\ESIS_Hydrogeology_and_Environmental.mdb",null,"Parent Tables:","zRef_Chemistry_Lookup",null,"FixedColumns:",2]
[]
["ChemName","CombinedName","Weight"]
["Benz(a)anthracene","Carcinogenic PAHs as B(a)P TPE",0.1]
["Benzo(a) pyrene","Carcinogenic PAHs as B(a)P TPE",1]
["Benzo[b+j]fluoranthene","Carcinogenic PAHs as B(a)P TPE",0.1]
["Benzo(k)fluoranthene","Carcinogenic PAHs as B(a)P TPE",0.1]
["Benzo(g,h,i)perylene","Carcinogenic PAHs as B(a)P TPE",0.01]
["Chrysene","Carcinogenic PAHs as B(a)P TPE",0.01]
["Dibenz(a,h)anthracene","Carcinogenic PAHs as B(a)P TPE",1]
["Indeno(1,2,3-c,d)pyrene","Carcinogenic PAHs as B(a)P TPE",0.1]

{"sheet":"1A1 Soil HILs","index":5,"n_rows":168,"n_cols":28,"rows_kept":168,"cut":false,"hidden":false,"merged":[]}
["Project:","Cardno Lane Piper 213152Historical Soil",null,"Table:","[zRef_Environmental_Standards]",null,"Style:","Template","NoLocs"]
["Path:","C:\\Users\\Tom W\\Documents\\Clients\\Cardno Lane Piper\\213152Historical Soil\\213152Historical Soil.mdb",null,"Parent Tables:","zRef_Matrix_Types,zRef_Chemistry_Lookup,Chem_Group_Or_Method"]
[]
["ChemCode","ChemName","MatrixType","ActionLevelSource","ActionLevel","ActionLevel_Min","Units","Comments","Leached","ActionLevel_Prefix","ActionLevel_Suffix","Conditional_Matrix_Type","Conditional_Depth_From","Conditional_Depth_To","Conditional_ChemCode1","Conditional_ChemCode1_Units","Conditional_ChemCode1_Min_Value_Prefix","Conditional_ChemCode1_Value_Min","Conditional_ChemCode1_Max_Value_Prefix","Conditional_ChemCode1_Value_Max","Conditional_ChemCode2","Conditional_ChemCode2_Units","Conditional_ChemCode2_Min_Value_Prefix","Conditional_ChemCode2_Value_Min","Conditional_ChemCode2_Max_Value_Prefix","Conditional_ChemCode2_Value_Max","Applies_To_Total_Result","Applies_To_Filtered_Result"]
["7440-38-2","Arsenic","Soil","NEPM 2013 Table 1A(1) HILs Res A Soil",100,null,"mg/kg","Arsenic: HIL assumes 70% oral bioavailability. Site-specific bioavailability maybe important and should be considered where appropriate (refer Shedule B7).",0,null,null,null,null,null,null,null,null,null,null,null,null,null,null,null,null,null,1,1]
["7440-41-7","Beryllium","Soil","NEPM 2013 Table 1A(1) HILs Res A Soil",60,null,"mg/kg",null,0,null,null,null,null,null,null,null,null,null,null,null,null,null,null,null,null,null,1,1]
["7440-42-8","Boron","Soil","NEPM 2013 Table 1A(1) HILs Res A Soil",4500,null,"mg/kg",null,0,null,null,null,null,null,null,null,null,null,null,null,null,null,null,null,null,null,1,1]
["7440-43-9","Cadmium","Soil","NEPM 2013 Table 1A(1) HILs Res A Soil",20,null,"mg/kg",null,0,null,null,null,null,null,null,null,null,null,null,null,null,null,null,null,null,null,1,1]
["18540-29-9","Chromium (VI)","Soil","NEPM 2013 Table 1A(1) HILs Res A Soil",100,null,"mg/kg",null,0,null,null,null,null,null,null,null,null,null,null,null,null,null,null,null,null,null,1,1]
["7440-48-4","Cobalt","Soil","NEPM 2013 Table 1A(1) HILs Res A Soil",100,null,"mg/kg",null,0,null,null,null,null,null,null,null,null,null,null,null,null,null,null,null,null,null,1,1]
["7440-50-8","Copper","Soil","NEPM 2013 Table 1A(1) HILs Res A Soil",6000,null,"mg/kg",null,0,null,null,null,null,null,null,null,null,null,null,null,null,null,null,null,null,null,1,1]
["7439-92-1","Lead","Soil","NEPM 2013 Table 1A(1) HILs Res A Soil",300,null,"mg/kg","Lead: HILs A,B,C based on blood lead models (IEUBK & HIL D on adult lead model for where 50% bioavailability considered.  Site-specific bioavailability should be considered where appropriate.",0,null,null,null,null,null,null,null,null,null,null,null,null,null,null,null,null,null,1,1]
["7439-96-5","Manganese","Soil","NEPM 2013 Table 1A(1) HILs Res A Soil",3800,null,"mg/kg",null,0,null,null,null,null,null,null,null,null,null,null,null,null,null,null,null,null,null,1,1]
["7439-97-6","Mercury (inorganic)","Soil","NEPM 2013 Table 1A(1) HILs Res A Soil",40,null,"mg/kg","Elemental mercury: HIL does not address elemental mercury. a site specific assessment should be considered if elemental mercury is present, or suspected to be present.",0,null,null,null,null,null,null,null,null,null,null,null,null,null,null,null,null,null,1,1]
["22967-92-6","Methyl mercury","Soil","NEPM 2013 Table 1A(1) HILs Res A Soil",10,null,"mg/kg","Methyl Hg: assess only where evidence of any potential source. Maybe assoc. with inorg. Hg & anaerobic microorg. activity in aquatic environments. Consider reliability/quality of sampling/analysis.",0,null,null,null,null,null,null,null,null,null,null,null,null,null,null,null,null,null,1,1]
["7440-02-0","Nickel","Soil","NEPM 2013 Table 1A(1) HILs Res A Soil",400,null,"mg/kg",null,0,null,null,null,null,null,null,null,null,null,null,null,null,null,null,null,null,null,1,1]
["7782-49-2","Selenium","Soil","NEPM 2013 Table 1A(1) HILs Res A Soil",200,null,"mg/kg",null,0,null,null,null,null,null,null,null,null,null,null,null,null,null,null,null,null,null,1,1]
["7440-66-6","Zinc","Soil","NEPM 2013 Table 1A(1) HILs Res A Soil",7400,null,"mg/kg",null,0,null,null,null,null,null,null,null,null,null,null,null,null,null,null,null,null,null,1,1]
["FREE_CYANIDE","Cyanide (free)","Soil","NEPM 2013 Table 1A(1) HILs Res A Soil",250,null,"mg/kg",null,0,null,null,null,null,null,null,null,null,null,null,null,null,null,null,null,null,null,1,1]
["CPAHs as B(a)P TPE","Carcinogenic PAHs (as BaP TEQ)","Soil","NEPM 2013 Table 1A(1) HILs Res A Soil",3,null,"mg/kg","Carcinogenic PAHs: HIL based on 8 carc. PAHs & their TEFs (rel to BaP ref Schedule 7) BaP TEQ calc by multiplying the conc of each carc. PAH in sample by its BaP TEF (ref Table 1A(1)) & summing",0,null,null,null,null,null,null,null,null,null,null,null,null,null,null,null,null,null,1,1]
["TOTALPAH","Total PAHs","Soil","NEPM 2013 Table 1A(1) HILs Res A Soil",300,null,"mg/kg","Total PAHs: Based on sum of 16 most common reported (WHO 98). HIL application should consider presence of carcinogenic PAHs (should meet BaP TEQ HIL) & napthalene (should meet relevant HSL)",0,null,null,null,null,null,null,null,null,null,null,null,null,null,null,null,null,null,1,1]
["108-95-2","Phenol","Soil","NEPM 2013 Table 1A(1) HILs Res A Soil",3000,null,"mg/kg",null,0,null,null,null,null,null,null,null,null,null,null,null,null,null,null,null,null,null,1,1]
["87-86-5","Pentachlorophenol","Soil","NEPM 2013 Table 1A(1) HILs Res A Soil",100,null,"mg/kg",null,0,null,null,null,null,null,null,null,null,null,null,null,null,null,null,null,null,null,1,1]
["1319-77-3","Cresols","Soil","NEPM 2013 Table 1A(1) HILs Res A Soil",400,null,"mg/kg",null,0,null,null,null,null,null,null,null,null,null,null,null,null,null,null,null,null,null,1,1]
["DDT+DDE+DDD","DDT+DDE+DDD","Soil","NEPM 2013 Table 1A(1) HILs Res A Soil",240,null,"mg/kg",null,0,null,null,null,null,null,null,null,null,null,null,null,null,null,null,null,null,null,1,1]
["309-00-2 + 60-57-1","Aldrin and dieldrin","Soil","NEPM 2013 Table 1A(1) HILs Res A Soil",6,null,"mg/kg",null,0,null,null,null,null,null,null,null,null,null,null,null,null,null,null,null,null,null,1,1]
["57-74-9","Chlordane","Soil","NEPM 2013 Table 1A(1) HILs Res A Soil",50,null,"mg/kg",null,0,null,null,null,null,null,null,null,null,null,null,null,null,null,null,null,null,null,1,1]
["115-29-7","Endosulfan","Soil","NEPM 2013 Table 1A(1) HILs Res A Soil",270,null,"mg/kg",null,0,null,null,null,null,null,null,null,null,null,null,null,null,null,null,null,null,null,1,1]
["72-20-8","Endrin","Soil","NEPM 2013 Table 1A(1) HILs Res A Soil",10,null,"mg/kg",null,0,null,null,null,null,null,null,null,null,null,null,null,null,null,null,null,null,null,1,1]
["76-44-8","Heptachlor","Soil","NEPM 2013 Table 1A(1) HILs Res A Soil",6,null,"mg/kg",null,0,null,null,null,null,null,null,null,null,null,null,null,null,null,null,null,null,null,1,1]
["118-74-1","HCB","Soil","NEPM 2013 Table 1A(1) HILs Res A Soil",10,null,"mg/kg",null,0,null,null,null,null,null,null,null,null,null,null,null,null,null,null,null,null,null,1,1]
["72-43-5","Methoxychlor","Soil","NEPM 2013 Table 1A(1) HILs Res A Soil",300,null,"mg/kg",null,0,null,null,null,null,null,null,null,null,null,null,null,null,null,null,null,null,null,1,1]
["2385-85-5","Mirex","Soil","NEPM 2013 Table 1A(1) HILs Res A Soil",10,null,"mg/kg",null,0,null,null,null,null,null,null,null,null,null,null,null,null,null,null,null,null,null,1,1]
["8001-35-2","Toxaphene","Soil","NEPM 2013 Table 1A(1) HILs Res A Soil",20,null,"mg/kg",null,0,null,null,null,null,null,null,null,null,null,null,null,null,null,null,null,null,null,1,1]
["93-76-5","2,4,5-T","Soil","NEPM 2013 Table 1A(1) HILs Res A Soil",600,null,"mg/kg",null,0,null,null,null,null,null,null,null,null,null,null,null,null,null,null,null,null,null,1,1]
["94-75-7","2,4-D","Soil","NEPM 2013 Table 1A(1) HILs Res A Soil",900,null,"mg/kg",null,0,null,null,null,null,null,null,null,null,null,null,null,null,null,null,null,null,null,1,1]
["94-74-6","MCPA","Soil","NEPM 2013 Table 1A(1) HILs Res A Soil",600,null,"mg/kg",null,0,null,null,null,null,null,null,null,null,null,null,null,null,null,null,null,null,null,1,1]
["94-81-5","MCPB","Soil","NEPM 2013 Table 1A(1) HILs Res A Soil",600,null,"mg/kg",null,0,null,null,null,null,null,null,null,null,null,null,null,null,null,null,null,null,null,1,1]
["93-65-2","Mecoprop","Soil","NEPM 2013 Table 1A(1) HILs Res A Soil",600,null,"mg/kg",null,0,null,null,null,null,null,null,null,null,null,null,null,null,null,null,null,null,null,1,1]
["1918-02-1","Picloram","Soil","NEPM 2013 Table 1A(1) HILs Res A Soil",4500,null,"mg/kg",null,0,null,null,null,null,null,null,null,null,null,null,null,null,null,null,null,null,null,1,1]
["1912-24-9","Atrazine","Soil","NEPM 2013 Table 1A(1) HILs Res A Soil",320,null,"mg/kg",null,0,null,null,null,null,null,null,null,null,null,null,null,null,null,null,null,null,null,1,1]
["2921-88-2","Chlorpyrifos","Soil","NEPM 2013 Table 1A(1) HILs Res A Soil",160,null,"mg/kg",null,0,null,null,null,null,null,null,null,null,null,null,null,null,null,null,null,null,null,1,1]
["82657-04-3","Bifenthrin","Soil","NEPM 2013 Table 1A(1) HILs Res A Soil",600,null,"mg/kg",null,0,null,null,null,null,null,null,null,null,null,null,null,null,null,null,null,null,null,1,1]
["1336-36-3","PCBs","Soil","NEPM 2013 Table 1A(1) HILs Res A Soil",1,null,"mg/kg","PCBs: HIL refers to non-dioxin like PCBs only. Where PCB source is known, or suspected at a site, a site-specific assessment of exposure to all PCBs (inc dioxin like PCBs) should be undertaken",0,null,null,null,null,null,null,null,null,null,null,null,null,null,null,null,null,null,1,1]
["PBDE_Flame_Retardant","PBDE Flame Retardants (Br1-Br9)","Soil","NEPM 2013 Table 1A(1) HILs Res A Soil",1,null,"mg/kg",null,0,null,null,null,null,null,null,null,null,null,null,null,null,null,null,null,null,null,1,1]
["7440-38-2","Arsenic","Soil","NEPM 2013 Table 1A(1) HILs Res B Soil",500,null,"mg/kg","Arsenic: HIL assumes 70% oral bioavailability. Site-specific bioavailability maybe important and should be considered where appropriate (refer Shedule B7).",0,null,null,null,null,null,null,null,null,null,null,null,null,null,null,null,null,null,1,1]
["7440-41-7","Beryllium","Soil","NEPM 2013 Table 1A(1) HILs Res B Soil",90,null,"mg/kg",null,0,null,null,null,null,null,null,null,null,null,null,null,null,null,null,null,null,null,1,1]
["7440-42-8","Boron","Soil","NEPM 2013 Table 1A(1) HILs Res B Soil",40000,null,"mg/kg",null,0,null,null,null,null,null,null,null,null,null,null,null,null,null,null,null,null,null,1,1]
["7440-43-9","Cadmium","Soil","NEPM 2013 Table 1A(1) HILs Res B Soil",150,null,"mg/kg",null,0,null,null,null,null,null,null,null,null,null,null,null,null,null,null,null,null,null,1,1]
["18540-29-9","Chromium (VI)","Soil","NEPM 2013 Table 1A(1) HILs Res B Soil",500,null,"mg/kg",null,0,null,null,null,null,null,null,null,null,null,null,null,null,null,null,null,null,null,1,1]
["7440-48-4","Cobalt","Soil","NEPM 2013 Table 1A(1) HILs Res B Soil",600,null,"mg/kg",null,0,null,null,null,null,null,null,null,null,null,null,null,null,null,null,null,null,null,1,1]
["7440-50-8","Copper","Soil","NEPM 2013 Table 1A(1) HILs Res B Soil",30000,null,"mg/kg",null,0,null,null,null,null,null,null,null,null,null,null,null,null,null,null,null,null,null,1,1]
["7439-92-1","Lead","Soil","NEPM 2013 Table 1A(1) HILs Res B Soil",1200,null,"mg/kg","Lead: HILs A,B,C based on blood lead models (IEUBK & HIL D on adult lead model for where 50% bioavailability considered.  Site-specific bioavailability should be considered where appropriate.",0,null,null,null,null,null,null,null,null,null,null,null,null,null,null,null,null,null,1,1]
["7439-96-5","Manganese","Soil","NEPM 2013 Table 1A(1) HILs Res B Soil",14000,null,"mg/kg",null,0,null,null,null,null,null,null,null,null,null,null,null,null,null,null,null,null,null,1,1]
["7439-97-6","Mercury (inorganic)","Soil","NEPM 2013 Table 1A(1) HILs Res B Soil",120,null,"mg/kg","Elemental mercury: HIL does not address elemental mercury. a site specific assessment should be considered if elemental mercury is present, or suspected to be present.",0,null,null,null,null,null,null,null,null,null,null,null,null,null,null,null,null,null,1,1]
["22967-92-6","Methyl mercury","Soil","NEPM 2013 Table 1A(1) HILs Res B Soil",30,null,"mg/kg","Methyl Hg: assess only where evidence of any potential source. Maybe assoc. with inorg. Hg & anaerobic microorg. activity in aquatic environments. Consider reliability/quality of sampling/analysis.",0,null,null,null,null,null,null,null,null,null,null,null,null,null,null,null,null,null,1,1]
["7440-02-0","Nickel","Soil","NEPM 2013 Table 1A(1) HILs Res B Soil",1200,null,"mg/kg",null,0,null,null,null,null,null,null,null,null,null,null,null,null,null,null,null,null,null,1,1]
["7782-49-2","Selenium","Soil","NEPM 2013 Table 1A(1) HILs Res B Soil",1400,null,"mg/kg",null,0,null,null,null,null,null,null,null,null,null,null,null,null,null,null,null,null,null,1,1]
["7440-66-6","Zinc","Soil","NEPM 2013 Table 1A(1) HILs Res B Soil",60000,null,"mg/kg",null,0,null,null,null,null,null,null,null,null,null,null,null,null,null,null,null,null,null,1,1]
["FREE_CYANIDE","Cyanide (free)","Soil","NEPM 2013 Table 1A(1) HILs Res B Soil",300,null,"mg/kg",null,0,null,null,null,null,null,null,null,null,null,null,null,null,null,null,null,null,null,1,1]
["CPAHs as B(a)P TPE","Carcinogenic PAHs (as BaP TEQ)","Soil","NEPM 2013 Table 1A(1) HILs Res B Soil",4,null,"mg/kg","Carcinogenic PAHs: HIL based on 8 carc. PAHs & their TEFs (rel to BaP ref Schedule 7) BaP TEQ calc by multiplying the conc of each carc. PAH in sample by its BaP TEF (ref Table 1A(1)) & summing",0,null,null,null,null,null,null,null,null,null,null,null,null,null,null,null,null,null,1,1]
["TOTALPAH","Total PAHs","Soil","NEPM 2013 Table 1A(1) HILs Res B Soil",400,null,"mg/kg","Total PAHs: Based on sum of 16 most common reported (WHO 98). HIL application should consider presence of carcinogenic PAHs (should meet BaP TEQ HIL) & napthalene (should meet relevant HSL)",0,null,null,null,null,null,null,null,null,null,null,null,null,null,null,null,null,null,1,1]
["108-95-2","Phenol","Soil","NEPM 2013 Table 1A(1) HILs Res B Soil",45000,null,"mg/kg",null,0,null,null,null,null,null,null,null,null,null,null,null,null,null,null,null,null,null,1,1]
["87-86-5","Pentachlorophenol","Soil","NEPM 2013 Table 1A(1) HILs Res B Soil",130,null,"mg/kg",null,0,null,null,null,null,null,null,null,null,null,null,null,null,null,null,null,null,null,1,1]
["1319-77-3","Cresols","Soil","NEPM 2013 Table 1A(1) HILs Res B Soil",4700,null,"mg/kg",null,0,null,null,null,null,null,null,null,null,null,null,null,null,null,null,null,null,null,1,1]
["DDT+DDE+DDD","DDT+DDE+DDD","Soil","NEPM 2013 Table 1A(1) HILs Res B Soil",600,null,"mg/kg",null,0,null,null,null,null,null,null,null,null,null,null,null,null,null,null,null,null,null,1,1]
["309-00-2 + 60-57-1","Aldrin and dieldrin","Soil","NEPM 2013 Table 1A(1) HILs Res B Soil",10,null,"mg/kg",null,0,null,null,null,null,null,null,null,null,null,null,null,null,null,null,null,null,null,1,1]
["57-74-9","Chlordane","Soil","NEPM 2013 Table 1A(1) HILs Res B Soil",90,null,"mg/kg",null,0,null,null,null,null,null,null,null,null,null,null,null,null,null,null,null,null,null,1,1]
["115-29-7","Endosulfan","Soil","NEPM 2013 Table 1A(1) HILs Res B Soil",400,null,"mg/kg",null,0,null,null,null,null,null,null,null,null,null,null,null,null,null,null,null,null,null,1,1]
["72-20-8","Endrin","Soil","NEPM 2013 Table 1A(1) HILs Res B Soil",20,null,"mg/kg",null,0,null,null,null,null,null,null,null,null,null,null,null,null,null,null,null,null,null,1,1]
["76-44-8","Heptachlor","Soil","NEPM 2013 Table 1A(1) HILs Res B Soil",10,null,"mg/kg",null,0,null,null,null,null,null,null,null,null,null,null,null,null,null,null,null,null,null,1,1]
["118-74-1","HCB","Soil","NEPM 2013 Table 1A(1) HILs Res B Soil",15,null,"mg/kg",null,0,null,null,null,null,null,null,null,null,null,null,null,null,null,null,null,null,null,1,1]
["72-43-5","Methoxychlor","Soil","NEPM 2013 Table 1A(1) HILs Res B Soil",500,null,"mg/kg",null,0,null,null,null,null,null,null,null,null,null,null,null,null,null,null,null,null,null,1,1]
["2385-85-5","Mirex","Soil","NEPM 2013 Table 1A(1) HILs Res B Soil",20,null,"mg/kg",null,0,null,null,null,null,null,null,null,null,null,null,null,null,null,null,null,null,null,1,1]
["8001-35-2","Toxaphene","Soil","NEPM 2013 Table 1A(1) HILs Res B Soil",30,null,"mg/kg",null,0,null,null,null,null,null,null,null,null,null,null,null,null,null,null,null,null,null,1,1]
["93-76-5","2,4,5-T","Soil","NEPM 2013 Table 1A(1) HILs Res B Soil",900,null,"mg/kg",null,0,null,null,null,null,null,null,null,null,null,null,null,null,null,null,null,null,null,1,1]
["94-75-7","2,4-D","Soil","NEPM 2013 Table 1A(1) HILs Res B Soil",1600,null,"mg/kg",null,0,null,null,null,null,null,null,null,null,null,null,null,null,null,null,null,null,null,1,1]
["94-74-6","MCPA","Soil","NEPM 2013 Table 1A(1) HILs Res B Soil",900,null,"mg/kg",null,0,null,null,null,null,null,null,null,null,null,null,null,null,null,null,null,null,null,1,1]
["94-81-5","MCPB","Soil","NEPM 2013 Table 1A(1) HILs Res B Soil",900,null,"mg/kg",null,0,null,null,null,null,null,null,null,null,null,null,null,null,null,null,null,null,null,1,1]
["93-65-2","Mecoprop","Soil","NEPM 2013 Table 1A(1) HILs Res B Soil",900,null,"mg/kg",null,0,null,null,null,null,null,null,null,null,null,null,null,null,null,null,null,null,null,1,1]
["1918-02-1","Picloram","Soil","NEPM 2013 Table 1A(1) HILs Res B Soil",6600,null,"mg/kg",null,0,null,null,null,null,null,null,null,null,null,null,null,null,null,null,null,null,null,1,1]
["1912-24-9","Atrazine","Soil","NEPM 2013 Table 1A(1) HILs Res B Soil",470,null,"mg/kg",null,0,null,null,null,null,null,null,null,null,null,null,null,null,null,null,null,null,null,1,1]
["2921-88-2","Chlorpyrifos","Soil","NEPM 2013 Table 1A(1) HILs Res B Soil",340,null,"mg/kg",null,0,null,null,null,null,null,null,null,null,null,null,null,null,null,null,null,null,null,1,1]
["82657-04-3","Bifenthrin","Soil","NEPM 2013 Table 1A(1) HILs Res B Soil",840,null,"mg/kg",null,0,null,null,null,null,null,null,null,null,null,null,null,null,null,null,null,null,null,1,1]
["1336-36-3","PCBs","Soil","NEPM 2013 Table 1A(1) HILs Res B Soil",1,null,"mg/kg","PCBs: HIL refers to non-dioxin like PCBs only. Where PCB source is known, or suspected at a site, a site-specific assessment of exposure to all PCBs (inc dioxin like PCBs) should be undertaken",0,null,null,null,null,null,null,null,null,null,null,null,null,null,null,null,null,null,1,1]
["PBDE_Flame_Retardant","PBDE Flame Retardants (Br1-Br9)","Soil","NEPM 2013 Table 1A(1) HILs Res B Soil",2,null,"mg/kg",null,0,null,null,null,null,null,null,null,null,null,null,null,null,null,null,null,null,null,1,1]
["7440-38-2","Arsenic","Soil","NEPM 2013 Table 1A(1) HILs Rec C Soil",300,null,"mg/kg","Arsenic: HIL assumes 70% oral bioavailability. Site-specific bioavailability maybe important and should be considered where appropriate (refer Shedule B7).",0,null,null,null,null,null,null,null,null,null,null,null,null,null,null,null,null,null,1,1]
["7440-41-7","Beryllium","Soil","NEPM 2013 Table 1A(1) HILs Rec C Soil",90,null,"mg/kg",null,0,null,null,null,null,null,null,null,null,null,null,null,null,null,null,null,null,null,1,1]
["7440-42-8","Boron","Soil","NEPM 2013 Table 1A(1) HILs Rec C Soil",20000,null,"mg/kg",null,0,null,null,null,null,null,null,null,null,null,null,null,null,null,null,null,null,null,1,1]
["7440-43-9","Cadmium","Soil","NEPM 2013 Table 1A(1) HILs Rec C Soil",90,null,"mg/kg",null,0,null,null,null,null,null,null,null,null,null,null,null,null,null,null,null,null,null,1,1]
["18540-29-9","Chromium (VI)","Soil","NEPM 2013 Table 1A(1) HILs Rec C Soil",300,null,"mg/kg",null,0,null,null,null,null,null,null,null,null,null,null,null,null,null,null,null,null,null,1,1]
["7440-48-4","Cobalt","Soil","NEPM 2013 Table 1A(1) HILs Rec C Soil",300,null,"mg/kg",null,0,null,null,null,null,null,null,null,null,null,null,null,null,null,null,null,null,null,1,1]
["7440-50-8","Copper","Soil","NEPM 2013 Table 1A(1) HILs Rec C Soil",17000,null,"mg/kg",null,0,null,null,null,null,null,null,null,null,null,null,null,null,null,null,null,null,null,1,1]
["7439-92-1","Lead","Soil","NEPM 2013 Table 1A(1) HILs Rec C Soil",600,null,"mg/kg","Lead: HILs A,B,C based on blood lead models (IEUBK & HIL D on adult lead model for where 50% bioavailability considered.  Site-specific bioavailability should be considered where appropriate.",0,null,null,null,null,null,null,null,null,null,null,null,null,null,null,null,null,null,1,1]
["7439-96-5","Manganese","Soil","NEPM 2013 Table 1A(1) HILs Rec C Soil",19000,null,"mg/kg",null,0,null,null,null,null,null,null,null,null,null,null,null,null,null,null,null,null,null,1,1]
["7439-97-6","Mercury (inorganic)","Soil","NEPM 2013 Table 1A(1) HILs Rec C Soil",80,null,"mg/kg","Elemental mercury: HIL does not address elemental mercury. a site specific assessment should be considered if elemental mercury is present, or suspected to be present.",0,null,null,null,null,null,null,null,null,null,null,null,null,null,null,null,null,null,1,1]
["22967-92-6","Methyl mercury","Soil","NEPM 2013 Table 1A(1) HILs Rec C Soil",13,null,"mg/kg","Methyl Hg: assess only where evidence of any potential source. Maybe assoc. with inorg. Hg & anaerobic microorg. activity in aquatic environments. Consider reliability/quality of sampling/analysis.",0,null,null,null,null,null,null,null,null,null,null,null,null,null,null,null,null,null,1,1]
["7440-02-0","Nickel","Soil","NEPM 2013 Table 1A(1) HILs Rec C Soil",1200,null,"mg/kg",null,0,null,null,null,null,null,null,null,null,null,null,null,null,null,null,null,null,null,1,1]
["7782-49-2","Selenium","Soil","NEPM 2013 Table 1A(1) HILs Rec C Soil",700,null,"mg/kg",null,0,null,null,null,null,null,null,null,null,null,null,null,null,null,null,null,null,null,1,1]
["7440-66-6","Zinc","Soil","NEPM 2013 Table 1A(1) HILs Rec C Soil",30000,null,"mg/kg",null,0,null,null,null,null,null,null,null,null,null,null,null,null,null,null,null,null,null,1,1]
["FREE_CYANIDE","Cyanide (free)","Soil","NEPM 2013 Table 1A(1) HILs Rec C Soil",240,null,"mg/kg",null,0,null,null,null,null,null,null,null,null,null,null,null,null,null,null,null,null,null,1,1]
["CPAHs as B(a)P TPE","Carcinogenic PAHs (as BaP TEQ)","Soil","NEPM 2013 Table 1A(1) HILs Rec C Soil",3,null,"mg/kg","Carcinogenic PAHs: HIL based on 8 carc. PAHs & their TEFs (rel to BaP ref Schedule 7) BaP TEQ calc by multiplying the conc of each carc. PAH in sample by its BaP TEF (ref Table 1A(1)) & summing",0,null,null,null,null,null,null,null,null,null,null,null,null,null,null,null,null,null,1,1]
["TOTALPAH","Total PAHs","Soil","NEPM 2013 Table 1A(1) HILs Rec C Soil",300,null,"mg/kg","Total PAHs: Based on sum of 16 most common reported (WHO 98). HIL application should consider presence of carcinogenic PAHs (should meet BaP TEQ HIL) & napthalene (should meet relevant HSL)",0,null,null,null,null,null,null,null,null,null,null,null,null,null,null,null,null,null,1,1]
["108-95-2","Phenol","Soil","NEPM 2013 Table 1A(1) HILs Rec C Soil",40000,null,"mg/kg",null,0,null,null,null,null,null,null,null,null,null,null,null,null,null,null,null,null,null,1,1]
["87-86-5","Pentachlorophenol","Soil","NEPM 2013 Table 1A(1) HILs Rec C Soil",120,null,"mg/kg",null,0,null,null,null,null,null,null,null,null,null,null,null,null,null,null,null,null,null,1,1]
["1319-77-3","Cresols","Soil","NEPM 2013 Table 1A(1) HILs Rec C Soil",4000,null,"mg/kg",null,0,null,null,null,null,null,null,null,null,null,null,null,null,null,null,null,null,null,1,1]
["DDT+DDE+DDD","DDT+DDE+DDD","Soil","NEPM 2013 Table 1A(1) HILs Rec C Soil",400,null,"mg/kg",null,0,null,null,null,null,null,null,null,null,null,null,null,null,null,null,null,null,null,1,1]
["309-00-2 + 60-57-1","Aldrin and dieldrin","Soil","NEPM 2013 Table 1A(1) HILs Rec C Soil",10,null,"mg/kg",null,0,null,null,null,null,null,null,null,null,null,null,null,null,null,null,null,null,null,1,1]
["57-74-9","Chlordane","Soil","NEPM 2013 Table 1A(1) HILs Rec C Soil",70,null,"mg/kg",null,0,null,null,null,null,null,null,null,null,null,null,null,null,null,null,null,null,null,1,1]
["115-29-7","Endosulfan","Soil","NEPM 2013 Table 1A(1) HILs Rec C Soil",340,null,"mg/kg",null,0,null,null,null,null,null,null,null,null,null,null,null,null,null,null,null,null,null,1,1]
["72-20-8","Endrin","Soil","NEPM 2013 Table 1A(1) HILs Rec C Soil",20,null,"mg/kg",null,0,null,null,null,null,null,null,null,null,null,null,null,null,null,null,null,null,null,1,1]
["76-44-8","Heptachlor","Soil","NEPM 2013 Table 1A(1) HILs Rec C Soil",10,null,"mg/kg",null,0,null,null,null,null,null,null,null,null,null,null,null,null,null,null,null,null,null,1,1]
["118-74-1","HCB","Soil","NEPM 2013 Table 1A(1) HILs Rec C Soil",10,null,"mg/kg",null,0,null,null,null,null,null,null,null,null,null,null,null,null,null,null,null,null,null,1,1]
["72-43-5","Methoxychlor","Soil","NEPM 2013 Table 1A(1) HILs Rec C Soil",400,null,"mg/kg",null,0,null,null,null,null,null,null,null,null,null,null,null,null,null,null,null,null,null,1,1]
["2385-85-5","Mirex","Soil","NEPM 2013 Table 1A(1) HILs Rec C Soil",20,null,"mg/kg",null,0,null,null,null,null,null,null,null,null,null,null,null,null,null,null,null,null,null,1,1]
["8001-35-2","Toxaphene","Soil","NEPM 2013 Table 1A(1) HILs Rec C Soil",30,null,"mg/kg",null,0,null,null,null,null,null,null,null,null,null,null,null,null,null,null,null,null,null,1,1]
["93-76-5","2,4,5-T","Soil","NEPM 2013 Table 1A(1) HILs Rec C Soil",800,null,"mg/kg",null,0,null,null,null,null,null,null,null,null,null,null,null,null,null,null,null,null,null,1,1]
["94-75-7","2,4-D","Soil","NEPM 2013 Table 1A(1) HILs Rec C Soil",1300,null,"mg/kg",null,0,null,null,null,null,null,null,null,null,null,null,null,null,null,null,null,null,null,1,1]
["94-74-6","MCPA","Soil","NEPM 2013 Table 1A(1) HILs Rec C Soil",800,null,"mg/kg",null,0,null,null,null,null,null,null,null,null,null,null,null,null,null,null,null,null,null,1,1]
["94-81-5","MCPB","Soil","NEPM 2013 Table 1A(1) HILs Rec C Soil",800,null,"mg/kg",null,0,null,null,null,null,null,null,null,null,null,null,null,null,null,null,null,null,null,1,1]
["93-65-2","Mecoprop","Soil","NEPM 2013 Table 1A(1) HILs Rec C Soil",800,null,"mg/kg",null,0,null,null,null,null,null,null,null,null,null,null,null,null,null,null,null,null,null,1,1]
["1918-02-1","Picloram","Soil","NEPM 2013 Table 1A(1) HILs Rec C Soil",5700,null,"mg/kg",null,0,null,null,null,null,null,null,null,null,null,null,null,null,null,null,null,null,null,1,1]
["1912-24-9","Atrazine","Soil","NEPM 2013 Table 1A(1) HILs Rec C Soil",400,null,"mg/kg",null,0,null,null,null,null,null,null,null,null,null,null,null,null,null,null,null,null,null,1,1]
["2921-88-2","Chlorpyrifos","Soil","NEPM 2013 Table 1A(1) HILs Rec C Soil",250,null,"mg/kg",null,0,null,null,null,null,null,null,null,null,null,null,null,null,null,null,null,null,null,1,1]
["82657-04-3","Bifenthrin","Soil","NEPM 2013 Table 1A(1) HILs Rec C Soil",730,null,"mg/kg",null,0,null,null,null,null,null,null,null,null,null,null,null,null,null,null,null,null,null,1,1]
["1336-36-3","PCBs","Soil","NEPM 2013 Table 1A(1) HILs Rec C Soil",1,null,"mg/kg","PCBs: HIL refers to non-dioxin like PCBs only. Where PCB source is known, or suspected at a site, a site-specific assessment of exposure to all PCBs (inc dioxin like PCBs) should be undertaken",0,null,null,null,null,null,null,null,null,null,null,null,null,null,null,null,null,null,1,1]
["PBDE_Flame_Retardant","PBDE Flame Retardants (Br1-Br9)","Soil","NEPM 2013 Table 1A(1) HILs Rec C Soil",2,null,"mg/kg",null,0,null,null,null,null,null,null,null,null,null,null,null,null,null,null,null,null,null,1,1]
["7440-38-2","Arsenic","Soil","NEPM 2013 Table 1A(1) HILs Comm/Ind D Soil",3000,null,"mg/kg","Arsenic: HIL assumes 70% oral bioavailability. Site-specific bioavailability maybe important and should be considered where appropriate (refer Shedule B7).",0,null,null,null,null,null,null,null,null,null,null,null,null,null,null,null,null,null,1,1]
["7440-41-7","Beryllium","Soil","NEPM 2013 Table 1A(1) HILs Comm/Ind D Soil",500,null,"mg/kg",null,0,null,null,null,null,null,null,null,null,null,null,null,null,null,null,null,null,null,1,1]
["7440-42-8","Boron","Soil","NEPM 2013 Table 1A(1) HILs Comm/Ind D Soil",300000,null,"mg/kg",null,0,null,null,null,null,null,null,null,null,null,null,null,null,null,null,null,null,null,1,1]
["7440-43-9","Cadmium","Soil","NEPM 2013 Table 1A(1) HILs Comm/Ind D Soil",900,null,"mg/kg",null,0,null,null,null,null,null,null,null,null,null,null,null,null,null,null,null,null,null,1,1]
["18540-29-9","Chromium (VI)","Soil","NEPM 2013 Table 1A(1) HILs Comm/Ind D Soil",3600,null,"mg/kg",null,0,null,null,null,null,null,null,null,null,null,null,null,null,null,null,null,null,null,1,1]
["7440-48-4","Cobalt","Soil","NEPM 2013 Table 1A(1) HILs Comm/Ind D Soil",4000,null,"mg/kg",null,0,null,null,null,null,null,null,null,null,null,null,null,null,null,null,null,null,null,1,1]
["7440-50-8","Copper","Soil","NEPM 2013 Table 1A(1) HILs Comm/Ind D Soil",240000,null,"mg/kg",null,0,null,null,null,null,null,null,null,null,null,null,null,null,null,null,null,null,null,1,1]
["7439-92-1","Lead","Soil","NEPM 2013 Table 1A(1) HILs Comm/Ind D Soil",1500,null,"mg/kg","Lead: HILs A,B,C based on blood lead models (IEUBK & HIL D on adult lead model for where 50% bioavailability considered.  Site-specific bioavailability should be considered where appropriate.",0,null,null,null,null,null,null,null,null,null,null,null,null,null,null,null,null,null,1,1]
["7439-96-5","Manganese","Soil","NEPM 2013 Table 1A(1) HILs Comm/Ind D Soil",60000,null,"mg/kg",null,0,null,null,null,null,null,null,null,null,null,null,null,null,null,null,null,null,null,1,1]
["7439-97-6","Mercury (inorganic)","Soil","NEPM 2013 Table 1A(1) HILs Comm/Ind D Soil",730,null,"mg/kg","Elemental mercury: HIL does not address elemental mercury. a site specific assessment should be considered if elemental mercury is present, or suspected to be present.",0,null,null,null,null,null,null,null,null,null,null,null,null,null,null,null,null,null,1,1]
["22967-92-6","Methyl mercury","Soil","NEPM 2013 Table 1A(1) HILs Comm/Ind D Soil",180,null,"mg/kg","Methyl Hg: assess only where evidence of any potential source. Maybe assoc. with inorg. Hg & anaerobic microorg. activity in aquatic environments. Consider reliability/quality of sampling/analysis.",0,null,null,null,null,null,null,null,null,null,null,null,null,null,null,null,null,null,1,1]
["7440-02-0","Nickel","Soil","NEPM 2013 Table 1A(1) HILs Comm/Ind D Soil",6000,null,"mg/kg",null,0,null,null,null,null,null,null,null,null,null,null,null,null,null,null,null,null,null,1,1]
["7782-49-2","Selenium","Soil","NEPM 2013 Table 1A(1) HILs Comm/Ind D Soil",10000,null,"mg/kg",null,0,null,null,null,null,null,null,null,null,null,null,null,null,null,null,null,null,null,1,1]
["7440-66-6","Zinc","Soil","NEPM 2013 Table 1A(1) HILs Comm/Ind D Soil",400000,null,"mg/kg",null,0,null,null,null,null,null,null,null,null,null,null,null,null,null,null,null,null,null,1,1]
["FREE_CYANIDE","Cyanide (free)","Soil","NEPM 2013 Table 1A(1) HILs Comm/Ind D Soil",1500,null,"mg/kg",null,0,null,null,null,null,null,null,null,null,null,null,null,null,null,null,null,null,null,1,1]
["CPAHs as B(a)P TPE","Carcinogenic PAHs (as BaP TEQ)","Soil","NEPM 2013 Table 1A(1) HILs Comm/Ind D Soil",40,null,"mg/kg","Carcinogenic PAHs: HIL based on 8 carc. PAHs & their TEFs (rel to BaP ref Schedule 7) BaP TEQ calc by multiplying the conc of each carc. PAH in sample by its BaP TEF (ref Table 1A(1)) & summing",0,null,null,null,null,null,null,null,null,null,null,null,null,null,null,null,null,null,1,1]
["TOTALPAH","Total PAHs","Soil","NEPM 2013 Table 1A(1) HILs Comm/Ind D Soil",4000,null,"mg/kg","Total PAHs: Based on sum of 16 most common reported (WHO 98). HIL application should consider presence of carcinogenic PAHs (should meet BaP TEQ HIL) & napthalene (should meet relevant HSL)",0,null,null,null,null,null,null,null,null,null,null,null,null,null,null,null,null,null,1,1]
["108-95-2","Phenol","Soil","NEPM 2013 Table 1A(1) HILs Comm/Ind D Soil",240000,null,"mg/kg",null,0,null,null,null,null,null,null,null,null,null,null,null,null,null,null,null,null,null,1,1]
["87-86-5","Pentachlorophenol","Soil","NEPM 2013 Table 1A(1) HILs Comm/Ind D Soil",660,null,"mg/kg",null,0,null,null,null,null,null,null,null,null,null,null,null,null,null,null,null,null,null,1,1]
["1319-77-3","Cresols","Soil","NEPM 2013 Table 1A(1) HILs Comm/Ind D Soil",25000,null,"mg/kg",null,0,null,null,null,null,null,null,null,null,null,null,null,null,null,null,null,null,null,1,1]
["DDT+DDE+DDD","DDT+DDE+DDD","Soil","NEPM 2013 Table 1A(1) HILs Comm/Ind D Soil",3600,null,"mg/kg",null,0,null,null,null,null,null,null,null,null,null,null,null,null,null,null,null,null,null,1,1]
["309-00-2 + 60-57-1","Aldrin and dieldrin","Soil","NEPM 2013 Table 1A(1) HILs Comm/Ind D Soil",45,null,"mg/kg",null,0,null,null,null,null,null,null,null,null,null,null,null,null,null,null,null,null,null,1,1]
["57-74-9","Chlordane","Soil","NEPM 2013 Table 1A(1) HILs Comm/Ind D Soil",530,null,"mg/kg",null,0,null,null,null,null,null,null,null,null,null,null,null,null,null,null,null,null,null,1,1]
["115-29-7","Endosulfan","Soil","NEPM 2013 Table 1A(1) HILs Comm/Ind D Soil",2000,null,"mg/kg",null,0,null,null,null,null,null,null,null,null,null,null,null,null,null,null,null,null,null,1,1]
["72-20-8","Endrin","Soil","NEPM 2013 Table 1A(1) HILs Comm/Ind D Soil",100,null,"mg/kg",null,0,null,null,null,null,null,null,null,null,null,null,null,null,null,null,null,null,null,1,1]
["76-44-8","Heptachlor","Soil","NEPM 2013 Table 1A(1) HILs Comm/Ind D Soil",50,null,"mg/kg",null,0,null,null,null,null,null,null,null,null,null,null,null,null,null,null,null,null,null,1,1]
["118-74-1","HCB","Soil","NEPM 2013 Table 1A(1) HILs Comm/Ind D Soil",80,null,"mg/kg",null,0,null,null,null,null,null,null,null,null,null,null,null,null,null,null,null,null,null,1,1]
["72-43-5","Methoxychlor","Soil","NEPM 2013 Table 1A(1) HILs Comm/Ind D Soil",2500,null,"mg/kg",null,0,null,null,null,null,null,null,null,null,null,null,null,null,null,null,null,null,null,1,1]
["2385-85-5","Mirex","Soil","NEPM 2013 Table 1A(1) HILs Comm/Ind D Soil",100,null,"mg/kg",null,0,null,null,null,null,null,null,null,null,null,null,null,null,null,null,null,null,null,1,1]
["8001-35-2","Toxaphene","Soil","NEPM 2013 Table 1A(1) HILs Comm/Ind D Soil",160,null,"mg/kg",null,0,null,null,null,null,null,null,null,null,null,null,null,null,null,null,null,null,null,1,1]
["93-76-5","2,4,5-T","Soil","NEPM 2013 Table 1A(1) HILs Comm/Ind D Soil",5000,null,"mg/kg",null,0,null,null,null,null,null,null,null,null,null,null,null,null,null,null,null,null,null,1,1]
["94-75-7","2,4-D","Soil","NEPM 2013 Table 1A(1) HILs Comm/Ind D Soil",9000,null,"mg/kg",null,0,null,null,null,null,null,null,null,null,null,null,null,null,null,null,null,null,null,1,1]
["94-74-6","MCPA","Soil","NEPM 2013 Table 1A(1) HILs Comm/Ind D Soil",5000,null,"mg/kg",null,0,null,null,null,null,null,null,null,null,null,null,null,null,null,null,null,null,null,1,1]
["94-81-5","MCPB","Soil","NEPM 2013 Table 1A(1) HILs Comm/Ind D Soil",5000,null,"mg/kg",null,0,null,null,null,null,null,null,null,null,null,null,null,null,null,null,null,null,null,1,1]
["93-65-2","Mecoprop","Soil","NEPM 2013 Table 1A(1) HILs Comm/Ind D Soil",5000,null,"mg/kg",null,0,null,null,null,null,null,null,null,null,null,null,null,null,null,null,null,null,null,1,1]
["1918-02-1","Picloram","Soil","NEPM 2013 Table 1A(1) HILs Comm/Ind D Soil",35000,null,"mg/kg",null,0,null,null,null,null,null,null,null,null,null,null,null,null,null,null,null,null,null,1,1]
["1912-24-9","Atrazine","Soil","NEPM 2013 Table 1A(1) HILs Comm/Ind D Soil",2500,null,"mg/kg",null,0,null,null,null,null,null,null,null,null,null,null,null,null,null,null,null,null,null,1,1]
["2921-88-2","Chlorpyrifos","Soil","NEPM 2013 Table 1A(1) HILs Comm/Ind D Soil",2000,null,"mg/kg",null,0,null,null,null,null,null,null,null,null,null,null,null,null,null,null,null,null,null,1,1]
["82657-04-3","Bifenthrin","Soil","NEPM 2013 Table 1A(1) HILs Comm/Ind D Soil",4500,null,"mg/kg",null,0,null,null,null,null,null,null,null,null,null,null,null,null,null,null,null,null,null,1,1]
["1336-36-3","PCBs","Soil","NEPM 2013 Table 1A(1) HILs Comm/Ind D Soil",7,null,"mg/kg","PCBs: HIL refers to non-dioxin like PCBs only. Where PCB source is known, or suspected at a site, a site-specific assessment of exposure to all PCBs (inc dioxin like PCBs) should be undertaken",0,null,null,null,null,null,null,null,null,null,null,null,null,null,null,null,null,null,1,1]
["PBDE_Flame_Retardant","PBDE Flame Retardants (Br1-Br9)","Soil","NEPM 2013 Table 1A(1) HILs Comm/Ind D Soil",10,null,"mg/kg",null,0,null,null,null,null,null,null,null,null,null,null,null,null,null,null,null,null,null,1,1]

{"sheet":"1A2 Soil Vapour","index":6,"n_rows":24,"n_cols":28,"rows_kept":24,"cut":false,"hidden":false,"merged":[]}
["Project:","Cardno Lane Piper 213152Historical Soil",null,"Table:","[zRef_Environmental_Standards]",null,"Style:","Template","NoLocs"]
["Path:","C:\\Users\\Tom W\\Documents\\Clients\\Cardno Lane Piper\\213152Historical Soil\\213152Historical Soil.mdb",null,"Parent Tables:","zRef_Matrix_Types,zRef_Chemistry_Lookup,Chem_Group_Or_Method"]
[]
["ChemCode","ChemName","MatrixType","ActionLevelSource","ActionLevel","ActionLevel_Min","Units","Comments","Leached","ActionLevel_Prefix","ActionLevel_Suffix","Conditional_Matrix_Type","Conditional_Depth_From","Conditional_Depth_To","Conditional_ChemCode1","Conditional_ChemCode1_Units","Conditional_ChemCode1_Min_Value_Prefix","Conditional_ChemCode1_Value_Min","Conditional_ChemCode1_Max_Value_Prefix","Conditional_ChemCode1_Value_Max","Conditional_ChemCode2","Conditional_ChemCode2_Units","Conditional_ChemCode2_Min_Value_Prefix","Conditional_ChemCode2_Value_Min","Conditional_ChemCode2_Max_Value_Prefix","Conditional_ChemCode2_Value_Max","Applies_To_Total_Result","Applies_To_Filtered_Result"]
["79-01-6","TCE","Gas","NEPM 2013 Table 1A(2) Res A Soil Vap VOCC HILs",0.02,null,"mg/m3",null,null,null,null,null,null,null,null,null,null,null,null,null,null,null,null,null,null,null,1,1]
["71-55-6","1,1,1-TCA","Gas","NEPM 2013 Table 1A(2) Res A Soil Vap VOCC HILs",60,null,"mg/m3",null,null,null,null,null,null,null,null,null,null,null,null,null,null,null,null,null,null,null,1,1]
["127-18-4","PCE","Gas","NEPM 2013 Table 1A(2) Res A Soil Vap VOCC HILs",2,null,"mg/m3",null,null,null,null,null,null,null,null,null,null,null,null,null,null,null,null,null,null,null,1,1]
["156-59-2","cis-1,2- dichloroethene","Gas","NEPM 2013 Table 1A(2) Res A Soil Vap VOCC HILs",0.08,null,"mg/m3",null,null,null,null,null,null,null,null,null,null,null,null,null,null,null,null,null,null,null,1,1]
["75-01-4","Vinyl chloride","Gas","NEPM 2013 Table 1A(2) Res A Soil Vap VOCC HILs",0.03,null,"mg/m3",null,null,null,null,null,null,null,null,null,null,null,null,null,null,null,null,null,null,null,1,1]
["79-01-6","TCE","Gas","NEPM 2013 Table 1A(2) Res B Soil Vap VOCC HILs",0.02,null,"mg/m3",null,null,null,null,null,null,null,null,null,null,null,null,null,null,null,null,null,null,null,1,1]
["71-55-6","1,1,1-TCA","Gas","NEPM 2013 Table 1A(2) Res B Soil Vap VOCC HILs",60,null,"mg/m3",null,null,null,null,null,null,null,null,null,null,null,null,null,null,null,null,null,null,null,1,1]
["127-18-4","PCE","Gas","NEPM 2013 Table 1A(2) Res B Soil Vap VOCC HILs",2,null,"mg/m3",null,null,null,null,null,null,null,null,null,null,null,null,null,null,null,null,null,null,null,1,1]
["156-59-2","cis-1,2- dichloroethene","Gas","NEPM 2013 Table 1A(2) Res B Soil Vap VOCC HILs",0.08,null,"mg/m3",null,null,null,null,null,null,null,null,null,null,null,null,null,null,null,null,null,null,null,1,1]
["75-01-4","Vinyl chloride","Gas","NEPM 2013 Table 1A(2) Res B Soil Vap VOCC HILs",0.03,null,"mg/m3",null,null,null,null,null,null,null,null,null,null,null,null,null,null,null,null,null,null,null,1,1]
["79-01-6","TCE","Gas","NEPM 2013 Table 1A(2) Rec C Soil Vap VOCC HILs",0.4,null,"mg/m3",null,null,null,null,null,null,null,null,null,null,null,null,null,null,null,null,null,null,null,1,1]
["71-55-6","1,1,1-TCA","Gas","NEPM 2013 Table 1A(2) Rec C Soil Vap VOCC HILs",1200,null,"mg/m3",null,null,null,null,null,null,null,null,null,null,null,null,null,null,null,null,null,null,null,1,1]
["127-18-4","PCE","Gas","NEPM 2013 Table 1A(2) Rec C Soil Vap VOCC HILs",40,null,"mg/m3",null,null,null,null,null,null,null,null,null,null,null,null,null,null,null,null,null,null,null,1,1]
["156-59-2","cis-1,2- dichloroethene","Gas","NEPM 2013 Table 1A(2) Rec C Soil Vap VOCC HILs",2,null,"mg/m3",null,null,null,null,null,null,null,null,null,null,null,null,null,null,null,null,null,null,null,1,1]
["75-01-4","Vinyl chloride","Gas","NEPM 2013 Table 1A(2) Rec C Soil Vap VOCC HILs",0.5,null,"mg/m3",null,null,null,null,null,null,null,null,null,null,null,null,null,null,null,null,null,null,null,1,1]
["79-01-6","TCE","Gas","NEPM 2013 Table 1A(2) Comm/Ind D Soil Vap VOCC HILs",0.08,null,"mg/m3",null,null,null,null,null,null,null,null,null,null,null,null,null,null,null,null,null,null,null,1,1]
["71-55-6","1,1,1-TCA","Gas","NEPM 2013 Table 1A(2) Comm/Ind D Soil Vap VOCC HILs",230,null,"mg/m3",null,null,null,null,null,null,null,null,null,null,null,null,null,null,null,null,null,null,null,1,1]
["127-18-4","PCE","Gas","NEPM 2013 Table 1A(2) Comm/Ind D Soil Vap VOCC HILs",8,null,"mg/m3",null,null,null,null,null,null,null,null,null,null,null,null,null,null,null,null,null,null,null,1,1]
["156-59-2","cis-1,2- dichloroethene","Gas","NEPM 2013 Table 1A(2) Comm/Ind D Soil Vap VOCC HILs",0.3,null,"mg/m3",null,null,null,null,null,null,null,null,null,null,null,null,null,null,null,null,null,null,null,1,1]
["75-01-4","Vinyl chloride","Gas","NEPM 2013 Table 1A(2) Comm/Ind D Soil Vap VOCC HILs",0.1,null,"mg/m3",null,null,null,null,null,null,null,null,null,null,null,null,null,null,null,null,null,null,null,1,1]

{"sheet":"1A3 Soil HSLs for Vapour no CM","index":7,"n_rows":256,"n_cols":28,"rows_kept":256,"cut":false,"hidden":false,"merged":[]}
["Project:","Cardno Lane Piper 213152Historical Soil",null,"Table:","[zRef_Environmental_Standards]",null,"Style:",null,null,"Template",null,null,null,"NoLocs"]
["Path:","C:\\Users\\Tom W\\Documents\\Clients\\Cardno Lane Piper\\213152Historical Soil\\213152Historical Soil.mdb",null,"Parent Tables:","zRef_Matrix_Types,zRef_Chemistry_Lookup,Chem_Group_Or_Method"]
[]
["ChemCode","ChemName","MatrixType","ActionLevelSource","ActionLevel","ActionLevel_Min","Units","ActionLevel_Prefix","ActionLevel_Suffix","Comments","Conditional_Matrix_Type","Conditional_Depth_From","Conditional_Depth_To","Leached","Conditional_ChemCode1","Conditional_ChemCode1_Units","Conditional_ChemCode1_Min_Value_Prefix","Conditional_ChemCode1_Value_Min","Conditional_ChemCode1_Max_Value_Prefix","Conditional_ChemCode1_Value_Max","Conditional_ChemCode2","Conditional_ChemCode2_Units","Conditional_ChemCode2_Min_Value_Prefix","Conditional_ChemCode2_Value_Min","Conditional_ChemCode2_Max_Value_Prefix","Conditional_ChemCode2_Value_Max","Applies_To_Total_Result","Applies_To_Filtered_Result"]
["108-88-3","Toluene","Soil","NEPM 2013 Table 1A(3) Res A/B Soil HSL for Vapour Intrusion, Sand",160,null,"mg/kg",null,null,null,null,0,1,null,null,null,null,null,null,null,null,null,null,null,null,null,1,1]
["100-41-4","Ethylbenzene","Soil","NEPM 2013 Table 1A(3) Res A/B Soil HSL for Vapour Intrusion, Sand",55,null,"mg/kg",null,null,null,null,0,1,null,null,null,null,null,null,null,null,null,null,null,null,null,1,1]
["1330-20-7","Xylenes","Soil","NEPM 2013 Table 1A(3) Res A/B Soil HSL for Vapour Intrusion, Sand",40,null,"mg/kg",null,null,null,null,0,1,null,null,null,null,null,null,null,null,null,null,null,null,null,1,1]
["91-20-3","Naphthalene","Soil","NEPM 2013 Table 1A(3) Res A/B Soil HSL for Vapour Intrusion, Sand",3,null,"mg/kg",null,null,null,null,0,1,null,null,null,null,null,null,null,null,null,null,null,null,null,1,1]
["71-43-2","Benzene","Soil","NEPM 2013 Table 1A(3) Res A/B Soil HSL for Vapour Intrusion, Sand",0.5,null,"mg/kg",null,null,null,null,0,1,null,null,null,null,null,null,null,null,null,null,null,null,null,1,1]
["F1-BTEX","F1","Soil","NEPM 2013 Table 1A(3) Res A/B Soil HSL for Vapour Intrusion, Sand",45,null,"mg/kg",null,null,"To obtain F1 subtract the sum of BTEX concentrations from the C6  - C10 fraction.",null,0,1,null,null,null,null,null,null,null,null,null,null,null,null,null,1,1]
["F2-NAPHTHALENE","F2","Soil","NEPM 2013 Table 1A(3) Res A/B Soil HSL for Vapour Intrusion, Sand",110,null,"mg/kg",null,null,"To obtain F2 subtract napthalene from the >C10 - C16 fraction.",null,0,1,null,null,null,null,null,null,null,null,null,null,null,null,null,1,1]
["108-88-3","Toluene","Soil","NEPM 2013 Table 1A(3) Res A/B Soil HSL for Vapour Intrusion, Sand",220,null,"mg/kg",null,null,null,null,1,2,null,null,null,null,null,null,null,null,null,null,null,null,null,1,1]
["100-41-4","Ethylbenzene","Soil","NEPM 2013 Table 1A(3) Res A/B Soil HSL for Vapour Intrusion, Sand",null,null,"mg/kg","NL",null,"Derived soil HSL exceeds soil saturation concentraiton",null,1,2]
["1330-20-7","Xylenes","Soil","NEPM 2013 Table 1A(3) Res A/B Soil HSL for Vapour Intrusion, Sand",60,null,"mg/kg",null,null,null,null,1,2,null,null,null,null,null,null,null,null,null,null,null,null,null,1,1]
["91-20-3","Naphthalene","Soil","NEPM 2013 Table 1A(3) Res A/B Soil HSL for Vapour Intrusion, Sand",null,null,"mg/kg","NL",null,"Derived soil HSL exceeds soil saturation concentraiton",null,1,2]
["71-43-2","Benzene","Soil","NEPM 2013 Table 1A(3) Res A/B Soil HSL for Vapour Intrusion, Sand",0.5,null,"mg/kg",null,null,null,null,1,2,null,null,null,null,null,null,null,null,null,null,null,null,null,1,1]
["F1-BTEX","F1","Soil","NEPM 2013 Table 1A(3) Res A/B Soil HSL for Vapour Intrusion, Sand",70,null,"mg/kg",null,null,"To obtain F1 subtract the sum of BTEX concentrations from the C6  - C10 fraction.",null,1,2,null,null,null,null,null,null,null,null,null,null,null,null,null,1,1]
["F2-NAPHTHALENE","F2","Soil","NEPM 2013 Table 1A(3) Res A/B Soil HSL for Vapour Intrusion, Sand",240,null,"mg/kg",null,null,"To obtain F2 subtract napthalene from the >C10 - C16 fraction.",null,1,2,null,null,null,null,null,null,null,null,null,null,null,null,null,1,1]
["108-88-3","Toluene","Soil","NEPM 2013 Table 1A(3) Res A/B Soil HSL for Vapour Intrusion, Sand",310,null,"mg/kg",null,null,null,null,2,4,null,null,null,null,null,null,null,null,null,null,null,null,null,1,1]
["100-41-4","Ethylbenzene","Soil","NEPM 2013 Table 1A(3) Res A/B Soil HSL for Vapour Intrusion, Sand",null,null,"mg/kg","NL",null,"Derived soil HSL exceeds soil saturation concentraiton",null,2,4]
["1330-20-7","Xylenes","Soil","NEPM 2013 Table 1A(3) Res A/B Soil HSL for Vapour Intrusion, Sand",95,null,"mg/kg",null,null,null,null,2,4,null,null,null,null,null,null,null,null,null,null,null,null,null,1,1]
["91-20-3","Naphthalene","Soil","NEPM 2013 Table 1A(3) Res A/B Soil HSL for Vapour Intrusion, Sand",null,null,"mg/kg","NL",null,"Derived soil HSL exceeds soil saturation concentraiton",null,2,4]
["71-43-2","Benzene","Soil","NEPM 2013 Table 1A(3) Res A/B Soil HSL for Vapour Intrusion, Sand",0.5,null,"mg/kg",null,null,null,null,2,4,null,null,null,null,null,null,null,null,null,null,null,null,null,1,1]
["F1-BTEX","F1","Soil","NEPM 2013 Table 1A(3) Res A/B Soil HSL for Vapour Intrusion, Sand",110,null,"mg/kg",null,null,"To obtain F1 subtract the sum of BTEX concentrations from the C6  - C10 fraction.",null,2,4,null,null,null,null,null,null,null,null,null,null,null,null,null,1,1]
["F2-NAPHTHALENE","F2","Soil","NEPM 2013 Table 1A(3) Res A/B Soil HSL for Vapour Intrusion, Sand",440,null,"mg/kg",null,null,"To obtain F2 subtract napthalene from the >C10 - C16 fraction.",null,2,4,null,null,null,null,null,null,null,null,null,null,null,null,null,1,1]
["108-88-3","Toluene","Soil","NEPM 2013 Table 1A(3) Res A/B Soil HSL for Vapour Intrusion, Sand",540,null,"mg/kg",null,null,null,null,4,null,null,null,null,null,null,null,null,null,null,null,null,null,null,1,1]
["100-41-4","Ethylbenzene","Soil","NEPM 2013 Table 1A(3) Res A/B Soil HSL for Vapour Intrusion, Sand",null,null,"mg/kg","NL",null,"Derived soil HSL exceeds soil saturation concentraiton",null,4]
["1330-20-7","Xylenes","Soil","NEPM 2013 Table 1A(3) Res A/B Soil HSL for Vapour Intrusion, Sand",170,null,"mg/kg",null,null,null,null,4,null,null,null,null,null,null,null,null,null,null,null,null,null,null,1,1]
["91-20-3","Naphthalene","Soil","NEPM 2013 Table 1A(3) Res A/B Soil HSL for Vapour Intrusion, Sand",null,null,"mg/kg","NL",null,"Derived soil HSL exceeds soil saturation concentraiton",null,4]
["71-43-2","Benzene","Soil","NEPM 2013 Table 1A(3) Res A/B Soil HSL for Vapour Intrusion, Sand",0.5,null,"mg/kg",null,null,null,null,4,null,null,null,null,null,null,null,null,null,null,null,null,null,null,1,1]
["F1-BTEX","F1","Soil","NEPM 2013 Table 1A(3) Res A/B Soil HSL for Vapour Intrusion, Sand",200,null,"mg/kg",null,null,"To obtain F1 subtract the sum of BTEX concentrations from the C6  - C10 fraction.",null,4,null,null,null,null,null,null,null,null,null,null,null,null,null,null,1,1]
["F2-NAPHTHALENE","F2","Soil","NEPM 2013 Table 1A(3) Res A/B Soil HSL for Vapour Intrusion, Sand",null,null,"mg/kg","NL",null,"Derived soil HSL exceeds soil saturation concentraiton",null,4]
["108-88-3","Toluene","Soil","NEPM 2013 Table 1A(3) Res A/B Soil HSL for Vapour Intrusion, Silt",390,null,"mg/kg",null,null,null,null,0,1,null,null,null,null,null,null,null,null,null,null,null,null,null,1,1]
["100-41-4","Ethylbenzene","Soil","NEPM 2013 Table 1A(3) Res A/B Soil HSL for Vapour Intrusion, Silt",null,null,"mg/kg","NL",null,"Derived soil HSL exceeds soil saturation concentraiton",null,0,1]
["1330-20-7","Xylenes","Soil","NEPM 2013 Table 1A(3) Res A/B Soil HSL for Vapour Intrusion, Silt",95,null,"mg/kg",null,null,null,null,0,1,null,null,null,null,null,null,null,null,null,null,null,null,null,1,1]
["91-20-3","Naphthalene","Soil","NEPM 2013 Table 1A(3) Res A/B Soil HSL for Vapour Intrusion, Silt",4,null,"mg/kg",null,null,null,null,0,1,null,null,null,null,null,null,null,null,null,null,null,null,null,1,1]
["71-43-2","Benzene","Soil","NEPM 2013 Table 1A(3) Res A/B Soil HSL for Vapour Intrusion, Silt",0.6,null,"mg/kg",null,null,null,null,0,1,null,null,null,null,null,null,null,null,null,null,null,null,null,1,1]
["F1-BTEX","F1","Soil","NEPM 2013 Table 1A(3) Res A/B Soil HSL for Vapour Intrusion, Silt",40,null,"mg/kg",null,null,"To obtain F1 subtract the sum of BTEX concentrations from the C6  - C10 fraction.",null,0,1,null,null,null,null,null,null,null,null,null,null,null,null,null,1,1]
["F2-NAPHTHALENE","F2","Soil","NEPM 2013 Table 1A(3) Res A/B Soil HSL for Vapour Intrusion, Silt",230,null,"mg/kg",null,null,"To obtain F2 subtract napthalene from the >C10 - C16 fraction.",null,0,1,null,null,null,null,null,null,null,null,null,null,null,null,null,1,1]
["108-88-3","Toluene","Soil","NEPM 2013 Table 1A(3) Res A/B Soil HSL for Vapour Intrusion, Silt",null,null,"mg/kg","NL",null,"Derived soil HSL exceeds soil saturation concentraiton",null,1,2]
["100-41-4","Ethylbenzene","Soil","NEPM 2013 Table 1A(3) Res A/B Soil HSL for Vapour Intrusion, Silt",null,null,"mg/kg","NL",null,"Derived soil HSL exceeds soil saturation concentraiton",null,1,2]
["1330-20-7","Xylenes","Soil","NEPM 2013 Table 1A(3) Res A/B Soil HSL for Vapour Intrusion, Silt",210,null,"mg/kg",null,null,null,null,1,2,null,null,null,null,null,null,null,null,null,null,null,null,null,1,1]
["91-20-3","Naphthalene","Soil","NEPM 2013 Table 1A(3) Res A/B Soil HSL for Vapour Intrusion, Silt",null,null,"mg/kg","NL",null,"Derived soil HSL exceeds soil saturation concentraiton",null,1,2]
["71-43-2","Benzene","Soil","NEPM 2013 Table 1A(3) Res A/B Soil HSL for Vapour Intrusion, Silt",0.7,null,"mg/kg",null,null,null,null,1,2,null,null,null,null,null,null,null,null,null,null,null,null,null,1,1]
["F1-BTEX","F1","Soil","NEPM 2013 Table 1A(3) Res A/B Soil HSL for Vapour Intrusion, Silt",65,null,"mg/kg",null,null,"To obtain F1 subtract the sum of BTEX concentrations from the C6  - C10 fraction.",null,1,2,null,null,null,null,null,null,null,null,null,null,null,null,null,1,1]
["F2-NAPHTHALENE","F2","Soil","NEPM 2013 Table 1A(3) Res A/B Soil HSL for Vapour Intrusion, Silt",null,null,"mg/kg","NL",null,"Derived soil HSL exceeds soil saturation concentraiton",null,1,2]
["108-88-3","Toluene","Soil","NEPM 2013 Table 1A(3) Res A/B Soil HSL for Vapour Intrusion, Silt",null,null,"mg/kg","NL",null,"Derived soil HSL exceeds soil saturation concentraiton",null,2,4]
["100-41-4","Ethylbenzene","Soil","NEPM 2013 Table 1A(3) Res A/B Soil HSL for Vapour Intrusion, Silt",null,null,"mg/kg","NL",null,"Derived soil HSL exceeds soil saturation concentraiton",null,2,4]
["1330-20-7","Xylenes","Soil","NEPM 2013 Table 1A(3) Res A/B Soil HSL for Vapour Intrusion, Silt",null,null,"mg/kg","NL",null,"Derived soil HSL exceeds soil saturation concentraiton",null,2,4]
["91-20-3","Naphthalene","Soil","NEPM 2013 Table 1A(3) Res A/B Soil HSL for Vapour Intrusion, Silt",null,null,"mg/kg","NL",null,"Derived soil HSL exceeds soil saturation concentraiton",null,2,4]
["71-43-2","Benzene","Soil","NEPM 2013 Table 1A(3) Res A/B Soil HSL for Vapour Intrusion, Silt",1,null,"mg/kg",null,null,null,null,2,4,null,null,null,null,null,null,null,null,null,null,null,null,null,1,1]
["F1-BTEX","F1","Soil","NEPM 2013 Table 1A(3) Res A/B Soil HSL for Vapour Intrusion, Silt",100,null,"mg/kg",null,null,"To obtain F1 subtract the sum of BTEX concentrations from the C6  - C10 fraction.",null,2,4,null,null,null,null,null,null,null,null,null,null,null,null,null,1,1]
["F2-NAPHTHALENE","F2","Soil","NEPM 2013 Table 1A(3) Res A/B Soil HSL for Vapour Intrusion, Silt",null,null,"mg/kg","NL",null,"Derived soil HSL exceeds soil saturation concentraiton",null,2,4]
["108-88-3","Toluene","Soil","NEPM 2013 Table 1A(3) Res A/B Soil HSL for Vapour Intrusion, Silt",null,null,"mg/kg","NL",null,"Derived soil HSL exceeds soil saturation concentraiton",null,4]
["100-41-4","Ethylbenzene","Soil","NEPM 2013 Table 1A(3) Res A/B Soil HSL for Vapour Intrusion, Silt",null,null,"mg/kg","NL",null,"Derived soil HSL exceeds soil saturation concentraiton",null,4]
["1330-20-7","Xylenes","Soil","NEPM 2013 Table 1A(3) Res A/B Soil HSL for Vapour Intrusion, Silt",null,null,"mg/kg","NL",null,"Derived soil HSL exceeds soil saturation concentraiton",null,4]
["91-20-3","Naphthalene","Soil","NEPM 2013 Table 1A(3) Res A/B Soil HSL for Vapour Intrusion, Silt",null,null,"mg/kg","NL",null,"Derived soil HSL exceeds soil saturation concentraiton",null,4]
["71-43-2","Benzene","Soil","NEPM 2013 Table 1A(3) Res A/B Soil HSL for Vapour Intrusion, Silt",2,null,"mg/kg",null,null,null,null,4,null,null,null,null,null,null,null,null,null,null,null,null,null,null,1,1]
["F1-BTEX","F1","Soil","NEPM 2013 Table 1A(3) Res A/B Soil HSL for Vapour Intrusion, Silt",190,null,"mg/kg",null,null,"To obtain F1 subtract the sum of BTEX concentrations from the C6  - C10 fraction.",null,4,null,null,null,null,null,null,null,null,null,null,null,null,null,null,1,1]
["F2-NAPHTHALENE","F2","Soil","NEPM 2013 Table 1A(3) Res A/B Soil HSL for Vapour Intrusion, Silt",null,null,"mg/kg","NL",null,"Derived soil HSL exceeds soil saturation concentraiton",null,4]
["108-88-3","Toluene","Soil","NEPM 2013 Table 1A(3) Res A/B Soil HSL for Vapour Intrusion, Clay",480,null,"mg/kg",null,null,null,null,0,1,null,null,null,null,null,null,null,null,null,null,null,null,null,1,1]
["100-41-4","Ethylbenzene","Soil","NEPM 2013 Table 1A(3) Res A/B Soil HSL for Vapour Intrusion, Clay",null,null,"mg/kg","NL",null,"Derived soil HSL exceeds soil saturation concentraiton",null,0,1]
["1330-20-7","Xylenes","Soil","NEPM 2013 Table 1A(3) Res A/B Soil HSL for Vapour Intrusion, Clay",110,null,"mg/kg",null,null,null,null,0,1,null,null,null,null,null,null,null,null,null,null,null,null,null,1,1]
["91-20-3","Naphthalene","Soil","NEPM 2013 Table 1A(3) Res A/B Soil HSL for Vapour Intrusion, Clay",5,null,"mg/kg",null,null,null,null,0,1,null,null,null,null,null,null,null,null,null,null,null,null,null,1,1]
["71-43-2","Benzene","Soil","NEPM 2013 Table 1A(3) Res A/B Soil HSL for Vapour Intrusion, Clay",0.7,null,"mg/kg",null,null,null,null,0,1,null,null,null,null,null,null,null,null,null,null,null,null,null,1,1]
["F1-BTEX","F1","Soil","NEPM 2013 Table 1A(3) Res A/B Soil HSL for Vapour Intrusion, Clay",50,null,"mg/kg",null,null,"To obtain F1 subtract the sum of BTEX concentrations from the C6  - C10 fraction.",null,0,1,null,null,null,null,null,null,null,null,null,null,null,null,null,1,1]
["F2-NAPHTHALENE","F2","Soil","NEPM 2013 Table 1A(3) Res A/B Soil HSL for Vapour Intrusion, Clay",280,null,"mg/kg",null,null,"To obtain F2 subtract napthalene from the >C10 - C16 fraction.",null,0,1,null,null,null,null,null,null,null,null,null,null,null,null,null,1,1]
["108-88-3","Toluene","Soil","NEPM 2013 Table 1A(3) Res A/B Soil HSL for Vapour Intrusion, Clay",null,null,"mg/kg","NL",null,"Derived soil HSL exceeds soil saturation concentraiton",null,1,2]
["100-41-4","Ethylbenzene","Soil","NEPM 2013 Table 1A(3) Res A/B Soil HSL for Vapour Intrusion, Clay",null,null,"mg/kg","NL",null,"Derived soil HSL exceeds soil saturation concentraiton",null,1,2]
["1330-20-7","Xylenes","Soil","NEPM 2013 Table 1A(3) Res A/B Soil HSL for Vapour Intrusion, Clay",310,null,"mg/kg",null,null,null,null,1,2,null,null,null,null,null,null,null,null,null,null,null,null,null,1,1]
["91-20-3","Naphthalene","Soil","NEPM 2013 Table 1A(3) Res A/B Soil HSL for Vapour Intrusion, Clay",null,null,"mg/kg","NL",null,"Derived soil HSL exceeds soil saturation concentraiton",null,1,2]
["71-43-2","Benzene","Soil","NEPM 2013 Table 1A(3) Res A/B Soil HSL for Vapour Intrusion, Clay",1,null,"mg/kg",null,null,null,null,1,2,null,null,null,null,null,null,null,null,null,null,null,null,null,1,1]
["F1-BTEX","F1","Soil","NEPM 2013 Table 1A(3) Res A/B Soil HSL for Vapour Intrusion, Clay",90,null,"mg/kg",null,null,"To obtain F1 subtract the sum of BTEX concentrations from the C6  - C10 fraction.",null,1,2,null,null,null,null,null,null,null,null,null,null,null,null,null,1,1]
["F2-NAPHTHALENE","F2","Soil","NEPM 2013 Table 1A(3) Res A/B Soil HSL for Vapour Intrusion, Clay",null,null,"mg/kg","NL",null,"Derived soil HSL exceeds soil saturation concentraiton",null,1,2]
["108-88-3","Toluene","Soil","NEPM 2013 Table 1A(3) Res A/B Soil HSL for Vapour Intrusion, Clay",null,null,"mg/kg","NL",null,"Derived soil HSL exceeds soil saturation concentraiton",null,2,4]
["100-41-4","Ethylbenzene","Soil","NEPM 2013 Table 1A(3) Res A/B Soil HSL for Vapour Intrusion, Clay",null,null,"mg/kg","NL",null,"Derived soil HSL exceeds soil saturation concentraiton",null,2,4]
["1330-20-7","Xylenes","Soil","NEPM 2013 Table 1A(3) Res A/B Soil HSL for Vapour Intrusion, Clay",null,null,"mg/kg","NL",null,"Derived soil HSL exceeds soil saturation concentraiton",null,2,4]
["91-20-3","Naphthalene","Soil","NEPM 2013 Table 1A(3) Res A/B Soil HSL for Vapour Intrusion, Clay",null,null,"mg/kg","NL",null,"Derived soil HSL exceeds soil saturation concentraiton",null,2,4]
["71-43-2","Benzene","Soil","NEPM 2013 Table 1A(3) Res A/B Soil HSL for Vapour Intrusion, Clay",2,null,"mg/kg",null,null,null,null,2,4,null,null,null,null,null,null,null,null,null,null,null,null,null,1,1]
["F1-BTEX","F1","Soil","NEPM 2013 Table 1A(3) Res A/B Soil HSL for Vapour Intrusion, Clay",150,null,"mg/kg",null,null,"To obtain F1 subtract the sum of BTEX concentrations from the C6  - C10 fraction.",null,2,4,null,null,null,null,null,null,null,null,null,null,null,null,null,1,1]
["F2-NAPHTHALENE","F2","Soil","NEPM 2013 Table 1A(3) Res A/B Soil HSL for Vapour Intrusion, Clay",null,null,"mg/kg","NL",null,"Derived soil HSL exceeds soil saturation concentraiton",null,2,4]
["108-88-3","Toluene","Soil","NEPM 2013 Table 1A(3) Res A/B Soil HSL for Vapour Intrusion, Clay",null,null,"mg/kg","NL",null,"Derived soil HSL exceeds soil saturation concentraiton",null,4]
["100-41-4","Ethylbenzene","Soil","NEPM 2013 Table 1A(3) Res A/B Soil HSL for Vapour Intrusion, Clay",null,null,"mg/kg","NL",null,"Derived soil HSL exceeds soil saturation concentraiton",null,4]
["1330-20-7","Xylenes","Soil","NEPM 2013 Table 1A(3) Res A/B Soil HSL for Vapour Intrusion, Clay",null,null,"mg/kg","NL",null,"Derived soil HSL exceeds soil saturation concentraiton",null,4]
["91-20-3","Naphthalene","Soil","NEPM 2013 Table 1A(3) Res A/B Soil HSL for Vapour Intrusion, Clay",null,null,"mg/kg","NL",null,"Derived soil HSL exceeds soil saturation concentraiton",null,4]
["71-43-2","Benzene","Soil","NEPM 2013 Table 1A(3) Res A/B Soil HSL for Vapour Intrusion, Clay",3,null,"mg/kg",null,null,null,null,4,null,null,null,null,null,null,null,null,null,null,null,null,null,null,1,1]
["F1-BTEX","F1","Soil","NEPM 2013 Table 1A(3) Res A/B Soil HSL for Vapour Intrusion, Clay",290,null,"mg/kg",null,null,"To obtain F1 subtract the sum of BTEX concentrations from the C6  - C10 fraction.",null,4,null,null,null,null,null,null,null,null,null,null,null,null,null,null,1,1]
["F2-NAPHTHALENE","F2","Soil","NEPM 2013 Table 1A(3) Res A/B Soil HSL for Vapour Intrusion, Clay",null,null,"mg/kg","NL",null,"Derived soil HSL exceeds soil saturation concentraiton",null,4]
["108-88-3","Toluene","Soil","NEPM 2013 Table 1A(3) Rec C Soil HSL for Vapour Intrusion, Sand",null,null,"mg/kg","NL",null,"Derived soil HSL exceeds soil saturation concentraiton",null,0,1]
["100-41-4","Ethylbenzene","Soil","NEPM 2013 Table 1A(3) Rec C Soil HSL for Vapour Intrusion, Sand",null,null,"mg/kg","NL",null,"Derived soil HSL exceeds soil saturation concentraiton",null,0,1]
["1330-20-7","Xylenes","Soil","NEPM 2013 Table 1A(3) Rec C Soil HSL for Vapour Intrusion, Sand",null,null,"mg/kg","NL",null,"Derived soil HSL exceeds soil saturation concentraiton",null,0,1]
["91-20-3","Naphthalene","Soil","NEPM 2013 Table 1A(3) Rec C Soil HSL for Vapour Intrusion, Sand",null,null,"mg/kg","NL",null,"Derived soil HSL exceeds soil saturation concentraiton",null,0,1]
["71-43-2","Benzene","Soil","NEPM 2013 Table 1A(3) Rec C Soil HSL for Vapour Intrusion, Sand",null,null,"mg/kg","NL",null,"Derived soil HSL exceeds soil saturation concentraiton",null,0,1]
["F1-BTEX","F1","Soil","NEPM 2013 Table 1A(3) Rec C Soil HSL for Vapour Intrusion, Sand",null,null,"mg/kg","NL",null,"Derived soil HSL exceeds soil saturation concentraiton",null,0,1]
["F2-NAPHTHALENE","F2","Soil","NEPM 2013 Table 1A(3) Rec C Soil HSL for Vapour Intrusion, Sand",null,null,"mg/kg","NL",null,"Derived soil HSL exceeds soil saturation concentraiton",null,0,1]
["108-88-3","Toluene","Soil","NEPM 2013 Table 1A(3) Rec C Soil HSL for Vapour Intrusion, Sand",null,null,"mg/kg","NL",null,"Derived soil HSL exceeds soil saturation concentraiton",null,1,2]
["100-41-4","Ethylbenzene","Soil","NEPM 2013 Table 1A(3) Rec C Soil HSL for Vapour Intrusion, Sand",null,null,"mg/kg","NL",null,"Derived soil HSL exceeds soil saturation concentraiton",null,1,2]
["1330-20-7","Xylenes","Soil","NEPM 2013 Table 1A(3) Rec C Soil HSL for Vapour Intrusion, Sand",null,null,"mg/kg","NL",null,"Derived soil HSL exceeds soil saturation concentraiton",null,1,2]
["91-20-3","Naphthalene","Soil","NEPM 2013 Table 1A(3) Rec C Soil HSL for Vapour Intrusion, Sand",null,null,"mg/kg","NL",null,"Derived soil HSL exceeds soil saturation concentraiton",null,1,2]
["71-43-2","Benzene","Soil","NEPM 2013 Table 1A(3) Rec C Soil HSL for Vapour Intrusion, Sand",null,null,"mg/kg","NL",null,"Derived soil HSL exceeds soil saturation concentraiton",null,1,2]
["F1-BTEX","F1","Soil","NEPM 2013 Table 1A(3) Rec C Soil HSL for Vapour Intrusion, Sand",null,null,"mg/kg","NL",null,"Derived soil HSL exceeds soil saturation concentraiton",null,1,2]
["F2-NAPHTHALENE","F2","Soil","NEPM 2013 Table 1A(3) Rec C Soil HSL for Vapour Intrusion, Sand",null,null,"mg/kg","NL",null,"Derived soil HSL exceeds soil saturation concentraiton",null,1,2]
["108-88-3","Toluene","Soil","NEPM 2013 Table 1A(3) Rec C Soil HSL for Vapour Intrusion, Sand",null,null,"mg/kg","NL",null,"Derived soil HSL exceeds soil saturation concentraiton",null,2,4]
["100-41-4","Ethylbenzene","Soil","NEPM 2013 Table 1A(3) Rec C Soil HSL for Vapour Intrusion, Sand",null,null,"mg/kg","NL",null,"Derived soil HSL exceeds soil saturation concentraiton",null,2,4]
["1330-20-7","Xylenes","Soil","NEPM 2013 Table 1A(3) Rec C Soil HSL for Vapour Intrusion, Sand",null,null,"mg/kg","NL",null,"Derived soil HSL exceeds soil saturation concentraiton",null,2,4]
["91-20-3","Naphthalene","Soil","NEPM 2013 Table 1A(3) Rec C Soil HSL for Vapour Intrusion, Sand",null,null,"mg/kg","NL",null,"Derived soil HSL exceeds soil saturation concentraiton",null,2,4]
["71-43-2","Benzene","Soil","NEPM 2013 Table 1A(3) Rec C Soil HSL for Vapour Intrusion, Sand",null,null,"mg/kg","NL",null,"Derived soil HSL exceeds soil saturation concentraiton",null,2,4]
["F1-BTEX","F1","Soil","NEPM 2013 Table 1A(3) Rec C Soil HSL for Vapour Intrusion, Sand",null,null,"mg/kg","NL",null,"Derived soil HSL exceeds soil saturation concentraiton",null,2,4]
["F2-NAPHTHALENE","F2","Soil","NEPM 2013 Table 1A(3) Rec C Soil HSL for Vapour Intrusion, Sand",null,null,"mg/kg","NL",null,"Derived soil HSL exceeds soil saturation concentraiton",null,2,4]
["108-88-3","Toluene","Soil","NEPM 2013 Table 1A(3) Rec C Soil HSL for Vapour Intrusion, Sand",null,null,"mg/kg","NL",null,"Derived soil HSL exceeds soil saturation concentraiton",null,4]
["100-41-4","Ethylbenzene","Soil","NEPM 2013 Table 1A(3) Rec C Soil HSL for Vapour Intrusion, Sand",null,null,"mg/kg","NL",null,"Derived soil HSL exceeds soil saturation concentraiton",null,4]
["1330-20-7","Xylenes","Soil","NEPM 2013 Table 1A(3) Rec C Soil HSL for Vapour Intrusion, Sand",null,null,"mg/kg","NL",null,"Derived soil HSL exceeds soil saturation concentraiton",null,4]
["91-20-3","Naphthalene","Soil","NEPM 2013 Table 1A(3) Rec C Soil HSL for Vapour Intrusion, Sand",null,null,"mg/kg","NL",null,"Derived soil HSL exceeds soil saturation concentraiton",null,4]
["71-43-2","Benzene","Soil","NEPM 2013 Table 1A(3) Rec C Soil HSL for Vapour Intrusion, Sand",null,null,"mg/kg","NL",null,"Derived soil HSL exceeds soil saturation concentraiton",null,4]
["F1-BTEX","F1","Soil","NEPM 2013 Table 1A(3) Rec C Soil HSL for Vapour Intrusion, Sand",null,null,"mg/kg","NL",null,"Derived soil HSL exceeds soil saturation concentraiton",null,4]
["F2-NAPHTHALENE","F2","Soil","NEPM 2013 Table 1A(3) Rec C Soil HSL for Vapour Intrusion, Sand",null,null,"mg/kg","NL",null,"Derived soil HSL exceeds soil saturation concentraiton",null,4]
["108-88-3","Toluene","Soil","NEPM 2013 Table 1A(3) Rec C Soil HSL for Vapour Intrusion, Silt",null,null,"mg/kg","NL",null,"Derived soil HSL exceeds soil saturation concentraiton",null,0,1]
["100-41-4","Ethylbenzene","Soil","NEPM 2013 Table 1A(3) Rec C Soil HSL for Vapour Intrusion, Silt",null,null,"mg/kg","NL",null,"Derived soil HSL exceeds soil saturation concentraiton",null,0,1]
["1330-20-7","Xylenes","Soil","NEPM 2013 Table 1A(3) Rec C Soil HSL for Vapour Intrusion, Silt",null,null,"mg/kg","NL",null,"Derived soil HSL exceeds soil saturation concentraiton",null,0,1]
["91-20-3","Naphthalene","Soil","NEPM 2013 Table 1A(3) Rec C Soil HSL for Vapour Intrusion, Silt",null,null,"mg/kg","NL",null,"Derived soil HSL exceeds soil saturation concentraiton",null,0,1]
["71-43-2","Benzene","Soil","NEPM 2013 Table 1A(3) Rec C Soil HSL for Vapour Intrusion, Silt",null,null,"mg/kg","NL",null,"Derived soil HSL exceeds soil saturation concentraiton",null,0,1]
["F1-BTEX","F1","Soil","NEPM 2013 Table 1A(3) Rec C Soil HSL for Vapour Intrusion, Silt",null,null,"mg/kg","NL",null,"Derived soil HSL exceeds soil saturation concentraiton",null,0,1]
["F2-NAPHTHALENE","F2","Soil","NEPM 2013 Table 1A(3) Rec C Soil HSL for Vapour Intrusion, Silt",null,null,"mg/kg","NL",null,"Derived soil HSL exceeds soil saturation concentraiton",null,0,1]
["108-88-3","Toluene","Soil","NEPM 2013 Table 1A(3) Rec C Soil HSL for Vapour Intrusion, Silt",null,null,"mg/kg","NL",null,"Derived soil HSL exceeds soil saturation concentraiton",null,1,2]
["100-41-4","Ethylbenzene","Soil","NEPM 2013 Table 1A(3) Rec C Soil HSL for Vapour Intrusion, Silt",null,null,"mg/kg","NL",null,"Derived soil HSL exceeds soil saturation concentraiton",null,1,2]
["1330-20-7","Xylenes","Soil","NEPM 2013 Table 1A(3) Rec C Soil HSL for Vapour Intrusion, Silt",null,null,"mg/kg","NL",null,"Derived soil HSL exceeds soil saturation concentraiton",null,1,2]
["91-20-3","Naphthalene","Soil","NEPM 2013 Table 1A(3) Rec C Soil HSL for Vapour Intrusion, Silt",null,null,"mg/kg","NL",null,"Derived soil HSL exceeds soil saturation concentraiton",null,1,2]
["71-43-2","Benzene","Soil","NEPM 2013 Table 1A(3) Rec C Soil HSL for Vapour Intrusion, Silt",null,null,"mg/kg","NL",null,"Derived soil HSL exceeds soil saturation concentraiton",null,1,2]
["F1-BTEX","F1","Soil","NEPM 2013 Table 1A(3) Rec C Soil HSL for Vapour Intrusion, Silt",null,null,"mg/kg","NL",null,"Derived soil HSL exceeds soil saturation concentraiton",null,1,2]
["F2-NAPHTHALENE","F2","Soil","NEPM 2013 Table 1A(3) Rec C Soil HSL for Vapour Intrusion, Silt",null,null,"mg/kg","NL",null,"Derived soil HSL exceeds soil saturation concentraiton",null,1,2]
["108-88-3","Toluene","Soil","NEPM 2013 Table 1A(3) Rec C Soil HSL for Vapour Intrusion, Silt",null,null,"mg/kg","NL",null,"Derived soil HSL exceeds soil saturation concentraiton",null,2,4]
["100-41-4","Ethylbenzene","Soil","NEPM 2013 Table 1A(3) Rec C Soil HSL for Vapour Intrusion, Silt",null,null,"mg/kg","NL",null,"Derived soil HSL exceeds soil saturation concentraiton",null,2,4]
["1330-20-7","Xylenes","Soil","NEPM 2013 Table 1A(3) Rec C Soil HSL for Vapour Intrusion, Silt",null,null,"mg/kg","NL",null,"Derived soil HSL exceeds soil saturation concentraiton",null,2,4]
["91-20-3","Naphthalene","Soil","NEPM 2013 Table 1A(3) Rec C Soil HSL for Vapour Intrusion, Silt",null,null,"mg/kg","NL",null,"Derived soil HSL exceeds soil saturation concentraiton",null,2,4]
["71-43-2","Benzene","Soil","NEPM 2013 Table 1A(3) Rec C Soil HSL for Vapour Intrusion, Silt",null,null,"mg/kg","NL",null,"Derived soil HSL exceeds soil saturation concentraiton",null,2,4]
["F1-BTEX","F1","Soil","NEPM 2013 Table 1A(3) Rec C Soil HSL for Vapour Intrusion, Silt",null,null,"mg/kg","NL",null,"Derived soil HSL exceeds soil saturation concentraiton",null,2,4]
["F2-NAPHTHALENE","F2","Soil","NEPM 2013 Table 1A(3) Rec C Soil HSL for Vapour Intrusion, Silt",null,null,"mg/kg","NL",null,"Derived soil HSL exceeds soil saturation concentraiton",null,2,4]
["108-88-3","Toluene","Soil","NEPM 2013 Table 1A(3) Rec C Soil HSL for Vapour Intrusion, Silt",null,null,"mg/kg","NL",null,"Derived soil HSL exceeds soil saturation concentraiton",null,4]
["100-41-4","Ethylbenzene","Soil","NEPM 2013 Table 1A(3) Rec C Soil HSL for Vapour Intrusion, Silt",null,null,"mg/kg","NL",null,"Derived soil HSL exceeds soil saturation concentraiton",null,4]
["1330-20-7","Xylenes","Soil","NEPM 2013 Table 1A(3) Rec C Soil HSL for Vapour Intrusion, Silt",null,null,"mg/kg","NL",null,"Derived soil HSL exceeds soil saturation concentraiton",null,4]
["91-20-3","Naphthalene","Soil","NEPM 2013 Table 1A(3) Rec C Soil HSL for Vapour Intrusion, Silt",null,null,"mg/kg","NL",null,"Derived soil HSL exceeds soil saturation concentraiton",null,4]
["71-43-2","Benzene","Soil","NEPM 2013 Table 1A(3) Rec C Soil HSL for Vapour Intrusion, Silt",null,null,"mg/kg","NL",null,"Derived soil HSL exceeds soil saturation concentraiton",null,4]
["F1-BTEX","F1","Soil","NEPM 2013 Table 1A(3) Rec C Soil HSL for Vapour Intrusion, Silt",null,null,"mg/kg","NL",null,"Derived soil HSL exceeds soil saturation concentraiton",null,4]
["F2-NAPHTHALENE","F2","Soil","NEPM 2013 Table 1A(3) Rec C Soil HSL for Vapour Intrusion, Silt",null,null,"mg/kg","NL",null,"Derived soil HSL exceeds soil saturation concentraiton",null,4]
["108-88-3","Toluene","Soil","NEPM 2013 Table 1A(3) Rec C Soil HSL for Vapour Intrusion, Clay",null,null,"mg/kg","NL",null,"Derived soil HSL exceeds soil saturation concentraiton",null,0,1]
["100-41-4","Ethylbenzene","Soil","NEPM 2013 Table 1A(3) Rec C Soil HSL for Vapour Intrusion, Clay",null,null,"mg/kg","NL",null,"Derived soil HSL exceeds soil saturation concentraiton",null,0,1]
["1330-20-7","Xylenes","Soil","NEPM 2013 Table 1A(3) Rec C Soil HSL for Vapour Intrusion, Clay",null,null,"mg/kg","NL",null,"Derived soil HSL exceeds soil saturation concentraiton",null,0,1]
["91-20-3","Naphthalene","Soil","NEPM 2013 Table 1A(3) Rec C Soil HSL for Vapour Intrusion, Clay",null,null,"mg/kg","NL",null,"Derived soil HSL exceeds soil saturation concentraiton",null,0,1]
["71-43-2","Benzene","Soil","NEPM 2013 Table 1A(3) Rec C Soil HSL for Vapour Intrusion, Clay",null,null,"mg/kg","NL",null,"Derived soil HSL exceeds soil saturation concentraiton",null,0,1]
["F1-BTEX","F1","Soil","NEPM 2013 Table 1A(3) Rec C Soil HSL for Vapour Intrusion, Clay",null,null,"mg/kg","NL",null,"Derived soil HSL exceeds soil saturation concentraiton",null,0,1]
["F2-NAPHTHALENE","F2","Soil","NEPM 2013 Table 1A(3) Rec C Soil HSL for Vapour Intrusion, Clay",null,null,"mg/kg","NL",null,"Derived soil HSL exceeds soil saturation concentraiton",null,0,1]
["108-88-3","Toluene","Soil","NEPM 2013 Table 1A(3) Rec C Soil HSL for Vapour Intrusion, Clay",null,null,"mg/kg","NL",null,"Derived soil HSL exceeds soil saturation concentraiton",null,1,2]
["100-41-4","Ethylbenzene","Soil","NEPM 2013 Table 1A(3) Rec C Soil HSL for Vapour Intrusion, Clay",null,null,"mg/kg","NL",null,"Derived soil HSL exceeds soil saturation concentraiton",null,1,2]
["1330-20-7","Xylenes","Soil","NEPM 2013 Table 1A(3) Rec C Soil HSL for Vapour Intrusion, Clay",null,null,"mg/kg","NL",null,"Derived soil HSL exceeds soil saturation concentraiton",null,1,2]
["91-20-3","Naphthalene","Soil","NEPM 2013 Table 1A(3) Rec C Soil HSL for Vapour Intrusion, Clay",null,null,"mg/kg","NL",null,"Derived soil HSL exceeds soil saturation concentraiton",null,1,2]
["71-43-2","Benzene","Soil","NEPM 2013 Table 1A(3) Rec C Soil HSL for Vapour Intrusion, Clay",null,null,"mg/kg","NL",null,"Derived soil HSL exceeds soil saturation concentraiton",null,1,2]
["F1-BTEX","F1","Soil","NEPM 2013 Table 1A(3) Rec C Soil HSL for Vapour Intrusion, Clay",null,null,"mg/kg","NL",null,"Derived soil HSL exceeds soil saturation concentraiton",null,1,2]
["F2-NAPHTHALENE","F2","Soil","NEPM 2013 Table 1A(3) Rec C Soil HSL for Vapour Intrusion, Clay",null,null,"mg/kg","NL",null,"Derived soil HSL exceeds soil saturation concentraiton",null,1,2]
["108-88-3","Toluene","Soil","NEPM 2013 Table 1A(3) Rec C Soil HSL for Vapour Intrusion, Clay",null,null,"mg/kg","NL",null,"Derived soil HSL exceeds soil saturation concentraiton",null,2,4]
["100-41-4","Ethylbenzene","Soil","NEPM 2013 Table 1A(3) Rec C Soil HSL for Vapour Intrusion, Clay",null,null,"mg/kg","NL",null,"Derived soil HSL exceeds soil saturation concentraiton",null,2,4]
["1330-20-7","Xylenes","Soil","NEPM 2013 Table 1A(3) Rec C Soil HSL for Vapour Intrusion, Clay",null,null,"mg/kg","NL",null,"Derived soil HSL exceeds soil saturation concentraiton",null,2,4]
["91-20-3","Naphthalene","Soil","NEPM 2013 Table 1A(3) Rec C Soil HSL for Vapour Intrusion, Clay",null,null,"mg/kg","NL",null,"Derived soil HSL exceeds soil saturation concentraiton",null,2,4]
["71-43-2","Benzene","Soil","NEPM 2013 Table 1A(3) Rec C Soil HSL for Vapour Intrusion, Clay",null,null,"mg/kg","NL",null,"Derived soil HSL exceeds soil saturation concentraiton",null,2,4]
["F1-BTEX","F1","Soil","NEPM 2013 Table 1A(3) Rec C Soil HSL for Vapour Intrusion, Clay",null,null,"mg/kg","NL",null,"Derived soil HSL exceeds soil saturation concentraiton",null,2,4]
["F2-NAPHTHALENE","F2","Soil","NEPM 2013 Table 1A(3) Rec C Soil HSL for Vapour Intrusion, Clay",null,null,"mg/kg","NL",null,"Derived soil HSL exceeds soil saturation concentraiton",null,2,4]
["108-88-3","Toluene","Soil","NEPM 2013 Table 1A(3) Rec C Soil HSL for Vapour Intrusion, Clay",null,null,"mg/kg","NL",null,"Derived soil HSL exceeds soil saturation concentraiton",null,4]
["100-41-4","Ethylbenzene","Soil","NEPM 2013 Table 1A(3) Rec C Soil HSL for Vapour Intrusion, Clay",null,null,"mg/kg","NL",null,"Derived soil HSL exceeds soil saturation concentraiton",null,4]
["1330-20-7","Xylenes","Soil","NEPM 2013 Table 1A(3) Rec C Soil HSL for Vapour Intrusion, Clay",null,null,"mg/kg","NL",null,"Derived soil HSL exceeds soil saturation concentraiton",null,4]
["91-20-3","Naphthalene","Soil","NEPM 2013 Table 1A(3) Rec C Soil HSL for Vapour Intrusion, Clay",null,null,"mg/kg","NL",null,"Derived soil HSL exceeds soil saturation concentraiton",null,4]
["71-43-2","Benzene","Soil","NEPM 2013 Table 1A(3) Rec C Soil HSL for Vapour Intrusion, Clay",null,null,"mg/kg","NL",null,"Derived soil HSL exceeds soil saturation concentraiton",null,4]
["F1-BTEX","F1","Soil","NEPM 2013 Table 1A(3) Rec C Soil HSL for Vapour Intrusion, Clay",null,null,"mg/kg","NL",null,"Derived soil HSL exceeds soil saturation concentraiton",null,4]
["F2-NAPHTHALENE","F2","Soil","NEPM 2013 Table 1A(3) Rec C Soil HSL for Vapour Intrusion, Clay",null,null,"mg/kg","NL",null,"Derived soil HSL exceeds soil saturation concentraiton",null,4]
["108-88-3","Toluene","Soil","NEPM 2013 Table 1A(3) Comm/Ind D Soil HSL for Vapour Intrusion, Sand",null,null,"mg/kg","NL",null,"Derived soil HSL exceeds soil saturation concentraiton",null,0,1]
["100-41-4","Ethylbenzene","Soil","NEPM 2013 Table 1A(3) Comm/Ind D Soil HSL for Vapour Intrusion, Sand",null,null,"mg/kg","NL",null,"Derived soil HSL exceeds soil saturation concentraiton",null,0,1]
["1330-20-7","Xylenes","Soil","NEPM 2013 Table 1A(3) Comm/Ind D Soil HSL for Vapour Intrusion, Sand",230,null,"mg/kg",null,null,null,null,0,1,null,null,null,null,null,null,null,null,null,null,null,null,null,1,1]
["91-20-3","Naphthalene","Soil","NEPM 2013 Table 1A(3) Comm/Ind D Soil HSL for Vapour Intrusion, Sand",null,null,"mg/kg","NL",null,"Derived soil HSL exceeds soil saturation concentraiton",null,0,1]
["71-43-2","Benzene","Soil","NEPM 2013 Table 1A(3) Comm/Ind D Soil HSL for Vapour Intrusion, Sand",3,null,"mg/kg",null,null,null,null,0,1,null,null,null,null,null,null,null,null,null,null,null,null,null,1,1]
["F1-BTEX","F1","Soil","NEPM 2013 Table 1A(3) Comm/Ind D Soil HSL for Vapour Intrusion, Sand",260,null,"mg/kg",null,null,"To obtain F1 subtract the sum of BTEX concentrations from the C6  - C10 fraction.",null,0,1,null,null,null,null,null,null,null,null,null,null,null,null,null,1,1]
["F2-NAPHTHALENE","F2","Soil","NEPM 2013 Table 1A(3) Comm/Ind D Soil HSL for Vapour Intrusion, Sand",null,null,"mg/kg","NL",null,"Derived soil HSL exceeds soil saturation concentraiton",null,0,1]
["108-88-3","Toluene","Soil","NEPM 2013 Table 1A(3) Comm/Ind D Soil HSL for Vapour Intrusion, Sand",null,null,"mg/kg","NL",null,"Derived soil HSL exceeds soil saturation concentraiton",null,1,2]
["100-41-4","Ethylbenzene","Soil","NEPM 2013 Table 1A(3) Comm/Ind D Soil HSL for Vapour Intrusion, Sand",null,null,"mg/kg","NL",null,"Derived soil HSL exceeds soil saturation concentraiton",null,1,2]
["1330-20-7","Xylenes","Soil","NEPM 2013 Table 1A(3) Comm/Ind D Soil HSL for Vapour Intrusion, Sand",null,null,"mg/kg","NL",null,"Derived soil HSL exceeds soil saturation concentraiton",null,1,2]
["91-20-3","Naphthalene","Soil","NEPM 2013 Table 1A(3) Comm/Ind D Soil HSL for Vapour Intrusion, Sand",null,null,"mg/kg","NL",null,"Derived soil HSL exceeds soil saturation concentraiton",null,1,2]
["71-43-2","Benzene","Soil","NEPM 2013 Table 1A(3) Comm/Ind D Soil HSL for Vapour Intrusion, Sand",3,null,"mg/kg",null,null,null,null,1,2,null,null,null,null,null,null,null,null,null,null,null,null,null,1,1]
["F1-BTEX","F1","Soil","NEPM 2013 Table 1A(3) Comm/Ind D Soil HSL for Vapour Intrusion, Sand",370,null,"mg/kg",null,null,"To obtain F1 subtract the sum of BTEX concentrations from the C6  - C10 fraction.",null,1,2,null,null,null,null,null,null,null,null,null,null,null,null,null,1,1]
["F2-NAPHTHALENE","F2","Soil","NEPM 2013 Table 1A(3) Comm/Ind D Soil HSL for Vapour Intrusion, Sand",null,null,"mg/kg","NL",null,"Derived soil HSL exceeds soil saturation concentraiton",null,1,2]
["108-88-3","Toluene","Soil","NEPM 2013 Table 1A(3) Comm/Ind D Soil HSL for Vapour Intrusion, Sand",null,null,"mg/kg","NL",null,"Derived soil HSL exceeds soil saturation concentraiton",null,2,4]
["100-41-4","Ethylbenzene","Soil","NEPM 2013 Table 1A(3) Comm/Ind D Soil HSL for Vapour Intrusion, Sand",null,null,"mg/kg","NL",null,"Derived soil HSL exceeds soil saturation concentraiton",null,2,4]
["1330-20-7","Xylenes","Soil","NEPM 2013 Table 1A(3) Comm/Ind D Soil HSL for Vapour Intrusion, Sand",null,null,"mg/kg","NL",null,"Derived soil HSL exceeds soil saturation concentraiton",null,2,4]
["91-20-3","Naphthalene","Soil","NEPM 2013 Table 1A(3) Comm/Ind D Soil HSL for Vapour Intrusion, Sand",null,null,"mg/kg","NL",null,"Derived soil HSL exceeds soil saturation concentraiton",null,2,4]
["71-43-2","Benzene","Soil","NEPM 2013 Table 1A(3) Comm/Ind D Soil HSL for Vapour Intrusion, Sand",3,null,"mg/kg",null,null,null,null,2,4,null,null,null,null,null,null,null,null,null,null,null,null,null,1,1]
["F1-BTEX","F1","Soil","NEPM 2013 Table 1A(3) Comm/Ind D Soil HSL for Vapour Intrusion, Sand",630,null,"mg/kg",null,null,"To obtain F1 subtract the sum of BTEX concentrations from the C6  - C10 fraction.",null,2,4,null,null,null,null,null,null,null,null,null,null,null,null,null,1,1]
["F2-NAPHTHALENE","F2","Soil","NEPM 2013 Table 1A(3) Comm/Ind D Soil HSL for Vapour Intrusion, Sand",null,null,"mg/kg","NL",null,"Derived soil HSL exceeds soil saturation concentraiton",null,2,4]
["108-88-3","Toluene","Soil","NEPM 2013 Table 1A(3) Comm/Ind D Soil HSL for Vapour Intrusion, Sand",null,null,"mg/kg","NL",null,"Derived soil HSL exceeds soil saturation concentraiton",null,4]
["100-41-4","Ethylbenzene","Soil","NEPM 2013 Table 1A(3) Comm/Ind D Soil HSL for Vapour Intrusion, Sand",null,null,"mg/kg","NL",null,"Derived soil HSL exceeds soil saturation concentraiton",null,4]
["1330-20-7","Xylenes","Soil","NEPM 2013 Table 1A(3) Comm/Ind D Soil HSL for Vapour Intrusion, Sand",null,null,"mg/kg","NL",null,"Derived soil HSL exceeds soil saturation concentraiton",null,4]
["91-20-3","Naphthalene","Soil","NEPM 2013 Table 1A(3) Comm/Ind D Soil HSL for Vapour Intrusion, Sand",null,null,"mg/kg","NL",null,"Derived soil HSL exceeds soil saturation concentraiton",null,4]
["71-43-2","Benzene","Soil","NEPM 2013 Table 1A(3) Comm/Ind D Soil HSL for Vapour Intrusion, Sand",3,null,"mg/kg",null,null,null,null,4,null,null,null,null,null,null,null,null,null,null,null,null,null,null,1,1]
["F1-BTEX","F1","Soil","NEPM 2013 Table 1A(3) Comm/Ind D Soil HSL for Vapour Intrusion, Sand",null,null,"mg/kg","NL",null,"Derived soil HSL exceeds soil saturation concentraiton",null,4]
["F2-NAPHTHALENE","F2","Soil","NEPM 2013 Table 1A(3) Comm/Ind D Soil HSL for Vapour Intrusion, Sand",null,null,"mg/kg","NL",null,"Derived soil HSL exceeds soil saturation concentraiton",null,4]
["108-88-3","Toluene","Soil","NEPM 2013 Table 1A(3) Comm/Ind D Soil HSL for Vapour Intrusion, Silt",null,null,"mg/kg","NL",null,"Derived soil HSL exceeds soil saturation concentraiton",null,0,1]
["100-41-4","Ethylbenzene","Soil","NEPM 2013 Table 1A(3) Comm/Ind D Soil HSL for Vapour Intrusion, Silt",null,null,"mg/kg","NL",null,"Derived soil HSL exceeds soil saturation concentraiton",null,0,1]
["1330-20-7","Xylenes","Soil","NEPM 2013 Table 1A(3) Comm/Ind D Soil HSL for Vapour Intrusion, Silt",null,null,"mg/kg","NL",null,"Derived soil HSL exceeds soil saturation concentraiton",null,0,1]
["91-20-3","Naphthalene","Soil","NEPM 2013 Table 1A(3) Comm/Ind D Soil HSL for Vapour Intrusion, Silt",null,null,"mg/kg","NL",null,"Derived soil HSL exceeds soil saturation concentraiton",null,0,1]
["71-43-2","Benzene","Soil","NEPM 2013 Table 1A(3) Comm/Ind D Soil HSL for Vapour Intrusion, Silt",4,null,"mg/kg",null,null,null,null,0,1,null,null,null,null,null,null,null,null,null,null,null,null,null,1,1]
["F1-BTEX","F1","Soil","NEPM 2013 Table 1A(3) Comm/Ind D Soil HSL for Vapour Intrusion, Silt",250,null,"mg/kg",null,null,"To obtain F1 subtract the sum of BTEX concentrations from the C6  - C10 fraction.",null,0,1,null,null,null,null,null,null,null,null,null,null,null,null,null,1,1]
["F2-NAPHTHALENE","F2","Soil","NEPM 2013 Table 1A(3) Comm/Ind D Soil HSL for Vapour Intrusion, Silt",null,null,"mg/kg","NL",null,"Derived soil HSL exceeds soil saturation concentraiton",null,0,1]
["108-88-3","Toluene","Soil","NEPM 2013 Table 1A(3) Comm/Ind D Soil HSL for Vapour Intrusion, Silt",null,null,"mg/kg","NL",null,"Derived soil HSL exceeds soil saturation concentraiton",null,1,2]
["100-41-4","Ethylbenzene","Soil","NEPM 2013 Table 1A(3) Comm/Ind D Soil HSL for Vapour Intrusion, Silt",null,null,"mg/kg","NL",null,"Derived soil HSL exceeds soil saturation concentraiton",null,1,2]
["1330-20-7","Xylenes","Soil","NEPM 2013 Table 1A(3) Comm/Ind D Soil HSL for Vapour Intrusion, Silt",null,null,"mg/kg","NL",null,"Derived soil HSL exceeds soil saturation concentraiton",null,1,2]
["91-20-3","Naphthalene","Soil","NEPM 2013 Table 1A(3) Comm/Ind D Soil HSL for Vapour Intrusion, Silt",null,null,"mg/kg","NL",null,"Derived soil HSL exceeds soil saturation concentraiton",null,1,2]
["71-43-2","Benzene","Soil","NEPM 2013 Table 1A(3) Comm/Ind D Soil HSL for Vapour Intrusion, Silt",4,null,"mg/kg",null,null,null,null,1,2,null,null,null,null,null,null,null,null,null,null,null,null,null,1,1]
["F1-BTEX","F1","Soil","NEPM 2013 Table 1A(3) Comm/Ind D Soil HSL for Vapour Intrusion, Silt",360,null,"mg/kg",null,null,"To obtain F1 subtract the sum of BTEX concentrations from the C6  - C10 fraction.",null,1,2,null,null,null,null,null,null,null,null,null,null,null,null,null,1,1]
["F2-NAPHTHALENE","F2","Soil","NEPM 2013 Table 1A(3) Comm/Ind D Soil HSL for Vapour Intrusion, Silt",null,null,"mg/kg","NL",null,"Derived soil HSL exceeds soil saturation concentraiton",null,1,2]
["108-88-3","Toluene","Soil","NEPM 2013 Table 1A(3) Comm/Ind D Soil HSL for Vapour Intrusion, Silt",null,null,"mg/kg","NL",null,"Derived soil HSL exceeds soil saturation concentraiton",null,2,4]
["100-41-4","Ethylbenzene","Soil","NEPM 2013 Table 1A(3) Comm/Ind D Soil HSL for Vapour Intrusion, Silt",null,null,"mg/kg","NL",null,"Derived soil HSL exceeds soil saturation concentraiton",null,2,4]
["1330-20-7","Xylenes","Soil","NEPM 2013 Table 1A(3) Comm/Ind D Soil HSL for Vapour Intrusion, Silt",null,null,"mg/kg","NL",null,"Derived soil HSL exceeds soil saturation concentraiton",null,2,4]
["91-20-3","Naphthalene","Soil","NEPM 2013 Table 1A(3) Comm/Ind D Soil HSL for Vapour Intrusion, Silt",null,null,"mg/kg","NL",null,"Derived soil HSL exceeds soil saturation concentraiton",null,2,4]
["71-43-2","Benzene","Soil","NEPM 2013 Table 1A(3) Comm/Ind D Soil HSL for Vapour Intrusion, Silt",6,null,"mg/kg",null,null,null,null,2,4,null,null,null,null,null,null,null,null,null,null,null,null,null,1,1]
["F1-BTEX","F1","Soil","NEPM 2013 Table 1A(3) Comm/Ind D Soil HSL for Vapour Intrusion, Silt",590,null,"mg/kg",null,null,"To obtain F1 subtract the sum of BTEX concentrations from the C6  - C10 fraction.",null,2,4,null,null,null,null,null,null,null,null,null,null,null,null,null,1,1]
["F2-NAPHTHALENE","F2","Soil","NEPM 2013 Table 1A(3) Comm/Ind D Soil HSL for Vapour Intrusion, Silt",null,null,"mg/kg","NL",null,"Derived soil HSL exceeds soil saturation concentraiton",null,2,4]
["108-88-3","Toluene","Soil","NEPM 2013 Table 1A(3) Comm/Ind D Soil HSL for Vapour Intrusion, Silt",null,null,"mg/kg","NL",null,"Derived soil HSL exceeds soil saturation concentraiton",null,4]
["100-41-4","Ethylbenzene","Soil","NEPM 2013 Table 1A(3) Comm/Ind D Soil HSL for Vapour Intrusion, Silt",null,null,"mg/kg","NL",null,"Derived soil HSL exceeds soil saturation concentraiton",null,4]
["1330-20-7","Xylenes","Soil","NEPM 2013 Table 1A(3) Comm/Ind D Soil HSL for Vapour Intrusion, Silt",null,null,"mg/kg","NL",null,"Derived soil HSL exceeds soil saturation concentraiton",null,4]
["91-20-3","Naphthalene","Soil","NEPM 2013 Table 1A(3) Comm/Ind D Soil HSL for Vapour Intrusion, Silt",null,null,"mg/kg","NL",null,"Derived soil HSL exceeds soil saturation concentraiton",null,4]
["71-43-2","Benzene","Soil","NEPM 2013 Table 1A(3) Comm/Ind D Soil HSL for Vapour Intrusion, Silt",10,null,"mg/kg",null,null,null,null,4,null,null,null,null,null,null,null,null,null,null,null,null,null,null,1,1]
["F1-BTEX","F1","Soil","NEPM 2013 Table 1A(3) Comm/Ind D Soil HSL for Vapour Intrusion, Silt",null,null,"mg/kg","NL",null,"Derived soil HSL exceeds soil saturation concentraiton",null,4]
["F2-NAPHTHALENE","F2","Soil","NEPM 2013 Table 1A(3) Comm/Ind D Soil HSL for Vapour Intrusion, Silt",null,null,"mg/kg","NL",null,"Derived soil HSL exceeds soil saturation concentraiton",null,4]
["108-88-3","Toluene","Soil","NEPM 2013 Table 1A(3) Comm/Ind D Soil HSL for Vapour Intrusion, Clay",null,null,"mg/kg","NL",null,"Derived soil HSL exceeds soil saturation concentraiton",null,0,1]
["100-41-4","Ethylbenzene","Soil","NEPM 2013 Table 1A(3) Comm/Ind D Soil HSL for Vapour Intrusion, Clay",null,null,"mg/kg","NL",null,"Derived soil HSL exceeds soil saturation concentraiton",null,0,1]
["1330-20-7","Xylenes","Soil","NEPM 2013 Table 1A(3) Comm/Ind D Soil HSL for Vapour Intrusion, Clay",null,null,"mg/kg","NL",null,"Derived soil HSL exceeds soil saturation concentraiton",null,0,1]
["91-20-3","Naphthalene","Soil","NEPM 2013 Table 1A(3) Comm/Ind D Soil HSL for Vapour Intrusion, Clay",null,null,"mg/kg","NL",null,"Derived soil HSL exceeds soil saturation concentraiton",null,0,1]
["71-43-2","Benzene","Soil","NEPM 2013 Table 1A(3) Comm/Ind D Soil HSL for Vapour Intrusion, Clay",4,null,"mg/kg",null,null,null,null,0,1,null,null,null,null,null,null,null,null,null,null,null,null,null,1,1]
["F1-BTEX","F1","Soil","NEPM 2013 Table 1A(3) Comm/Ind D Soil HSL for Vapour Intrusion, Clay",310,null,"mg/kg",null,null,"To obtain F1 subtract the sum of BTEX concentrations from the C6  - C10 fraction.",null,0,1,null,null,null,null,null,null,null,null,null,null,null,null,null,1,1]
["F2-NAPHTHALENE","F2","Soil","NEPM 2013 Table 1A(3) Comm/Ind D Soil HSL for Vapour Intrusion, Clay",null,null,"mg/kg","NL",null,"Derived soil HSL exceeds soil saturation concentraiton",null,0,1]
["108-88-3","Toluene","Soil","NEPM 2013 Table 1A(3) Comm/Ind D Soil HSL for Vapour Intrusion, Clay",null,null,"mg/kg","NL",null,"Derived soil HSL exceeds soil saturation concentraiton",null,1,2]
["100-41-4","Ethylbenzene","Soil","NEPM 2013 Table 1A(3) Comm/Ind D Soil HSL for Vapour Intrusion, Clay",null,null,"mg/kg","NL",null,"Derived soil HSL exceeds soil saturation concentraiton",null,1,2]
["1330-20-7","Xylenes","Soil","NEPM 2013 Table 1A(3) Comm/Ind D Soil HSL for Vapour Intrusion, Clay",null,null,"mg/kg","NL",null,"Derived soil HSL exceeds soil saturation concentraiton",null,1,2]
["91-20-3","Naphthalene","Soil","NEPM 2013 Table 1A(3) Comm/Ind D Soil HSL for Vapour Intrusion, Clay",null,null,"mg/kg","NL",null,"Derived soil HSL exceeds soil saturation concentraiton",null,1,2]
["71-43-2","Benzene","Soil","NEPM 2013 Table 1A(3) Comm/Ind D Soil HSL for Vapour Intrusion, Clay",6,null,"mg/kg",null,null,null,null,1,2,null,null,null,null,null,null,null,null,null,null,null,null,null,1,1]
["F1-BTEX","F1","Soil","NEPM 2013 Table 1A(3) Comm/Ind D Soil HSL for Vapour Intrusion, Clay",480,null,"mg/kg",null,null,"To obtain F1 subtract the sum of BTEX concentrations from the C6  - C10 fraction.",null,1,2,null,null,null,null,null,null,null,null,null,null,null,null,null,1,1]
["F2-NAPHTHALENE","F2","Soil","NEPM 2013 Table 1A(3) Comm/Ind D Soil HSL for Vapour Intrusion, Clay",null,null,"mg/kg","NL",null,"Derived soil HSL exceeds soil saturation concentraiton",null,1,2]
["108-88-3","Toluene","Soil","NEPM 2013 Table 1A(3) Comm/Ind D Soil HSL for Vapour Intrusion, Clay",null,null,"mg/kg","NL",null,"Derived soil HSL exceeds soil saturation concentraiton",null,2,4]
["100-41-4","Ethylbenzene","Soil","NEPM 2013 Table 1A(3) Comm/Ind D Soil HSL for Vapour Intrusion, Clay",null,null,"mg/kg","NL",null,"Derived soil HSL exceeds soil saturation concentraiton",null,2,4]
["1330-20-7","Xylenes","Soil","NEPM 2013 Table 1A(3) Comm/Ind D Soil HSL for Vapour Intrusion, Clay",null,null,"mg/kg","NL",null,"Derived soil HSL exceeds soil saturation concentraiton",null,2,4]
["91-20-3","Naphthalene","Soil","NEPM 2013 Table 1A(3) Comm/Ind D Soil HSL for Vapour Intrusion, Clay",null,null,"mg/kg","NL",null,"Derived soil HSL exceeds soil saturation concentraiton",null,2,4]
["71-43-2","Benzene","Soil","NEPM 2013 Table 1A(3) Comm/Ind D Soil HSL for Vapour Intrusion, Clay",9,null,"mg/kg",null,null,null,null,2,4,null,null,null,null,null,null,null,null,null,null,null,null,null,1,1]
["F1-BTEX","F1","Soil","NEPM 2013 Table 1A(3) Comm/Ind D Soil HSL for Vapour Intrusion, Clay",null,null,"mg/kg","NL",null,"Derived soil HSL exceeds soil saturation concentraiton",null,2,4]
["F2-NAPHTHALENE","F2","Soil","NEPM 2013 Table 1A(3) Comm/Ind D Soil HSL for Vapour Intrusion, Clay",null,null,"mg/kg","NL",null,"Derived soil HSL exceeds soil saturation concentraiton",null,2,4]
["108-88-3","Toluene","Soil","NEPM 2013 Table 1A(3) Comm/Ind D Soil HSL for Vapour Intrusion, Clay",null,null,"mg/kg","NL",null,"Derived soil HSL exceeds soil saturation concentraiton",null,4]
["100-41-4","Ethylbenzene","Soil","NEPM 2013 Table 1A(3) Comm/Ind D Soil HSL for Vapour Intrusion, Clay",null,null,"mg/kg","NL",null,"Derived soil HSL exceeds soil saturation concentraiton",null,4]
["1330-20-7","Xylenes","Soil","NEPM 2013 Table 1A(3) Comm/Ind D Soil HSL for Vapour Intrusion, Clay",null,null,"mg/kg","NL",null,"Derived soil HSL exceeds soil saturation concentraiton",null,4]
["91-20-3","Naphthalene","Soil","NEPM 2013 Table 1A(3) Comm/Ind D Soil HSL for Vapour Intrusion, Clay",null,null,"mg/kg","NL",null,"Derived soil HSL exceeds soil saturation concentraiton",null,4]
["71-43-2","Benzene","Soil","NEPM 2013 Table 1A(3) Comm/Ind D Soil HSL for Vapour Intrusion, Clay",20,null,"mg/kg",null,null,null,null,4,null,null,null,null,null,null,null,null,null,null,null,null,null,null,1,1]
["F1-BTEX","F1","Soil","NEPM 2013 Table 1A(3) Comm/Ind D Soil HSL for Vapour Intrusion, Clay",null,null,"mg/kg","NL",null,"Derived soil HSL exceeds soil saturation concentraiton",null,4]
["F2-NAPHTHALENE","F2","Soil","NEPM 2013 Table 1A(3) Comm/Ind D Soil HSL for Vapour Intrusion, Clay",null,null,"mg/kg","NL",null,"Derived soil HSL exceeds soil saturation concentraiton",null,4]

{"sheet":"1A3 Soil HSLs for Vapour w CM","index":8,"n_rows":256,"n_cols":28,"rows_kept":256,"cut":false,"hidden":false,"merged":[]}
["Project:","Cardno Lane Piper 213152Historical Soil",null,"Table:","[zRef_Environmental_Standards]",null,"Style:",null,null,"Template",null,null,null,"NoLocs"]
["Path:","C:\\Users\\Tom W\\Documents\\Clients\\Cardno Lane Piper\\213152Historical Soil\\213152Historical Soil.mdb",null,"Parent Tables:","zRef_Matrix_Types,zRef_Chemistry_Lookup,Chem_Group_Or_Method"]
[]
["ChemCode","ChemName","MatrixType","ActionLevelSource","ActionLevel","ActionLevel_Min","Units","ActionLevel_Prefix","ActionLevel_Suffix","Comments","Conditional_Matrix_Type","Conditional_Depth_From","Conditional_Depth_To","Leached","Conditional_ChemCode1","Conditional_ChemCode1_Units","Conditional_ChemCode1_Min_Value_Prefix","Conditional_ChemCode1_Value_Min","Conditional_ChemCode1_Max_Value_Prefix","Conditional_ChemCode1_Value_Max","Conditional_ChemCode2","Conditional_ChemCode2_Units","Conditional_ChemCode2_Min_Value_Prefix","Conditional_ChemCode2_Value_Min","Conditional_ChemCode2_Max_Value_Prefix","Conditional_ChemCode2_Value_Max","Applies_To_Total_Result","Applies_To_Filtered_Result"]
["108-88-3","Toluene","Soil","NEPM 2013 Table 1A(3) Res A/B Soil HSL for Vapour Intrusion",160,null,"mg/kg",null,null,null,"Sand",0,1,null,null,null,null,null,null,null,null,null,null,null,null,null,1,1]
["100-41-4","Ethylbenzene","Soil","NEPM 2013 Table 1A(3) Res A/B Soil HSL for Vapour Intrusion",55,null,"mg/kg",null,null,null,"Sand",0,1,null,null,null,null,null,null,null,null,null,null,null,null,null,1,1]
["1330-20-7","Xylenes","Soil","NEPM 2013 Table 1A(3) Res A/B Soil HSL for Vapour Intrusion",40,null,"mg/kg",null,null,null,"Sand",0,1,null,null,null,null,null,null,null,null,null,null,null,null,null,1,1]
["91-20-3","Naphthalene","Soil","NEPM 2013 Table 1A(3) Res A/B Soil HSL for Vapour Intrusion",3,null,"mg/kg",null,null,null,"Sand",0,1,null,null,null,null,null,null,null,null,null,null,null,null,null,1,1]
["71-43-2","Benzene","Soil","NEPM 2013 Table 1A(3) Res A/B Soil HSL for Vapour Intrusion",0.5,null,"mg/kg",null,null,null,"Sand",0,1,null,null,null,null,null,null,null,null,null,null,null,null,null,1,1]
["F1-BTEX","F1","Soil","NEPM 2013 Table 1A(3) Res A/B Soil HSL for Vapour Intrusion",45,null,"mg/kg",null,null,"To obtain F1 subtract the sum of BTEX concentrations from the C6  - C10 fraction.","Sand",0,1,null,null,null,null,null,null,null,null,null,null,null,null,null,1,1]
["F2-NAPHTHALENE","F2","Soil","NEPM 2013 Table 1A(3) Res A/B Soil HSL for Vapour Intrusion",110,null,"mg/kg",null,null,"To obtain F2 subtract napthalene from the >C10 - C16 fraction.","Sand",0,1,null,null,null,null,null,null,null,null,null,null,null,null,null,1,1]
["108-88-3","Toluene","Soil","NEPM 2013 Table 1A(3) Res A/B Soil HSL for Vapour Intrusion",220,null,"mg/kg",null,null,null,"Sand",1,2,null,null,null,null,null,null,null,null,null,null,null,null,null,1,1]
["100-41-4","Ethylbenzene","Soil","NEPM 2013 Table 1A(3) Res A/B Soil HSL for Vapour Intrusion",null,null,"mg/kg","NL",null,"Derived soil HSL exceeds soil saturation concentraiton","Sand",1,2]
["1330-20-7","Xylenes","Soil","NEPM 2013 Table 1A(3) Res A/B Soil HSL for Vapour Intrusion",60,null,"mg/kg",null,null,null,"Sand",1,2,null,null,null,null,null,null,null,null,null,null,null,null,null,1,1]
["91-20-3","Naphthalene","Soil","NEPM 2013 Table 1A(3) Res A/B Soil HSL for Vapour Intrusion",null,null,"mg/kg","NL",null,"Derived soil HSL exceeds soil saturation concentraiton","Sand",1,2]
["71-43-2","Benzene","Soil","NEPM 2013 Table 1A(3) Res A/B Soil HSL for Vapour Intrusion",0.5,null,"mg/kg",null,null,null,"Sand",1,2,null,null,null,null,null,null,null,null,null,null,null,null,null,1,1]
["F1-BTEX","F1","Soil","NEPM 2013 Table 1A(3) Res A/B Soil HSL for Vapour Intrusion",70,null,"mg/kg",null,null,"To obtain F1 subtract the sum of BTEX concentrations from the C6  - C10 fraction.","Sand",1,2,null,null,null,null,null,null,null,null,null,null,null,null,null,1,1]
["F2-NAPHTHALENE","F2","Soil","NEPM 2013 Table 1A(3) Res A/B Soil HSL for Vapour Intrusion",240,null,"mg/kg",null,null,"To obtain F2 subtract napthalene from the >C10 - C16 fraction.","Sand",1,2,null,null,null,null,null,null,null,null,null,null,null,null,null,1,1]
["108-88-3","Toluene","Soil","NEPM 2013 Table 1A(3) Res A/B Soil HSL for Vapour Intrusion",310,null,"mg/kg",null,null,null,"Sand",2,4,null,null,null,null,null,null,null,null,null,null,null,null,null,1,1]
["100-41-4","Ethylbenzene","Soil","NEPM 2013 Table 1A(3) Res A/B Soil HSL for Vapour Intrusion",null,null,"mg/kg","NL",null,"Derived soil HSL exceeds soil saturation concentraiton","Sand",2,4]
["1330-20-7","Xylenes","Soil","NEPM 2013 Table 1A(3) Res A/B Soil HSL for Vapour Intrusion",95,null,"mg/kg",null,null,null,"Sand",2,4,null,null,null,null,null,null,null,null,null,null,null,null,null,1,1]
["91-20-3","Naphthalene","Soil","NEPM 2013 Table 1A(3) Res A/B Soil HSL for Vapour Intrusion",null,null,"mg/kg","NL",null,"Derived soil HSL exceeds soil saturation concentraiton","Sand",2,4]
["71-43-2","Benzene","Soil","NEPM 2013 Table 1A(3) Res A/B Soil HSL for Vapour Intrusion",0.5,null,"mg/kg",null,null,null,"Sand",2,4,null,null,null,null,null,null,null,null,null,null,null,null,null,1,1]
["F1-BTEX","F1","Soil","NEPM 2013 Table 1A(3) Res A/B Soil HSL for Vapour Intrusion",110,null,"mg/kg",null,null,"To obtain F1 subtract the sum of BTEX concentrations from the C6  - C10 fraction.","Sand",2,4,null,null,null,null,null,null,null,null,null,null,null,null,null,1,1]
["F2-NAPHTHALENE","F2","Soil","NEPM 2013 Table 1A(3) Res A/B Soil HSL for Vapour Intrusion",440,null,"mg/kg",null,null,"To obtain F2 subtract napthalene from the >C10 - C16 fraction.","Sand",2,4,null,null,null,null,null,null,null,null,null,null,null,null,null,1,1]
["108-88-3","Toluene","Soil","NEPM 2013 Table 1A(3) Res A/B Soil HSL for Vapour Intrusion",540,null,"mg/kg",null,null,null,"Sand",4,null,null,null,null,null,null,null,null,null,null,null,null,null,null,1,1]
["100-41-4","Ethylbenzene","Soil","NEPM 2013 Table 1A(3) Res A/B Soil HSL for Vapour Intrusion",null,null,"mg/kg","NL",null,"Derived soil HSL exceeds soil saturation concentraiton","Sand",4]
["1330-20-7","Xylenes","Soil","NEPM 2013 Table 1A(3) Res A/B Soil HSL for Vapour Intrusion",170,null,"mg/kg",null,null,null,"Sand",4,null,null,null,null,null,null,null,null,null,null,null,null,null,null,1,1]
["91-20-3","Naphthalene","Soil","NEPM 2013 Table 1A(3) Res A/B Soil HSL for Vapour Intrusion",null,null,"mg/kg","NL",null,"Derived soil HSL exceeds soil saturation concentraiton","Sand",4]
["71-43-2","Benzene","Soil","NEPM 2013 Table 1A(3) Res A/B Soil HSL for Vapour Intrusion",0.5,null,"mg/kg",null,null,null,"Sand",4,null,null,null,null,null,null,null,null,null,null,null,null,null,null,1,1]
["F1-BTEX","F1","Soil","NEPM 2013 Table 1A(3) Res A/B Soil HSL for Vapour Intrusion",200,null,"mg/kg",null,null,"To obtain F1 subtract the sum of BTEX concentrations from the C6  - C10 fraction.","Sand",4,null,null,null,null,null,null,null,null,null,null,null,null,null,null,1,1]
["F2-NAPHTHALENE","F2","Soil","NEPM 2013 Table 1A(3) Res A/B Soil HSL for Vapour Intrusion",null,null,"mg/kg","NL",null,"Derived soil HSL exceeds soil saturation concentraiton","Sand",4]
["108-88-3","Toluene","Soil","NEPM 2013 Table 1A(3) Res A/B Soil HSL for Vapour Intrusion",390,null,"mg/kg",null,null,null,"Silt",0,1,null,null,null,null,null,null,null,null,null,null,null,null,null,1,1]
["100-41-4","Ethylbenzene","Soil","NEPM 2013 Table 1A(3) Res A/B Soil HSL for Vapour Intrusion",null,null,"mg/kg","NL",null,"Derived soil HSL exceeds soil saturation concentraiton","Silt",0,1]
["1330-20-7","Xylenes","Soil","NEPM 2013 Table 1A(3) Res A/B Soil HSL for Vapour Intrusion",95,null,"mg/kg",null,null,null,"Silt",0,1,null,null,null,null,null,null,null,null,null,null,null,null,null,1,1]
["91-20-3","Naphthalene","Soil","NEPM 2013 Table 1A(3) Res A/B Soil HSL for Vapour Intrusion",4,null,"mg/kg",null,null,null,"Silt",0,1,null,null,null,null,null,null,null,null,null,null,null,null,null,1,1]
["71-43-2","Benzene","Soil","NEPM 2013 Table 1A(3) Res A/B Soil HSL for Vapour Intrusion",0.6,null,"mg/kg",null,null,null,"Silt",0,1,null,null,null,null,null,null,null,null,null,null,null,null,null,1,1]
["F1-BTEX","F1","Soil","NEPM 2013 Table 1A(3) Res A/B Soil HSL for Vapour Intrusion",40,null,"mg/kg",null,null,"To obtain F1 subtract the sum of BTEX concentrations from the C6  - C10 fraction.","Silt",0,1,null,null,null,null,null,null,null,null,null,null,null,null,null,1,1]
["F2-NAPHTHALENE","F2","Soil","NEPM 2013 Table 1A(3) Res A/B Soil HSL for Vapour Intrusion",230,null,"mg/kg",null,null,"To obtain F2 subtract napthalene from the >C10 - C16 fraction.","Silt",0,1,null,null,null,null,null,null,null,null,null,null,null,null,null,1,1]
["108-88-3","Toluene","Soil","NEPM 2013 Table 1A(3) Res A/B Soil HSL for Vapour Intrusion",null,null,"mg/kg","NL",null,"Derived soil HSL exceeds soil saturation concentraiton","Silt",1,2]
["100-41-4","Ethylbenzene","Soil","NEPM 2013 Table 1A(3) Res A/B Soil HSL for Vapour Intrusion",null,null,"mg/kg","NL",null,"Derived soil HSL exceeds soil saturation concentraiton","Silt",1,2]
["1330-20-7","Xylenes","Soil","NEPM 2013 Table 1A(3) Res A/B Soil HSL for Vapour Intrusion",210,null,"mg/kg",null,null,null,"Silt",1,2,null,null,null,null,null,null,null,null,null,null,null,null,null,1,1]
["91-20-3","Naphthalene","Soil","NEPM 2013 Table 1A(3) Res A/B Soil HSL for Vapour Intrusion",null,null,"mg/kg","NL",null,"Derived soil HSL exceeds soil saturation concentraiton","Silt",1,2]
["71-43-2","Benzene","Soil","NEPM 2013 Table 1A(3) Res A/B Soil HSL for Vapour Intrusion",0.7,null,"mg/kg",null,null,null,"Silt",1,2,null,null,null,null,null,null,null,null,null,null,null,null,null,1,1]
["F1-BTEX","F1","Soil","NEPM 2013 Table 1A(3) Res A/B Soil HSL for Vapour Intrusion",65,null,"mg/kg",null,null,"To obtain F1 subtract the sum of BTEX concentrations from the C6  - C10 fraction.","Silt",1,2,null,null,null,null,null,null,null,null,null,null,null,null,null,1,1]
["F2-NAPHTHALENE","F2","Soil","NEPM 2013 Table 1A(3) Res A/B Soil HSL for Vapour Intrusion",null,null,"mg/kg","NL",null,"Derived soil HSL exceeds soil saturation concentraiton","Silt",1,2]
["108-88-3","Toluene","Soil","NEPM 2013 Table 1A(3) Res A/B Soil HSL for Vapour Intrusion",null,null,"mg/kg","NL",null,"Derived soil HSL exceeds soil saturation concentraiton","Silt",2,4]
["100-41-4","Ethylbenzene","Soil","NEPM 2013 Table 1A(3) Res A/B Soil HSL for Vapour Intrusion",null,null,"mg/kg","NL",null,"Derived soil HSL exceeds soil saturation concentraiton","Silt",2,4]
["1330-20-7","Xylenes","Soil","NEPM 2013 Table 1A(3) Res A/B Soil HSL for Vapour Intrusion",null,null,"mg/kg","NL",null,"Derived soil HSL exceeds soil saturation concentraiton","Silt",2,4]
["91-20-3","Naphthalene","Soil","NEPM 2013 Table 1A(3) Res A/B Soil HSL for Vapour Intrusion",null,null,"mg/kg","NL",null,"Derived soil HSL exceeds soil saturation concentraiton","Silt",2,4]
["71-43-2","Benzene","Soil","NEPM 2013 Table 1A(3) Res A/B Soil HSL for Vapour Intrusion",1,null,"mg/kg",null,null,null,"Silt",2,4,null,null,null,null,null,null,null,null,null,null,null,null,null,1,1]
["F1-BTEX","F1","Soil","NEPM 2013 Table 1A(3) Res A/B Soil HSL for Vapour Intrusion",100,null,"mg/kg",null,null,"To obtain F1 subtract the sum of BTEX concentrations from the C6  - C10 fraction.","Silt",2,4,null,null,null,null,null,null,null,null,null,null,null,null,null,1,1]
["F2-NAPHTHALENE","F2","Soil","NEPM 2013 Table 1A(3) Res A/B Soil HSL for Vapour Intrusion",null,null,"mg/kg","NL",null,"Derived soil HSL exceeds soil saturation concentraiton","Silt",2,4]
["108-88-3","Toluene","Soil","NEPM 2013 Table 1A(3) Res A/B Soil HSL for Vapour Intrusion",null,null,"mg/kg","NL",null,"Derived soil HSL exceeds soil saturation concentraiton","Silt",4]
["100-41-4","Ethylbenzene","Soil","NEPM 2013 Table 1A(3) Res A/B Soil HSL for Vapour Intrusion",null,null,"mg/kg","NL",null,"Derived soil HSL exceeds soil saturation concentraiton","Silt",4]
["1330-20-7","Xylenes","Soil","NEPM 2013 Table 1A(3) Res A/B Soil HSL for Vapour Intrusion",null,null,"mg/kg","NL",null,"Derived soil HSL exceeds soil saturation concentraiton","Silt",4]
["91-20-3","Naphthalene","Soil","NEPM 2013 Table 1A(3) Res A/B Soil HSL for Vapour Intrusion",null,null,"mg/kg","NL",null,"Derived soil HSL exceeds soil saturation concentraiton","Silt",4]
["71-43-2","Benzene","Soil","NEPM 2013 Table 1A(3) Res A/B Soil HSL for Vapour Intrusion",2,null,"mg/kg",null,null,null,"Silt",4,null,null,null,null,null,null,null,null,null,null,null,null,null,null,1,1]
["F1-BTEX","F1","Soil","NEPM 2013 Table 1A(3) Res A/B Soil HSL for Vapour Intrusion",190,null,"mg/kg",null,null,"To obtain F1 subtract the sum of BTEX concentrations from the C6  - C10 fraction.","Silt",4,null,null,null,null,null,null,null,null,null,null,null,null,null,null,1,1]
["F2-NAPHTHALENE","F2","Soil","NEPM 2013 Table 1A(3) Res A/B Soil HSL for Vapour Intrusion",null,null,"mg/kg","NL",null,"Derived soil HSL exceeds soil saturation concentraiton","Silt",4]
["108-88-3","Toluene","Soil","NEPM 2013 Table 1A(3) Res A/B Soil HSL for Vapour Intrusion",480,null,"mg/kg",null,null,null,"Clay",0,1,null,null,null,null,null,null,null,null,null,null,null,null,null,1,1]
["100-41-4","Ethylbenzene","Soil","NEPM 2013 Table 1A(3) Res A/B Soil HSL for Vapour Intrusion",null,null,"mg/kg","NL",null,"Derived soil HSL exceeds soil saturation concentraiton","Clay",0,1]
["1330-20-7","Xylenes","Soil","NEPM 2013 Table 1A(3) Res A/B Soil HSL for Vapour Intrusion",110,null,"mg/kg",null,null,null,"Clay",0,1,null,null,null,null,null,null,null,null,null,null,null,null,null,1,1]
["91-20-3","Naphthalene","Soil","NEPM 2013 Table 1A(3) Res A/B Soil HSL for Vapour Intrusion",5,null,"mg/kg",null,null,null,"Clay",0,1,null,null,null,null,null,null,null,null,null,null,null,null,null,1,1]
["71-43-2","Benzene","Soil","NEPM 2013 Table 1A(3) Res A/B Soil HSL for Vapour Intrusion",0.7,null,"mg/kg",null,null,null,"Clay",0,1,null,null,null,null,null,null,null,null,null,null,null,null,null,1,1]
["F1-BTEX","F1","Soil","NEPM 2013 Table 1A(3) Res A/B Soil HSL for Vapour Intrusion",50,null,"mg/kg",null,null,"To obtain F1 subtract the sum of BTEX concentrations from the C6  - C10 fraction.","Clay",0,1,null,null,null,null,null,null,null,null,null,null,null,null,null,1,1]
["F2-NAPHTHALENE","F2","Soil","NEPM 2013 Table 1A(3) Res A/B Soil HSL for Vapour Intrusion",280,null,"mg/kg",null,null,"To obtain F2 subtract napthalene from the >C10 - C16 fraction.","Clay",0,1,null,null,null,null,null,null,null,null,null,null,null,null,null,1,1]
["108-88-3","Toluene","Soil","NEPM 2013 Table 1A(3) Res A/B Soil HSL for Vapour Intrusion",null,null,"mg/kg","NL",null,"Derived soil HSL exceeds soil saturation concentraiton","Clay",1,2]
["100-41-4","Ethylbenzene","Soil","NEPM 2013 Table 1A(3) Res A/B Soil HSL for Vapour Intrusion",null,null,"mg/kg","NL",null,"Derived soil HSL exceeds soil saturation concentraiton","Clay",1,2]
["1330-20-7","Xylenes","Soil","NEPM 2013 Table 1A(3) Res A/B Soil HSL for Vapour Intrusion",310,null,"mg/kg",null,null,null,"Clay",1,2,null,null,null,null,null,null,null,null,null,null,null,null,null,1,1]
["91-20-3","Naphthalene","Soil","NEPM 2013 Table 1A(3) Res A/B Soil HSL for Vapour Intrusion",null,null,"mg/kg","NL",null,"Derived soil HSL exceeds soil saturation concentraiton","Clay",1,2]
["71-43-2","Benzene","Soil","NEPM 2013 Table 1A(3) Res A/B Soil HSL for Vapour Intrusion",1,null,"mg/kg",null,null,null,"Clay",1,2,null,null,null,null,null,null,null,null,null,null,null,null,null,1,1]
["F1-BTEX","F1","Soil","NEPM 2013 Table 1A(3) Res A/B Soil HSL for Vapour Intrusion",90,null,"mg/kg",null,null,"To obtain F1 subtract the sum of BTEX concentrations from the C6  - C10 fraction.","Clay",1,2,null,null,null,null,null,null,null,null,null,null,null,null,null,1,1]
["F2-NAPHTHALENE","F2","Soil","NEPM 2013 Table 1A(3) Res A/B Soil HSL for Vapour Intrusion",null,null,"mg/kg","NL",null,"Derived soil HSL exceeds soil saturation concentraiton","Clay",1,2]
["108-88-3","Toluene","Soil","NEPM 2013 Table 1A(3) Res A/B Soil HSL for Vapour Intrusion",null,null,"mg/kg","NL",null,"Derived soil HSL exceeds soil saturation concentraiton","Clay",2,4]
["100-41-4","Ethylbenzene","Soil","NEPM 2013 Table 1A(3) Res A/B Soil HSL for Vapour Intrusion",null,null,"mg/kg","NL",null,"Derived soil HSL exceeds soil saturation concentraiton","Clay",2,4]
["1330-20-7","Xylenes","Soil","NEPM 2013 Table 1A(3) Res A/B Soil HSL for Vapour Intrusion",null,null,"mg/kg","NL",null,"Derived soil HSL exceeds soil saturation concentraiton","Clay",2,4]
["91-20-3","Naphthalene","Soil","NEPM 2013 Table 1A(3) Res A/B Soil HSL for Vapour Intrusion",null,null,"mg/kg","NL",null,"Derived soil HSL exceeds soil saturation concentraiton","Clay",2,4]
["71-43-2","Benzene","Soil","NEPM 2013 Table 1A(3) Res A/B Soil HSL for Vapour Intrusion",2,null,"mg/kg",null,null,null,"Clay",2,4,null,null,null,null,null,null,null,null,null,null,null,null,null,1,1]
["F1-BTEX","F1","Soil","NEPM 2013 Table 1A(3) Res A/B Soil HSL for Vapour Intrusion",150,null,"mg/kg",null,null,"To obtain F1 subtract the sum of BTEX concentrations from the C6  - C10 fraction.","Clay",2,4,null,null,null,null,null,null,null,null,null,null,null,null,null,1,1]
["F2-NAPHTHALENE","F2","Soil","NEPM 2013 Table 1A(3) Res A/B Soil HSL for Vapour Intrusion",null,null,"mg/kg","NL",null,"Derived soil HSL exceeds soil saturation concentraiton","Clay",2,4]
["108-88-3","Toluene","Soil","NEPM 2013 Table 1A(3) Res A/B Soil HSL for Vapour Intrusion",null,null,"mg/kg","NL",null,"Derived soil HSL exceeds soil saturation concentraiton","Clay",4]
["100-41-4","Ethylbenzene","Soil","NEPM 2013 Table 1A(3) Res A/B Soil HSL for Vapour Intrusion",null,null,"mg/kg","NL",null,"Derived soil HSL exceeds soil saturation concentraiton","Clay",4]
["1330-20-7","Xylenes","Soil","NEPM 2013 Table 1A(3) Res A/B Soil HSL for Vapour Intrusion",null,null,"mg/kg","NL",null,"Derived soil HSL exceeds soil saturation concentraiton","Clay",4]
["91-20-3","Naphthalene","Soil","NEPM 2013 Table 1A(3) Res A/B Soil HSL for Vapour Intrusion",null,null,"mg/kg","NL",null,"Derived soil HSL exceeds soil saturation concentraiton","Clay",4]
["71-43-2","Benzene","Soil","NEPM 2013 Table 1A(3) Res A/B Soil HSL for Vapour Intrusion",3,null,"mg/kg",null,null,null,"Clay",4,null,null,null,null,null,null,null,null,null,null,null,null,null,null,1,1]
["F1-BTEX","F1","Soil","NEPM 2013 Table 1A(3) Res A/B Soil HSL for Vapour Intrusion",290,null,"mg/kg",null,null,"To obtain F1 subtract the sum of BTEX concentrations from the C6  - C10 fraction.","Clay",4,null,null,null,null,null,null,null,null,null,null,null,null,null,null,1,1]
["F2-NAPHTHALENE","F2","Soil","NEPM 2013 Table 1A(3) Res A/B Soil HSL for Vapour Intrusion",null,null,"mg/kg","NL",null,"Derived soil HSL exceeds soil saturation concentraiton","Clay",4]
["108-88-3","Toluene","Soil","NEPM 2013 Table 1A(3) Rec C Soil HSL for Vapour Intrusion",null,null,"mg/kg","NL",null,"Derived soil HSL exceeds soil saturation concentraiton","Sand",0,1]
["100-41-4","Ethylbenzene","Soil","NEPM 2013 Table 1A(3) Rec C Soil HSL for Vapour Intrusion",null,null,"mg/kg","NL",null,"Derived soil HSL exceeds soil saturation concentraiton","Sand",0,1]
["1330-20-7","Xylenes","Soil","NEPM 2013 Table 1A(3) Rec C Soil HSL for Vapour Intrusion",null,null,"mg/kg","NL",null,"Derived soil HSL exceeds soil saturation concentraiton","Sand",0,1]
["91-20-3","Naphthalene","Soil","NEPM 2013 Table 1A(3) Rec C Soil HSL for Vapour Intrusion",null,null,"mg/kg","NL",null,"Derived soil HSL exceeds soil saturation concentraiton","Sand",0,1]
["71-43-2","Benzene","Soil","NEPM 2013 Table 1A(3) Rec C Soil HSL for Vapour Intrusion",null,null,"mg/kg","NL",null,"Derived soil HSL exceeds soil saturation concentraiton","Sand",0,1]
["F1-BTEX","F1","Soil","NEPM 2013 Table 1A(3) Rec C Soil HSL for Vapour Intrusion",null,null,"mg/kg","NL",null,"Derived soil HSL exceeds soil saturation concentraiton","Sand",0,1]
["F2-NAPHTHALENE","F2","Soil","NEPM 2013 Table 1A(3) Rec C Soil HSL for Vapour Intrusion",null,null,"mg/kg","NL",null,"Derived soil HSL exceeds soil saturation concentraiton","Sand",0,1]
["108-88-3","Toluene","Soil","NEPM 2013 Table 1A(3) Rec C Soil HSL for Vapour Intrusion",null,null,"mg/kg","NL",null,"Derived soil HSL exceeds soil saturation concentraiton","Sand",1,2]
["100-41-4","Ethylbenzene","Soil","NEPM 2013 Table 1A(3) Rec C Soil HSL for Vapour Intrusion",null,null,"mg/kg","NL",null,"Derived soil HSL exceeds soil saturation concentraiton","Sand",1,2]
["1330-20-7","Xylenes","Soil","NEPM 2013 Table 1A(3) Rec C Soil HSL for Vapour Intrusion",null,null,"mg/kg","NL",null,"Derived soil HSL exceeds soil saturation concentraiton","Sand",1,2]
["91-20-3","Naphthalene","Soil","NEPM 2013 Table 1A(3) Rec C Soil HSL for Vapour Intrusion",null,null,"mg/kg","NL",null,"Derived soil HSL exceeds soil saturation concentraiton","Sand",1,2]
["71-43-2","Benzene","Soil","NEPM 2013 Table 1A(3) Rec C Soil HSL for Vapour Intrusion",null,null,"mg/kg","NL",null,"Derived soil HSL exceeds soil saturation concentraiton","Sand",1,2]
["F1-BTEX","F1","Soil","NEPM 2013 Table 1A(3) Rec C Soil HSL for Vapour Intrusion",null,null,"mg/kg","NL",null,"Derived soil HSL exceeds soil saturation concentraiton","Sand",1,2]
["F2-NAPHTHALENE","F2","Soil","NEPM 2013 Table 1A(3) Rec C Soil HSL for Vapour Intrusion",null,null,"mg/kg","NL",null,"Derived soil HSL exceeds soil saturation concentraiton","Sand",1,2]
["108-88-3","Toluene","Soil","NEPM 2013 Table 1A(3) Rec C Soil HSL for Vapour Intrusion",null,null,"mg/kg","NL",null,"Derived soil HSL exceeds soil saturation concentraiton","Sand",2,4]
["100-41-4","Ethylbenzene","Soil","NEPM 2013 Table 1A(3) Rec C Soil HSL for Vapour Intrusion",null,null,"mg/kg","NL",null,"Derived soil HSL exceeds soil saturation concentraiton","Sand",2,4]
["1330-20-7","Xylenes","Soil","NEPM 2013 Table 1A(3) Rec C Soil HSL for Vapour Intrusion",null,null,"mg/kg","NL",null,"Derived soil HSL exceeds soil saturation concentraiton","Sand",2,4]
["91-20-3","Naphthalene","Soil","NEPM 2013 Table 1A(3) Rec C Soil HSL for Vapour Intrusion",null,null,"mg/kg","NL",null,"Derived soil HSL exceeds soil saturation concentraiton","Sand",2,4]
["71-43-2","Benzene","Soil","NEPM 2013 Table 1A(3) Rec C Soil HSL for Vapour Intrusion",null,null,"mg/kg","NL",null,"Derived soil HSL exceeds soil saturation concentraiton","Sand",2,4]
["F1-BTEX","F1","Soil","NEPM 2013 Table 1A(3) Rec C Soil HSL for Vapour Intrusion",null,null,"mg/kg","NL",null,"Derived soil HSL exceeds soil saturation concentraiton","Sand",2,4]
["F2-NAPHTHALENE","F2","Soil","NEPM 2013 Table 1A(3) Rec C Soil HSL for Vapour Intrusion",null,null,"mg/kg","NL",null,"Derived soil HSL exceeds soil saturation concentraiton","Sand",2,4]
["108-88-3","Toluene","Soil","NEPM 2013 Table 1A(3) Rec C Soil HSL for Vapour Intrusion",null,null,"mg/kg","NL",null,"Derived soil HSL exceeds soil saturation concentraiton","Sand",4]
["100-41-4","Ethylbenzene","Soil","NEPM 2013 Table 1A(3) Rec C Soil HSL for Vapour Intrusion",null,null,"mg/kg","NL",null,"Derived soil HSL exceeds soil saturation concentraiton","Sand",4]
["1330-20-7","Xylenes","Soil","NEPM 2013 Table 1A(3) Rec C Soil HSL for Vapour Intrusion",null,null,"mg/kg","NL",null,"Derived soil HSL exceeds soil saturation concentraiton","Sand",4]
["91-20-3","Naphthalene","Soil","NEPM 2013 Table 1A(3) Rec C Soil HSL for Vapour Intrusion",null,null,"mg/kg","NL",null,"Derived soil HSL exceeds soil saturation concentraiton","Sand",4]
["71-43-2","Benzene","Soil","NEPM 2013 Table 1A(3) Rec C Soil HSL for Vapour Intrusion",null,null,"mg/kg","NL",null,"Derived soil HSL exceeds soil saturation concentraiton","Sand",4]
["F1-BTEX","F1","Soil","NEPM 2013 Table 1A(3) Rec C Soil HSL for Vapour Intrusion",null,null,"mg/kg","NL",null,"Derived soil HSL exceeds soil saturation concentraiton","Sand",4]
["F2-NAPHTHALENE","F2","Soil","NEPM 2013 Table 1A(3) Rec C Soil HSL for Vapour Intrusion",null,null,"mg/kg","NL",null,"Derived soil HSL exceeds soil saturation concentraiton","Sand",4]
["108-88-3","Toluene","Soil","NEPM 2013 Table 1A(3) Rec C Soil HSL for Vapour Intrusion",null,null,"mg/kg","NL",null,"Derived soil HSL exceeds soil saturation concentraiton","Silt",0,1]
["100-41-4","Ethylbenzene","Soil","NEPM 2013 Table 1A(3) Rec C Soil HSL for Vapour Intrusion",null,null,"mg/kg","NL",null,"Derived soil HSL exceeds soil saturation concentraiton","Silt",0,1]
["1330-20-7","Xylenes","Soil","NEPM 2013 Table 1A(3) Rec C Soil HSL for Vapour Intrusion",null,null,"mg/kg","NL",null,"Derived soil HSL exceeds soil saturation concentraiton","Silt",0,1]
["91-20-3","Naphthalene","Soil","NEPM 2013 Table 1A(3) Rec C Soil HSL for Vapour Intrusion",null,null,"mg/kg","NL",null,"Derived soil HSL exceeds soil saturation concentraiton","Silt",0,1]
["71-43-2","Benzene","Soil","NEPM 2013 Table 1A(3) Rec C Soil HSL for Vapour Intrusion",null,null,"mg/kg","NL",null,"Derived soil HSL exceeds soil saturation concentraiton","Silt",0,1]
["F1-BTEX","F1","Soil","NEPM 2013 Table 1A(3) Rec C Soil HSL for Vapour Intrusion",null,null,"mg/kg","NL",null,"Derived soil HSL exceeds soil saturation concentraiton","Silt",0,1]
["F2-NAPHTHALENE","F2","Soil","NEPM 2013 Table 1A(3) Rec C Soil HSL for Vapour Intrusion",null,null,"mg/kg","NL",null,"Derived soil HSL exceeds soil saturation concentraiton","Silt",0,1]
["108-88-3","Toluene","Soil","NEPM 2013 Table 1A(3) Rec C Soil HSL for Vapour Intrusion",null,null,"mg/kg","NL",null,"Derived soil HSL exceeds soil saturation concentraiton","Silt",1,2]
["100-41-4","Ethylbenzene","Soil","NEPM 2013 Table 1A(3) Rec C Soil HSL for Vapour Intrusion",null,null,"mg/kg","NL",null,"Derived soil HSL exceeds soil saturation concentraiton","Silt",1,2]
["1330-20-7","Xylenes","Soil","NEPM 2013 Table 1A(3) Rec C Soil HSL for Vapour Intrusion",null,null,"mg/kg","NL",null,"Derived soil HSL exceeds soil saturation concentraiton","Silt",1,2]
["91-20-3","Naphthalene","Soil","NEPM 2013 Table 1A(3) Rec C Soil HSL for Vapour Intrusion",null,null,"mg/kg","NL",null,"Derived soil HSL exceeds soil saturation concentraiton","Silt",1,2]
["71-43-2","Benzene","Soil","NEPM 2013 Table 1A(3) Rec C Soil HSL for Vapour Intrusion",null,null,"mg/kg","NL",null,"Derived soil HSL exceeds soil saturation concentraiton","Silt",1,2]
["F1-BTEX","F1","Soil","NEPM 2013 Table 1A(3) Rec C Soil HSL for Vapour Intrusion",null,null,"mg/kg","NL",null,"Derived soil HSL exceeds soil saturation concentraiton","Silt",1,2]
["F2-NAPHTHALENE","F2","Soil","NEPM 2013 Table 1A(3) Rec C Soil HSL for Vapour Intrusion",null,null,"mg/kg","NL",null,"Derived soil HSL exceeds soil saturation concentraiton","Silt",1,2]
["108-88-3","Toluene","Soil","NEPM 2013 Table 1A(3) Rec C Soil HSL for Vapour Intrusion",null,null,"mg/kg","NL",null,"Derived soil HSL exceeds soil saturation concentraiton","Silt",2,4]
["100-41-4","Ethylbenzene","Soil","NEPM 2013 Table 1A(3) Rec C Soil HSL for Vapour Intrusion",null,null,"mg/kg","NL",null,"Derived soil HSL exceeds soil saturation concentraiton","Silt",2,4]
["1330-20-7","Xylenes","Soil","NEPM 2013 Table 1A(3) Rec C Soil HSL for Vapour Intrusion",null,null,"mg/kg","NL",null,"Derived soil HSL exceeds soil saturation concentraiton","Silt",2,4]
["91-20-3","Naphthalene","Soil","NEPM 2013 Table 1A(3) Rec C Soil HSL for Vapour Intrusion",null,null,"mg/kg","NL",null,"Derived soil HSL exceeds soil saturation concentraiton","Silt",2,4]
["71-43-2","Benzene","Soil","NEPM 2013 Table 1A(3) Rec C Soil HSL for Vapour Intrusion",null,null,"mg/kg","NL",null,"Derived soil HSL exceeds soil saturation concentraiton","Silt",2,4]
["F1-BTEX","F1","Soil","NEPM 2013 Table 1A(3) Rec C Soil HSL for Vapour Intrusion",null,null,"mg/kg","NL",null,"Derived soil HSL exceeds soil saturation concentraiton","Silt",2,4]
["F2-NAPHTHALENE","F2","Soil","NEPM 2013 Table 1A(3) Rec C Soil HSL for Vapour Intrusion",null,null,"mg/kg","NL",null,"Derived soil HSL exceeds soil saturation concentraiton","Silt",2,4]
["108-88-3","Toluene","Soil","NEPM 2013 Table 1A(3) Rec C Soil HSL for Vapour Intrusion",null,null,"mg/kg","NL",null,"Derived soil HSL exceeds soil saturation concentraiton","Silt",4]
["100-41-4","Ethylbenzene","Soil","NEPM 2013 Table 1A(3) Rec C Soil HSL for Vapour Intrusion",null,null,"mg/kg","NL",null,"Derived soil HSL exceeds soil saturation concentraiton","Silt",4]
["1330-20-7","Xylenes","Soil","NEPM 2013 Table 1A(3) Rec C Soil HSL for Vapour Intrusion",null,null,"mg/kg","NL",null,"Derived soil HSL exceeds soil saturation concentraiton","Silt",4]
["91-20-3","Naphthalene","Soil","NEPM 2013 Table 1A(3) Rec C Soil HSL for Vapour Intrusion",null,null,"mg/kg","NL",null,"Derived soil HSL exceeds soil saturation concentraiton","Silt",4]
["71-43-2","Benzene","Soil","NEPM 2013 Table 1A(3) Rec C Soil HSL for Vapour Intrusion",null,null,"mg/kg","NL",null,"Derived soil HSL exceeds soil saturation concentraiton","Silt",4]
["F1-BTEX","F1","Soil","NEPM 2013 Table 1A(3) Rec C Soil HSL for Vapour Intrusion",null,null,"mg/kg","NL",null,"Derived soil HSL exceeds soil saturation concentraiton","Silt",4]
["F2-NAPHTHALENE","F2","Soil","NEPM 2013 Table 1A(3) Rec C Soil HSL for Vapour Intrusion",null,null,"mg/kg","NL",null,"Derived soil HSL exceeds soil saturation concentraiton","Silt",4]
["108-88-3","Toluene","Soil","NEPM 2013 Table 1A(3) Rec C Soil HSL for Vapour Intrusion",null,null,"mg/kg","NL",null,"Derived soil HSL exceeds soil saturation concentraiton","Clay",0,1]
["100-41-4","Ethylbenzene","Soil","NEPM 2013 Table 1A(3) Rec C Soil HSL for Vapour Intrusion",null,null,"mg/kg","NL",null,"Derived soil HSL exceeds soil saturation concentraiton","Clay",0,1]
["1330-20-7","Xylenes","Soil","NEPM 2013 Table 1A(3) Rec C Soil HSL for Vapour Intrusion",null,null,"mg/kg","NL",null,"Derived soil HSL exceeds soil saturation concentraiton","Clay",0,1]
["91-20-3","Naphthalene","Soil","NEPM 2013 Table 1A(3) Rec C Soil HSL for Vapour Intrusion",null,null,"mg/kg","NL",null,"Derived soil HSL exceeds soil saturation concentraiton","Clay",0,1]
["71-43-2","Benzene","Soil","NEPM 2013 Table 1A(3) Rec C Soil HSL for Vapour Intrusion",null,null,"mg/kg","NL",null,"Derived soil HSL exceeds soil saturation concentraiton","Clay",0,1]
["F1-BTEX","F1","Soil","NEPM 2013 Table 1A(3) Rec C Soil HSL for Vapour Intrusion",null,null,"mg/kg","NL",null,"Derived soil HSL exceeds soil saturation concentraiton","Clay",0,1]
["F2-NAPHTHALENE","F2","Soil","NEPM 2013 Table 1A(3) Rec C Soil HSL for Vapour Intrusion",null,null,"mg/kg","NL",null,"Derived soil HSL exceeds soil saturation concentraiton","Clay",0,1]
["108-88-3","Toluene","Soil","NEPM 2013 Table 1A(3) Rec C Soil HSL for Vapour Intrusion",null,null,"mg/kg","NL",null,"Derived soil HSL exceeds soil saturation concentraiton","Clay",1,2]
["100-41-4","Ethylbenzene","Soil","NEPM 2013 Table 1A(3) Rec C Soil HSL for Vapour Intrusion",null,null,"mg/kg","NL",null,"Derived soil HSL exceeds soil saturation concentraiton","Clay",1,2]
["1330-20-7","Xylenes","Soil","NEPM 2013 Table 1A(3) Rec C Soil HSL for Vapour Intrusion",null,null,"mg/kg","NL",null,"Derived soil HSL exceeds soil saturation concentraiton","Clay",1,2]
["91-20-3","Naphthalene","Soil","NEPM 2013 Table 1A(3) Rec C Soil HSL for Vapour Intrusion",null,null,"mg/kg","NL",null,"Derived soil HSL exceeds soil saturation concentraiton","Clay",1,2]
["71-43-2","Benzene","Soil","NEPM 2013 Table 1A(3) Rec C Soil HSL for Vapour Intrusion",null,null,"mg/kg","NL",null,"Derived soil HSL exceeds soil saturation concentraiton","Clay",1,2]
["F1-BTEX","F1","Soil","NEPM 2013 Table 1A(3) Rec C Soil HSL for Vapour Intrusion",null,null,"mg/kg","NL",null,"Derived soil HSL exceeds soil saturation concentraiton","Clay",1,2]
["F2-NAPHTHALENE","F2","Soil","NEPM 2013 Table 1A(3) Rec C Soil HSL for Vapour Intrusion",null,null,"mg/kg","NL",null,"Derived soil HSL exceeds soil saturation concentraiton","Clay",1,2]
["108-88-3","Toluene","Soil","NEPM 2013 Table 1A(3) Rec C Soil HSL for Vapour Intrusion",null,null,"mg/kg","NL",null,"Derived soil HSL exceeds soil saturation concentraiton","Clay",2,4]
["100-41-4","Ethylbenzene","Soil","NEPM 2013 Table 1A(3) Rec C Soil HSL for Vapour Intrusion",null,null,"mg/kg","NL",null,"Derived soil HSL exceeds soil saturation concentraiton","Clay",2,4]
["1330-20-7","Xylenes","Soil","NEPM 2013 Table 1A(3) Rec C Soil HSL for Vapour Intrusion",null,null,"mg/kg","NL",null,"Derived soil HSL exceeds soil saturation concentraiton","Clay",2,4]
["91-20-3","Naphthalene","Soil","NEPM 2013 Table 1A(3) Rec C Soil HSL for Vapour Intrusion",null,null,"mg/kg","NL",null,"Derived soil HSL exceeds soil saturation concentraiton","Clay",2,4]
["71-43-2","Benzene","Soil","NEPM 2013 Table 1A(3) Rec C Soil HSL for Vapour Intrusion",null,null,"mg/kg","NL",null,"Derived soil HSL exceeds soil saturation concentraiton","Clay",2,4]
["F1-BTEX","F1","Soil","NEPM 2013 Table 1A(3) Rec C Soil HSL for Vapour Intrusion",null,null,"mg/kg","NL",null,"Derived soil HSL exceeds soil saturation concentraiton","Clay",2,4]
["F2-NAPHTHALENE","F2","Soil","NEPM 2013 Table 1A(3) Rec C Soil HSL for Vapour Intrusion",null,null,"mg/kg","NL",null,"Derived soil HSL exceeds soil saturation concentraiton","Clay",2,4]
["108-88-3","Toluene","Soil","NEPM 2013 Table 1A(3) Rec C Soil HSL for Vapour Intrusion",null,null,"mg/kg","NL",null,"Derived soil HSL exceeds soil saturation concentraiton","Clay",4]
["100-41-4","Ethylbenzene","Soil","NEPM 2013 Table 1A(3) Rec C Soil HSL for Vapour Intrusion",null,null,"mg/kg","NL",null,"Derived soil HSL exceeds soil saturation concentraiton","Clay",4]
["1330-20-7","Xylenes","Soil","NEPM 2013 Table 1A(3) Rec C Soil HSL for Vapour Intrusion",null,null,"mg/kg","NL",null,"Derived soil HSL exceeds soil saturation concentraiton","Clay",4]
["91-20-3","Naphthalene","Soil","NEPM 2013 Table 1A(3) Rec C Soil HSL for Vapour Intrusion",null,null,"mg/kg","NL",null,"Derived soil HSL exceeds soil saturation concentraiton","Clay",4]
["71-43-2","Benzene","Soil","NEPM 2013 Table 1A(3) Rec C Soil HSL for Vapour Intrusion",null,null,"mg/kg","NL",null,"Derived soil HSL exceeds soil saturation concentraiton","Clay",4]
["F1-BTEX","F1","Soil","NEPM 2013 Table 1A(3) Rec C Soil HSL for Vapour Intrusion",null,null,"mg/kg","NL",null,"Derived soil HSL exceeds soil saturation concentraiton","Clay",4]
["F2-NAPHTHALENE","F2","Soil","NEPM 2013 Table 1A(3) Rec C Soil HSL for Vapour Intrusion",null,null,"mg/kg","NL",null,"Derived soil HSL exceeds soil saturation concentraiton","Clay",4]
["108-88-3","Toluene","Soil","NEPM 2013 Table 1A(3) Comm/Ind D Soil HSL for Vapour Intrusion",null,null,"mg/kg","NL",null,"Derived soil HSL exceeds soil saturation concentraiton","Sand",0,1]
["100-41-4","Ethylbenzene","Soil","NEPM 2013 Table 1A(3) Comm/Ind D Soil HSL for Vapour Intrusion",null,null,"mg/kg","NL",null,"Derived soil HSL exceeds soil saturation concentraiton","Sand",0,1]
["1330-20-7","Xylenes","Soil","NEPM 2013 Table 1A(3) Comm/Ind D Soil HSL for Vapour Intrusion",230,null,"mg/kg",null,null,null,"Sand",0,1,null,null,null,null,null,null,null,null,null,null,null,null,null,1,1]
["91-20-3","Naphthalene","Soil","NEPM 2013 Table 1A(3) Comm/Ind D Soil HSL for Vapour Intrusion",null,null,"mg/kg","NL",null,"Derived soil HSL exceeds soil saturation concentraiton","Sand",0,1]
["71-43-2","Benzene","Soil","NEPM 2013 Table 1A(3) Comm/Ind D Soil HSL for Vapour Intrusion",3,null,"mg/kg",null,null,null,"Sand",0,1,null,null,null,null,null,null,null,null,null,null,null,null,null,1,1]
["F1-BTEX","F1","Soil","NEPM 2013 Table 1A(3) Comm/Ind D Soil HSL for Vapour Intrusion",260,null,"mg/kg",null,null,"To obtain F1 subtract the sum of BTEX concentrations from the C6  - C10 fraction.","Sand",0,1,null,null,null,null,null,null,null,null,null,null,null,null,null,1,1]
["F2-NAPHTHALENE","F2","Soil","NEPM 2013 Table 1A(3) Comm/Ind D Soil HSL for Vapour Intrusion",null,null,"mg/kg","NL",null,"Derived soil HSL exceeds soil saturation concentraiton","Sand",0,1]
["108-88-3","Toluene","Soil","NEPM 2013 Table 1A(3) Comm/Ind D Soil HSL for Vapour Intrusion",null,null,"mg/kg","NL",null,"Derived soil HSL exceeds soil saturation concentraiton","Sand",1,2]
["100-41-4","Ethylbenzene","Soil","NEPM 2013 Table 1A(3) Comm/Ind D Soil HSL for Vapour Intrusion",null,null,"mg/kg","NL",null,"Derived soil HSL exceeds soil saturation concentraiton","Sand",1,2]
["1330-20-7","Xylenes","Soil","NEPM 2013 Table 1A(3) Comm/Ind D Soil HSL for Vapour Intrusion",null,null,"mg/kg","NL",null,"Derived soil HSL exceeds soil saturation concentraiton","Sand",1,2]
["91-20-3","Naphthalene","Soil","NEPM 2013 Table 1A(3) Comm/Ind D Soil HSL for Vapour Intrusion",null,null,"mg/kg","NL",null,"Derived soil HSL exceeds soil saturation concentraiton","Sand",1,2]
["71-43-2","Benzene","Soil","NEPM 2013 Table 1A(3) Comm/Ind D Soil HSL for Vapour Intrusion",3,null,"mg/kg",null,null,null,"Sand",1,2,null,null,null,null,null,null,null,null,null,null,null,null,null,1,1]
["F1-BTEX","F1","Soil","NEPM 2013 Table 1A(3) Comm/Ind D Soil HSL for Vapour Intrusion",370,null,"mg/kg",null,null,"To obtain F1 subtract the sum of BTEX concentrations from the C6  - C10 fraction.","Sand",1,2,null,null,null,null,null,null,null,null,null,null,null,null,null,1,1]
["F2-NAPHTHALENE","F2","Soil","NEPM 2013 Table 1A(3) Comm/Ind D Soil HSL for Vapour Intrusion",null,null,"mg/kg","NL",null,"Derived soil HSL exceeds soil saturation concentraiton","Sand",1,2]
["108-88-3","Toluene","Soil","NEPM 2013 Table 1A(3) Comm/Ind D Soil HSL for Vapour Intrusion",null,null,"mg/kg","NL",null,"Derived soil HSL exceeds soil saturation concentraiton","Sand",2,4]
["100-41-4","Ethylbenzene","Soil","NEPM 2013 Table 1A(3) Comm/Ind D Soil HSL for Vapour Intrusion",null,null,"mg/kg","NL",null,"Derived soil HSL exceeds soil saturation concentraiton","Sand",2,4]
["1330-20-7","Xylenes","Soil","NEPM 2013 Table 1A(3) Comm/Ind D Soil HSL for Vapour Intrusion",null,null,"mg/kg","NL",null,"Derived soil HSL exceeds soil saturation concentraiton","Sand",2,4]
["91-20-3","Naphthalene","Soil","NEPM 2013 Table 1A(3) Comm/Ind D Soil HSL for Vapour Intrusion",null,null,"mg/kg","NL",null,"Derived soil HSL exceeds soil saturation concentraiton","Sand",2,4]
["71-43-2","Benzene","Soil","NEPM 2013 Table 1A(3) Comm/Ind D Soil HSL for Vapour Intrusion",3,null,"mg/kg",null,null,null,"Sand",2,4,null,null,null,null,null,null,null,null,null,null,null,null,null,1,1]
["F1-BTEX","F1","Soil","NEPM 2013 Table 1A(3) Comm/Ind D Soil HSL for Vapour Intrusion",630,null,"mg/kg",null,null,"To obtain F1 subtract the sum of BTEX concentrations from the C6  - C10 fraction.","Sand",2,4,null,null,null,null,null,null,null,null,null,null,null,null,null,1,1]
["F2-NAPHTHALENE","F2","Soil","NEPM 2013 Table 1A(3) Comm/Ind D Soil HSL for Vapour Intrusion",null,null,"mg/kg","NL",null,"Derived soil HSL exceeds soil saturation concentraiton","Sand",2,4]
["108-88-3","Toluene","Soil","NEPM 2013 Table 1A(3) Comm/Ind D Soil HSL for Vapour Intrusion",null,null,"mg/kg","NL",null,"Derived soil HSL exceeds soil saturation concentraiton","Sand",4]
["100-41-4","Ethylbenzene","Soil","NEPM 2013 Table 1A(3) Comm/Ind D Soil HSL for Vapour Intrusion",null,null,"mg/kg","NL",null,"Derived soil HSL exceeds soil saturation concentraiton","Sand",4]
["1330-20-7","Xylenes","Soil","NEPM 2013 Table 1A(3) Comm/Ind D Soil HSL for Vapour Intrusion",null,null,"mg/kg","NL",null,"Derived soil HSL exceeds soil saturation concentraiton","Sand",4]
["91-20-3","Naphthalene","Soil","NEPM 2013 Table 1A(3) Comm/Ind D Soil HSL for Vapour Intrusion",null,null,"mg/kg","NL",null,"Derived soil HSL exceeds soil saturation concentraiton","Sand",4]
["71-43-2","Benzene","Soil","NEPM 2013 Table 1A(3) Comm/Ind D Soil HSL for Vapour Intrusion",3,null,"mg/kg",null,null,null,"Sand",4,null,null,null,null,null,null,null,null,null,null,null,null,null,null,1,1]
["F1-BTEX","F1","Soil","NEPM 2013 Table 1A(3) Comm/Ind D Soil HSL for Vapour Intrusion",null,null,"mg/kg","NL",null,"Derived soil HSL exceeds soil saturation concentraiton","Sand",4]
["F2-NAPHTHALENE","F2","Soil","NEPM 2013 Table 1A(3) Comm/Ind D Soil HSL for Vapour Intrusion",null,null,"mg/kg","NL",null,"Derived soil HSL exceeds soil saturation concentraiton","Sand",4]
["108-88-3","Toluene","Soil","NEPM 2013 Table 1A(3) Comm/Ind D Soil HSL for Vapour Intrusion",null,null,"mg/kg","NL",null,"Derived soil HSL exceeds soil saturation concentraiton","Silt",0,1]
["100-41-4","Ethylbenzene","Soil","NEPM 2013 Table 1A(3) Comm/Ind D Soil HSL for Vapour Intrusion",null,null,"mg/kg","NL",null,"Derived soil HSL exceeds soil saturation concentraiton","Silt",0,1]
["1330-20-7","Xylenes","Soil","NEPM 2013 Table 1A(3) Comm/Ind D Soil HSL for Vapour Intrusion",null,null,"mg/kg","NL",null,"Derived soil HSL exceeds soil saturation concentraiton","Silt",0,1]
["91-20-3","Naphthalene","Soil","NEPM 2013 Table 1A(3) Comm/Ind D Soil HSL for Vapour Intrusion",null,null,"mg/kg","NL",null,"Derived soil HSL exceeds soil saturation concentraiton","Silt",0,1]
["71-43-2","Benzene","Soil","NEPM 2013 Table 1A(3) Comm/Ind D Soil HSL for Vapour Intrusion",4,null,"mg/kg",null,null,null,"Silt",0,1,null,null,null,null,null,null,null,null,null,null,null,null,null,1,1]
["F1-BTEX","F1","Soil","NEPM 2013 Table 1A(3) Comm/Ind D Soil HSL for Vapour Intrusion",250,null,"mg/kg",null,null,"To obtain F1 subtract the sum of BTEX concentrations from the C6  - C10 fraction.","Silt",0,1,null,null,null,null,null,null,null,null,null,null,null,null,null,1,1]
["F2-NAPHTHALENE","F2","Soil","NEPM 2013 Table 1A(3) Comm/Ind D Soil HSL for Vapour Intrusion",null,null,"mg/kg","NL",null,"Derived soil HSL exceeds soil saturation concentraiton","Silt",0,1]
["108-88-3","Toluene","Soil","NEPM 2013 Table 1A(3) Comm/Ind D Soil HSL for Vapour Intrusion",null,null,"mg/kg","NL",null,"Derived soil HSL exceeds soil saturation concentraiton","Silt",1,2]
["100-41-4","Ethylbenzene","Soil","NEPM 2013 Table 1A(3) Comm/Ind D Soil HSL for Vapour Intrusion",null,null,"mg/kg","NL",null,"Derived soil HSL exceeds soil saturation concentraiton","Silt",1,2]
["1330-20-7","Xylenes","Soil","NEPM 2013 Table 1A(3) Comm/Ind D Soil HSL for Vapour Intrusion",null,null,"mg/kg","NL",null,"Derived soil HSL exceeds soil saturation concentraiton","Silt",1,2]
["91-20-3","Naphthalene","Soil","NEPM 2013 Table 1A(3) Comm/Ind D Soil HSL for Vapour Intrusion",null,null,"mg/kg","NL",null,"Derived soil HSL exceeds soil saturation concentraiton","Silt",1,2]
["71-43-2","Benzene","Soil","NEPM 2013 Table 1A(3) Comm/Ind D Soil HSL for Vapour Intrusion",4,null,"mg/kg",null,null,null,"Silt",1,2,null,null,null,null,null,null,null,null,null,null,null,null,null,1,1]
["F1-BTEX","F1","Soil","NEPM 2013 Table 1A(3) Comm/Ind D Soil HSL for Vapour Intrusion",360,null,"mg/kg",null,null,"To obtain F1 subtract the sum of BTEX concentrations from the C6  - C10 fraction.","Silt",1,2,null,null,null,null,null,null,null,null,null,null,null,null,null,1,1]
["F2-NAPHTHALENE","F2","Soil","NEPM 2013 Table 1A(3) Comm/Ind D Soil HSL for Vapour Intrusion",null,null,"mg/kg","NL",null,"Derived soil HSL exceeds soil saturation concentraiton","Silt",1,2]
["108-88-3","Toluene","Soil","NEPM 2013 Table 1A(3) Comm/Ind D Soil HSL for Vapour Intrusion",null,null,"mg/kg","NL",null,"Derived soil HSL exceeds soil saturation concentraiton","Silt",2,4]
["100-41-4","Ethylbenzene","Soil","NEPM 2013 Table 1A(3) Comm/Ind D Soil HSL for Vapour Intrusion",null,null,"mg/kg","NL",null,"Derived soil HSL exceeds soil saturation concentraiton","Silt",2,4]
["1330-20-7","Xylenes","Soil","NEPM 2013 Table 1A(3) Comm/Ind D Soil HSL for Vapour Intrusion",null,null,"mg/kg","NL",null,"Derived soil HSL exceeds soil saturation concentraiton","Silt",2,4]
["91-20-3","Naphthalene","Soil","NEPM 2013 Table 1A(3) Comm/Ind D Soil HSL for Vapour Intrusion",null,null,"mg/kg","NL",null,"Derived soil HSL exceeds soil saturation concentraiton","Silt",2,4]
["71-43-2","Benzene","Soil","NEPM 2013 Table 1A(3) Comm/Ind D Soil HSL for Vapour Intrusion",6,null,"mg/kg",null,null,null,"Silt",2,4,null,null,null,null,null,null,null,null,null,null,null,null,null,1,1]
["F1-BTEX","F1","Soil","NEPM 2013 Table 1A(3) Comm/Ind D Soil HSL for Vapour Intrusion",590,null,"mg/kg",null,null,"To obtain F1 subtract the sum of BTEX concentrations from the C6  - C10 fraction.","Silt",2,4,null,null,null,null,null,null,null,null,null,null,null,null,null,1,1]
["F2-NAPHTHALENE","F2","Soil","NEPM 2013 Table 1A(3) Comm/Ind D Soil HSL for Vapour Intrusion",null,null,"mg/kg","NL",null,"Derived soil HSL exceeds soil saturation concentraiton","Silt",2,4]
["108-88-3","Toluene","Soil","NEPM 2013 Table 1A(3) Comm/Ind D Soil HSL for Vapour Intrusion",null,null,"mg/kg","NL",null,"Derived soil HSL exceeds soil saturation concentraiton","Silt",4]
["100-41-4","Ethylbenzene","Soil","NEPM 2013 Table 1A(3) Comm/Ind D Soil HSL for Vapour Intrusion",null,null,"mg/kg","NL",null,"Derived soil HSL exceeds soil saturation concentraiton","Silt",4]
["1330-20-7","Xylenes","Soil","NEPM 2013 Table 1A(3) Comm/Ind D Soil HSL for Vapour Intrusion",null,null,"mg/kg","NL",null,"Derived soil HSL exceeds soil saturation concentraiton","Silt",4]
["91-20-3","Naphthalene","Soil","NEPM 2013 Table 1A(3) Comm/Ind D Soil HSL for Vapour Intrusion",null,null,"mg/kg","NL",null,"Derived soil HSL exceeds soil saturation concentraiton","Silt",4]
["71-43-2","Benzene","Soil","NEPM 2013 Table 1A(3) Comm/Ind D Soil HSL for Vapour Intrusion",10,null,"mg/kg",null,null,null,"Silt",4,null,null,null,null,null,null,null,null,null,null,null,null,null,null,1,1]
["F1-BTEX","F1","Soil","NEPM 2013 Table 1A(3) Comm/Ind D Soil HSL for Vapour Intrusion",null,null,"mg/kg","NL",null,"Derived soil HSL exceeds soil saturation concentraiton","Silt",4]
["F2-NAPHTHALENE","F2","Soil","NEPM 2013 Table 1A(3) Comm/Ind D Soil HSL for Vapour Intrusion",null,null,"mg/kg","NL",null,"Derived soil HSL exceeds soil saturation concentraiton","Silt",4]
["108-88-3","Toluene","Soil","NEPM 2013 Table 1A(3) Comm/Ind D Soil HSL for Vapour Intrusion",null,null,"mg/kg","NL",null,"Derived soil HSL exceeds soil saturation concentraiton","Clay",0,1]
["100-41-4","Ethylbenzene","Soil","NEPM 2013 Table 1A(3) Comm/Ind D Soil HSL for Vapour Intrusion",null,null,"mg/kg","NL",null,"Derived soil HSL exceeds soil saturation concentraiton","Clay",0,1]
["1330-20-7","Xylenes","Soil","NEPM 2013 Table 1A(3) Comm/Ind D Soil HSL for Vapour Intrusion",null,null,"mg/kg","NL",null,"Derived soil HSL exceeds soil saturation concentraiton","Clay",0,1]
["91-20-3","Naphthalene","Soil","NEPM 2013 Table 1A(3) Comm/Ind D Soil HSL for Vapour Intrusion",null,null,"mg/kg","NL",null,"Derived soil HSL exceeds soil saturation concentraiton","Clay",0,1]
["71-43-2","Benzene","Soil","NEPM 2013 Table 1A(3) Comm/Ind D Soil HSL for Vapour Intrusion",4,null,"mg/kg",null,null,null,"Clay",0,1,null,null,null,null,null,null,null,null,null,null,null,null,null,1,1]
["F1-BTEX","F1","Soil","NEPM 2013 Table 1A(3) Comm/Ind D Soil HSL for Vapour Intrusion",310,null,"mg/kg",null,null,"To obtain F1 subtract the sum of BTEX concentrations from the C6  - C10 fraction.","Clay",0,1,null,null,null,null,null,null,null,null,null,null,null,null,null,1,1]
["F2-NAPHTHALENE","F2","Soil","NEPM 2013 Table 1A(3) Comm/Ind D Soil HSL for Vapour Intrusion",null,null,"mg/kg","NL",null,"Derived soil HSL exceeds soil saturation concentraiton","Clay",0,1]
["108-88-3","Toluene","Soil","NEPM 2013 Table 1A(3) Comm/Ind D Soil HSL for Vapour Intrusion",null,null,"mg/kg","NL",null,"Derived soil HSL exceeds soil saturation concentraiton","Clay",1,2]
["100-41-4","Ethylbenzene","Soil","NEPM 2013 Table 1A(3) Comm/Ind D Soil HSL for Vapour Intrusion",null,null,"mg/kg","NL",null,"Derived soil HSL exceeds soil saturation concentraiton","Clay",1,2]
["1330-20-7","Xylenes","Soil","NEPM 2013 Table 1A(3) Comm/Ind D Soil HSL for Vapour Intrusion",null,null,"mg/kg","NL",null,"Derived soil HSL exceeds soil saturation concentraiton","Clay",1,2]
["91-20-3","Naphthalene","Soil","NEPM 2013 Table 1A(3) Comm/Ind D Soil HSL for Vapour Intrusion",null,null,"mg/kg","NL",null,"Derived soil HSL exceeds soil saturation concentraiton","Clay",1,2]
["71-43-2","Benzene","Soil","NEPM 2013 Table 1A(3) Comm/Ind D Soil HSL for Vapour Intrusion",6,null,"mg/kg",null,null,null,"Clay",1,2,null,null,null,null,null,null,null,null,null,null,null,null,null,1,1]
["F1-BTEX","F1","Soil","NEPM 2013 Table 1A(3) Comm/Ind D Soil HSL for Vapour Intrusion",480,null,"mg/kg",null,null,"To obtain F1 subtract the sum of BTEX concentrations from the C6  - C10 fraction.","Clay",1,2,null,null,null,null,null,null,null,null,null,null,null,null,null,1,1]
["F2-NAPHTHALENE","F2","Soil","NEPM 2013 Table 1A(3) Comm/Ind D Soil HSL for Vapour Intrusion",null,null,"mg/kg","NL",null,"Derived soil HSL exceeds soil saturation concentraiton","Clay",1,2]
["108-88-3","Toluene","Soil","NEPM 2013 Table 1A(3) Comm/Ind D Soil HSL for Vapour Intrusion",null,null,"mg/kg","NL",null,"Derived soil HSL exceeds soil saturation concentraiton","Clay",2,4]
["100-41-4","Ethylbenzene","Soil","NEPM 2013 Table 1A(3) Comm/Ind D Soil HSL for Vapour Intrusion",null,null,"mg/kg","NL",null,"Derived soil HSL exceeds soil saturation concentraiton","Clay",2,4]
["1330-20-7","Xylenes","Soil","NEPM 2013 Table 1A(3) Comm/Ind D Soil HSL for Vapour Intrusion",null,null,"mg/kg","NL",null,"Derived soil HSL exceeds soil saturation concentraiton","Clay",2,4]
["91-20-3","Naphthalene","Soil","NEPM 2013 Table 1A(3) Comm/Ind D Soil HSL for Vapour Intrusion",null,null,"mg/kg","NL",null,"Derived soil HSL exceeds soil saturation concentraiton","Clay",2,4]
["71-43-2","Benzene","Soil","NEPM 2013 Table 1A(3) Comm/Ind D Soil HSL for Vapour Intrusion",9,null,"mg/kg",null,null,null,"Clay",2,4,null,null,null,null,null,null,null,null,null,null,null,null,null,1,1]
["F1-BTEX","F1","Soil","NEPM 2013 Table 1A(3) Comm/Ind D Soil HSL for Vapour Intrusion",null,null,"mg/kg","NL",null,"Derived soil HSL exceeds soil saturation concentraiton","Clay",2,4]
["F2-NAPHTHALENE","F2","Soil","NEPM 2013 Table 1A(3) Comm/Ind D Soil HSL for Vapour Intrusion",null,null,"mg/kg","NL",null,"Derived soil HSL exceeds soil saturation concentraiton","Clay",2,4]
["108-88-3","Toluene","Soil","NEPM 2013 Table 1A(3) Comm/Ind D Soil HSL for Vapour Intrusion",null,null,"mg/kg","NL",null,"Derived soil HSL exceeds soil saturation concentraiton","Clay",4]
["100-41-4","Ethylbenzene","Soil","NEPM 2013 Table 1A(3) Comm/Ind D Soil HSL for Vapour Intrusion",null,null,"mg/kg","NL",null,"Derived soil HSL exceeds soil saturation concentraiton","Clay",4]
["1330-20-7","Xylenes","Soil","NEPM 2013 Table 1A(3) Comm/Ind D Soil HSL for Vapour Intrusion",null,null,"mg/kg","NL",null,"Derived soil HSL exceeds soil saturation concentraiton","Clay",4]
["91-20-3","Naphthalene","Soil","NEPM 2013 Table 1A(3) Comm/Ind D Soil HSL for Vapour Intrusion",null,null,"mg/kg","NL",null,"Derived soil HSL exceeds soil saturation concentraiton","Clay",4]
["71-43-2","Benzene","Soil","NEPM 2013 Table 1A(3) Comm/Ind D Soil HSL for Vapour Intrusion",20,null,"mg/kg",null,null,null,"Clay",4,null,null,null,null,null,null,null,null,null,null,null,null,null,null,1,1]
["F1-BTEX","F1","Soil","NEPM 2013 Table 1A(3) Comm/Ind D Soil HSL for Vapour Intrusion",null,null,"mg/kg","NL",null,"Derived soil HSL exceeds soil saturation concentraiton","Clay",4]
["F2-NAPHTHALENE","F2","Soil","NEPM 2013 Table 1A(3) Comm/Ind D Soil HSL for Vapour Intrusion",null,null,"mg/kg","NL",null,"Derived soil HSL exceeds soil saturation concentraiton","Clay",4]

{"sheet":"1A4 GW HSLs for VapInt no CM","index":9,"n_rows":193,"n_cols":28,"rows_kept":193,"cut":false,"hidden":false,"merged":[]}
["Project:","Cardno Lane Piper 213152Historical Soil",null,"Table:","[zRef_Environmental_Standards]",null,"Style:",null,null,"Template",null,null,null,"NoLocs"]
["Path:","C:\\Users\\Tom W\\Documents\\Clients\\Cardno Lane Piper\\213152Historical Soil\\213152Historical Soil.mdb",null,"Parent Tables:","zRef_Matrix_Types,zRef_Chemistry_Lookup,Chem_Group_Or_Method"]
[]
["ChemCode","ChemName","MatrixType","ActionLevelSource","ActionLevel","ActionLevel_Min","Units","ActionLevel_Prefix","ActionLevel_Suffix","Comments","Conditional_Matrix_Type","Conditional_Depth_From","Conditional_Depth_To","Leached","Conditional_ChemCode1","Conditional_ChemCode1_Units","Conditional_ChemCode1_Min_Value_Prefix","Conditional_ChemCode1_Value_Min","Conditional_ChemCode1_Max_Value_Prefix","Conditional_ChemCode1_Value_Max","Conditional_ChemCode2","Conditional_ChemCode2_Units","Conditional_ChemCode2_Min_Value_Prefix","Conditional_ChemCode2_Value_Min","Conditional_ChemCode2_Max_Value_Prefix","Conditional_ChemCode2_Value_Max","Applies_To_Total_Result","Applies_To_Filtered_Result"]
["108-88-3","Toluene","Water","NEPM 2013 Table 1A(4) Res HSL A & B GW for Vapour Intrusion, Sand",null,null,"mg/L","NL",null,null,null,2,4,null,null,null,null,null,null,null,null,null,null,null,null,null,1,1]
["100-41-4","Ethylbenzene","Water","NEPM 2013 Table 1A(4) Res HSL A & B GW for Vapour Intrusion, Sand",null,null,"mg/L","NL",null,null,null,2,4,null,null,null,null,null,null,null,null,null,null,null,null,null,1,1]
["1330-20-7","Xylenes","Water","NEPM 2013 Table 1A(4) Res HSL A & B GW for Vapour Intrusion, Sand",null,null,"mg/L","NL",null,null,null,2,4,null,null,null,null,null,null,null,null,null,null,null,null,null,1,1]
["91-20-3","Naphthalene","Water","NEPM 2013 Table 1A(4) Res HSL A & B GW for Vapour Intrusion, Sand",null,null,"mg/L","NL",null,null,null,2,4,null,null,null,null,null,null,null,null,null,null,null,null,null,1,1]
["71-43-2","Benzene","Water","NEPM 2013 Table 1A(4) Res HSL A & B GW for Vapour Intrusion, Sand",0.8,null,"mg/L",null,null,null,null,2,4,null,null,null,null,null,null,null,null,null,null,null,null,null,1,1]
["F1-BTEX","F1","Water","NEPM 2013 Table 1A(4) Res HSL A & B GW for Vapour Intrusion, Sand",1,null,"mg/L",null,null,"To obtain F1 subtract the sum of BTEX concentrations from the C6  - C10 fraction.",null,2,4,null,null,null,null,null,null,null,null,null,null,null,null,null,1,1]
["F2-NAPHTHALENE","F2","Water","NEPM 2013 Table 1A(4) Res HSL A & B GW for Vapour Intrusion, Sand",1,null,"mg/L",null,null,"To obtain F2 subtract napthalene from the >C10 - C16 fraction.",null,2,4,null,null,null,null,null,null,null,null,null,null,null,null,null,1,1]
["108-88-3","Toluene","Water","NEPM 2013 Table 1A(4) Res HSL A & B GW for Vapour Intrusion, Sand",null,null,"mg/L","NL",null,null,null,4,8,null,null,null,null,null,null,null,null,null,null,null,null,null,1,1]
["100-41-4","Ethylbenzene","Water","NEPM 2013 Table 1A(4) Res HSL A & B GW for Vapour Intrusion, Sand",null,null,"mg/L","NL",null,null,null,4,8]
["1330-20-7","Xylenes","Water","NEPM 2013 Table 1A(4) Res HSL A & B GW for Vapour Intrusion, Sand",null,null,"mg/L","NL",null,null,null,4,8,null,null,null,null,null,null,null,null,null,null,null,null,null,1,1]
["91-20-3","Naphthalene","Water","NEPM 2013 Table 1A(4) Res HSL A & B GW for Vapour Intrusion, Sand",null,null,"mg/L","NL",null,null,null,4,8]
["71-43-2","Benzene","Water","NEPM 2013 Table 1A(4) Res HSL A & B GW for Vapour Intrusion, Sand",0.8,null,"mg/L",null,null,null,null,4,8,null,null,null,null,null,null,null,null,null,null,null,null,null,1,1]
["F1-BTEX","F1","Water","NEPM 2013 Table 1A(4) Res HSL A & B GW for Vapour Intrusion, Sand",1,null,"mg/L",null,null,"To obtain F1 subtract the sum of BTEX concentrations from the C6  - C10 fraction.",null,4,8,null,null,null,null,null,null,null,null,null,null,null,null,null,1,1]
["F2-NAPHTHALENE","F2","Water","NEPM 2013 Table 1A(4) Res HSL A & B GW for Vapour Intrusion, Sand",1,null,"mg/L",null,null,"To obtain F2 subtract napthalene from the >C10 - C16 fraction.",null,4,8,null,null,null,null,null,null,null,null,null,null,null,null,null,1,1]
["108-88-3","Toluene","Water","NEPM 2013 Table 1A(4) Res HSL A & B GW for Vapour Intrusion, Sand",null,null,"mg/L","NL",null,null,null,8,null,null,null,null,null,null,null,null,null,null,null,null,null,null,1,1]
["100-41-4","Ethylbenzene","Water","NEPM 2013 Table 1A(4) Res HSL A & B GW for Vapour Intrusion, Sand",null,null,"mg/L","NL",null,null,null,8]
["1330-20-7","Xylenes","Water","NEPM 2013 Table 1A(4) Res HSL A & B GW for Vapour Intrusion, Sand",null,null,"mg/L","NL",null,null,null,8,null,null,null,null,null,null,null,null,null,null,null,null,null,null,1,1]
["91-20-3","Naphthalene","Water","NEPM 2013 Table 1A(4) Res HSL A & B GW for Vapour Intrusion, Sand",null,null,"mg/L","NL",null,null,null,8]
["71-43-2","Benzene","Water","NEPM 2013 Table 1A(4) Res HSL A & B GW for Vapour Intrusion, Sand",0.9,null,"mg/L",null,null,null,null,8,null,null,null,null,null,null,null,null,null,null,null,null,null,null,1,1]
["F1-BTEX","F1","Water","NEPM 2013 Table 1A(4) Res HSL A & B GW for Vapour Intrusion, Sand",1,null,"mg/L",null,null,"To obtain F1 subtract the sum of BTEX concentrations from the C6  - C10 fraction.",null,8,null,null,null,null,null,null,null,null,null,null,null,null,null,null,1,1]
["F2-NAPHTHALENE","F2","Water","NEPM 2013 Table 1A(4) Res HSL A & B GW for Vapour Intrusion, Sand",1,null,"mg/L",null,null,"To obtain F2 subtract napthalene from the >C10 - C16 fraction.",null,8,null,null,null,null,null,null,null,null,null,null,null,null,null,null,1,1]
["108-88-3","Toluene","Water","NEPM 2013 Table 1A(4) Res HSL A & B GW for Vapour Intrusion, Silt",null,null,"mg/L","NL",null,null,null,2,4,null,null,null,null,null,null,null,null,null,null,null,null,null,1,1]
["100-41-4","Ethylbenzene","Water","NEPM 2013 Table 1A(4) Res HSL A & B GW for Vapour Intrusion, Silt",null,null,"mg/L","NL",null,null,null,2,4]
["1330-20-7","Xylenes","Water","NEPM 2013 Table 1A(4) Res HSL A & B GW for Vapour Intrusion, Silt",null,null,"mg/L","NL",null,null,null,2,4,null,null,null,null,null,null,null,null,null,null,null,null,null,1,1]
["91-20-3","Naphthalene","Water","NEPM 2013 Table 1A(4) Res HSL A & B GW for Vapour Intrusion, Silt",null,null,"mg/L","NL",null,null,null,2,4,null,null,null,null,null,null,null,null,null,null,null,null,null,1,1]
["71-43-2","Benzene","Water","NEPM 2013 Table 1A(4) Res HSL A & B GW for Vapour Intrusion, Silt",4,null,"mg/L",null,null,null,null,2,4,null,null,null,null,null,null,null,null,null,null,null,null,null,1,1]
["F1-BTEX","F1","Water","NEPM 2013 Table 1A(4) Res HSL A & B GW for Vapour Intrusion, Silt",6,null,"mg/L",null,null,"To obtain F1 subtract the sum of BTEX concentrations from the C6  - C10 fraction.",null,2,4,null,null,null,null,null,null,null,null,null,null,null,null,null,1,1]
["F2-NAPHTHALENE","F2","Water","NEPM 2013 Table 1A(4) Res HSL A & B GW for Vapour Intrusion, Silt",null,null,"mg/L","NL",null,"To obtain F2 subtract napthalene from the >C10 - C16 fraction.",null,2,4,null,null,null,null,null,null,null,null,null,null,null,null,null,1,1]
["108-88-3","Toluene","Water","NEPM 2013 Table 1A(4) Res HSL A & B GW for Vapour Intrusion, Silt",null,null,"mg/L","NL",null,null,null,4,8]
["100-41-4","Ethylbenzene","Water","NEPM 2013 Table 1A(4) Res HSL A & B GW for Vapour Intrusion, Silt",null,null,"mg/L","NL",null,null,null,4,8]
["1330-20-7","Xylenes","Water","NEPM 2013 Table 1A(4) Res HSL A & B GW for Vapour Intrusion, Silt",null,null,"mg/L","NL",null,null,null,4,8,null,null,null,null,null,null,null,null,null,null,null,null,null,1,1]
["91-20-3","Naphthalene","Water","NEPM 2013 Table 1A(4) Res HSL A & B GW for Vapour Intrusion, Silt",null,null,"mg/L","NL",null,null,null,4,8]
["71-43-2","Benzene","Water","NEPM 2013 Table 1A(4) Res HSL A & B GW for Vapour Intrusion, Silt",5,null,"mg/L",null,null,null,null,4,8,null,null,null,null,null,null,null,null,null,null,null,null,null,1,1]
["F1-BTEX","F1","Water","NEPM 2013 Table 1A(4) Res HSL A & B GW for Vapour Intrusion, Silt",6,null,"mg/L",null,null,"To obtain F1 subtract the sum of BTEX concentrations from the C6  - C10 fraction.",null,4,8,null,null,null,null,null,null,null,null,null,null,null,null,null,1,1]
["F2-NAPHTHALENE","F2","Water","NEPM 2013 Table 1A(4) Res HSL A & B GW for Vapour Intrusion, Silt",null,null,"mg/L","NL",null,"To obtain F2 subtract napthalene from the >C10 - C16 fraction.",null,4,8]
["108-88-3","Toluene","Water","NEPM 2013 Table 1A(4) Res HSL A & B GW for Vapour Intrusion, Silt",null,null,"mg/L","NL",null,null,null,8]
["100-41-4","Ethylbenzene","Water","NEPM 2013 Table 1A(4) Res HSL A & B GW for Vapour Intrusion, Silt",null,null,"mg/L","NL",null,null,null,8]
["1330-20-7","Xylenes","Water","NEPM 2013 Table 1A(4) Res HSL A & B GW for Vapour Intrusion, Silt",null,null,"mg/L","NL",null,null,null,8]
["91-20-3","Naphthalene","Water","NEPM 2013 Table 1A(4) Res HSL A & B GW for Vapour Intrusion, Silt",null,null,"mg/L","NL",null,null,null,8]
["71-43-2","Benzene","Water","NEPM 2013 Table 1A(4) Res HSL A & B GW for Vapour Intrusion, Silt",5,null,"mg/L",null,null,null,null,8,null,null,null,null,null,null,null,null,null,null,null,null,null,null,1,1]
["F1-BTEX","F1","Water","NEPM 2013 Table 1A(4) Res HSL A & B GW for Vapour Intrusion, Silt",6,null,"mg/L",null,null,"To obtain F1 subtract the sum of BTEX concentrations from the C6  - C10 fraction.",null,8,null,null,null,null,null,null,null,null,null,null,null,null,null,null,1,1]
["F2-NAPHTHALENE","F2","Water","NEPM 2013 Table 1A(4) Res HSL A & B GW for Vapour Intrusion, Silt",null,null,"mg/L","NL",null,"To obtain F2 subtract napthalene from the >C10 - C16 fraction.",null,8]
["108-88-3","Toluene","Water","NEPM 2013 Table 1A(4) Res HSL A & B GW for Vapour Intrusion, Clay",null,null,"mg/L","NL",null,null,null,2,4,null,null,null,null,null,null,null,null,null,null,null,null,null,1,1]
["100-41-4","Ethylbenzene","Water","NEPM 2013 Table 1A(4) Res HSL A & B GW for Vapour Intrusion, Clay",null,null,"mg/L","NL",null,null,null,2,4]
["1330-20-7","Xylenes","Water","NEPM 2013 Table 1A(4) Res HSL A & B GW for Vapour Intrusion, Clay",null,null,"mg/L","NL",null,null,null,2,4,null,null,null,null,null,null,null,null,null,null,null,null,null,1,1]
["91-20-3","Naphthalene","Water","NEPM 2013 Table 1A(4) Res HSL A & B GW for Vapour Intrusion, Clay",null,null,"mg/L","NL",null,null,null,2,4,null,null,null,null,null,null,null,null,null,null,null,null,null,1,1]
["71-43-2","Benzene","Water","NEPM 2013 Table 1A(4) Res HSL A & B GW for Vapour Intrusion, Clay",5,null,"mg/L",null,null,null,null,2,4,null,null,null,null,null,null,null,null,null,null,null,null,null,1,1]
["F1-BTEX","F1","Water","NEPM 2013 Table 1A(4) Res HSL A & B GW for Vapour Intrusion, Clay",null,null,"mg/L","NL",null,"To obtain F1 subtract the sum of BTEX concentrations from the C6  - C10 fraction.",null,2,4,null,null,null,null,null,null,null,null,null,null,null,null,null,1,1]
["F2-NAPHTHALENE","F2","Water","NEPM 2013 Table 1A(4) Res HSL A & B GW for Vapour Intrusion, Clay",null,null,"mg/L","NL",null,"To obtain F2 subtract napthalene from the >C10 - C16 fraction.",null,2,4,null,null,null,null,null,null,null,null,null,null,null,null,null,1,1]
["108-88-3","Toluene","Water","NEPM 2013 Table 1A(4) Res HSL A & B GW for Vapour Intrusion, Clay",null,null,"mg/L","NL",null,null,null,4,8]
["100-41-4","Ethylbenzene","Water","NEPM 2013 Table 1A(4) Res HSL A & B GW for Vapour Intrusion, Clay",null,null,"mg/L","NL",null,null,null,4,8]
["1330-20-7","Xylenes","Water","NEPM 2013 Table 1A(4) Res HSL A & B GW for Vapour Intrusion, Clay",null,null,"mg/L","NL",null,null,null,4,8,null,null,null,null,null,null,null,null,null,null,null,null,null,1,1]
["91-20-3","Naphthalene","Water","NEPM 2013 Table 1A(4) Res HSL A & B GW for Vapour Intrusion, Clay",null,null,"mg/L","NL",null,null,null,4,8]
["71-43-2","Benzene","Water","NEPM 2013 Table 1A(4) Res HSL A & B GW for Vapour Intrusion, Clay",5,null,"mg/L",null,null,null,null,4,8,null,null,null,null,null,null,null,null,null,null,null,null,null,1,1]
["F1-BTEX","F1","Water","NEPM 2013 Table 1A(4) Res HSL A & B GW for Vapour Intrusion, Clay",null,null,"mg/L","NL",null,"To obtain F1 subtract the sum of BTEX concentrations from the C6  - C10 fraction.",null,4,8,null,null,null,null,null,null,null,null,null,null,null,null,null,1,1]
["F2-NAPHTHALENE","F2","Water","NEPM 2013 Table 1A(4) Res HSL A & B GW for Vapour Intrusion, Clay",null,null,"mg/L","NL",null,"To obtain F2 subtract napthalene from the >C10 - C16 fraction.",null,4,8]
["108-88-3","Toluene","Water","NEPM 2013 Table 1A(4) Res HSL A & B GW for Vapour Intrusion, Clay",null,null,"mg/L","NL",null,null,null,8]
["100-41-4","Ethylbenzene","Water","NEPM 2013 Table 1A(4) Res HSL A & B GW for Vapour Intrusion, Clay",null,null,"mg/L","NL",null,null,null,8]
["1330-20-7","Xylenes","Water","NEPM 2013 Table 1A(4) Res HSL A & B GW for Vapour Intrusion, Clay",null,null,"mg/L","NL",null,null,null,8]
["91-20-3","Naphthalene","Water","NEPM 2013 Table 1A(4) Res HSL A & B GW for Vapour Intrusion, Clay",null,null,"mg/L","NL",null,null,null,8]
["71-43-2","Benzene","Water","NEPM 2013 Table 1A(4) Res HSL A & B GW for Vapour Intrusion, Clay",5,null,"mg/L",null,null,null,null,8,null,null,null,null,null,null,null,null,null,null,null,null,null,null,1,1]
["F1-BTEX","F1","Water","NEPM 2013 Table 1A(4) Res HSL A & B GW for Vapour Intrusion, Clay",null,null,"mg/L","NL",null,"To obtain F1 subtract the sum of BTEX concentrations from the C6  - C10 fraction.",null,8,null,null,null,null,null,null,null,null,null,null,null,null,null,null,1,1]
["F2-NAPHTHALENE","F2","Water","NEPM 2013 Table 1A(4) Res HSL A & B GW for Vapour Intrusion, Clay",null,null,"mg/L","NL",null,"To obtain F2 subtract napthalene from the >C10 - C16 fraction.",null,8]
["108-88-3","Toluene","Water","NEPM 2013 Table 1A(4) Rec HSL C GW for Vapour Intrusion, Sand",null,null,"mg/L","NL",null,null,null,2,4]
["100-41-4","Ethylbenzene","Water","NEPM 2013 Table 1A(4) Rec HSL C GW for Vapour Intrusion, Sand",null,null,"mg/L","NL",null,null,null,2,4]
["1330-20-7","Xylenes","Water","NEPM 2013 Table 1A(4) Rec HSL C GW for Vapour Intrusion, Sand",null,null,"mg/L","NL",null,null,null,2,4]
["91-20-3","Naphthalene","Water","NEPM 2013 Table 1A(4) Rec HSL C GW for Vapour Intrusion, Sand",null,null,"mg/L","NL",null,null,null,2,4]
["71-43-2","Benzene","Water","NEPM 2013 Table 1A(4) Rec HSL C GW for Vapour Intrusion, Sand",null,null,"mg/L","NL",null,null,null,2,4]
["F1-BTEX","F1","Water","NEPM 2013 Table 1A(4) Rec HSL C GW for Vapour Intrusion, Sand",null,null,"mg/L","NL",null,null,null,2,4]
["F2-NAPHTHALENE","F2","Water","NEPM 2013 Table 1A(4) Rec HSL C GW for Vapour Intrusion, Sand",null,null,"mg/L","NL",null,null,null,2,4]
["108-88-3","Toluene","Water","NEPM 2013 Table 1A(4) Rec HSL C GW for Vapour Intrusion, Sand",null,null,"mg/L","NL",null,null,null,4,8]
["100-41-4","Ethylbenzene","Water","NEPM 2013 Table 1A(4) Rec HSL C GW for Vapour Intrusion, Sand",null,null,"mg/L","NL",null,null,null,4,8]
["1330-20-7","Xylenes","Water","NEPM 2013 Table 1A(4) Rec HSL C GW for Vapour Intrusion, Sand",null,null,"mg/L","NL",null,null,null,4,8]
["91-20-3","Naphthalene","Water","NEPM 2013 Table 1A(4) Rec HSL C GW for Vapour Intrusion, Sand",null,null,"mg/L","NL",null,null,null,4,8]
["71-43-2","Benzene","Water","NEPM 2013 Table 1A(4) Rec HSL C GW for Vapour Intrusion, Sand",null,null,"mg/L","NL",null,null,null,4,8]
["F1-BTEX","F1","Water","NEPM 2013 Table 1A(4) Rec HSL C GW for Vapour Intrusion, Sand",null,null,"mg/L","NL",null,null,null,4,8]
["F2-NAPHTHALENE","F2","Water","NEPM 2013 Table 1A(4) Rec HSL C GW for Vapour Intrusion, Sand",null,null,"mg/L","NL",null,null,null,4,8]
["108-88-3","Toluene","Water","NEPM 2013 Table 1A(4) Rec HSL C GW for Vapour Intrusion, Sand",null,null,"mg/L","NL",null,null,null,8]
["100-41-4","Ethylbenzene","Water","NEPM 2013 Table 1A(4) Rec HSL C GW for Vapour Intrusion, Sand",null,null,"mg/L","NL",null,null,null,8]
["1330-20-7","Xylenes","Water","NEPM 2013 Table 1A(4) Rec HSL C GW for Vapour Intrusion, Sand",null,null,"mg/L","NL",null,null,null,8]
["91-20-3","Naphthalene","Water","NEPM 2013 Table 1A(4) Rec HSL C GW for Vapour Intrusion, Sand",null,null,"mg/L","NL",null,null,null,8]
["71-43-2","Benzene","Water","NEPM 2013 Table 1A(4) Rec HSL C GW for Vapour Intrusion, Sand",null,null,"mg/L","NL",null,null,null,8]
["F1-BTEX","F1","Water","NEPM 2013 Table 1A(4) Rec HSL C GW for Vapour Intrusion, Sand",null,null,"mg/L","NL",null,null,null,8]
["F2-NAPHTHALENE","F2","Water","NEPM 2013 Table 1A(4) Rec HSL C GW for Vapour Intrusion, Sand",null,null,"mg/L","NL",null,null,null,8]
["108-88-3","Toluene","Water","NEPM 2013 Table 1A(4) Rec HSL C GW for Vapour Intrusion, Silt",null,null,"mg/L","NL",null,null,null,2,4]
["100-41-4","Ethylbenzene","Water","NEPM 2013 Table 1A(4) Rec HSL C GW for Vapour Intrusion, Silt",null,null,"mg/L","NL",null,null,null,2,4]
["1330-20-7","Xylenes","Water","NEPM 2013 Table 1A(4) Rec HSL C GW for Vapour Intrusion, Silt",null,null,"mg/L","NL",null,null,null,2,4]
["91-20-3","Naphthalene","Water","NEPM 2013 Table 1A(4) Rec HSL C GW for Vapour Intrusion, Silt",null,null,"mg/L","NL",null,null,null,2,4]
["71-43-2","Benzene","Water","NEPM 2013 Table 1A(4) Rec HSL C GW for Vapour Intrusion, Silt",null,null,"mg/L","NL",null,null,null,2,4]
["F1-BTEX","F1","Water","NEPM 2013 Table 1A(4) Rec HSL C GW for Vapour Intrusion, Silt",null,null,"mg/L","NL",null,null,null,2,4]
["F2-NAPHTHALENE","F2","Water","NEPM 2013 Table 1A(4) Rec HSL C GW for Vapour Intrusion, Silt",null,null,"mg/L","NL",null,null,null,2,4]
["108-88-3","Toluene","Water","NEPM 2013 Table 1A(4) Rec HSL C GW for Vapour Intrusion, Silt",null,null,"mg/L","NL",null,null,null,4,8]
["100-41-4","Ethylbenzene","Water","NEPM 2013 Table 1A(4) Rec HSL C GW for Vapour Intrusion, Silt",null,null,"mg/L","NL",null,null,null,4,8]
["1330-20-7","Xylenes","Water","NEPM 2013 Table 1A(4) Rec HSL C GW for Vapour Intrusion, Silt",null,null,"mg/L","NL",null,null,null,4,8]
["91-20-3","Naphthalene","Water","NEPM 2013 Table 1A(4) Rec HSL C GW for Vapour Intrusion, Silt",null,null,"mg/L","NL",null,null,null,4,8]
["71-43-2","Benzene","Water","NEPM 2013 Table 1A(4) Rec HSL C GW for Vapour Intrusion, Silt",null,null,"mg/L","NL",null,null,null,4,8]
["F1-BTEX","F1","Water","NEPM 2013 Table 1A(4) Rec HSL C GW for Vapour Intrusion, Silt",null,null,"mg/L","NL",null,null,null,4,8]
["F2-NAPHTHALENE","F2","Water","NEPM 2013 Table 1A(4) Rec HSL C GW for Vapour Intrusion, Silt",null,null,"mg/L","NL",null,null,null,4,8]
["108-88-3","Toluene","Water","NEPM 2013 Table 1A(4) Rec HSL C GW for Vapour Intrusion, Silt",null,null,"mg/L","NL",null,null,null,8]
["100-41-4","Ethylbenzene","Water","NEPM 2013 Table 1A(4) Rec HSL C GW for Vapour Intrusion, Silt",null,null,"mg/L","NL",null,null,null,8]
["1330-20-7","Xylenes","Water","NEPM 2013 Table 1A(4) Rec HSL C GW for Vapour Intrusion, Silt",null,null,"mg/L","NL",null,null,null,8]
["91-20-3","Naphthalene","Water","NEPM 2013 Table 1A(4) Rec HSL C GW for Vapour Intrusion, Silt",null,null,"mg/L","NL",null,null,null,8]
["71-43-2","Benzene","Water","NEPM 2013 Table 1A(4) Rec HSL C GW for Vapour Intrusion, Silt",null,null,"mg/L","NL",null,null,null,8]
["F1-BTEX","F1","Water","NEPM 2013 Table 1A(4) Rec HSL C GW for Vapour Intrusion, Silt",null,null,"mg/L","NL",null,null,null,8]
["F2-NAPHTHALENE","F2","Water","NEPM 2013 Table 1A(4) Rec HSL C GW for Vapour Intrusion, Silt",null,null,"mg/L","NL",null,null,null,8]
["108-88-3","Toluene","Water","NEPM 2013 Table 1A(4) Rec HSL C GW for Vapour Intrusion, Clay",null,null,"mg/L","NL",null,null,null,2,4]
["100-41-4","Ethylbenzene","Water","NEPM 2013 Table 1A(4) Rec HSL C GW for Vapour Intrusion, Clay",null,null,"mg/L","NL",null,null,null,2,4]
["1330-20-7","Xylenes","Water","NEPM 2013 Table 1A(4) Rec HSL C GW for Vapour Intrusion, Clay",null,null,"mg/L","NL",null,null,null,2,4]
["91-20-3","Naphthalene","Water","NEPM 2013 Table 1A(4) Rec HSL C GW for Vapour Intrusion, Clay",null,null,"mg/L","NL",null,null,null,2,4]
["71-43-2","Benzene","Water","NEPM 2013 Table 1A(4) Rec HSL C GW for Vapour Intrusion, Clay",null,null,"mg/L","NL",null,null,null,2,4]
["F1-BTEX","F1","Water","NEPM 2013 Table 1A(4) Rec HSL C GW for Vapour Intrusion, Clay",null,null,"mg/L","NL",null,null,null,2,4]
["F2-NAPHTHALENE","F2","Water","NEPM 2013 Table 1A(4) Rec HSL C GW for Vapour Intrusion, Clay",null,null,"mg/L","NL",null,null,null,2,4]
["108-88-3","Toluene","Water","NEPM 2013 Table 1A(4) Rec HSL C GW for Vapour Intrusion, Clay",null,null,"mg/L","NL",null,null,null,4,8]
["100-41-4","Ethylbenzene","Water","NEPM 2013 Table 1A(4) Rec HSL C GW for Vapour Intrusion, Clay",null,null,"mg/L","NL",null,null,null,4,8]
["1330-20-7","Xylenes","Water","NEPM 2013 Table 1A(4) Rec HSL C GW for Vapour Intrusion, Clay",null,null,"mg/L","NL",null,null,null,4,8]
["91-20-3","Naphthalene","Water","NEPM 2013 Table 1A(4) Rec HSL C GW for Vapour Intrusion, Clay",null,null,"mg/L","NL",null,null,null,4,8]
["71-43-2","Benzene","Water","NEPM 2013 Table 1A(4) Rec HSL C GW for Vapour Intrusion, Clay",null,null,"mg/L","NL",null,null,null,4,8]
["F1-BTEX","F1","Water","NEPM 2013 Table 1A(4) Rec HSL C GW for Vapour Intrusion, Clay",null,null,"mg/L","NL",null,null,null,4,8]
["F2-NAPHTHALENE","F2","Water","NEPM 2013 Table 1A(4) Rec HSL C GW for Vapour Intrusion, Clay",null,null,"mg/L","NL",null,null,null,4,8]
["108-88-3","Toluene","Water","NEPM 2013 Table 1A(4) Rec HSL C GW for Vapour Intrusion, Clay",null,null,"mg/L","NL",null,null,null,8]
["100-41-4","Ethylbenzene","Water","NEPM 2013 Table 1A(4) Rec HSL C GW for Vapour Intrusion, Clay",null,null,"mg/L","NL",null,null,null,8]
["1330-20-7","Xylenes","Water","NEPM 2013 Table 1A(4) Rec HSL C GW for Vapour Intrusion, Clay",null,null,"mg/L","NL",null,null,null,8]
["91-20-3","Naphthalene","Water","NEPM 2013 Table 1A(4) Rec HSL C GW for Vapour Intrusion, Clay",null,null,"mg/L","NL",null,null,null,8]
["71-43-2","Benzene","Water","NEPM 2013 Table 1A(4) Rec HSL C GW for Vapour Intrusion, Clay",null,null,"mg/L","NL",null,null,null,8]
["F1-BTEX","F1","Water","NEPM 2013 Table 1A(4) Rec HSL C GW for Vapour Intrusion, Clay",null,null,"mg/L","NL",null,null,null,8]
["F2-NAPHTHALENE","F2","Water","NEPM 2013 Table 1A(4) Rec HSL C GW for Vapour Intrusion, Clay",null,null,"mg/L","NL",null,null,null,8]
["108-88-3","Toluene","Water","NEPM 2013 Table 1A(4) Comm/Ind HSL D GW for Vapour Intrusion, Sand",null,null,"mg/L","NL",null,null,null,2,4]
["100-41-4","Ethylbenzene","Water","NEPM 2013 Table 1A(4) Comm/Ind HSL D GW for Vapour Intrusion, Sand",null,null,"mg/L","NL",null,null,null,2,4]
["1330-20-7","Xylenes","Water","NEPM 2013 Table 1A(4) Comm/Ind HSL D GW for Vapour Intrusion, Sand",null,null,"mg/L","NL",null,null,null,2,4,null,null,null,null,null,null,null,null,null,null,null,null,null,1,1]
["91-20-3","Naphthalene","Water","NEPM 2013 Table 1A(4) Comm/Ind HSL D GW for Vapour Intrusion, Sand",null,null,"mg/L","NL",null,null,null,2,4]
["71-43-2","Benzene","Water","NEPM 2013 Table 1A(4) Comm/Ind HSL D GW for Vapour Intrusion, Sand",5,null,"mg/L",null,null,null,null,2,4,null,null,null,null,null,null,null,null,null,null,null,null,null,1,1]
["F1-BTEX","F1","Water","NEPM 2013 Table 1A(4) Comm/Ind HSL D GW for Vapour Intrusion, Sand",6,null,"mg/L",null,null,"To obtain F1 subtract the sum of BTEX concentrations from the C6  - C10 fraction.",null,2,4,null,null,null,null,null,null,null,null,null,null,null,null,null,1,1]
["F2-NAPHTHALENE","F2","Water","NEPM 2013 Table 1A(4) Comm/Ind HSL D GW for Vapour Intrusion, Sand",null,null,"mg/L","NL",null,"To obtain F2 subtract napthalene from the >C10 - C16 fraction.",null,2,4]
["108-88-3","Toluene","Water","NEPM 2013 Table 1A(4) Comm/Ind HSL D GW for Vapour Intrusion, Sand",null,null,"mg/L","NL",null,null,null,4,8]
["100-41-4","Ethylbenzene","Water","NEPM 2013 Table 1A(4) Comm/Ind HSL D GW for Vapour Intrusion, Sand",null,null,"mg/L","NL",null,null,null,4,8]
["1330-20-7","Xylenes","Water","NEPM 2013 Table 1A(4) Comm/Ind HSL D GW for Vapour Intrusion, Sand",null,null,"mg/L","NL",null,null,null,4,8]
["91-20-3","Naphthalene","Water","NEPM 2013 Table 1A(4) Comm/Ind HSL D GW for Vapour Intrusion, Sand",null,null,"mg/L","NL",null,null,null,4,8]
["71-43-2","Benzene","Water","NEPM 2013 Table 1A(4) Comm/Ind HSL D GW for Vapour Intrusion, Sand",5,null,"mg/L",null,null,null,null,4,8,null,null,null,null,null,null,null,null,null,null,null,null,null,1,1]
["F1-BTEX","F1","Water","NEPM 2013 Table 1A(4) Comm/Ind HSL D GW for Vapour Intrusion, Sand",6,null,"mg/L",null,null,"To obtain F1 subtract the sum of BTEX concentrations from the C6  - C10 fraction.",null,4,8,null,null,null,null,null,null,null,null,null,null,null,null,null,1,1]
["F2-NAPHTHALENE","F2","Water","NEPM 2013 Table 1A(4) Comm/Ind HSL D GW for Vapour Intrusion, Sand",null,null,"mg/L","NL",null,"To obtain F2 subtract napthalene from the >C10 - C16 fraction.",null,4,8]
["108-88-3","Toluene","Water","NEPM 2013 Table 1A(4) Comm/Ind HSL D GW for Vapour Intrusion, Sand",null,null,"mg/L","NL",null,null,null,8]
["100-41-4","Ethylbenzene","Water","NEPM 2013 Table 1A(4) Comm/Ind HSL D GW for Vapour Intrusion, Sand",null,null,"mg/L","NL",null,null,null,8]
["1330-20-7","Xylenes","Water","NEPM 2013 Table 1A(4) Comm/Ind HSL D GW for Vapour Intrusion, Sand",null,null,"mg/L","NL",null,null,null,8]
["91-20-3","Naphthalene","Water","NEPM 2013 Table 1A(4) Comm/Ind HSL D GW for Vapour Intrusion, Sand",null,null,"mg/L","NL",null,null,null,8]
["71-43-2","Benzene","Water","NEPM 2013 Table 1A(4) Comm/Ind HSL D GW for Vapour Intrusion, Sand",5,null,"mg/L",null,null,null,null,8,null,null,null,null,null,null,null,null,null,null,null,null,null,null,1,1]
["F1-BTEX","F1","Water","NEPM 2013 Table 1A(4) Comm/Ind HSL D GW for Vapour Intrusion, Sand",7,null,"mg/L",null,null,"To obtain F1 subtract the sum of BTEX concentrations from the C6  - C10 fraction.",null,8,null,null,null,null,null,null,null,null,null,null,null,null,null,null,1,1]
["F2-NAPHTHALENE","F2","Water","NEPM 2013 Table 1A(4) Comm/Ind HSL D GW for Vapour Intrusion, Sand",null,null,"mg/L","NL",null,"To obtain F2 subtract napthalene from the >C10 - C16 fraction.",null,8]
["108-88-3","Toluene","Water","NEPM 2013 Table 1A(4) Comm/Ind HSL D GW for Vapour Intrusion, Silt",null,null,"mg/L","NL",null,null,null,2,4]
["100-41-4","Ethylbenzene","Water","NEPM 2013 Table 1A(4) Comm/Ind HSL D GW for Vapour Intrusion, Silt",null,null,"mg/L","NL",null,null,null,2,4]
["1330-20-7","Xylenes","Water","NEPM 2013 Table 1A(4) Comm/Ind HSL D GW for Vapour Intrusion, Silt",null,null,"mg/L","NL",null,null,null,2,4]
["91-20-3","Naphthalene","Water","NEPM 2013 Table 1A(4) Comm/Ind HSL D GW for Vapour Intrusion, Silt",null,null,"mg/L","NL",null,null,null,2,4]
["71-43-2","Benzene","Water","NEPM 2013 Table 1A(4) Comm/Ind HSL D GW for Vapour Intrusion, Silt",30,null,"mg/L",null,null,null,null,2,4,null,null,null,null,null,null,null,null,null,null,null,null,null,1,1]
["F1-BTEX","F1","Water","NEPM 2013 Table 1A(4) Comm/Ind HSL D GW for Vapour Intrusion, Silt",null,null,"mg/L","NL",null,"To obtain F1 subtract the sum of BTEX concentrations from the C6  - C10 fraction.",null,2,4]
["F2-NAPHTHALENE","F2","Water","NEPM 2013 Table 1A(4) Comm/Ind HSL D GW for Vapour Intrusion, Silt",null,null,"mg/L","NL",null,"To obtain F2 subtract napthalene from the >C10 - C16 fraction.",null,2,4]
["108-88-3","Toluene","Water","NEPM 2013 Table 1A(4) Comm/Ind HSL D GW for Vapour Intrusion, Silt",null,null,"mg/L","NL",null,null,null,4,8]
["100-41-4","Ethylbenzene","Water","NEPM 2013 Table 1A(4) Comm/Ind HSL D GW for Vapour Intrusion, Silt",null,null,"mg/L","NL",null,null,null,4,8]
["1330-20-7","Xylenes","Water","NEPM 2013 Table 1A(4) Comm/Ind HSL D GW for Vapour Intrusion, Silt",null,null,"mg/L","NL",null,null,null,4,8]
["91-20-3","Naphthalene","Water","NEPM 2013 Table 1A(4) Comm/Ind HSL D GW for Vapour Intrusion, Silt",null,null,"mg/L","NL",null,null,null,4,8]
["71-43-2","Benzene","Water","NEPM 2013 Table 1A(4) Comm/Ind HSL D GW for Vapour Intrusion, Silt",30,null,"mg/L",null,null,null,null,4,8,null,null,null,null,null,null,null,null,null,null,null,null,null,1,1]
["F1-BTEX","F1","Water","NEPM 2013 Table 1A(4) Comm/Ind HSL D GW for Vapour Intrusion, Silt",null,null,"mg/L","NL",null,"To obtain F1 subtract the sum of BTEX concentrations from the C6  - C10 fraction.",null,4,8,null,null,null,null,null,null,null,null,null,null,null,null,null,1,1]
["F2-NAPHTHALENE","F2","Water","NEPM 2013 Table 1A(4) Comm/Ind HSL D GW for Vapour Intrusion, Silt",null,null,"mg/L","NL",null,"To obtain F2 subtract napthalene from the >C10 - C16 fraction.",null,4,8]
["108-88-3","Toluene","Water","NEPM 2013 Table 1A(4) Comm/Ind HSL D GW for Vapour Intrusion, Silt",null,null,"mg/L","NL",null,null,null,8]
["100-41-4","Ethylbenzene","Water","NEPM 2013 Table 1A(4) Comm/Ind HSL D GW for Vapour Intrusion, Silt",null,null,"mg/L","NL",null,null,null,8]
["1330-20-7","Xylenes","Water","NEPM 2013 Table 1A(4) Comm/Ind HSL D GW for Vapour Intrusion, Silt",null,null,"mg/L","NL",null,null,null,8]
["91-20-3","Naphthalene","Water","NEPM 2013 Table 1A(4) Comm/Ind HSL D GW for Vapour Intrusion, Silt",null,null,"mg/L","NL",null,null,null,8]
["71-43-2","Benzene","Water","NEPM 2013 Table 1A(4) Comm/Ind HSL D GW for Vapour Intrusion, Silt",30,null,"mg/L",null,null,null,null,8,null,null,null,null,null,null,null,null,null,null,null,null,null,null,1,1]
["F1-BTEX","F1","Water","NEPM 2013 Table 1A(4) Comm/Ind HSL D GW for Vapour Intrusion, Silt",null,null,"mg/L","NL",null,"To obtain F1 subtract the sum of BTEX concentrations from the C6  - C10 fraction.",null,8,null,null,null,null,null,null,null,null,null,null,null,null,null,null,1,1]
["F2-NAPHTHALENE","F2","Water","NEPM 2013 Table 1A(4) Comm/Ind HSL D GW for Vapour Intrusion, Silt",null,null,"mg/L","NL",null,"To obtain F2 subtract napthalene from the >C10 - C16 fraction.",null,8]
["108-88-3","Toluene","Water","NEPM 2013 Table 1A(4) Comm/Ind HSL D GW for Vapour Intrusion, Clay",null,null,"mg/L","NL",null,null,null,2,4]
["100-41-4","Ethylbenzene","Water","NEPM 2013 Table 1A(4) Comm/Ind HSL D GW for Vapour Intrusion, Clay",null,null,"mg/L","NL",null,null,null,2,4]
["1330-20-7","Xylenes","Water","NEPM 2013 Table 1A(4) Comm/Ind HSL D GW for Vapour Intrusion, Clay",null,null,"mg/L","NL",null,null,null,2,4]
["91-20-3","Naphthalene","Water","NEPM 2013 Table 1A(4) Comm/Ind HSL D GW for Vapour Intrusion, Clay",null,null,"mg/L","NL",null,null,null,2,4]
["71-43-2","Benzene","Water","NEPM 2013 Table 1A(4) Comm/Ind HSL D GW for Vapour Intrusion, Clay",30,null,"mg/L",null,null,null,null,2,4,null,null,null,null,null,null,null,null,null,null,null,null,null,1,1]
["F1-BTEX","F1","Water","NEPM 2013 Table 1A(4) Comm/Ind HSL D GW for Vapour Intrusion, Clay",null,null,"mg/L","NL",null,"To obtain F1 subtract the sum of BTEX concentrations from the C6  - C10 fraction.",null,2,4,null,null,null,null,null,null,null,null,null,null,null,null,null,1,1]
["F2-NAPHTHALENE","F2","Water","NEPM 2013 Table 1A(4) Comm/Ind HSL D GW for Vapour Intrusion, Clay",null,null,"mg/L","NL",null,"To obtain F2 subtract napthalene from the >C10 - C16 fraction.",null,2,4]
["108-88-3","Toluene","Water","NEPM 2013 Table 1A(4) Comm/Ind HSL D GW for Vapour Intrusion, Clay",null,null,"mg/L","NL",null,null,null,4,8]
["100-41-4","Ethylbenzene","Water","NEPM 2013 Table 1A(4) Comm/Ind HSL D GW for Vapour Intrusion, Clay",null,null,"mg/L","NL",null,null,null,4,8]
["1330-20-7","Xylenes","Water","NEPM 2013 Table 1A(4) Comm/Ind HSL D GW for Vapour Intrusion, Clay",null,null,"mg/L","NL",null,null,null,4,8]
["91-20-3","Naphthalene","Water","NEPM 2013 Table 1A(4) Comm/Ind HSL D GW for Vapour Intrusion, Clay",null,null,"mg/L","NL",null,null,null,4,8]
["71-43-2","Benzene","Water","NEPM 2013 Table 1A(4) Comm/Ind HSL D GW for Vapour Intrusion, Clay",30,null,"mg/L",null,null,null,null,4,8,null,null,null,null,null,null,null,null,null,null,null,null,null,1,1]
["F1-BTEX","F1","Water","NEPM 2013 Table 1A(4) Comm/Ind HSL D GW for Vapour Intrusion, Clay",null,null,"mg/L","NL",null,"To obtain F1 subtract the sum of BTEX concentrations from the C6  - C10 fraction.",null,4,8]
["F2-NAPHTHALENE","F2","Water","NEPM 2013 Table 1A(4) Comm/Ind HSL D GW for Vapour Intrusion, Clay",null,null,"mg/L","NL",null,"To obtain F2 subtract napthalene from the >C10 - C16 fraction.",null,4,8]
["108-88-3","Toluene","Water","NEPM 2013 Table 1A(4) Comm/Ind HSL D GW for Vapour Intrusion, Clay",null,null,"mg/L","NL",null,null,null,8]
["100-41-4","Ethylbenzene","Water","NEPM 2013 Table 1A(4) Comm/Ind HSL D GW for Vapour Intrusion, Clay",null,null,"mg/L","NL",null,null,null,8]
["1330-20-7","Xylenes","Water","NEPM 2013 Table 1A(4) Comm/Ind HSL D GW for Vapour Intrusion, Clay",null,null,"mg/L","NL",null,null,null,8]
["91-20-3","Naphthalene","Water","NEPM 2013 Table 1A(4) Comm/Ind HSL D GW for Vapour Intrusion, Clay",null,null,"mg/L","NL",null,null,null,8]
["71-43-2","Benzene","Water","NEPM 2013 Table 1A(4) Comm/Ind HSL D GW for Vapour Intrusion, Clay",35,null,"mg/L",null,null,null,null,8,null,null,null,null,null,null,null,null,null,null,null,null,null,null,1,1]
["F1-BTEX","F1","Water","NEPM 2013 Table 1A(4) Comm/Ind HSL D GW for Vapour Intrusion, Clay",null,null,"mg/L","NL",null,"To obtain F1 subtract the sum of BTEX concentrations from the C6  - C10 fraction.",null,8,null,null,null,null,null,null,null,null,null,null,null,null,null,null,1,1]
["F2-NAPHTHALENE","F2","Water","NEPM 2013 Table 1A(4) Comm/Ind HSL D GW for Vapour Intrusion, Clay",null,null,"mg/L","NL",null,"To obtain F2 subtract napthalene from the >C10 - C16 fraction.",null,8]

{"sheet":"1A4 GW HSLs for VapInt w CM","index":10,"n_rows":193,"n_cols":28,"rows_kept":193,"cut":false,"hidden":false,"merged":[]}
["Project:","Cardno Lane Piper 213152Historical Soil",null,"Table:","[zRef_Environmental_Standards]",null,"Style:",null,null,"Template",null,null,null,"NoLocs"]
["Path:","C:\\Users\\Tom W\\Documents\\Clients\\Cardno Lane Piper\\213152Historical Soil\\213152Historical Soil.mdb",null,"Parent Tables:","zRef_Matrix_Types,zRef_Chemistry_Lookup,Chem_Group_Or_Method"]
[]
["ChemCode","ChemName","MatrixType","ActionLevelSource","ActionLevel","ActionLevel_Min","Units","ActionLevel_Prefix","ActionLevel_Suffix","Comments","Conditional_Matrix_Type","Conditional_Depth_From","Conditional_Depth_To","Leached","Conditional_ChemCode1","Conditional_ChemCode1_Units","Conditional_ChemCode1_Min_Value_Prefix","Conditional_ChemCode1_Value_Min","Conditional_ChemCode1_Max_Value_Prefix","Conditional_ChemCode1_Value_Max","Conditional_ChemCode2","Conditional_ChemCode2_Units","Conditional_ChemCode2_Min_Value_Prefix","Conditional_ChemCode2_Value_Min","Conditional_ChemCode2_Max_Value_Prefix","Conditional_ChemCode2_Value_Max","Applies_To_Total_Result","Applies_To_Filtered_Result"]
["108-88-3","Toluene","Water","NEPM 2013 Table 1A(4) Res HSL A & B GW for Vapour Intrusion",null,null,"mg/L","NL",null,null,"Sand",2,4,null,null,null,null,null,null,null,null,null,null,null,null,null,1,1]
["100-41-4","Ethylbenzene","Water","NEPM 2013 Table 1A(4) Res HSL A & B GW for Vapour Intrusion",null,null,"mg/L","NL",null,null,"Sand",2,4,null,null,null,null,null,null,null,null,null,null,null,null,null,1,1]
["1330-20-7","Xylenes","Water","NEPM 2013 Table 1A(4) Res HSL A & B GW for Vapour Intrusion",null,null,"mg/L","NL",null,null,"Sand",2,4,null,null,null,null,null,null,null,null,null,null,null,null,null,1,1]
["91-20-3","Naphthalene","Water","NEPM 2013 Table 1A(4) Res HSL A & B GW for Vapour Intrusion",null,null,"mg/L","NL",null,null,"Sand",2,4,null,null,null,null,null,null,null,null,null,null,null,null,null,1,1]
["71-43-2","Benzene","Water","NEPM 2013 Table 1A(4) Res HSL A & B GW for Vapour Intrusion",0.8,null,"mg/L",null,null,null,"Sand",2,4,null,null,null,null,null,null,null,null,null,null,null,null,null,1,1]
["F1-BTEX","F1","Water","NEPM 2013 Table 1A(4) Res HSL A & B GW for Vapour Intrusion",1,null,"mg/L",null,null,"To obtain F1 subtract the sum of BTEX concentrations from the C6  - C10 fraction.","Sand",2,4,null,null,null,null,null,null,null,null,null,null,null,null,null,1,1]
["F2-NAPHTHALENE","F2","Water","NEPM 2013 Table 1A(4) Res HSL A & B GW for Vapour Intrusion",1,null,"mg/L",null,null,"To obtain F2 subtract napthalene from the >C10 - C16 fraction.","Sand",2,4,null,null,null,null,null,null,null,null,null,null,null,null,null,1,1]
["108-88-3","Toluene","Water","NEPM 2013 Table 1A(4) Res HSL A & B GW for Vapour Intrusion",null,null,"mg/L","NL",null,null,"Sand",4,8,null,null,null,null,null,null,null,null,null,null,null,null,null,1,1]
["100-41-4","Ethylbenzene","Water","NEPM 2013 Table 1A(4) Res HSL A & B GW for Vapour Intrusion",null,null,"mg/L","NL",null,null,"Sand",4,8]
["1330-20-7","Xylenes","Water","NEPM 2013 Table 1A(4) Res HSL A & B GW for Vapour Intrusion",null,null,"mg/L","NL",null,null,"Sand",4,8,null,null,null,null,null,null,null,null,null,null,null,null,null,1,1]
["91-20-3","Naphthalene","Water","NEPM 2013 Table 1A(4) Res HSL A & B GW for Vapour Intrusion",null,null,"mg/L","NL",null,null,"Sand",4,8]
["71-43-2","Benzene","Water","NEPM 2013 Table 1A(4) Res HSL A & B GW for Vapour Intrusion",0.8,null,"mg/L",null,null,null,"Sand",4,8,null,null,null,null,null,null,null,null,null,null,null,null,null,1,1]
["F1-BTEX","F1","Water","NEPM 2013 Table 1A(4) Res HSL A & B GW for Vapour Intrusion",1,null,"mg/L",null,null,"To obtain F1 subtract the sum of BTEX concentrations from the C6  - C10 fraction.","Sand",4,8,null,null,null,null,null,null,null,null,null,null,null,null,null,1,1]
["F2-NAPHTHALENE","F2","Water","NEPM 2013 Table 1A(4) Res HSL A & B GW for Vapour Intrusion",1,null,"mg/L",null,null,"To obtain F2 subtract napthalene from the >C10 - C16 fraction.","Sand",4,8,null,null,null,null,null,null,null,null,null,null,null,null,null,1,1]
["108-88-3","Toluene","Water","NEPM 2013 Table 1A(4) Res HSL A & B GW for Vapour Intrusion",null,null,"mg/L","NL",null,null,"Sand",8,null,null,null,null,null,null,null,null,null,null,null,null,null,null,1,1]
["100-41-4","Ethylbenzene","Water","NEPM 2013 Table 1A(4) Res HSL A & B GW for Vapour Intrusion",null,null,"mg/L","NL",null,null,"Sand",8]
["1330-20-7","Xylenes","Water","NEPM 2013 Table 1A(4) Res HSL A & B GW for Vapour Intrusion",null,null,"mg/L","NL",null,null,"Sand",8,null,null,null,null,null,null,null,null,null,null,null,null,null,null,1,1]
["91-20-3","Naphthalene","Water","NEPM 2013 Table 1A(4) Res HSL A & B GW for Vapour Intrusion",null,null,"mg/L","NL",null,null,"Sand",8]
["71-43-2","Benzene","Water","NEPM 2013 Table 1A(4) Res HSL A & B GW for Vapour Intrusion",0.9,null,"mg/L",null,null,null,"Sand",8,null,null,null,null,null,null,null,null,null,null,null,null,null,null,1,1]
["F1-BTEX","F1","Water","NEPM 2013 Table 1A(4) Res HSL A & B GW for Vapour Intrusion",1,null,"mg/L",null,null,"To obtain F1 subtract the sum of BTEX concentrations from the C6  - C10 fraction.","Sand",8,null,null,null,null,null,null,null,null,null,null,null,null,null,null,1,1]
["F2-NAPHTHALENE","F2","Water","NEPM 2013 Table 1A(4) Res HSL A & B GW for Vapour Intrusion",1,null,"mg/L",null,null,"To obtain F2 subtract napthalene from the >C10 - C16 fraction.","Sand",8,null,null,null,null,null,null,null,null,null,null,null,null,null,null,1,1]
["108-88-3","Toluene","Water","NEPM 2013 Table 1A(4) Res HSL A & B GW for Vapour Intrusion",null,null,"mg/L","NL",null,null,"Silt",2,4,null,null,null,null,null,null,null,null,null,null,null,null,null,1,1]
["100-41-4","Ethylbenzene","Water","NEPM 2013 Table 1A(4) Res HSL A & B GW for Vapour Intrusion",null,null,"mg/L","NL",null,null,"Silt",2,4]
["1330-20-7","Xylenes","Water","NEPM 2013 Table 1A(4) Res HSL A & B GW for Vapour Intrusion",null,null,"mg/L","NL",null,null,"Silt",2,4,null,null,null,null,null,null,null,null,null,null,null,null,null,1,1]
["91-20-3","Naphthalene","Water","NEPM 2013 Table 1A(4) Res HSL A & B GW for Vapour Intrusion",null,null,"mg/L","NL",null,null,"Silt",2,4,null,null,null,null,null,null,null,null,null,null,null,null,null,1,1]
["71-43-2","Benzene","Water","NEPM 2013 Table 1A(4) Res HSL A & B GW for Vapour Intrusion",4,null,"mg/L",null,null,null,"Silt",2,4,null,null,null,null,null,null,null,null,null,null,null,null,null,1,1]
["F1-BTEX","F1","Water","NEPM 2013 Table 1A(4) Res HSL A & B GW for Vapour Intrusion",6,null,"mg/L",null,null,"To obtain F1 subtract the sum of BTEX concentrations from the C6  - C10 fraction.","Silt",2,4,null,null,null,null,null,null,null,null,null,null,null,null,null,1,1]
["F2-NAPHTHALENE","F2","Water","NEPM 2013 Table 1A(4) Res HSL A & B GW for Vapour Intrusion",null,null,"mg/L","NL",null,"To obtain F2 subtract napthalene from the >C10 - C16 fraction.","Silt",2,4,null,null,null,null,null,null,null,null,null,null,null,null,null,1,1]
["108-88-3","Toluene","Water","NEPM 2013 Table 1A(4) Res HSL A & B GW for Vapour Intrusion",null,null,"mg/L","NL",null,null,"Silt",4,8]
["100-41-4","Ethylbenzene","Water","NEPM 2013 Table 1A(4) Res HSL A & B GW for Vapour Intrusion",null,null,"mg/L","NL",null,null,"Silt",4,8]
["1330-20-7","Xylenes","Water","NEPM 2013 Table 1A(4) Res HSL A & B GW for Vapour Intrusion",null,null,"mg/L","NL",null,null,"Silt",4,8,null,null,null,null,null,null,null,null,null,null,null,null,null,1,1]
["91-20-3","Naphthalene","Water","NEPM 2013 Table 1A(4) Res HSL A & B GW for Vapour Intrusion",null,null,"mg/L","NL",null,null,"Silt",4,8]
["71-43-2","Benzene","Water","NEPM 2013 Table 1A(4) Res HSL A & B GW for Vapour Intrusion",5,null,"mg/L",null,null,null,"Silt",4,8,null,null,null,null,null,null,null,null,null,null,null,null,null,1,1]
["F1-BTEX","F1","Water","NEPM 2013 Table 1A(4) Res HSL A & B GW for Vapour Intrusion",6,null,"mg/L",null,null,"To obtain F1 subtract the sum of BTEX concentrations from the C6  - C10 fraction.","Silt",4,8,null,null,null,null,null,null,null,null,null,null,null,null,null,1,1]
["F2-NAPHTHALENE","F2","Water","NEPM 2013 Table 1A(4) Res HSL A & B GW for Vapour Intrusion",null,null,"mg/L","NL",null,"To obtain F2 subtract napthalene from the >C10 - C16 fraction.","Silt",4,8]
["108-88-3","Toluene","Water","NEPM 2013 Table 1A(4) Res HSL A & B GW for Vapour Intrusion",null,null,"mg/L","NL",null,null,"Silt",8]
["100-41-4","Ethylbenzene","Water","NEPM 2013 Table 1A(4) Res HSL A & B GW for Vapour Intrusion",null,null,"mg/L","NL",null,null,"Silt",8]
["1330-20-7","Xylenes","Water","NEPM 2013 Table 1A(4) Res HSL A & B GW for Vapour Intrusion",null,null,"mg/L","NL",null,null,"Silt",8]
["91-20-3","Naphthalene","Water","NEPM 2013 Table 1A(4) Res HSL A & B GW for Vapour Intrusion",null,null,"mg/L","NL",null,null,"Silt",8]
["71-43-2","Benzene","Water","NEPM 2013 Table 1A(4) Res HSL A & B GW for Vapour Intrusion",5,null,"mg/L",null,null,null,"Silt",8,null,null,null,null,null,null,null,null,null,null,null,null,null,null,1,1]
["F1-BTEX","F1","Water","NEPM 2013 Table 1A(4) Res HSL A & B GW for Vapour Intrusion",6,null,"mg/L",null,null,"To obtain F1 subtract the sum of BTEX concentrations from the C6  - C10 fraction.","Silt",8,null,null,null,null,null,null,null,null,null,null,null,null,null,null,1,1]
["F2-NAPHTHALENE","F2","Water","NEPM 2013 Table 1A(4) Res HSL A & B GW for Vapour Intrusion",null,null,"mg/L","NL",null,"To obtain F2 subtract napthalene from the >C10 - C16 fraction.","Silt",8]
["108-88-3","Toluene","Water","NEPM 2013 Table 1A(4) Res HSL A & B GW for Vapour Intrusion",null,null,"mg/L","NL",null,null,"Clay",2,4,null,null,null,null,null,null,null,null,null,null,null,null,null,1,1]
["100-41-4","Ethylbenzene","Water","NEPM 2013 Table 1A(4) Res HSL A & B GW for Vapour Intrusion",null,null,"mg/L","NL",null,null,"Clay",2,4]
["1330-20-7","Xylenes","Water","NEPM 2013 Table 1A(4) Res HSL A & B GW for Vapour Intrusion",null,null,"mg/L","NL",null,null,"Clay",2,4,null,null,null,null,null,null,null,null,null,null,null,null,null,1,1]
["91-20-3","Naphthalene","Water","NEPM 2013 Table 1A(4) Res HSL A & B GW for Vapour Intrusion",null,null,"mg/L","NL",null,null,"Clay",2,4,null,null,null,null,null,null,null,null,null,null,null,null,null,1,1]
["71-43-2","Benzene","Water","NEPM 2013 Table 1A(4) Res HSL A & B GW for Vapour Intrusion",5,null,"mg/L",null,null,null,"Clay",2,4,null,null,null,null,null,null,null,null,null,null,null,null,null,1,1]
["F1-BTEX","F1","Water","NEPM 2013 Table 1A(4) Res HSL A & B GW for Vapour Intrusion",null,null,"mg/L","NL",null,"To obtain F1 subtract the sum of BTEX concentrations from the C6  - C10 fraction.","Clay",2,4,null,null,null,null,null,null,null,null,null,null,null,null,null,1,1]
["F2-NAPHTHALENE","F2","Water","NEPM 2013 Table 1A(4) Res HSL A & B GW for Vapour Intrusion",null,null,"mg/L","NL",null,"To obtain F2 subtract napthalene from the >C10 - C16 fraction.","Clay",2,4,null,null,null,null,null,null,null,null,null,null,null,null,null,1,1]
["108-88-3","Toluene","Water","NEPM 2013 Table 1A(4) Res HSL A & B GW for Vapour Intrusion",null,null,"mg/L","NL",null,null,"Clay",4,8]
["100-41-4","Ethylbenzene","Water","NEPM 2013 Table 1A(4) Res HSL A & B GW for Vapour Intrusion",null,null,"mg/L","NL",null,null,"Clay",4,8]
["1330-20-7","Xylenes","Water","NEPM 2013 Table 1A(4) Res HSL A & B GW for Vapour Intrusion",null,null,"mg/L","NL",null,null,"Clay",4,8,null,null,null,null,null,null,null,null,null,null,null,null,null,1,1]
["91-20-3","Naphthalene","Water","NEPM 2013 Table 1A(4) Res HSL A & B GW for Vapour Intrusion",null,null,"mg/L","NL",null,null,"Clay",4,8]
["71-43-2","Benzene","Water","NEPM 2013 Table 1A(4) Res HSL A & B GW for Vapour Intrusion",5,null,"mg/L",null,null,null,"Clay",4,8,null,null,null,null,null,null,null,null,null,null,null,null,null,1,1]
["F1-BTEX","F1","Water","NEPM 2013 Table 1A(4) Res HSL A & B GW for Vapour Intrusion",null,null,"mg/L","NL",null,"To obtain F1 subtract the sum of BTEX concentrations from the C6  - C10 fraction.","Clay",4,8,null,null,null,null,null,null,null,null,null,null,null,null,null,1,1]
["F2-NAPHTHALENE","F2","Water","NEPM 2013 Table 1A(4) Res HSL A & B GW for Vapour Intrusion",null,null,"mg/L","NL",null,"To obtain F2 subtract napthalene from the >C10 - C16 fraction.","Clay",4,8]
["108-88-3","Toluene","Water","NEPM 2013 Table 1A(4) Res HSL A & B GW for Vapour Intrusion",null,null,"mg/L","NL",null,null,"Clay",8]
["100-41-4","Ethylbenzene","Water","NEPM 2013 Table 1A(4) Res HSL A & B GW for Vapour Intrusion",null,null,"mg/L","NL",null,null,"Clay",8]
["1330-20-7","Xylenes","Water","NEPM 2013 Table 1A(4) Res HSL A & B GW for Vapour Intrusion",null,null,"mg/L","NL",null,null,"Clay",8]
["91-20-3","Naphthalene","Water","NEPM 2013 Table 1A(4) Res HSL A & B GW for Vapour Intrusion",null,null,"mg/L","NL",null,null,"Clay",8]
["71-43-2","Benzene","Water","NEPM 2013 Table 1A(4) Res HSL A & B GW for Vapour Intrusion",5,null,"mg/L",null,null,null,"Clay",8,null,null,null,null,null,null,null,null,null,null,null,null,null,null,1,1]
["F1-BTEX","F1","Water","NEPM 2013 Table 1A(4) Res HSL A & B GW for Vapour Intrusion",null,null,"mg/L","NL",null,"To obtain F1 subtract the sum of BTEX concentrations from the C6  - C10 fraction.","Clay",8,null,null,null,null,null,null,null,null,null,null,null,null,null,null,1,1]
["F2-NAPHTHALENE","F2","Water","NEPM 2013 Table 1A(4) Res HSL A & B GW for Vapour Intrusion",null,null,"mg/L","NL",null,"To obtain F2 subtract napthalene from the >C10 - C16 fraction.","Clay",8]
["108-88-3","Toluene","Water","NEPM 2013 Table 1A(4) Rec HSL C GW for Vapour Intrusion",null,null,"mg/L","NL",null,null,"Sand",2,4]
["100-41-4","Ethylbenzene","Water","NEPM 2013 Table 1A(4) Rec HSL C GW for Vapour Intrusion",null,null,"mg/L","NL",null,null,"Sand",2,4]
["1330-20-7","Xylenes","Water","NEPM 2013 Table 1A(4) Rec HSL C GW for Vapour Intrusion",null,null,"mg/L","NL",null,null,"Sand",2,4]
["91-20-3","Naphthalene","Water","NEPM 2013 Table 1A(4) Rec HSL C GW for Vapour Intrusion",null,null,"mg/L","NL",null,null,"Sand",2,4]
["71-43-2","Benzene","Water","NEPM 2013 Table 1A(4) Rec HSL C GW for Vapour Intrusion",null,null,"mg/L","NL",null,null,"Sand",2,4]
["F1-BTEX","F1","Water","NEPM 2013 Table 1A(4) Rec HSL C GW for Vapour Intrusion",null,null,"mg/L","NL",null,null,"Sand",2,4]
["F2-NAPHTHALENE","F2","Water","NEPM 2013 Table 1A(4) Rec HSL C GW for Vapour Intrusion",null,null,"mg/L","NL",null,null,"Sand",2,4]
["108-88-3","Toluene","Water","NEPM 2013 Table 1A(4) Rec HSL C GW for Vapour Intrusion",null,null,"mg/L","NL",null,null,"Sand",4,8]
["100-41-4","Ethylbenzene","Water","NEPM 2013 Table 1A(4) Rec HSL C GW for Vapour Intrusion",null,null,"mg/L","NL",null,null,"Sand",4,8]
["1330-20-7","Xylenes","Water","NEPM 2013 Table 1A(4) Rec HSL C GW for Vapour Intrusion",null,null,"mg/L","NL",null,null,"Sand",4,8]
["91-20-3","Naphthalene","Water","NEPM 2013 Table 1A(4) Rec HSL C GW for Vapour Intrusion",null,null,"mg/L","NL",null,null,"Sand",4,8]
["71-43-2","Benzene","Water","NEPM 2013 Table 1A(4) Rec HSL C GW for Vapour Intrusion",null,null,"mg/L","NL",null,null,"Sand",4,8]
["F1-BTEX","F1","Water","NEPM 2013 Table 1A(4) Rec HSL C GW for Vapour Intrusion",null,null,"mg/L","NL",null,null,"Sand",4,8]
["F2-NAPHTHALENE","F2","Water","NEPM 2013 Table 1A(4) Rec HSL C GW for Vapour Intrusion",null,null,"mg/L","NL",null,null,"Sand",4,8]
["108-88-3","Toluene","Water","NEPM 2013 Table 1A(4) Rec HSL C GW for Vapour Intrusion",null,null,"mg/L","NL",null,null,"Sand",8]
["100-41-4","Ethylbenzene","Water","NEPM 2013 Table 1A(4) Rec HSL C GW for Vapour Intrusion",null,null,"mg/L","NL",null,null,"Sand",8]
["1330-20-7","Xylenes","Water","NEPM 2013 Table 1A(4) Rec HSL C GW for Vapour Intrusion",null,null,"mg/L","NL",null,null,"Sand",8]
["91-20-3","Naphthalene","Water","NEPM 2013 Table 1A(4) Rec HSL C GW for Vapour Intrusion",null,null,"mg/L","NL",null,null,"Sand",8]
["71-43-2","Benzene","Water","NEPM 2013 Table 1A(4) Rec HSL C GW for Vapour Intrusion",null,null,"mg/L","NL",null,null,"Sand",8]
["F1-BTEX","F1","Water","NEPM 2013 Table 1A(4) Rec HSL C GW for Vapour Intrusion",null,null,"mg/L","NL",null,null,"Sand",8]
["F2-NAPHTHALENE","F2","Water","NEPM 2013 Table 1A(4) Rec HSL C GW for Vapour Intrusion",null,null,"mg/L","NL",null,null,"Sand",8]
["108-88-3","Toluene","Water","NEPM 2013 Table 1A(4) Rec HSL C GW for Vapour Intrusion",null,null,"mg/L","NL",null,null,"Silt",2,4]
["100-41-4","Ethylbenzene","Water","NEPM 2013 Table 1A(4) Rec HSL C GW for Vapour Intrusion",null,null,"mg/L","NL",null,null,"Silt",2,4]
["1330-20-7","Xylenes","Water","NEPM 2013 Table 1A(4) Rec HSL C GW for Vapour Intrusion",null,null,"mg/L","NL",null,null,"Silt",2,4]
["91-20-3","Naphthalene","Water","NEPM 2013 Table 1A(4) Rec HSL C GW for Vapour Intrusion",null,null,"mg/L","NL",null,null,"Silt",2,4]
["71-43-2","Benzene","Water","NEPM 2013 Table 1A(4) Rec HSL C GW for Vapour Intrusion",null,null,"mg/L","NL",null,null,"Silt",2,4]
["F1-BTEX","F1","Water","NEPM 2013 Table 1A(4) Rec HSL C GW for Vapour Intrusion",null,null,"mg/L","NL",null,null,"Silt",2,4]
["F2-NAPHTHALENE","F2","Water","NEPM 2013 Table 1A(4) Rec HSL C GW for Vapour Intrusion",null,null,"mg/L","NL",null,null,"Silt",2,4]
["108-88-3","Toluene","Water","NEPM 2013 Table 1A(4) Rec HSL C GW for Vapour Intrusion",null,null,"mg/L","NL",null,null,"Silt",4,8]
["100-41-4","Ethylbenzene","Water","NEPM 2013 Table 1A(4) Rec HSL C GW for Vapour Intrusion",null,null,"mg/L","NL",null,null,"Silt",4,8]
["1330-20-7","Xylenes","Water","NEPM 2013 Table 1A(4) Rec HSL C GW for Vapour Intrusion",null,null,"mg/L","NL",null,null,"Silt",4,8]
["91-20-3","Naphthalene","Water","NEPM 2013 Table 1A(4) Rec HSL C GW for Vapour Intrusion",null,null,"mg/L","NL",null,null,"Silt",4,8]
["71-43-2","Benzene","Water","NEPM 2013 Table 1A(4) Rec HSL C GW for Vapour Intrusion",null,null,"mg/L","NL",null,null,"Silt",4,8]
["F1-BTEX","F1","Water","NEPM 2013 Table 1A(4) Rec HSL C GW for Vapour Intrusion",null,null,"mg/L","NL",null,null,"Silt",4,8]
["F2-NAPHTHALENE","F2","Water","NEPM 2013 Table 1A(4) Rec HSL C GW for Vapour Intrusion",null,null,"mg/L","NL",null,null,"Silt",4,8]
["108-88-3","Toluene","Water","NEPM 2013 Table 1A(4) Rec HSL C GW for Vapour Intrusion",null,null,"mg/L","NL",null,null,"Silt",8]
["100-41-4","Ethylbenzene","Water","NEPM 2013 Table 1A(4) Rec HSL C GW for Vapour Intrusion",null,null,"mg/L","NL",null,null,"Silt",8]
["1330-20-7","Xylenes","Water","NEPM 2013 Table 1A(4) Rec HSL C GW for Vapour Intrusion",null,null,"mg/L","NL",null,null,"Silt",8]
["91-20-3","Naphthalene","Water","NEPM 2013 Table 1A(4) Rec HSL C GW for Vapour Intrusion",null,null,"mg/L","NL",null,null,"Silt",8]
["71-43-2","Benzene","Water","NEPM 2013 Table 1A(4) Rec HSL C GW for Vapour Intrusion",null,null,"mg/L","NL",null,null,"Silt",8]
["F1-BTEX","F1","Water","NEPM 2013 Table 1A(4) Rec HSL C GW for Vapour Intrusion",null,null,"mg/L","NL",null,null,"Silt",8]
["F2-NAPHTHALENE","F2","Water","NEPM 2013 Table 1A(4) Rec HSL C GW for Vapour Intrusion",null,null,"mg/L","NL",null,null,"Silt",8]
["108-88-3","Toluene","Water","NEPM 2013 Table 1A(4) Rec HSL C GW for Vapour Intrusion",null,null,"mg/L","NL",null,null,"Clay",2,4]
["100-41-4","Ethylbenzene","Water","NEPM 2013 Table 1A(4) Rec HSL C GW for Vapour Intrusion",null,null,"mg/L","NL",null,null,"Clay",2,4]
["1330-20-7","Xylenes","Water","NEPM 2013 Table 1A(4) Rec HSL C GW for Vapour Intrusion",null,null,"mg/L","NL",null,null,"Clay",2,4]
["91-20-3","Naphthalene","Water","NEPM 2013 Table 1A(4) Rec HSL C GW for Vapour Intrusion",null,null,"mg/L","NL",null,null,"Clay",2,4]
["71-43-2","Benzene","Water","NEPM 2013 Table 1A(4) Rec HSL C GW for Vapour Intrusion",null,null,"mg/L","NL",null,null,"Clay",2,4]
["F1-BTEX","F1","Water","NEPM 2013 Table 1A(4) Rec HSL C GW for Vapour Intrusion",null,null,"mg/L","NL",null,null,"Clay",2,4]
["F2-NAPHTHALENE","F2","Water","NEPM 2013 Table 1A(4) Rec HSL C GW for Vapour Intrusion",null,null,"mg/L","NL",null,null,"Clay",2,4]
["108-88-3","Toluene","Water","NEPM 2013 Table 1A(4) Rec HSL C GW for Vapour Intrusion",null,null,"mg/L","NL",null,null,"Clay",4,8]
["100-41-4","Ethylbenzene","Water","NEPM 2013 Table 1A(4) Rec HSL C GW for Vapour Intrusion",null,null,"mg/L","NL",null,null,"Clay",4,8]
["1330-20-7","Xylenes","Water","NEPM 2013 Table 1A(4) Rec HSL C GW for Vapour Intrusion",null,null,"mg/L","NL",null,null,"Clay",4,8]
["91-20-3","Naphthalene","Water","NEPM 2013 Table 1A(4) Rec HSL C GW for Vapour Intrusion",null,null,"mg/L","NL",null,null,"Clay",4,8]
["71-43-2","Benzene","Water","NEPM 2013 Table 1A(4) Rec HSL C GW for Vapour Intrusion",null,null,"mg/L","NL",null,null,"Clay",4,8]
["F1-BTEX","F1","Water","NEPM 2013 Table 1A(4) Rec HSL C GW for Vapour Intrusion",null,null,"mg/L","NL",null,null,"Clay",4,8]
["F2-NAPHTHALENE","F2","Water","NEPM 2013 Table 1A(4) Rec HSL C GW for Vapour Intrusion",null,null,"mg/L","NL",null,null,"Clay",4,8]
["108-88-3","Toluene","Water","NEPM 2013 Table 1A(4) Rec HSL C GW for Vapour Intrusion",null,null,"mg/L","NL",null,null,"Clay",8]
["100-41-4","Ethylbenzene","Water","NEPM 2013 Table 1A(4) Rec HSL C GW for Vapour Intrusion",null,null,"mg/L","NL",null,null,"Clay",8]
["1330-20-7","Xylenes","Water","NEPM 2013 Table 1A(4) Rec HSL C GW for Vapour Intrusion",null,null,"mg/L","NL",null,null,"Clay",8]
["91-20-3","Naphthalene","Water","NEPM 2013 Table 1A(4) Rec HSL C GW for Vapour Intrusion",null,null,"mg/L","NL",null,null,"Clay",8]
["71-43-2","Benzene","Water","NEPM 2013 Table 1A(4) Rec HSL C GW for Vapour Intrusion",null,null,"mg/L","NL",null,null,"Clay",8]
["F1-BTEX","F1","Water","NEPM 2013 Table 1A(4) Rec HSL C GW for Vapour Intrusion",null,null,"mg/L","NL",null,null,"Clay",8]
["F2-NAPHTHALENE","F2","Water","NEPM 2013 Table 1A(4) Rec HSL C GW for Vapour Intrusion",null,null,"mg/L","NL",null,null,"Clay",8]
["108-88-3","Toluene","Water","NEPM 2013 Table 1A(4) Comm/Ind HSL D GW for Vapour Intrusion",null,null,"mg/L","NL",null,null,"Sand",2,4]
["100-41-4","Ethylbenzene","Water","NEPM 2013 Table 1A(4) Comm/Ind HSL D GW for Vapour Intrusion",null,null,"mg/L","NL",null,null,"Sand",2,4]
["1330-20-7","Xylenes","Water","NEPM 2013 Table 1A(4) Comm/Ind HSL D GW for Vapour Intrusion",null,null,"mg/L","NL",null,null,"Sand",2,4,null,null,null,null,null,null,null,null,null,null,null,null,null,1,1]
["91-20-3","Naphthalene","Water","NEPM 2013 Table 1A(4) Comm/Ind HSL D GW for Vapour Intrusion",null,null,"mg/L","NL",null,null,"Sand",2,4]
["71-43-2","Benzene","Water","NEPM 2013 Table 1A(4) Comm/Ind HSL D GW for Vapour Intrusion",5,null,"mg/L",null,null,null,"Sand",2,4,null,null,null,null,null,null,null,null,null,null,null,null,null,1,1]
["F1-BTEX","F1","Water","NEPM 2013 Table 1A(4) Comm/Ind HSL D GW for Vapour Intrusion",6,null,"mg/L",null,null,"To obtain F1 subtract the sum of BTEX concentrations from the C6  - C10 fraction.","Sand",2,4,null,null,null,null,null,null,null,null,null,null,null,null,null,1,1]
["F2-NAPHTHALENE","F2","Water","NEPM 2013 Table 1A(4) Comm/Ind HSL D GW for Vapour Intrusion",null,null,"mg/L","NL",null,"To obtain F2 subtract napthalene from the >C10 - C16 fraction.","Sand",2,4]
["108-88-3","Toluene","Water","NEPM 2013 Table 1A(4) Comm/Ind HSL D GW for Vapour Intrusion",null,null,"mg/L","NL",null,null,"Sand",4,8]
["100-41-4","Ethylbenzene","Water","NEPM 2013 Table 1A(4) Comm/Ind HSL D GW for Vapour Intrusion",null,null,"mg/L","NL",null,null,"Sand",4,8]
["1330-20-7","Xylenes","Water","NEPM 2013 Table 1A(4) Comm/Ind HSL D GW for Vapour Intrusion",null,null,"mg/L","NL",null,null,"Sand",4,8]
["91-20-3","Naphthalene","Water","NEPM 2013 Table 1A(4) Comm/Ind HSL D GW for Vapour Intrusion",null,null,"mg/L","NL",null,null,"Sand",4,8]
["71-43-2","Benzene","Water","NEPM 2013 Table 1A(4) Comm/Ind HSL D GW for Vapour Intrusion",5,null,"mg/L",null,null,null,"Sand",4,8,null,null,null,null,null,null,null,null,null,null,null,null,null,1,1]
["F1-BTEX","F1","Water","NEPM 2013 Table 1A(4) Comm/Ind HSL D GW for Vapour Intrusion",6,null,"mg/L",null,null,"To obtain F1 subtract the sum of BTEX concentrations from the C6  - C10 fraction.","Sand",4,8,null,null,null,null,null,null,null,null,null,null,null,null,null,1,1]
["F2-NAPHTHALENE","F2","Water","NEPM 2013 Table 1A(4) Comm/Ind HSL D GW for Vapour Intrusion",null,null,"mg/L","NL",null,"To obtain F2 subtract napthalene from the >C10 - C16 fraction.","Sand",4,8]
["108-88-3","Toluene","Water","NEPM 2013 Table 1A(4) Comm/Ind HSL D GW for Vapour Intrusion",null,null,"mg/L","NL",null,null,"Sand",8]
["100-41-4","Ethylbenzene","Water","NEPM 2013 Table 1A(4) Comm/Ind HSL D GW for Vapour Intrusion",null,null,"mg/L","NL",null,null,"Sand",8]
["1330-20-7","Xylenes","Water","NEPM 2013 Table 1A(4) Comm/Ind HSL D GW for Vapour Intrusion",null,null,"mg/L","NL",null,null,"Sand",8]
["91-20-3","Naphthalene","Water","NEPM 2013 Table 1A(4) Comm/Ind HSL D GW for Vapour Intrusion",null,null,"mg/L","NL",null,null,"Sand",8]
["71-43-2","Benzene","Water","NEPM 2013 Table 1A(4) Comm/Ind HSL D GW for Vapour Intrusion",5,null,"mg/L",null,null,null,"Sand",8,null,null,null,null,null,null,null,null,null,null,null,null,null,null,1,1]
["F1-BTEX","F1","Water","NEPM 2013 Table 1A(4) Comm/Ind HSL D GW for Vapour Intrusion",7,null,"mg/L",null,null,"To obtain F1 subtract the sum of BTEX concentrations from the C6  - C10 fraction.","Sand",8,null,null,null,null,null,null,null,null,null,null,null,null,null,null,1,1]
["F2-NAPHTHALENE","F2","Water","NEPM 2013 Table 1A(4) Comm/Ind HSL D GW for Vapour Intrusion",null,null,"mg/L","NL",null,"To obtain F2 subtract napthalene from the >C10 - C16 fraction.","Sand",8]
["108-88-3","Toluene","Water","NEPM 2013 Table 1A(4) Comm/Ind HSL D GW for Vapour Intrusion",null,null,"mg/L","NL",null,null,"Silt",2,4]
["100-41-4","Ethylbenzene","Water","NEPM 2013 Table 1A(4) Comm/Ind HSL D GW for Vapour Intrusion",null,null,"mg/L","NL",null,null,"Silt",2,4]
["1330-20-7","Xylenes","Water","NEPM 2013 Table 1A(4) Comm/Ind HSL D GW for Vapour Intrusion",null,null,"mg/L","NL",null,null,"Silt",2,4]
["91-20-3","Naphthalene","Water","NEPM 2013 Table 1A(4) Comm/Ind HSL D GW for Vapour Intrusion",null,null,"mg/L","NL",null,null,"Silt",2,4]
["71-43-2","Benzene","Water","NEPM 2013 Table 1A(4) Comm/Ind HSL D GW for Vapour Intrusion",30,null,"mg/L",null,null,null,"Silt",2,4,null,null,null,null,null,null,null,null,null,null,null,null,null,1,1]
["F1-BTEX","F1","Water","NEPM 2013 Table 1A(4) Comm/Ind HSL D GW for Vapour Intrusion",null,null,"mg/L","NL",null,"To obtain F1 subtract the sum of BTEX concentrations from the C6  - C10 fraction.","Silt",2,4]
["F2-NAPHTHALENE","F2","Water","NEPM 2013 Table 1A(4) Comm/Ind HSL D GW for Vapour Intrusion",null,null,"mg/L","NL",null,"To obtain F2 subtract napthalene from the >C10 - C16 fraction.","Silt",2,4]
["108-88-3","Toluene","Water","NEPM 2013 Table 1A(4) Comm/Ind HSL D GW for Vapour Intrusion",null,null,"mg/L","NL",null,null,"Silt",4,8]
["100-41-4","Ethylbenzene","Water","NEPM 2013 Table 1A(4) Comm/Ind HSL D GW for Vapour Intrusion",null,null,"mg/L","NL",null,null,"Silt",4,8]
["1330-20-7","Xylenes","Water","NEPM 2013 Table 1A(4) Comm/Ind HSL D GW for Vapour Intrusion",null,null,"mg/L","NL",null,null,"Silt",4,8]
["91-20-3","Naphthalene","Water","NEPM 2013 Table 1A(4) Comm/Ind HSL D GW for Vapour Intrusion",null,null,"mg/L","NL",null,null,"Silt",4,8]
["71-43-2","Benzene","Water","NEPM 2013 Table 1A(4) Comm/Ind HSL D GW for Vapour Intrusion",30,null,"mg/L",null,null,null,"Silt",4,8,null,null,null,null,null,null,null,null,null,null,null,null,null,1,1]
["F1-BTEX","F1","Water","NEPM 2013 Table 1A(4) Comm/Ind HSL D GW for Vapour Intrusion",null,null,"mg/L","NL",null,"To obtain F1 subtract the sum of BTEX concentrations from the C6  - C10 fraction.","Silt",4,8,null,null,null,null,null,null,null,null,null,null,null,null,null,1,1]
["F2-NAPHTHALENE","F2","Water","NEPM 2013 Table 1A(4) Comm/Ind HSL D GW for Vapour Intrusion",null,null,"mg/L","NL",null,"To obtain F2 subtract napthalene from the >C10 - C16 fraction.","Silt",4,8]
["108-88-3","Toluene","Water","NEPM 2013 Table 1A(4) Comm/Ind HSL D GW for Vapour Intrusion",null,null,"mg/L","NL",null,null,"Silt",8]
["100-41-4","Ethylbenzene","Water","NEPM 2013 Table 1A(4) Comm/Ind HSL D GW for Vapour Intrusion",null,null,"mg/L","NL",null,null,"Silt",8]
["1330-20-7","Xylenes","Water","NEPM 2013 Table 1A(4) Comm/Ind HSL D GW for Vapour Intrusion",null,null,"mg/L","NL",null,null,"Silt",8]
["91-20-3","Naphthalene","Water","NEPM 2013 Table 1A(4) Comm/Ind HSL D GW for Vapour Intrusion",null,null,"mg/L","NL",null,null,"Silt",8]
["71-43-2","Benzene","Water","NEPM 2013 Table 1A(4) Comm/Ind HSL D GW for Vapour Intrusion",30,null,"mg/L",null,null,null,"Silt",8,null,null,null,null,null,null,null,null,null,null,null,null,null,null,1,1]
["F1-BTEX","F1","Water","NEPM 2013 Table 1A(4) Comm/Ind HSL D GW for Vapour Intrusion",null,null,"mg/L","NL",null,"To obtain F1 subtract the sum of BTEX concentrations from the C6  - C10 fraction.","Silt",8,null,null,null,null,null,null,null,null,null,null,null,null,null,null,1,1]
["F2-NAPHTHALENE","F2","Water","NEPM 2013 Table 1A(4) Comm/Ind HSL D GW for Vapour Intrusion",null,null,"mg/L","NL",null,"To obtain F2 subtract napthalene from the >C10 - C16 fraction.","Silt",8]
["108-88-3","Toluene","Water","NEPM 2013 Table 1A(4) Comm/Ind HSL D GW for Vapour Intrusion",null,null,"mg/L","NL",null,null,"Clay",2,4]
["100-41-4","Ethylbenzene","Water","NEPM 2013 Table 1A(4) Comm/Ind HSL D GW for Vapour Intrusion",null,null,"mg/L","NL",null,null,"Clay",2,4]
["1330-20-7","Xylenes","Water","NEPM 2013 Table 1A(4) Comm/Ind HSL D GW for Vapour Intrusion",null,null,"mg/L","NL",null,null,"Clay",2,4]
["91-20-3","Naphthalene","Water","NEPM 2013 Table 1A(4) Comm/Ind HSL D GW for Vapour Intrusion",null,null,"mg/L","NL",null,null,"Clay",2,4]
["71-43-2","Benzene","Water","NEPM 2013 Table 1A(4) Comm/Ind HSL D GW for Vapour Intrusion",30,null,"mg/L",null,null,null,"Clay",2,4,null,null,null,null,null,null,null,null,null,null,null,null,null,1,1]
["F1-BTEX","F1","Water","NEPM 2013 Table 1A(4) Comm/Ind HSL D GW for Vapour Intrusion",null,null,"mg/L","NL",null,"To obtain F1 subtract the sum of BTEX concentrations from the C6  - C10 fraction.","Clay",2,4,null,null,null,null,null,null,null,null,null,null,null,null,null,1,1]
["F2-NAPHTHALENE","F2","Water","NEPM 2013 Table 1A(4) Comm/Ind HSL D GW for Vapour Intrusion",null,null,"mg/L","NL",null,"To obtain F2 subtract napthalene from the >C10 - C16 fraction.","Clay",2,4]
["108-88-3","Toluene","Water","NEPM 2013 Table 1A(4) Comm/Ind HSL D GW for Vapour Intrusion",null,null,"mg/L","NL",null,null,"Clay",4,8]
["100-41-4","Ethylbenzene","Water","NEPM 2013 Table 1A(4) Comm/Ind HSL D GW for Vapour Intrusion",null,null,"mg/L","NL",null,null,"Clay",4,8]
["1330-20-7","Xylenes","Water","NEPM 2013 Table 1A(4) Comm/Ind HSL D GW for Vapour Intrusion",null,null,"mg/L","NL",null,null,"Clay",4,8]
["91-20-3","Naphthalene","Water","NEPM 2013 Table 1A(4) Comm/Ind HSL D GW for Vapour Intrusion",null,null,"mg/L","NL",null,null,"Clay",4,8]
["71-43-2","Benzene","Water","NEPM 2013 Table 1A(4) Comm/Ind HSL D GW for Vapour Intrusion",30,null,"mg/L",null,null,null,"Clay",4,8,null,null,null,null,null,null,null,null,null,null,null,null,null,1,1]
["F1-BTEX","F1","Water","NEPM 2013 Table 1A(4) Comm/Ind HSL D GW for Vapour Intrusion",null,null,"mg/L","NL",null,"To obtain F1 subtract the sum of BTEX concentrations from the C6  - C10 fraction.","Clay",4,8]
["F2-NAPHTHALENE","F2","Water","NEPM 2013 Table 1A(4) Comm/Ind HSL D GW for Vapour Intrusion",null,null,"mg/L","NL",null,"To obtain F2 subtract napthalene from the >C10 - C16 fraction.","Clay",4,8]
["108-88-3","Toluene","Water","NEPM 2013 Table 1A(4) Comm/Ind HSL D GW for Vapour Intrusion",null,null,"mg/L","NL",null,null,"Clay",8]
["100-41-4","Ethylbenzene","Water","NEPM 2013 Table 1A(4) Comm/Ind HSL D GW for Vapour Intrusion",null,null,"mg/L","NL",null,null,"Clay",8]
["1330-20-7","Xylenes","Water","NEPM 2013 Table 1A(4) Comm/Ind HSL D GW for Vapour Intrusion",null,null,"mg/L","NL",null,null,"Clay",8]
["91-20-3","Naphthalene","Water","NEPM 2013 Table 1A(4) Comm/Ind HSL D GW for Vapour Intrusion",null,null,"mg/L","NL",null,null,"Clay",8]
["71-43-2","Benzene","Water","NEPM 2013 Table 1A(4) Comm/Ind HSL D GW for Vapour Intrusion",35,null,"mg/L",null,null,null,"Clay",8,null,null,null,null,null,null,null,null,null,null,null,null,null,null,1,1]
["F1-BTEX","F1","Water","NEPM 2013 Table 1A(4) Comm/Ind HSL D GW for Vapour Intrusion",null,null,"mg/L","NL",null,"To obtain F1 subtract the sum of BTEX concentrations from the C6  - C10 fraction.","Clay",8,null,null,null,null,null,null,null,null,null,null,null,null,null,null,1,1]
["F2-NAPHTHALENE","F2","Water","NEPM 2013 Table 1A(4) Comm/Ind HSL D GW for Vapour Intrusion",null,null,"mg/L","NL",null,"To obtain F2 subtract napthalene from the >C10 - C16 fraction.","Clay",8]

{"sheet":"1A5 SoilVap HSLs Vap Int no CM","index":11,"n_rows":319,"n_cols":28,"rows_kept":319,"cut":false,"hidden":false,"merged":[]}
["Project:","Cardno Lane Piper 213152Historical Soil",null,"Table:","[zRef_Environmental_Standards]",null,"Style:",null,null,"Template",null,null,null,"NoLocs"]
["Path:","C:\\Users\\Tom W\\Documents\\Clients\\Cardno Lane Piper\\213152Historical Soil\\213152Historical Soil.mdb",null,"Parent Tables:","zRef_Matrix_Types,zRef_Chemistry_Lookup,Chem_Group_Or_Method"]
[]
["ChemCode","ChemName","MatrixType","ActionLevelSource","ActionLevel","ActionLevel_Min","Units","ActionLevel_Prefix","ActionLevel_Suffix","Comments","Conditional_Matrix_Type","Conditional_Depth_From","Conditional_Depth_To","Leached","Conditional_ChemCode1","Conditional_ChemCode1_Units","Conditional_ChemCode1_Min_Value_Prefix","Conditional_ChemCode1_Value_Min","Conditional_ChemCode1_Max_Value_Prefix","Conditional_ChemCode1_Value_Max","Conditional_ChemCode2","Conditional_ChemCode2_Units","Conditional_ChemCode2_Min_Value_Prefix","Conditional_ChemCode2_Value_Min","Conditional_ChemCode2_Max_Value_Prefix","Conditional_ChemCode2_Value_Max","Applies_To_Total_Result","Applies_To_Filtered_Result"]
["108-88-3","Toluene","Gas","NEPM 2013 Table 1A(5) Res Soil Vapour HSL A/B for Vapour Intrusion, Sand",1300,null,"mg/m3","",null,null,null,0,1]
["100-41-4","Ethylbenzene","Gas","NEPM 2013 Table 1A(5) Res Soil Vapour HSL A/B for Vapour Intrusion, Sand",330,null,"mg/m3","",null,null,null,0,1]
["1330-20-7","Xylenes","Gas","NEPM 2013 Table 1A(5) Res Soil Vapour HSL A/B for Vapour Intrusion, Sand",220,null,"mg/m3","",null,null,null,0,1]
["91-20-3","Naphthalene","Gas","NEPM 2013 Table 1A(5) Res Soil Vapour HSL A/B for Vapour Intrusion, Sand",0.8,null,"mg/m3","",null,null,null,0,1]
["71-43-2","Benzene","Gas","NEPM 2013 Table 1A(5) Res Soil Vapour HSL A/B for Vapour Intrusion, Sand",1,null,"mg/m3","",null,null,null,0,1]
["F1-BTEX","F1","Gas","NEPM 2013 Table 1A(5) Res Soil Vapour HSL A/B for Vapour Intrusion, Sand",180,null,"mg/m3","",null,"To obtain F1 subtract the sum of BTEX concentrations from the C6  - C10 fraction.",null,0,1]
["F2-NAPHTHALENE","F2","Gas","NEPM 2013 Table 1A(5) Res Soil Vapour HSL A/B for Vapour Intrusion, Sand",130,null,"mg/m3","",null,"To obtain F2 subtract napthalene from the >C10 - C16 fraction.",null,0,1]
["108-88-3","Toluene","Gas","NEPM 2013 Table 1A(5) Res Soil Vapour HSL A/B for Vapour Intrusion, Silt",1400,null,"mg/m3","",null,null,null,0,1]
["100-41-4","Ethylbenzene","Gas","NEPM 2013 Table 1A(5) Res Soil Vapour HSL A/B for Vapour Intrusion, Silt",380,null,"mg/m3","",null,null,null,0,1]
["1330-20-7","Xylenes","Gas","NEPM 2013 Table 1A(5) Res Soil Vapour HSL A/B for Vapour Intrusion, Silt",260,null,"mg/m3","",null,null,null,0,1]
["91-20-3","Naphthalene","Gas","NEPM 2013 Table 1A(5) Res Soil Vapour HSL A/B for Vapour Intrusion, Silt",0.9,null,"mg/m3","",null,null,null,0,1]
["71-43-2","Benzene","Gas","NEPM 2013 Table 1A(5) Res Soil Vapour HSL A/B for Vapour Intrusion, Silt",1,null,"mg/m3","",null,null,null,0,1]
["F1-BTEX","F1","Gas","NEPM 2013 Table 1A(5) Res Soil Vapour HSL A/B for Vapour Intrusion, Silt",210,null,"mg/m3","",null,"To obtain F1 subtract the sum of BTEX concentrations from the C6  - C10 fraction.",null,0,1]
["F2-NAPHTHALENE","F2","Gas","NEPM 2013 Table 1A(5) Res Soil Vapour HSL A/B for Vapour Intrusion, Silt",160,null,"mg/m3","",null,"To obtain F2 subtract napthalene from the >C10 - C16 fraction.",null,0,1]
["108-88-3","Toluene","Gas","NEPM 2013 Table 1A(5) Res Soil Vapour HSL A/B for Vapour Intrusion, Clay",1600,null,"mg/m3","",null,null,null,0,1]
["100-41-4","Ethylbenzene","Gas","NEPM 2013 Table 1A(5) Res Soil Vapour HSL A/B for Vapour Intrusion, Clay",420,null,"mg/m3","",null,null,null,0,1]
["1330-20-7","Xylenes","Gas","NEPM 2013 Table 1A(5) Res Soil Vapour HSL A/B for Vapour Intrusion, Clay",280,null,"mg/m3","",null,null,null,0,1]
["91-20-3","Naphthalene","Gas","NEPM 2013 Table 1A(5) Res Soil Vapour HSL A/B for Vapour Intrusion, Clay",1,null,"mg/m3","",null,null,null,0,1]
["71-43-2","Benzene","Gas","NEPM 2013 Table 1A(5) Res Soil Vapour HSL A/B for Vapour Intrusion, Clay",1,null,"mg/m3","",null,null,null,0,1]
["F1-BTEX","F1","Gas","NEPM 2013 Table 1A(5) Res Soil Vapour HSL A/B for Vapour Intrusion, Clay",230,null,"mg/m3","",null,"To obtain F1 subtract the sum of BTEX concentrations from the C6  - C10 fraction.",null,0,1]
["F2-NAPHTHALENE","F2","Gas","NEPM 2013 Table 1A(5) Res Soil Vapour HSL A/B for Vapour Intrusion, Clay",180,null,"mg/m3","",null,"To obtain F2 subtract napthalene from the >C10 - C16 fraction.",null,0,1]
["108-88-3","Toluene","Gas","NEPM 2013 Table 1A(5) Res Soil Vapour HSL A/B for Vapour Intrusion, Sand",3800,null,"mg/m3","",null,null,null,1,2]
["100-41-4","Ethylbenzene","Gas","NEPM 2013 Table 1A(5) Res Soil Vapour HSL A/B for Vapour Intrusion, Sand",1100,null,"mg/m3","",null,null,null,1,2]
["1330-20-7","Xylenes","Gas","NEPM 2013 Table 1A(5) Res Soil Vapour HSL A/B for Vapour Intrusion, Sand",750,null,"mg/m3","",null,null,null,1,2]
["91-20-3","Naphthalene","Gas","NEPM 2013 Table 1A(5) Res Soil Vapour HSL A/B for Vapour Intrusion, Sand",3,null,"mg/m3","",null,null,null,1,2]
["71-43-2","Benzene","Gas","NEPM 2013 Table 1A(5) Res Soil Vapour HSL A/B for Vapour Intrusion, Sand",3,null,"mg/m3","",null,null,null,1,2]
["F1-BTEX","F1","Gas","NEPM 2013 Table 1A(5) Res Soil Vapour HSL A/B for Vapour Intrusion, Sand",640,null,"mg/m3","",null,"To obtain F1 subtract the sum of BTEX concentrations from the C6  - C10 fraction.",null,1,2]
["F2-NAPHTHALENE","F2","Gas","NEPM 2013 Table 1A(5) Res Soil Vapour HSL A/B for Vapour Intrusion, Sand",560,null,"mg/m3","",null,"To obtain F2 subtract napthalene from the >C10 - C16 fraction.",null,1,2]
["108-88-3","Toluene","Gas","NEPM 2013 Table 1A(5) Res Soil Vapour HSL A/B for Vapour Intrusion, Silt",14000,null,"mg/m3","",null,null,null,1,2]
["100-41-4","Ethylbenzene","Gas","NEPM 2013 Table 1A(5) Res Soil Vapour HSL A/B for Vapour Intrusion, Silt",4200,null,"mg/m3","",null,null,null,1,2]
["1330-20-7","Xylenes","Gas","NEPM 2013 Table 1A(5) Res Soil Vapour HSL A/B for Vapour Intrusion, Silt",2900,null,"mg/m3","",null,null,null,1,2]
["91-20-3","Naphthalene","Gas","NEPM 2013 Table 1A(5) Res Soil Vapour HSL A/B for Vapour Intrusion, Silt",10,null,"mg/m3","",null,null,null,1,2]
["71-43-2","Benzene","Gas","NEPM 2013 Table 1A(5) Res Soil Vapour HSL A/B for Vapour Intrusion, Silt",10,null,"mg/m3","",null,null,null,1,2]
["F1-BTEX","F1","Gas","NEPM 2013 Table 1A(5) Res Soil Vapour HSL A/B for Vapour Intrusion, Silt",2600,null,"mg/m3","",null,"To obtain F1 subtract the sum of BTEX concentrations from the C6  - C10 fraction.",null,1,2]
["F2-NAPHTHALENE","F2","Gas","NEPM 2013 Table 1A(5) Res Soil Vapour HSL A/B for Vapour Intrusion, Silt",2300,null,"mg/m3","",null,"To obtain F2 subtract napthalene from the >C10 - C16 fraction.",null,1,2]
["108-88-3","Toluene","Gas","NEPM 2013 Table 1A(5) Res Soil Vapour HSL A/B for Vapour Intrusion, Clay",23000,null,"mg/m3","",null,null,null,1,2]
["100-41-4","Ethylbenzene","Gas","NEPM 2013 Table 1A(5) Res Soil Vapour HSL A/B for Vapour Intrusion, Clay",6800,null,"mg/m3","",null,null,null,1,2]
["1330-20-7","Xylenes","Gas","NEPM 2013 Table 1A(5) Res Soil Vapour HSL A/B for Vapour Intrusion, Clay",4800,null,"mg/m3","",null,null,null,1,2]
["91-20-3","Naphthalene","Gas","NEPM 2013 Table 1A(5) Res Soil Vapour HSL A/B for Vapour Intrusion, Clay",20,null,"mg/m3","",null,null,null,1,2]
["71-43-2","Benzene","Gas","NEPM 2013 Table 1A(5) Res Soil Vapour HSL A/B for Vapour Intrusion, Clay",15,null,"mg/m3","",null,null,null,1,2]
["F1-BTEX","F1","Gas","NEPM 2013 Table 1A(5) Res Soil Vapour HSL A/B for Vapour Intrusion, Clay",4200,null,"mg/m3","",null,"To obtain F1 subtract the sum of BTEX concentrations from the C6  - C10 fraction.",null,1,2]
["F2-NAPHTHALENE","F2","Gas","NEPM 2013 Table 1A(5) Res Soil Vapour HSL A/B for Vapour Intrusion, Clay",3800,null,"mg/m3","",null,"To obtain F2 subtract napthalene from the >C10 - C16 fraction.",null,1,2]
["108-88-3","Toluene","Gas","NEPM 2013 Table 1A(5) Res Soil Vapour HSL A/B for Vapour Intrusion, Sand",7300,null,"mg/m3","",null,null,null,2,4]
["100-41-4","Ethylbenzene","Gas","NEPM 2013 Table 1A(5) Res Soil Vapour HSL A/B for Vapour Intrusion, Sand",2200,null,"mg/m3","",null,null,null,2,4]
["1330-20-7","Xylenes","Gas","NEPM 2013 Table 1A(5) Res Soil Vapour HSL A/B for Vapour Intrusion, Sand",1500,null,"mg/m3","",null,null,null,2,4]
["91-20-3","Naphthalene","Gas","NEPM 2013 Table 1A(5) Res Soil Vapour HSL A/B for Vapour Intrusion, Sand",6,null,"mg/m3","",null,null,null,2,4]
["71-43-2","Benzene","Gas","NEPM 2013 Table 1A(5) Res Soil Vapour HSL A/B for Vapour Intrusion, Sand",6,null,"mg/m3","",null,null,null,2,4]
["F1-BTEX","F1","Gas","NEPM 2013 Table 1A(5) Res Soil Vapour HSL A/B for Vapour Intrusion, Sand",1300,null,"mg/m3","",null,"To obtain F1 subtract the sum of BTEX concentrations from the C6  - C10 fraction.",null,2,4]
["F2-NAPHTHALENE","F2","Gas","NEPM 2013 Table 1A(5) Res Soil Vapour HSL A/B for Vapour Intrusion, Sand",1200,null,"mg/m3","",null,"To obtain F2 subtract napthalene from the >C10 - C16 fraction.",null,2,4]
["108-88-3","Toluene","Gas","NEPM 2013 Table 1A(5) Res Soil Vapour HSL A/B for Vapour Intrusion, Silt",32000,null,"mg/m3","",null,null,null,2,4]
["100-41-4","Ethylbenzene","Gas","NEPM 2013 Table 1A(5) Res Soil Vapour HSL A/B for Vapour Intrusion, Silt",9700,null,"mg/m3","",null,null,null,2,4]
["1330-20-7","Xylenes","Gas","NEPM 2013 Table 1A(5) Res Soil Vapour HSL A/B for Vapour Intrusion, Silt",6800,null,"mg/m3","",null,null,null,2,4]
["91-20-3","Naphthalene","Gas","NEPM 2013 Table 1A(5) Res Soil Vapour HSL A/B for Vapour Intrusion, Silt",25,null,"mg/m3","",null,null,null,2,4]
["71-43-2","Benzene","Gas","NEPM 2013 Table 1A(5) Res Soil Vapour HSL A/B for Vapour Intrusion, Silt",25,null,"mg/m3","",null,null,null,2,4]
["F1-BTEX","F1","Gas","NEPM 2013 Table 1A(5) Res Soil Vapour HSL A/B for Vapour Intrusion, Silt",6000,null,"mg/m3","",null,"To obtain F1 subtract the sum of BTEX concentrations from the C6  - C10 fraction.",null,2,4]
["F2-NAPHTHALENE","F2","Gas","NEPM 2013 Table 1A(5) Res Soil Vapour HSL A/B for Vapour Intrusion, Silt",5400,null,"mg/m3","",null,"To obtain F2 subtract napthalene from the >C10 - C16 fraction.",null,2,4]
["108-88-3","Toluene","Gas","NEPM 2013 Table 1A(5) Res Soil Vapour HSL A/B for Vapour Intrusion, Clay",53000,null,"mg/m3","",null,null,null,2,4]
["100-41-4","Ethylbenzene","Gas","NEPM 2013 Table 1A(5) Res Soil Vapour HSL A/B for Vapour Intrusion, Clay",16000,null,"mg/m3","",null,null,null,2,4]
["1330-20-7","Xylenes","Gas","NEPM 2013 Table 1A(5) Res Soil Vapour HSL A/B for Vapour Intrusion, Clay",11000,null,"mg/m3","",null,null,null,2,4]
["91-20-3","Naphthalene","Gas","NEPM 2013 Table 1A(5) Res Soil Vapour HSL A/B for Vapour Intrusion, Clay",45,null,"mg/m3","",null,null,null,2,4]
["71-43-2","Benzene","Gas","NEPM 2013 Table 1A(5) Res Soil Vapour HSL A/B for Vapour Intrusion, Clay",40,null,"mg/m3","",null,null,null,2,4]
["F1-BTEX","F1","Gas","NEPM 2013 Table 1A(5) Res Soil Vapour HSL A/B for Vapour Intrusion, Clay",9900,null,"mg/m3","",null,"To obtain F1 subtract the sum of BTEX concentrations from the C6  - C10 fraction.",null,2,4]
["F2-NAPHTHALENE","F2","Gas","NEPM 2013 Table 1A(5) Res Soil Vapour HSL A/B for Vapour Intrusion, Clay",null,null,"mg/m3","NL",null,"To obtain F2 subtract napthalene from the >C10 - C16 fraction.",null,2,4]
["108-88-3","Toluene","Gas","NEPM 2013 Table 1A(5) Res Soil Vapour HSL A/B for Vapour Intrusion, Sand",15000,null,"mg/m3","",null,null,null,4,8]
["100-41-4","Ethylbenzene","Gas","NEPM 2013 Table 1A(5) Res Soil Vapour HSL A/B for Vapour Intrusion, Sand",4300,null,"mg/m3","",null,null,null,4,8]
["1330-20-7","Xylenes","Gas","NEPM 2013 Table 1A(5) Res Soil Vapour HSL A/B for Vapour Intrusion, Sand",3000,null,"mg/m3","",null,null,null,4,8]
["91-20-3","Naphthalene","Gas","NEPM 2013 Table 1A(5) Res Soil Vapour HSL A/B for Vapour Intrusion, Sand",10,null,"mg/m3","",null,null,null,4,8]
["71-43-2","Benzene","Gas","NEPM 2013 Table 1A(5) Res Soil Vapour HSL A/B for Vapour Intrusion, Sand",10,null,"mg/m3","",null,null,null,4,8]
["F1-BTEX","F1","Gas","NEPM 2013 Table 1A(5) Res Soil Vapour HSL A/B for Vapour Intrusion, Sand",2600,null,"mg/m3","",null,"To obtain F1 subtract the sum of BTEX concentrations from the C6  - C10 fraction.",null,4,8]
["F2-NAPHTHALENE","F2","Gas","NEPM 2013 Table 1A(5) Res Soil Vapour HSL A/B for Vapour Intrusion, Sand",2400,null,"mg/m3","",null,"To obtain F2 subtract napthalene from the >C10 - C16 fraction.",null,4,8]
["108-88-3","Toluene","Gas","NEPM 2013 Table 1A(5) Res Soil Vapour HSL A/B for Vapour Intrusion, Silt",69000,null,"mg/m3","",null,null,null,4,8]
["100-41-4","Ethylbenzene","Gas","NEPM 2013 Table 1A(5) Res Soil Vapour HSL A/B for Vapour Intrusion, Silt",21000,null,"mg/m3","",null,null,null,4,8]
["1330-20-7","Xylenes","Gas","NEPM 2013 Table 1A(5) Res Soil Vapour HSL A/B for Vapour Intrusion, Silt",15000,null,"mg/m3","",null,null,null,4,8]
["91-20-3","Naphthalene","Gas","NEPM 2013 Table 1A(5) Res Soil Vapour HSL A/B for Vapour Intrusion, Silt",60,null,"mg/m3","",null,null,null,4,8]
["71-43-2","Benzene","Gas","NEPM 2013 Table 1A(5) Res Soil Vapour HSL A/B for Vapour Intrusion, Silt",55,null,"mg/m3","",null,null,null,4,8]
["F1-BTEX","F1","Gas","NEPM 2013 Table 1A(5) Res Soil Vapour HSL A/B for Vapour Intrusion, Silt",13000,null,"mg/m3","",null,"To obtain F1 subtract the sum of BTEX concentrations from the C6  - C10 fraction.",null,4,8]
["F2-NAPHTHALENE","F2","Gas","NEPM 2013 Table 1A(5) Res Soil Vapour HSL A/B for Vapour Intrusion, Silt",null,null,"mg/m3","NL",null,"To obtain F2 subtract napthalene from the >C10 - C16 fraction.",null,4,8]
["108-88-3","Toluene","Gas","NEPM 2013 Table 1A(5) Res Soil Vapour HSL A/B for Vapour Intrusion, Clay",110000,null,"mg/m3","",null,null,null,4,8]
["100-41-4","Ethylbenzene","Gas","NEPM 2013 Table 1A(5) Res Soil Vapour HSL A/B for Vapour Intrusion, Clay",35000,null,"mg/m3","",null,null,null,4,8]
["1330-20-7","Xylenes","Gas","NEPM 2013 Table 1A(5) Res Soil Vapour HSL A/B for Vapour Intrusion, Clay",24000,null,"mg/m3","",null,null,null,4,8]
["91-20-3","Naphthalene","Gas","NEPM 2013 Table 1A(5) Res Soil Vapour HSL A/B for Vapour Intrusion, Clay",95,null,"mg/m3","",null,null,null,4,8]
["71-43-2","Benzene","Gas","NEPM 2013 Table 1A(5) Res Soil Vapour HSL A/B for Vapour Intrusion, Clay",90,null,"mg/m3","",null,null,null,4,8]
["F1-BTEX","F1","Gas","NEPM 2013 Table 1A(5) Res Soil Vapour HSL A/B for Vapour Intrusion, Clay",21000,null,"mg/m3","",null,"To obtain F1 subtract the sum of BTEX concentrations from the C6  - C10 fraction.",null,4,8]
["F2-NAPHTHALENE","F2","Gas","NEPM 2013 Table 1A(5) Res Soil Vapour HSL A/B for Vapour Intrusion, Clay",null,null,"mg/m3","NL",null,"To obtain F2 subtract napthalene from the >C10 - C16 fraction.",null,4,8]
["108-88-3","Toluene","Gas","NEPM 2013 Table 1A(5) Res Soil Vapour HSL A/B for Vapour Intrusion, Sand",29000,null,"mg/m3","",null,null,null,8]
["100-41-4","Ethylbenzene","Gas","NEPM 2013 Table 1A(5) Res Soil Vapour HSL A/B for Vapour Intrusion, Sand",8700,null,"mg/m3","",null,null,null,8]
["1330-20-7","Xylenes","Gas","NEPM 2013 Table 1A(5) Res Soil Vapour HSL A/B for Vapour Intrusion, Sand",6100,null,"mg/m3","",null,null,null,8]
["91-20-3","Naphthalene","Gas","NEPM 2013 Table 1A(5) Res Soil Vapour HSL A/B for Vapour Intrusion, Sand",25,null,"mg/m3","",null,null,null,8]
["71-43-2","Benzene","Gas","NEPM 2013 Table 1A(5) Res Soil Vapour HSL A/B for Vapour Intrusion, Sand",20,null,"mg/m3","",null,null,null,8]
["F1-BTEX","F1","Gas","NEPM 2013 Table 1A(5) Res Soil Vapour HSL A/B for Vapour Intrusion, Sand",5300,null,"mg/m3","",null,"To obtain F1 subtract the sum of BTEX concentrations from the C6  - C10 fraction.",null,8]
["F2-NAPHTHALENE","F2","Gas","NEPM 2013 Table 1A(5) Res Soil Vapour HSL A/B for Vapour Intrusion, Sand",4800,null,"mg/m3","",null,"To obtain F2 subtract napthalene from the >C10 - C16 fraction.",null,8]
["108-88-3","Toluene","Gas","NEPM 2013 Table 1A(5) Res Soil Vapour HSL A/B for Vapour Intrusion, Silt",140000,null,"mg/m3","",null,null,null,8]
["100-41-4","Ethylbenzene","Gas","NEPM 2013 Table 1A(5) Res Soil Vapour HSL A/B for Vapour Intrusion, Silt",43000,null,"mg/m3","",null,null,null,8]
["1330-20-7","Xylenes","Gas","NEPM 2013 Table 1A(5) Res Soil Vapour HSL A/B for Vapour Intrusion, Silt",30000,null,"mg/m3","",null,null,null,8]
["91-20-3","Naphthalene","Gas","NEPM 2013 Table 1A(5) Res Soil Vapour HSL A/B for Vapour Intrusion, Silt",120,null,"mg/m3","",null,null,null,8]
["71-43-2","Benzene","Gas","NEPM 2013 Table 1A(5) Res Soil Vapour HSL A/B for Vapour Intrusion, Silt",110,null,"mg/m3","",null,null,null,8]
["F1-BTEX","F1","Gas","NEPM 2013 Table 1A(5) Res Soil Vapour HSL A/B for Vapour Intrusion, Silt",26000,null,"mg/m3","",null,"To obtain F1 subtract the sum of BTEX concentrations from the C6  - C10 fraction.",null,8]
["F2-NAPHTHALENE","F2","Gas","NEPM 2013 Table 1A(5) Res Soil Vapour HSL A/B for Vapour Intrusion, Silt",null,null,"mg/m3","NL",null,"To obtain F2 subtract napthalene from the >C10 - C16 fraction.",null,8]
["108-88-3","Toluene","Gas","NEPM 2013 Table 1A(5) Res Soil Vapour HSL A/B for Vapour Intrusion, Clay",null,null,"mg/m3","NL",null,null,null,8]
["100-41-4","Ethylbenzene","Gas","NEPM 2013 Table 1A(5) Res Soil Vapour HSL A/B for Vapour Intrusion, Clay",null,null,"mg/m3","NL",null,null,null,8]
["1330-20-7","Xylenes","Gas","NEPM 2013 Table 1A(5) Res Soil Vapour HSL A/B for Vapour Intrusion, Clay",50000,null,"mg/m3","",null,null,null,8]
["91-20-3","Naphthalene","Gas","NEPM 2013 Table 1A(5) Res Soil Vapour HSL A/B for Vapour Intrusion, Clay",200,null,"mg/m3","",null,null,null,8]
["71-43-2","Benzene","Gas","NEPM 2013 Table 1A(5) Res Soil Vapour HSL A/B for Vapour Intrusion, Clay",180,null,"mg/m3","",null,null,null,8]
["F1-BTEX","F1","Gas","NEPM 2013 Table 1A(5) Res Soil Vapour HSL A/B for Vapour Intrusion, Clay",44000,null,"mg/m3","",null,"To obtain F1 subtract the sum of BTEX concentrations from the C6  - C10 fraction.",null,8]
["F2-NAPHTHALENE","F2","Gas","NEPM 2013 Table 1A(5) Res Soil Vapour HSL A/B for Vapour Intrusion, Clay",null,null,"mg/m3","NL",null,"To obtain F2 subtract napthalene from the >C10 - C16 fraction.",null,8]
["108-88-3","Toluene","Gas","NEPM 2013 Table 1A(5) Rec C Soil Vapour HSL for Vapour Intrusion, Sand",null,null,"mg/m3","NL",null,null,null,0,1]
["100-41-4","Ethylbenzene","Gas","NEPM 2013 Table 1A(5) Rec C Soil Vapour HSL for Vapour Intrusion, Sand",null,null,"mg/m3","NL",null,null,null,0,1]
["1330-20-7","Xylenes","Gas","NEPM 2013 Table 1A(5) Rec C Soil Vapour HSL for Vapour Intrusion, Sand",null,null,"mg/m3","NL",null,null,null,0,1]
["91-20-3","Naphthalene","Gas","NEPM 2013 Table 1A(5) Rec C Soil Vapour HSL for Vapour Intrusion, Sand",null,null,"mg/m3","NL",null,null,null,0,1]
["71-43-2","Benzene","Gas","NEPM 2013 Table 1A(5) Rec C Soil Vapour HSL for Vapour Intrusion, Sand",360,null,"mg/m3","",null,null,null,0,1]
["F1-BTEX","F1","Gas","NEPM 2013 Table 1A(5) Rec C Soil Vapour HSL for Vapour Intrusion, Sand",86000,null,"mg/m3","",null,"To obtain F1 subtract the sum of BTEX concentrations from the C6  - C10 fraction.",null,0,1]
["F2-NAPHTHALENE","F2","Gas","NEPM 2013 Table 1A(5) Rec C Soil Vapour HSL for Vapour Intrusion, Sand",null,null,"mg/m3","NL",null,"To obtain F2 subtract napthalene from the >C10 - C16 fraction.",null,0,1]
["108-88-3","Toluene","Gas","NEPM 2013 Table 1A(5) Rec C Soil Vapour HSL for Vapour Intrusion, Silt",null,null,"mg/m3","NL",null,null,null,0,1]
["100-41-4","Ethylbenzene","Gas","NEPM 2013 Table 1A(5) Rec C Soil Vapour HSL for Vapour Intrusion, Silt",null,null,"mg/m3","NL",null,null,null,0,1]
["1330-20-7","Xylenes","Gas","NEPM 2013 Table 1A(5) Rec C Soil Vapour HSL for Vapour Intrusion, Silt",null,null,"mg/m3","NL",null,null,null,0,1]
["91-20-3","Naphthalene","Gas","NEPM 2013 Table 1A(5) Rec C Soil Vapour HSL for Vapour Intrusion, Silt",null,null,"mg/m3","NL",null,null,null,0,1]
["71-43-2","Benzene","Gas","NEPM 2013 Table 1A(5) Rec C Soil Vapour HSL for Vapour Intrusion, Silt",1800,null,"mg/m3","",null,null,null,0,1]
["F1-BTEX","F1","Gas","NEPM 2013 Table 1A(5) Rec C Soil Vapour HSL for Vapour Intrusion, Silt",null,null,"mg/m3","NL",null,"To obtain F1 subtract the sum of BTEX concentrations from the C6  - C10 fraction.",null,0,1]
["F2-NAPHTHALENE","F2","Gas","NEPM 2013 Table 1A(5) Rec C Soil Vapour HSL for Vapour Intrusion, Silt",null,null,"mg/m3","NL",null,"To obtain F2 subtract napthalene from the >C10 - C16 fraction.",null,0,1]
["108-88-3","Toluene","Gas","NEPM 2013 Table 1A(5) Rec C Soil Vapour HSL for Vapour Intrusion, Clay",null,null,"mg/m3","NL",null,null,null,0,1]
["100-41-4","Ethylbenzene","Gas","NEPM 2013 Table 1A(5) Rec C Soil Vapour HSL for Vapour Intrusion, Clay",null,null,"mg/m3","NL",null,null,null,0,1]
["1330-20-7","Xylenes","Gas","NEPM 2013 Table 1A(5) Rec C Soil Vapour HSL for Vapour Intrusion, Clay",null,null,"mg/m3","NL",null,null,null,0,1]
["91-20-3","Naphthalene","Gas","NEPM 2013 Table 1A(5) Rec C Soil Vapour HSL for Vapour Intrusion, Clay",null,null,"mg/m3","NL",null,null,null,0,1]
["71-43-2","Benzene","Gas","NEPM 2013 Table 1A(5) Rec C Soil Vapour HSL for Vapour Intrusion, Clay",3000,null,"mg/m3","",null,null,null,0,1]
["F1-BTEX","F1","Gas","NEPM 2013 Table 1A(5) Rec C Soil Vapour HSL for Vapour Intrusion, Clay",null,null,"mg/m3","NL",null,"To obtain F1 subtract the sum of BTEX concentrations from the C6  - C10 fraction.",null,0,1]
["F2-NAPHTHALENE","F2","Gas","NEPM 2013 Table 1A(5) Rec C Soil Vapour HSL for Vapour Intrusion, Clay",null,null,"mg/m3","NL",null,"To obtain F2 subtract napthalene from the >C10 - C16 fraction.",null,0,1]
["108-88-3","Toluene","Gas","NEPM 2013 Table 1A(5) Rec C Soil Vapour HSL for Vapour Intrusion, Sand",null,null,"mg/m3","NL",null,null,null,1,2]
["100-41-4","Ethylbenzene","Gas","NEPM 2013 Table 1A(5) Rec C Soil Vapour HSL for Vapour Intrusion, Sand",null,null,"mg/m3","NL",null,null,null,1,2]
["1330-20-7","Xylenes","Gas","NEPM 2013 Table 1A(5) Rec C Soil Vapour HSL for Vapour Intrusion, Sand",null,null,"mg/m3","NL",null,null,null,1,2]
["91-20-3","Naphthalene","Gas","NEPM 2013 Table 1A(5) Rec C Soil Vapour HSL for Vapour Intrusion, Sand",null,null,"mg/m3","NL",null,null,null,1,2]
["71-43-2","Benzene","Gas","NEPM 2013 Table 1A(5) Rec C Soil Vapour HSL for Vapour Intrusion, Sand",2400,null,"mg/m3","",null,null,null,1,2]
["F1-BTEX","F1","Gas","NEPM 2013 Table 1A(5) Rec C Soil Vapour HSL for Vapour Intrusion, Sand",null,null,"mg/m3","NL",null,"To obtain F1 subtract the sum of BTEX concentrations from the C6  - C10 fraction.",null,1,2]
["F2-NAPHTHALENE","F2","Gas","NEPM 2013 Table 1A(5) Rec C Soil Vapour HSL for Vapour Intrusion, Sand",null,null,"mg/m3","NL",null,"To obtain F2 subtract napthalene from the >C10 - C16 fraction.",null,1,2]
["108-88-3","Toluene","Gas","NEPM 2013 Table 1A(5) Rec C Soil Vapour HSL for Vapour Intrusion, Silt",null,null,"mg/m3","NL",null,null,null,1,2]
["100-41-4","Ethylbenzene","Gas","NEPM 2013 Table 1A(5) Rec C Soil Vapour HSL for Vapour Intrusion, Silt",null,null,"mg/m3","NL",null,null,null,1,2]
["1330-20-7","Xylenes","Gas","NEPM 2013 Table 1A(5) Rec C Soil Vapour HSL for Vapour Intrusion, Silt",null,null,"mg/m3","NL",null,null,null,1,2]
["91-20-3","Naphthalene","Gas","NEPM 2013 Table 1A(5) Rec C Soil Vapour HSL for Vapour Intrusion, Silt",null,null,"mg/m3","NL",null,null,null,1,2]
["71-43-2","Benzene","Gas","NEPM 2013 Table 1A(5) Rec C Soil Vapour HSL for Vapour Intrusion, Silt",12000,null,"mg/m3","",null,null,null,1,2]
["F1-BTEX","F1","Gas","NEPM 2013 Table 1A(5) Rec C Soil Vapour HSL for Vapour Intrusion, Silt",null,null,"mg/m3","NL",null,"To obtain F1 subtract the sum of BTEX concentrations from the C6  - C10 fraction.",null,1,2]
["F2-NAPHTHALENE","F2","Gas","NEPM 2013 Table 1A(5) Rec C Soil Vapour HSL for Vapour Intrusion, Silt",null,null,"mg/m3","NL",null,"To obtain F2 subtract napthalene from the >C10 - C16 fraction.",null,1,2]
["108-88-3","Toluene","Gas","NEPM 2013 Table 1A(5) Rec C Soil Vapour HSL for Vapour Intrusion, Clay",null,null,"mg/m3","NL",null,null,null,1,2]
["100-41-4","Ethylbenzene","Gas","NEPM 2013 Table 1A(5) Rec C Soil Vapour HSL for Vapour Intrusion, Clay",null,null,"mg/m3","NL",null,null,null,1,2]
["1330-20-7","Xylenes","Gas","NEPM 2013 Table 1A(5) Rec C Soil Vapour HSL for Vapour Intrusion, Clay",null,null,"mg/m3","NL",null,null,null,1,2]
["91-20-3","Naphthalene","Gas","NEPM 2013 Table 1A(5) Rec C Soil Vapour HSL for Vapour Intrusion, Clay",null,null,"mg/m3","NL",null,null,null,1,2]
["71-43-2","Benzene","Gas","NEPM 2013 Table 1A(5) Rec C Soil Vapour HSL for Vapour Intrusion, Clay",20000,null,"mg/m3","",null,null,null,1,2]
["F1-BTEX","F1","Gas","NEPM 2013 Table 1A(5) Rec C Soil Vapour HSL for Vapour Intrusion, Clay",null,null,"mg/m3","NL",null,"To obtain F1 subtract the sum of BTEX concentrations from the C6  - C10 fraction.",null,1,2]
["F2-NAPHTHALENE","F2","Gas","NEPM 2013 Table 1A(5) Rec C Soil Vapour HSL for Vapour Intrusion, Clay",null,null,"mg/m3","NL",null,"To obtain F2 subtract napthalene from the >C10 - C16 fraction.",null,1,2]
["108-88-3","Toluene","Gas","NEPM 2013 Table 1A(5) Rec C Soil Vapour HSL for Vapour Intrusion, Sand",null,null,"mg/m3","NL",null,null,null,2,4]
["100-41-4","Ethylbenzene","Gas","NEPM 2013 Table 1A(5) Rec C Soil Vapour HSL for Vapour Intrusion, Sand",null,null,"mg/m3","NL",null,null,null,2,4]
["1330-20-7","Xylenes","Gas","NEPM 2013 Table 1A(5) Rec C Soil Vapour HSL for Vapour Intrusion, Sand",null,null,"mg/m3","NL",null,null,null,2,4]
["91-20-3","Naphthalene","Gas","NEPM 2013 Table 1A(5) Rec C Soil Vapour HSL for Vapour Intrusion, Sand",null,null,"mg/m3","NL",null,null,null,2,4]
["71-43-2","Benzene","Gas","NEPM 2013 Table 1A(5) Rec C Soil Vapour HSL for Vapour Intrusion, Sand",4700,null,"mg/m3","",null,null,null,2,4]
["F1-BTEX","F1","Gas","NEPM 2013 Table 1A(5) Rec C Soil Vapour HSL for Vapour Intrusion, Sand",null,null,"mg/m3","NL",null,"To obtain F1 subtract the sum of BTEX concentrations from the C6  - C10 fraction.",null,2,4]
["F2-NAPHTHALENE","F2","Gas","NEPM 2013 Table 1A(5) Rec C Soil Vapour HSL for Vapour Intrusion, Sand",null,null,"mg/m3","NL",null,"To obtain F2 subtract napthalene from the >C10 - C16 fraction.",null,2,4]
["108-88-3","Toluene","Gas","NEPM 2013 Table 1A(5) Rec C Soil Vapour HSL for Vapour Intrusion, Silt",null,null,"mg/m3","NL",null,null,null,2,4]
["100-41-4","Ethylbenzene","Gas","NEPM 2013 Table 1A(5) Rec C Soil Vapour HSL for Vapour Intrusion, Silt",null,null,"mg/m3","NL",null,null,null,2,4]
["1330-20-7","Xylenes","Gas","NEPM 2013 Table 1A(5) Rec C Soil Vapour HSL for Vapour Intrusion, Silt",null,null,"mg/m3","NL",null,null,null,2,4]
["91-20-3","Naphthalene","Gas","NEPM 2013 Table 1A(5) Rec C Soil Vapour HSL for Vapour Intrusion, Silt",null,null,"mg/m3","NL",null,null,null,2,4]
["71-43-2","Benzene","Gas","NEPM 2013 Table 1A(5) Rec C Soil Vapour HSL for Vapour Intrusion, Silt",24000,null,"mg/m3","",null,null,null,2,4]
["F1-BTEX","F1","Gas","NEPM 2013 Table 1A(5) Rec C Soil Vapour HSL for Vapour Intrusion, Silt",null,null,"mg/m3","NL",null,"To obtain F1 subtract the sum of BTEX concentrations from the C6  - C10 fraction.",null,2,4]
["F2-NAPHTHALENE","F2","Gas","NEPM 2013 Table 1A(5) Rec C Soil Vapour HSL for Vapour Intrusion, Silt",null,null,"mg/m3","NL",null,"To obtain F2 subtract napthalene from the >C10 - C16 fraction.",null,2,4]
["108-88-3","Toluene","Gas","NEPM 2013 Table 1A(5) Rec C Soil Vapour HSL for Vapour Intrusion, Clay",null,null,"mg/m3","NL",null,null,null,2,4]
["100-41-4","Ethylbenzene","Gas","NEPM 2013 Table 1A(5) Rec C Soil Vapour HSL for Vapour Intrusion, Clay",null,null,"mg/m3","NL",null,null,null,2,4]
["1330-20-7","Xylenes","Gas","NEPM 2013 Table 1A(5) Rec C Soil Vapour HSL for Vapour Intrusion, Clay",null,null,"mg/m3","NL",null,null,null,2,4]
["91-20-3","Naphthalene","Gas","NEPM 2013 Table 1A(5) Rec C Soil Vapour HSL for Vapour Intrusion, Clay",null,null,"mg/m3","NL",null,null,null,2,4]
["71-43-2","Benzene","Gas","NEPM 2013 Table 1A(5) Rec C Soil Vapour HSL for Vapour Intrusion, Clay",40000,null,"mg/m3","",null,null,null,2,4]
["F1-BTEX","F1","Gas","NEPM 2013 Table 1A(5) Rec C Soil Vapour HSL for Vapour Intrusion, Clay",null,null,"mg/m3","NL",null,"To obtain F1 subtract the sum of BTEX concentrations from the C6  - C10 fraction.",null,2,4]
["F2-NAPHTHALENE","F2","Gas","NEPM 2013 Table 1A(5) Rec C Soil Vapour HSL for Vapour Intrusion, Clay",null,null,"mg/m3","NL",null,"To obtain F2 subtract napthalene from the >C10 - C16 fraction.",null,2,4]
["108-88-3","Toluene","Gas","NEPM 2013 Table 1A(5) Rec C Soil Vapour HSL for Vapour Intrusion, Sand",null,null,"mg/m3","NL",null,null,null,4,8]
["100-41-4","Ethylbenzene","Gas","NEPM 2013 Table 1A(5) Rec C Soil Vapour HSL for Vapour Intrusion, Sand",null,null,"mg/m3","NL",null,null,null,4,8]
["1330-20-7","Xylenes","Gas","NEPM 2013 Table 1A(5) Rec C Soil Vapour HSL for Vapour Intrusion, Sand",null,null,"mg/m3","NL",null,null,null,4,8]
["91-20-3","Naphthalene","Gas","NEPM 2013 Table 1A(5) Rec C Soil Vapour HSL for Vapour Intrusion, Sand",null,null,"mg/m3","NL",null,null,null,4,8]
["71-43-2","Benzene","Gas","NEPM 2013 Table 1A(5) Rec C Soil Vapour HSL for Vapour Intrusion, Sand",9500,null,"mg/m3","",null,null,null,4,8]
["F1-BTEX","F1","Gas","NEPM 2013 Table 1A(5) Rec C Soil Vapour HSL for Vapour Intrusion, Sand",null,null,"mg/m3","NL",null,"To obtain F1 subtract the sum of BTEX concentrations from the C6  - C10 fraction.",null,4,8]
["F2-NAPHTHALENE","F2","Gas","NEPM 2013 Table 1A(5) Rec C Soil Vapour HSL for Vapour Intrusion, Sand",null,null,"mg/m3","NL",null,"To obtain F2 subtract napthalene from the >C10 - C16 fraction.",null,4,8]
["108-88-3","Toluene","Gas","NEPM 2013 Table 1A(5) Rec C Soil Vapour HSL for Vapour Intrusion, Silt",null,null,"mg/m3","NL",null,null,null,4,8]
["100-41-4","Ethylbenzene","Gas","NEPM 2013 Table 1A(5) Rec C Soil Vapour HSL for Vapour Intrusion, Silt",null,null,"mg/m3","NL",null,null,null,4,8]
["1330-20-7","Xylenes","Gas","NEPM 2013 Table 1A(5) Rec C Soil Vapour HSL for Vapour Intrusion, Silt",null,null,"mg/m3","NL",null,null,null,4,8]
["91-20-3","Naphthalene","Gas","NEPM 2013 Table 1A(5) Rec C Soil Vapour HSL for Vapour Intrusion, Silt",null,null,"mg/m3","NL",null,null,null,4,8]
["71-43-2","Benzene","Gas","NEPM 2013 Table 1A(5) Rec C Soil Vapour HSL for Vapour Intrusion, Silt",48000,null,"mg/m3","",null,null,null,4,8]
["F1-BTEX","F1","Gas","NEPM 2013 Table 1A(5) Rec C Soil Vapour HSL for Vapour Intrusion, Silt",null,null,"mg/m3","NL",null,"To obtain F1 subtract the sum of BTEX concentrations from the C6  - C10 fraction.",null,4,8]
["F2-NAPHTHALENE","F2","Gas","NEPM 2013 Table 1A(5) Rec C Soil Vapour HSL for Vapour Intrusion, Silt",null,null,"mg/m3","NL",null,"To obtain F2 subtract napthalene from the >C10 - C16 fraction.",null,4,8]
["108-88-3","Toluene","Gas","NEPM 2013 Table 1A(5) Rec C Soil Vapour HSL for Vapour Intrusion, Clay",null,null,"mg/m3","NL",null,null,null,4,8]
["100-41-4","Ethylbenzene","Gas","NEPM 2013 Table 1A(5) Rec C Soil Vapour HSL for Vapour Intrusion, Clay",null,null,"mg/m3","NL",null,null,null,4,8]
["1330-20-7","Xylenes","Gas","NEPM 2013 Table 1A(5) Rec C Soil Vapour HSL for Vapour Intrusion, Clay",null,null,"mg/m3","NL",null,null,null,4,8]
["91-20-3","Naphthalene","Gas","NEPM 2013 Table 1A(5) Rec C Soil Vapour HSL for Vapour Intrusion, Clay",null,null,"mg/m3","NL",null,null,null,4,8]
["71-43-2","Benzene","Gas","NEPM 2013 Table 1A(5) Rec C Soil Vapour HSL for Vapour Intrusion, Clay",81000,null,"mg/m3","",null,null,null,4,8]
["F1-BTEX","F1","Gas","NEPM 2013 Table 1A(5) Rec C Soil Vapour HSL for Vapour Intrusion, Clay",null,null,"mg/m3","NL",null,"To obtain F1 subtract the sum of BTEX concentrations from the C6  - C10 fraction.",null,4,8]
["F2-NAPHTHALENE","F2","Gas","NEPM 2013 Table 1A(5) Rec C Soil Vapour HSL for Vapour Intrusion, Clay",null,null,"mg/m3","NL",null,"To obtain F2 subtract napthalene from the >C10 - C16 fraction.",null,4,8]
["108-88-3","Toluene","Gas","NEPM 2013 Table 1A(5) Rec C Soil Vapour HSL for Vapour Intrusion, Sand",null,null,"mg/m3","NL",null,null,null,8]
["100-41-4","Ethylbenzene","Gas","NEPM 2013 Table 1A(5) Rec C Soil Vapour HSL for Vapour Intrusion, Sand",null,null,"mg/m3","NL",null,null,null,8]
["1330-20-7","Xylenes","Gas","NEPM 2013 Table 1A(5) Rec C Soil Vapour HSL for Vapour Intrusion, Sand",null,null,"mg/m3","NL",null,null,null,8]
["91-20-3","Naphthalene","Gas","NEPM 2013 Table 1A(5) Rec C Soil Vapour HSL for Vapour Intrusion, Sand",null,null,"mg/m3","NL",null,null,null,8]
["71-43-2","Benzene","Gas","NEPM 2013 Table 1A(5) Rec C Soil Vapour HSL for Vapour Intrusion, Sand",19000,null,"mg/m3","",null,null,null,8]
["F1-BTEX","F1","Gas","NEPM 2013 Table 1A(5) Rec C Soil Vapour HSL for Vapour Intrusion, Sand",null,null,"mg/m3","NL",null,"To obtain F1 subtract the sum of BTEX concentrations from the C6  - C10 fraction.",null,8]
["F2-NAPHTHALENE","F2","Gas","NEPM 2013 Table 1A(5) Rec C Soil Vapour HSL for Vapour Intrusion, Sand",null,null,"mg/m3","NL",null,"To obtain F2 subtract napthalene from the >C10 - C16 fraction.",null,8]
["108-88-3","Toluene","Gas","NEPM 2013 Table 1A(5) Rec C Soil Vapour HSL for Vapour Intrusion, Silt",null,null,"mg/m3","NL",null,null,null,8]
["100-41-4","Ethylbenzene","Gas","NEPM 2013 Table 1A(5) Rec C Soil Vapour HSL for Vapour Intrusion, Silt",null,null,"mg/m3","NL",null,null,null,8]
["1330-20-7","Xylenes","Gas","NEPM 2013 Table 1A(5) Rec C Soil Vapour HSL for Vapour Intrusion, Silt",null,null,"mg/m3","NL",null,null,null,8]
["91-20-3","Naphthalene","Gas","NEPM 2013 Table 1A(5) Rec C Soil Vapour HSL for Vapour Intrusion, Silt",null,null,"mg/m3","NL",null,null,null,8]
["71-43-2","Benzene","Gas","NEPM 2013 Table 1A(5) Rec C Soil Vapour HSL for Vapour Intrusion, Silt",97000,null,"mg/m3","",null,null,null,8]
["F1-BTEX","F1","Gas","NEPM 2013 Table 1A(5) Rec C Soil Vapour HSL for Vapour Intrusion, Silt",null,null,"mg/m3","NL",null,"To obtain F1 subtract the sum of BTEX concentrations from the C6  - C10 fraction.",null,8]
["F2-NAPHTHALENE","F2","Gas","NEPM 2013 Table 1A(5) Rec C Soil Vapour HSL for Vapour Intrusion, Silt",null,null,"mg/m3","NL",null,"To obtain F2 subtract napthalene from the >C10 - C16 fraction.",null,8]
["108-88-3","Toluene","Gas","NEPM 2013 Table 1A(5) Rec C Soil Vapour HSL for Vapour Intrusion, Clay",null,null,"mg/m3","NL",null,null,null,8]
["100-41-4","Ethylbenzene","Gas","NEPM 2013 Table 1A(5) Rec C Soil Vapour HSL for Vapour Intrusion, Clay",null,null,"mg/m3","NL",null,null,null,8]
["1330-20-7","Xylenes","Gas","NEPM 2013 Table 1A(5) Rec C Soil Vapour HSL for Vapour Intrusion, Clay",null,null,"mg/m3","NL",null,null,null,8]
["91-20-3","Naphthalene","Gas","NEPM 2013 Table 1A(5) Rec C Soil Vapour HSL for Vapour Intrusion, Clay",null,null,"mg/m3","NL",null,null,null,8]
["71-43-2","Benzene","Gas","NEPM 2013 Table 1A(5) Rec C Soil Vapour HSL for Vapour Intrusion, Clay",160000,null,"mg/m3","",null,null,null,8]
["F1-BTEX","F1","Gas","NEPM 2013 Table 1A(5) Rec C Soil Vapour HSL for Vapour Intrusion, Clay",null,null,"mg/m3","NL",null,"To obtain F1 subtract the sum of BTEX concentrations from the C6  - C10 fraction.",null,8]
["F2-NAPHTHALENE","F2","Gas","NEPM 2013 Table 1A(5) Rec C Soil Vapour HSL for Vapour Intrusion, Clay",null,null,"mg/m3","NL",null,"To obtain F2 subtract napthalene from the >C10 - C16 fraction.",null,8]
["108-88-3","Toluene","Gas","NEPM 2013 Table 1A(5) Comm/Ind D Soil Vapour HSL for Vapour Intrusion, Sand",4800,null,"mg/m3","",null,null,null,0,1]
["100-41-4","Ethylbenzene","Gas","NEPM 2013 Table 1A(5) Comm/Ind D Soil Vapour HSL for Vapour Intrusion, Sand",1300,null,"mg/m3","",null,null,null,0,1]
["1330-20-7","Xylenes","Gas","NEPM 2013 Table 1A(5) Comm/Ind D Soil Vapour HSL for Vapour Intrusion, Sand",840,null,"mg/m3","",null,null,null,0,1]
["91-20-3","Naphthalene","Gas","NEPM 2013 Table 1A(5) Comm/Ind D Soil Vapour HSL for Vapour Intrusion, Sand",3,null,"mg/m3","",null,null,null,0,1]
["71-43-2","Benzene","Gas","NEPM 2013 Table 1A(5) Comm/Ind D Soil Vapour HSL for Vapour Intrusion, Sand",4,null,"mg/m3","",null,null,null,0,1]
["F1-BTEX","F1","Gas","NEPM 2013 Table 1A(5) Comm/Ind D Soil Vapour HSL for Vapour Intrusion, Sand",680,null,"mg/m3","",null,"To obtain F1 subtract the sum of BTEX concentrations from the C6  - C10 fraction.",null,0,1]
["F2-NAPHTHALENE","F2","Gas","NEPM 2013 Table 1A(5) Comm/Ind D Soil Vapour HSL for Vapour Intrusion, Sand",500,null,"mg/m3","",null,"To obtain F2 subtract napthalene from the >C10 - C16 fraction.",null,0,1]
["108-88-3","Toluene","Gas","NEPM 2013 Table 1A(5) Comm/Ind D Soil Vapour HSL for Vapour Intrusion, Silt",5700,null,"mg/m3","",null,null,null,0,1]
["100-41-4","Ethylbenzene","Gas","NEPM 2013 Table 1A(5) Comm/Ind D Soil Vapour HSL for Vapour Intrusion, Silt",1500,null,"mg/m3","",null,null,null,0,1]
["1330-20-7","Xylenes","Gas","NEPM 2013 Table 1A(5) Comm/Ind D Soil Vapour HSL for Vapour Intrusion, Silt",1000,null,"mg/m3","",null,null,null,0,1]
["91-20-3","Naphthalene","Gas","NEPM 2013 Table 1A(5) Comm/Ind D Soil Vapour HSL for Vapour Intrusion, Silt",4,null,"mg/m3","",null,null,null,0,1]
["71-43-2","Benzene","Gas","NEPM 2013 Table 1A(5) Comm/Ind D Soil Vapour HSL for Vapour Intrusion, Silt",4,null,"mg/m3","",null,null,null,0,1]
["F1-BTEX","F1","Gas","NEPM 2013 Table 1A(5) Comm/Ind D Soil Vapour HSL for Vapour Intrusion, Silt",850,null,"mg/m3","",null,"To obtain F1 subtract the sum of BTEX concentrations from the C6  - C10 fraction.",null,0,1]
["F2-NAPHTHALENE","F2","Gas","NEPM 2013 Table 1A(5) Comm/Ind D Soil Vapour HSL for Vapour Intrusion, Silt",670,null,"mg/m3","",null,"To obtain F2 subtract napthalene from the >C10 - C16 fraction.",null,0,1]
["108-88-3","Toluene","Gas","NEPM 2013 Table 1A(5) Comm/Ind D Soil Vapour HSL for Vapour Intrusion, Clay",6500,null,"mg/m3","",null,null,null,0,1]
["100-41-4","Ethylbenzene","Gas","NEPM 2013 Table 1A(5) Comm/Ind D Soil Vapour HSL for Vapour Intrusion, Clay",1800,null,"mg/m3","",null,null,null,0,1]
["1330-20-7","Xylenes","Gas","NEPM 2013 Table 1A(5) Comm/Ind D Soil Vapour HSL for Vapour Intrusion, Clay",1200,null,"mg/m3","",null,null,null,0,1]
["91-20-3","Naphthalene","Gas","NEPM 2013 Table 1A(5) Comm/Ind D Soil Vapour HSL for Vapour Intrusion, Clay",4,null,"mg/m3","",null,null,null,0,1]
["71-43-2","Benzene","Gas","NEPM 2013 Table 1A(5) Comm/Ind D Soil Vapour HSL for Vapour Intrusion, Clay",5,null,"mg/m3","",null,null,null,0,1]
["F1-BTEX","F1","Gas","NEPM 2013 Table 1A(5) Comm/Ind D Soil Vapour HSL for Vapour Intrusion, Clay",1000,null,"mg/m3","",null,"To obtain F1 subtract the sum of BTEX concentrations from the C6  - C10 fraction.",null,0,1]
["F2-NAPHTHALENE","F2","Gas","NEPM 2013 Table 1A(5) Comm/Ind D Soil Vapour HSL for Vapour Intrusion, Clay",800,null,"mg/m3","",null,"To obtain F2 subtract napthalene from the >C10 - C16 fraction.",null,0,1]
["108-88-3","Toluene","Gas","NEPM 2013 Table 1A(5) Comm/Ind D Soil Vapour HSL for Vapour Intrusion, Sand",16000,null,"mg/m3","",null,null,null,1,2]
["100-41-4","Ethylbenzene","Gas","NEPM 2013 Table 1A(5) Comm/Ind D Soil Vapour HSL for Vapour Intrusion, Sand",4600,null,"mg/m3","",null,null,null,1,2]
["1330-20-7","Xylenes","Gas","NEPM 2013 Table 1A(5) Comm/Ind D Soil Vapour HSL for Vapour Intrusion, Sand",3200,null,"mg/m3","",null,null,null,1,2]
["91-20-3","Naphthalene","Gas","NEPM 2013 Table 1A(5) Comm/Ind D Soil Vapour HSL for Vapour Intrusion, Sand",15,null,"mg/m3","",null,null,null,1,2]
["71-43-2","Benzene","Gas","NEPM 2013 Table 1A(5) Comm/Ind D Soil Vapour HSL for Vapour Intrusion, Sand",10,null,"mg/m3","",null,null,null,1,2]
["F1-BTEX","F1","Gas","NEPM 2013 Table 1A(5) Comm/Ind D Soil Vapour HSL for Vapour Intrusion, Sand",2800,null,"mg/m3","",null,"To obtain F1 subtract the sum of BTEX concentrations from the C6  - C10 fraction.",null,1,2]
["F2-NAPHTHALENE","F2","Gas","NEPM 2013 Table 1A(5) Comm/Ind D Soil Vapour HSL for Vapour Intrusion, Sand",2400,null,"mg/m3","",null,"To obtain F2 subtract napthalene from the >C10 - C16 fraction.",null,1,2]
["108-88-3","Toluene","Gas","NEPM 2013 Table 1A(5) Comm/Ind D Soil Vapour HSL for Vapour Intrusion, Silt",63000,null,"mg/m3","",null,null,null,1,2]
["100-41-4","Ethylbenzene","Gas","NEPM 2013 Table 1A(5) Comm/Ind D Soil Vapour HSL for Vapour Intrusion, Silt",19000,null,"mg/m3","",null,null,null,1,2]
["1330-20-7","Xylenes","Gas","NEPM 2013 Table 1A(5) Comm/Ind D Soil Vapour HSL for Vapour Intrusion, Silt",13000,null,"mg/m3","",null,null,null,1,2]
["91-20-3","Naphthalene","Gas","NEPM 2013 Table 1A(5) Comm/Ind D Soil Vapour HSL for Vapour Intrusion, Silt",50,null,"mg/m3","",null,null,null,1,2]
["71-43-2","Benzene","Gas","NEPM 2013 Table 1A(5) Comm/Ind D Soil Vapour HSL for Vapour Intrusion, Silt",50,null,"mg/m3","",null,null,null,1,2]
["F1-BTEX","F1","Gas","NEPM 2013 Table 1A(5) Comm/Ind D Soil Vapour HSL for Vapour Intrusion, Silt",11000,null,"mg/m3","",null,"To obtain F1 subtract the sum of BTEX concentrations from the C6  - C10 fraction.",null,1,2]
["F2-NAPHTHALENE","F2","Gas","NEPM 2013 Table 1A(5) Comm/Ind D Soil Vapour HSL for Vapour Intrusion, Silt",null,null,"mg/m3","NL",null,"To obtain F2 subtract napthalene from the >C10 - C16 fraction.",null,1,2]
["108-88-3","Toluene","Gas","NEPM 2013 Table 1A(5) Comm/Ind D Soil Vapour HSL for Vapour Intrusion, Clay",100000,null,"mg/m3","",null,null,null,1,2]
["100-41-4","Ethylbenzene","Gas","NEPM 2013 Table 1A(5) Comm/Ind D Soil Vapour HSL for Vapour Intrusion, Clay",31000,null,"mg/m3","",null,null,null,1,2]
["1330-20-7","Xylenes","Gas","NEPM 2013 Table 1A(5) Comm/Ind D Soil Vapour HSL for Vapour Intrusion, Clay",21000,null,"mg/m3","",null,null,null,1,2]
["91-20-3","Naphthalene","Gas","NEPM 2013 Table 1A(5) Comm/Ind D Soil Vapour HSL for Vapour Intrusion, Clay",85,null,"mg/m3","",null,null,null,1,2]
["71-43-2","Benzene","Gas","NEPM 2013 Table 1A(5) Comm/Ind D Soil Vapour HSL for Vapour Intrusion, Clay",80,null,"mg/m3","",null,null,null,1,2]
["F1-BTEX","F1","Gas","NEPM 2013 Table 1A(5) Comm/Ind D Soil Vapour HSL for Vapour Intrusion, Clay",19000,null,"mg/m3","",null,"To obtain F1 subtract the sum of BTEX concentrations from the C6  - C10 fraction.",null,1,2]
["F2-NAPHTHALENE","F2","Gas","NEPM 2013 Table 1A(5) Comm/Ind D Soil Vapour HSL for Vapour Intrusion, Clay",null,null,"mg/m3","NL",null,"To obtain F2 subtract napthalene from the >C10 - C16 fraction.",null,1,2]
["108-88-3","Toluene","Gas","NEPM 2013 Table 1A(5) Comm/Ind D Soil Vapour HSL for Vapour Intrusion, Sand",39000,null,"mg/m3","",null,null,null,2,4]
["100-41-4","Ethylbenzene","Gas","NEPM 2013 Table 1A(5) Comm/Ind D Soil Vapour HSL for Vapour Intrusion, Sand",11000,null,"mg/m3","",null,null,null,2,4]
["1330-20-7","Xylenes","Gas","NEPM 2013 Table 1A(5) Comm/Ind D Soil Vapour HSL for Vapour Intrusion, Sand",8000,null,"mg/m3","",null,null,null,2,4]
["91-20-3","Naphthalene","Gas","NEPM 2013 Table 1A(5) Comm/Ind D Soil Vapour HSL for Vapour Intrusion, Sand",35,null,"mg/m3","",null,null,null,2,4]
["71-43-2","Benzene","Gas","NEPM 2013 Table 1A(5) Comm/Ind D Soil Vapour HSL for Vapour Intrusion, Sand",30,null,"mg/m3","",null,null,null,2,4]
["F1-BTEX","F1","Gas","NEPM 2013 Table 1A(5) Comm/Ind D Soil Vapour HSL for Vapour Intrusion, Sand",7000,null,"mg/m3","",null,"To obtain F1 subtract the sum of BTEX concentrations from the C6  - C10 fraction.",null,2,4]
["F2-NAPHTHALENE","F2","Gas","NEPM 2013 Table 1A(5) Comm/Ind D Soil Vapour HSL for Vapour Intrusion, Sand",null,null,"mg/m3","NL",null,"To obtain F2 subtract napthalene from the >C10 - C16 fraction.",null,2,4]
["108-88-3","Toluene","Gas","NEPM 2013 Table 1A(5) Comm/Ind D Soil Vapour HSL for Vapour Intrusion, Silt",null,null,"mg/m3","NL",null,null,null,2,4]
["100-41-4","Ethylbenzene","Gas","NEPM 2013 Table 1A(5) Comm/Ind D Soil Vapour HSL for Vapour Intrusion, Silt",54000,null,"mg/m3","",null,null,null,2,4]
["1330-20-7","Xylenes","Gas","NEPM 2013 Table 1A(5) Comm/Ind D Soil Vapour HSL for Vapour Intrusion, Silt",38000,null,"mg/m3","",null,null,null,2,4]
["91-20-3","Naphthalene","Gas","NEPM 2013 Table 1A(5) Comm/Ind D Soil Vapour HSL for Vapour Intrusion, Silt",150,null,"mg/m3","",null,null,null,2,4]
["71-43-2","Benzene","Gas","NEPM 2013 Table 1A(5) Comm/Ind D Soil Vapour HSL for Vapour Intrusion, Silt",140,null,"mg/m3","",null,null,null,2,4]
["F1-BTEX","F1","Gas","NEPM 2013 Table 1A(5) Comm/Ind D Soil Vapour HSL for Vapour Intrusion, Silt",33000,null,"mg/m3","",null,"To obtain F1 subtract the sum of BTEX concentrations from the C6  - C10 fraction.",null,2,4]
["F2-NAPHTHALENE","F2","Gas","NEPM 2013 Table 1A(5) Comm/Ind D Soil Vapour HSL for Vapour Intrusion, Silt",null,null,"mg/m3","NL",null,"To obtain F2 subtract napthalene from the >C10 - C16 fraction.",null,2,4]
["108-88-3","Toluene","Gas","NEPM 2013 Table 1A(5) Comm/Ind D Soil Vapour HSL for Vapour Intrusion, Clay",null,null,"mg/m3","NL",null,null,null,2,4]
["100-41-4","Ethylbenzene","Gas","NEPM 2013 Table 1A(5) Comm/Ind D Soil Vapour HSL for Vapour Intrusion, Clay",null,null,"mg/m3","NL",null,null,null,2,4]
["1330-20-7","Xylenes","Gas","NEPM 2013 Table 1A(5) Comm/Ind D Soil Vapour HSL for Vapour Intrusion, Clay",null,null,"mg/m3","NL",null,null,null,2,4]
["91-20-3","Naphthalene","Gas","NEPM 2013 Table 1A(5) Comm/Ind D Soil Vapour HSL for Vapour Intrusion, Clay",240,null,"mg/m3","",null,null,null,2,4]
["71-43-2","Benzene","Gas","NEPM 2013 Table 1A(5) Comm/Ind D Soil Vapour HSL for Vapour Intrusion, Clay",230,null,"mg/m3","",null,null,null,2,4]
["F1-BTEX","F1","Gas","NEPM 2013 Table 1A(5) Comm/Ind D Soil Vapour HSL for Vapour Intrusion, Clay",55000,null,"mg/m3","",null,"To obtain F1 subtract the sum of BTEX concentrations from the C6  - C10 fraction.",null,2,4]
["F2-NAPHTHALENE","F2","Gas","NEPM 2013 Table 1A(5) Comm/Ind D Soil Vapour HSL for Vapour Intrusion, Clay",null,null,"mg/m3","NL",null,"To obtain F2 subtract napthalene from the >C10 - C16 fraction.",null,2,4]
["108-88-3","Toluene","Gas","NEPM 2013 Table 1A(5) Comm/Ind D Soil Vapour HSL for Vapour Intrusion, Sand",84000,null,"mg/m3","",null,null,null,4,8]
["100-41-4","Ethylbenzene","Gas","NEPM 2013 Table 1A(5) Comm/Ind D Soil Vapour HSL for Vapour Intrusion, Sand",25000,null,"mg/m3","",null,null,null,4,8]
["1330-20-7","Xylenes","Gas","NEPM 2013 Table 1A(5) Comm/Ind D Soil Vapour HSL for Vapour Intrusion, Sand",18000,null,"mg/m3","",null,null,null,4,8]
["91-20-3","Naphthalene","Gas","NEPM 2013 Table 1A(5) Comm/Ind D Soil Vapour HSL for Vapour Intrusion, Sand",75,null,"mg/m3","",null,null,null,4,8]
["71-43-2","Benzene","Gas","NEPM 2013 Table 1A(5) Comm/Ind D Soil Vapour HSL for Vapour Intrusion, Sand",65,null,"mg/m3","",null,null,null,4,8]
["F1-BTEX","F1","Gas","NEPM 2013 Table 1A(5) Comm/Ind D Soil Vapour HSL for Vapour Intrusion, Sand",15000,null,"mg/m3","",null,"To obtain F1 subtract the sum of BTEX concentrations from the C6  - C10 fraction.",null,4,8]
["F2-NAPHTHALENE","F2","Gas","NEPM 2013 Table 1A(5) Comm/Ind D Soil Vapour HSL for Vapour Intrusion, Sand",null,null,"mg/m3","NL",null,"To obtain F2 subtract napthalene from the >C10 - C16 fraction.",null,4,8]
["108-88-3","Toluene","Gas","NEPM 2013 Table 1A(5) Comm/Ind D Soil Vapour HSL for Vapour Intrusion, Silt",null,null,"mg/m3","NL",null,null,null,4,8]
["100-41-4","Ethylbenzene","Gas","NEPM 2013 Table 1A(5) Comm/Ind D Soil Vapour HSL for Vapour Intrusion, Silt",null,null,"mg/m3","NL",null,null,null,4,8]
["1330-20-7","Xylenes","Gas","NEPM 2013 Table 1A(5) Comm/Ind D Soil Vapour HSL for Vapour Intrusion, Silt",null,null,"mg/m3","NL",null,null,null,4,8]
["91-20-3","Naphthalene","Gas","NEPM 2013 Table 1A(5) Comm/Ind D Soil Vapour HSL for Vapour Intrusion, Silt",350,null,"mg/m3","",null,null,null,4,8]
["71-43-2","Benzene","Gas","NEPM 2013 Table 1A(5) Comm/Ind D Soil Vapour HSL for Vapour Intrusion, Silt",320,null,"mg/m3","",null,null,null,4,8]
["F1-BTEX","F1","Gas","NEPM 2013 Table 1A(5) Comm/Ind D Soil Vapour HSL for Vapour Intrusion, Silt",77000,null,"mg/m3","",null,"To obtain F1 subtract the sum of BTEX concentrations from the C6  - C10 fraction.",null,4,8]
["F2-NAPHTHALENE","F2","Gas","NEPM 2013 Table 1A(5) Comm/Ind D Soil Vapour HSL for Vapour Intrusion, Silt",null,null,"mg/m3","NL",null,"To obtain F2 subtract napthalene from the >C10 - C16 fraction.",null,4,8]
["108-88-3","Toluene","Gas","NEPM 2013 Table 1A(5) Comm/Ind D Soil Vapour HSL for Vapour Intrusion, Clay",null,null,"mg/m3","NL",null,null,null,4,8]
["100-41-4","Ethylbenzene","Gas","NEPM 2013 Table 1A(5) Comm/Ind D Soil Vapour HSL for Vapour Intrusion, Clay",null,null,"mg/m3","NL",null,null,null,4,8]
["1330-20-7","Xylenes","Gas","NEPM 2013 Table 1A(5) Comm/Ind D Soil Vapour HSL for Vapour Intrusion, Clay",null,null,"mg/m3","NL",null,null,null,4,8]
["91-20-3","Naphthalene","Gas","NEPM 2013 Table 1A(5) Comm/Ind D Soil Vapour HSL for Vapour Intrusion, Clay",560,null,"mg/m3","",null,null,null,4,8]
["71-43-2","Benzene","Gas","NEPM 2013 Table 1A(5) Comm/Ind D Soil Vapour HSL for Vapour Intrusion, Clay",530,null,"mg/m3","",null,null,null,4,8]
["F1-BTEX","F1","Gas","NEPM 2013 Table 1A(5) Comm/Ind D Soil Vapour HSL for Vapour Intrusion, Clay",130000,null,"mg/m3","",null,"To obtain F1 subtract the sum of BTEX concentrations from the C6  - C10 fraction.",null,4,8]
["F2-NAPHTHALENE","F2","Gas","NEPM 2013 Table 1A(5) Comm/Ind D Soil Vapour HSL for Vapour Intrusion, Clay",null,null,"mg/m3","NL",null,"To obtain F2 subtract napthalene from the >C10 - C16 fraction.",null,4,8]
["108-88-3","Toluene","Gas","NEPM 2013 Table 1A(5) Comm/Ind D Soil Vapour HSL for Vapour Intrusion, Sand",null,null,"mg/m3","NL",null,null,null,8]
["100-41-4","Ethylbenzene","Gas","NEPM 2013 Table 1A(5) Comm/Ind D Soil Vapour HSL for Vapour Intrusion, Sand",53000,null,"mg/m3","",null,null,null,8]
["1330-20-7","Xylenes","Gas","NEPM 2013 Table 1A(5) Comm/Ind D Soil Vapour HSL for Vapour Intrusion, Sand",37000,null,"mg/m3","",null,null,null,8]
["91-20-3","Naphthalene","Gas","NEPM 2013 Table 1A(5) Comm/Ind D Soil Vapour HSL for Vapour Intrusion, Sand",150,null,"mg/m3","",null,null,null,8]
["71-43-2","Benzene","Gas","NEPM 2013 Table 1A(5) Comm/Ind D Soil Vapour HSL for Vapour Intrusion, Sand",130,null,"mg/m3","",null,null,null,8]
["F1-BTEX","F1","Gas","NEPM 2013 Table 1A(5) Comm/Ind D Soil Vapour HSL for Vapour Intrusion, Sand",32000,null,"mg/m3","",null,"To obtain F1 subtract the sum of BTEX concentrations from the C6  - C10 fraction.",null,8]
["F2-NAPHTHALENE","F2","Gas","NEPM 2013 Table 1A(5) Comm/Ind D Soil Vapour HSL for Vapour Intrusion, Sand",null,null,"mg/m3","NL",null,"To obtain F2 subtract napthalene from the >C10 - C16 fraction.",null,8]
["108-88-3","Toluene","Gas","NEPM 2013 Table 1A(5) Comm/Ind D Soil Vapour HSL for Vapour Intrusion, Silt",null,null,"mg/m3","NL",null,null,null,8]
["100-41-4","Ethylbenzene","Gas","NEPM 2013 Table 1A(5) Comm/Ind D Soil Vapour HSL for Vapour Intrusion, Silt",null,null,"mg/m3","NL",null,null,null,8]
["1330-20-7","Xylenes","Gas","NEPM 2013 Table 1A(5) Comm/Ind D Soil Vapour HSL for Vapour Intrusion, Silt",null,null,"mg/m3","NL",null,null,null,8]
["91-20-3","Naphthalene","Gas","NEPM 2013 Table 1A(5) Comm/Ind D Soil Vapour HSL for Vapour Intrusion, Silt",750,null,"mg/m3","",null,null,null,8]
["71-43-2","Benzene","Gas","NEPM 2013 Table 1A(5) Comm/Ind D Soil Vapour HSL for Vapour Intrusion, Silt",670,null,"mg/m3","",null,null,null,8]
["F1-BTEX","F1","Gas","NEPM 2013 Table 1A(5) Comm/Ind D Soil Vapour HSL for Vapour Intrusion, Silt",160000,null,"mg/m3","",null,"To obtain F1 subtract the sum of BTEX concentrations from the C6  - C10 fraction.",null,8]
["F2-NAPHTHALENE","F2","Gas","NEPM 2013 Table 1A(5) Comm/Ind D Soil Vapour HSL for Vapour Intrusion, Silt",null,null,"mg/m3","NL",null,"To obtain F2 subtract napthalene from the >C10 - C16 fraction.",null,8]
["108-88-3","Toluene","Gas","NEPM 2013 Table 1A(5) Comm/Ind D Soil Vapour HSL for Vapour Intrusion, Clay",null,null,"mg/m3","NL",null,null,null,8]
["100-41-4","Ethylbenzene","Gas","NEPM 2013 Table 1A(5) Comm/Ind D Soil Vapour HSL for Vapour Intrusion, Clay",null,null,"mg/m3","NL",null,null,null,8]
["1330-20-7","Xylenes","Gas","NEPM 2013 Table 1A(5) Comm/Ind D Soil Vapour HSL for Vapour Intrusion, Clay",null,null,"mg/m3","NL",null,null,null,8]
["91-20-3","Naphthalene","Gas","NEPM 2013 Table 1A(5) Comm/Ind D Soil Vapour HSL for Vapour Intrusion, Clay",1200,null,"mg/m3","",null,null,null,8]
["71-43-2","Benzene","Gas","NEPM 2013 Table 1A(5) Comm/Ind D Soil Vapour HSL for Vapour Intrusion, Clay",1100,null,"mg/m3","",null,null,null,8]
["F1-BTEX","F1","Gas","NEPM 2013 Table 1A(5) Comm/Ind D Soil Vapour HSL for Vapour Intrusion, Clay",270000,null,"mg/m3","",null,"To obtain F1 subtract the sum of BTEX concentrations from the C6  - C10 fraction.",null,8]
["F2-NAPHTHALENE","F2","Gas","NEPM 2013 Table 1A(5) Comm/Ind D Soil Vapour HSL for Vapour Intrusion, Clay",null,null,"mg/m3","NL",null,"To obtain F2 subtract napthalene from the >C10 - C16 fraction.",null,8]

{"sheet":"1A5 SoilVap HSLs Vap Int w CM","index":12,"n_rows":319,"n_cols":28,"rows_kept":319,"cut":false,"hidden":false,"merged":[]}
["Project:","Cardno Lane Piper 213152Historical Soil",null,"Table:","[zRef_Environmental_Standards]",null,"Style:",null,null,"Template",null,null,null,"NoLocs"]
["Path:","C:\\Users\\Tom W\\Documents\\Clients\\Cardno Lane Piper\\213152Historical Soil\\213152Historical Soil.mdb",null,"Parent Tables:","zRef_Matrix_Types,zRef_Chemistry_Lookup,Chem_Group_Or_Method"]
[]
["ChemCode","ChemName","MatrixType","ActionLevelSource","ActionLevel","ActionLevel_Min","Units","ActionLevel_Prefix","ActionLevel_Suffix","Comments","Conditional_Matrix_Type","Conditional_Depth_From","Conditional_Depth_To","Leached","Conditional_ChemCode1","Conditional_ChemCode1_Units","Conditional_ChemCode1_Min_Value_Prefix","Conditional_ChemCode1_Value_Min","Conditional_ChemCode1_Max_Value_Prefix","Conditional_ChemCode1_Value_Max","Conditional_ChemCode2","Conditional_ChemCode2_Units","Conditional_ChemCode2_Min_Value_Prefix","Conditional_ChemCode2_Value_Min","Conditional_ChemCode2_Max_Value_Prefix","Conditional_ChemCode2_Value_Max","Applies_To_Total_Result","Applies_To_Filtered_Result"]
["108-88-3","Toluene","Gas","NEPM 2013 Table 1A(5) Res Soil Vapour HSL A/B for Vapour Intrusion",1300,null,"mg/m3","",null,null,"Sand",0,1]
["100-41-4","Ethylbenzene","Gas","NEPM 2013 Table 1A(5) Res Soil Vapour HSL A/B for Vapour Intrusion",330,null,"mg/m3","",null,null,"Sand",0,1]
["1330-20-7","Xylenes","Gas","NEPM 2013 Table 1A(5) Res Soil Vapour HSL A/B for Vapour Intrusion",220,null,"mg/m3","",null,null,"Sand",0,1]
["91-20-3","Naphthalene","Gas","NEPM 2013 Table 1A(5) Res Soil Vapour HSL A/B for Vapour Intrusion",0.8,null,"mg/m3","",null,null,"Sand",0,1]
["71-43-2","Benzene","Gas","NEPM 2013 Table 1A(5) Res Soil Vapour HSL A/B for Vapour Intrusion",1,null,"mg/m3","",null,null,"Sand",0,1]
["F1-BTEX","F1","Gas","NEPM 2013 Table 1A(5) Res Soil Vapour HSL A/B for Vapour Intrusion",180,null,"mg/m3","",null,"To obtain F1 subtract the sum of BTEX concentrations from the C6  - C10 fraction.","Sand",0,1]
["F2-NAPHTHALENE","F2","Gas","NEPM 2013 Table 1A(5) Res Soil Vapour HSL A/B for Vapour Intrusion",130,null,"mg/m3","",null,"To obtain F2 subtract napthalene from the >C10 - C16 fraction.","Sand",0,1]
["108-88-3","Toluene","Gas","NEPM 2013 Table 1A(5) Res Soil Vapour HSL A/B for Vapour Intrusion",1400,null,"mg/m3","",null,null,"Silt",0,1]
["100-41-4","Ethylbenzene","Gas","NEPM 2013 Table 1A(5) Res Soil Vapour HSL A/B for Vapour Intrusion",380,null,"mg/m3","",null,null,"Silt",0,1]
["1330-20-7","Xylenes","Gas","NEPM 2013 Table 1A(5) Res Soil Vapour HSL A/B for Vapour Intrusion",260,null,"mg/m3","",null,null,"Silt",0,1]
["91-20-3","Naphthalene","Gas","NEPM 2013 Table 1A(5) Res Soil Vapour HSL A/B for Vapour Intrusion",0.9,null,"mg/m3","",null,null,"Silt",0,1]
["71-43-2","Benzene","Gas","NEPM 2013 Table 1A(5) Res Soil Vapour HSL A/B for Vapour Intrusion",1,null,"mg/m3","",null,null,"Silt",0,1]
["F1-BTEX","F1","Gas","NEPM 2013 Table 1A(5) Res Soil Vapour HSL A/B for Vapour Intrusion",210,null,"mg/m3","",null,"To obtain F1 subtract the sum of BTEX concentrations from the C6  - C10 fraction.","Silt",0,1]
["F2-NAPHTHALENE","F2","Gas","NEPM 2013 Table 1A(5) Res Soil Vapour HSL A/B for Vapour Intrusion",160,null,"mg/m3","",null,"To obtain F2 subtract napthalene from the >C10 - C16 fraction.","Silt",0,1]
["108-88-3","Toluene","Gas","NEPM 2013 Table 1A(5) Res Soil Vapour HSL A/B for Vapour Intrusion",1600,null,"mg/m3","",null,null,"Clay",0,1]
["100-41-4","Ethylbenzene","Gas","NEPM 2013 Table 1A(5) Res Soil Vapour HSL A/B for Vapour Intrusion",420,null,"mg/m3","",null,null,"Clay",0,1]
["1330-20-7","Xylenes","Gas","NEPM 2013 Table 1A(5) Res Soil Vapour HSL A/B for Vapour Intrusion",280,null,"mg/m3","",null,null,"Clay",0,1]
["91-20-3","Naphthalene","Gas","NEPM 2013 Table 1A(5) Res Soil Vapour HSL A/B for Vapour Intrusion",1,null,"mg/m3","",null,null,"Clay",0,1]
["71-43-2","Benzene","Gas","NEPM 2013 Table 1A(5) Res Soil Vapour HSL A/B for Vapour Intrusion",1,null,"mg/m3","",null,null,"Clay",0,1]
["F1-BTEX","F1","Gas","NEPM 2013 Table 1A(5) Res Soil Vapour HSL A/B for Vapour Intrusion",230,null,"mg/m3","",null,"To obtain F1 subtract the sum of BTEX concentrations from the C6  - C10 fraction.","Clay",0,1]
["F2-NAPHTHALENE","F2","Gas","NEPM 2013 Table 1A(5) Res Soil Vapour HSL A/B for Vapour Intrusion",180,null,"mg/m3","",null,"To obtain F2 subtract napthalene from the >C10 - C16 fraction.","Clay",0,1]
["108-88-3","Toluene","Gas","NEPM 2013 Table 1A(5) Res Soil Vapour HSL A/B for Vapour Intrusion",3800,null,"mg/m3","",null,null,"Sand",1,2]
["100-41-4","Ethylbenzene","Gas","NEPM 2013 Table 1A(5) Res Soil Vapour HSL A/B for Vapour Intrusion",1100,null,"mg/m3","",null,null,"Sand",1,2]
["1330-20-7","Xylenes","Gas","NEPM 2013 Table 1A(5) Res Soil Vapour HSL A/B for Vapour Intrusion",750,null,"mg/m3","",null,null,"Sand",1,2]
["91-20-3","Naphthalene","Gas","NEPM 2013 Table 1A(5) Res Soil Vapour HSL A/B for Vapour Intrusion",3,null,"mg/m3","",null,null,"Sand",1,2]
["71-43-2","Benzene","Gas","NEPM 2013 Table 1A(5) Res Soil Vapour HSL A/B for Vapour Intrusion",3,null,"mg/m3","",null,null,"Sand",1,2]
["F1-BTEX","F1","Gas","NEPM 2013 Table 1A(5) Res Soil Vapour HSL A/B for Vapour Intrusion",640,null,"mg/m3","",null,"To obtain F1 subtract the sum of BTEX concentrations from the C6  - C10 fraction.","Sand",1,2]
["F2-NAPHTHALENE","F2","Gas","NEPM 2013 Table 1A(5) Res Soil Vapour HSL A/B for Vapour Intrusion",560,null,"mg/m3","",null,"To obtain F2 subtract napthalene from the >C10 - C16 fraction.","Sand",1,2]
["108-88-3","Toluene","Gas","NEPM 2013 Table 1A(5) Res Soil Vapour HSL A/B for Vapour Intrusion",14000,null,"mg/m3","",null,null,"Silt",1,2]
["100-41-4","Ethylbenzene","Gas","NEPM 2013 Table 1A(5) Res Soil Vapour HSL A/B for Vapour Intrusion",4200,null,"mg/m3","",null,null,"Silt",1,2]
["1330-20-7","Xylenes","Gas","NEPM 2013 Table 1A(5) Res Soil Vapour HSL A/B for Vapour Intrusion",2900,null,"mg/m3","",null,null,"Silt",1,2]
["91-20-3","Naphthalene","Gas","NEPM 2013 Table 1A(5) Res Soil Vapour HSL A/B for Vapour Intrusion",10,null,"mg/m3","",null,null,"Silt",1,2]
["71-43-2","Benzene","Gas","NEPM 2013 Table 1A(5) Res Soil Vapour HSL A/B for Vapour Intrusion",10,null,"mg/m3","",null,null,"Silt",1,2]
["F1-BTEX","F1","Gas","NEPM 2013 Table 1A(5) Res Soil Vapour HSL A/B for Vapour Intrusion",2600,null,"mg/m3","",null,"To obtain F1 subtract the sum of BTEX concentrations from the C6  - C10 fraction.","Silt",1,2]
["F2-NAPHTHALENE","F2","Gas","NEPM 2013 Table 1A(5) Res Soil Vapour HSL A/B for Vapour Intrusion",2300,null,"mg/m3","",null,"To obtain F2 subtract napthalene from the >C10 - C16 fraction.","Silt",1,2]
["108-88-3","Toluene","Gas","NEPM 2013 Table 1A(5) Res Soil Vapour HSL A/B for Vapour Intrusion",23000,null,"mg/m3","",null,null,"Clay",1,2]
["100-41-4","Ethylbenzene","Gas","NEPM 2013 Table 1A(5) Res Soil Vapour HSL A/B for Vapour Intrusion",6800,null,"mg/m3","",null,null,"Clay",1,2]
["1330-20-7","Xylenes","Gas","NEPM 2013 Table 1A(5) Res Soil Vapour HSL A/B for Vapour Intrusion",4800,null,"mg/m3","",null,null,"Clay",1,2]
["91-20-3","Naphthalene","Gas","NEPM 2013 Table 1A(5) Res Soil Vapour HSL A/B for Vapour Intrusion",20,null,"mg/m3","",null,null,"Clay",1,2]
["71-43-2","Benzene","Gas","NEPM 2013 Table 1A(5) Res Soil Vapour HSL A/B for Vapour Intrusion",15,null,"mg/m3","",null,null,"Clay",1,2]
["F1-BTEX","F1","Gas","NEPM 2013 Table 1A(5) Res Soil Vapour HSL A/B for Vapour Intrusion",4200,null,"mg/m3","",null,"To obtain F1 subtract the sum of BTEX concentrations from the C6  - C10 fraction.","Clay",1,2]
["F2-NAPHTHALENE","F2","Gas","NEPM 2013 Table 1A(5) Res Soil Vapour HSL A/B for Vapour Intrusion",3800,null,"mg/m3","",null,"To obtain F2 subtract napthalene from the >C10 - C16 fraction.","Clay",1,2]
["108-88-3","Toluene","Gas","NEPM 2013 Table 1A(5) Res Soil Vapour HSL A/B for Vapour Intrusion",7300,null,"mg/m3","",null,null,"Sand",2,4]
["100-41-4","Ethylbenzene","Gas","NEPM 2013 Table 1A(5) Res Soil Vapour HSL A/B for Vapour Intrusion",2200,null,"mg/m3","",null,null,"Sand",2,4]
["1330-20-7","Xylenes","Gas","NEPM 2013 Table 1A(5) Res Soil Vapour HSL A/B for Vapour Intrusion",1500,null,"mg/m3","",null,null,"Sand",2,4]
["91-20-3","Naphthalene","Gas","NEPM 2013 Table 1A(5) Res Soil Vapour HSL A/B for Vapour Intrusion",6,null,"mg/m3","",null,null,"Sand",2,4]
["71-43-2","Benzene","Gas","NEPM 2013 Table 1A(5) Res Soil Vapour HSL A/B for Vapour Intrusion",6,null,"mg/m3","",null,null,"Sand",2,4]
["F1-BTEX","F1","Gas","NEPM 2013 Table 1A(5) Res Soil Vapour HSL A/B for Vapour Intrusion",1300,null,"mg/m3","",null,"To obtain F1 subtract the sum of BTEX concentrations from the C6  - C10 fraction.","Sand",2,4]
["F2-NAPHTHALENE","F2","Gas","NEPM 2013 Table 1A(5) Res Soil Vapour HSL A/B for Vapour Intrusion",1200,null,"mg/m3","",null,"To obtain F2 subtract napthalene from the >C10 - C16 fraction.","Sand",2,4]
["108-88-3","Toluene","Gas","NEPM 2013 Table 1A(5) Res Soil Vapour HSL A/B for Vapour Intrusion",32000,null,"mg/m3","",null,null,"Silt",2,4]
["100-41-4","Ethylbenzene","Gas","NEPM 2013 Table 1A(5) Res Soil Vapour HSL A/B for Vapour Intrusion",9700,null,"mg/m3","",null,null,"Silt",2,4]
["1330-20-7","Xylenes","Gas","NEPM 2013 Table 1A(5) Res Soil Vapour HSL A/B for Vapour Intrusion",6800,null,"mg/m3","",null,null,"Silt",2,4]
["91-20-3","Naphthalene","Gas","NEPM 2013 Table 1A(5) Res Soil Vapour HSL A/B for Vapour Intrusion",25,null,"mg/m3","",null,null,"Silt",2,4]
["71-43-2","Benzene","Gas","NEPM 2013 Table 1A(5) Res Soil Vapour HSL A/B for Vapour Intrusion",25,null,"mg/m3","",null,null,"Silt",2,4]
["F1-BTEX","F1","Gas","NEPM 2013 Table 1A(5) Res Soil Vapour HSL A/B for Vapour Intrusion",6000,null,"mg/m3","",null,"To obtain F1 subtract the sum of BTEX concentrations from the C6  - C10 fraction.","Silt",2,4]
["F2-NAPHTHALENE","F2","Gas","NEPM 2013 Table 1A(5) Res Soil Vapour HSL A/B for Vapour Intrusion",5400,null,"mg/m3","",null,"To obtain F2 subtract napthalene from the >C10 - C16 fraction.","Silt",2,4]
["108-88-3","Toluene","Gas","NEPM 2013 Table 1A(5) Res Soil Vapour HSL A/B for Vapour Intrusion",53000,null,"mg/m3","",null,null,"Clay",2,4]
["100-41-4","Ethylbenzene","Gas","NEPM 2013 Table 1A(5) Res Soil Vapour HSL A/B for Vapour Intrusion",16000,null,"mg/m3","",null,null,"Clay",2,4]
["1330-20-7","Xylenes","Gas","NEPM 2013 Table 1A(5) Res Soil Vapour HSL A/B for Vapour Intrusion",11000,null,"mg/m3","",null,null,"Clay",2,4]
["91-20-3","Naphthalene","Gas","NEPM 2013 Table 1A(5) Res Soil Vapour HSL A/B for Vapour Intrusion",45,null,"mg/m3","",null,null,"Clay",2,4]
["71-43-2","Benzene","Gas","NEPM 2013 Table 1A(5) Res Soil Vapour HSL A/B for Vapour Intrusion",40,null,"mg/m3","",null,null,"Clay",2,4]
["F1-BTEX","F1","Gas","NEPM 2013 Table 1A(5) Res Soil Vapour HSL A/B for Vapour Intrusion",9900,null,"mg/m3","",null,"To obtain F1 subtract the sum of BTEX concentrations from the C6  - C10 fraction.","Clay",2,4]
["F2-NAPHTHALENE","F2","Gas","NEPM 2013 Table 1A(5) Res Soil Vapour HSL A/B for Vapour Intrusion",null,null,"mg/m3","NL",null,"To obtain F2 subtract napthalene from the >C10 - C16 fraction.","Clay",2,4]
["108-88-3","Toluene","Gas","NEPM 2013 Table 1A(5) Res Soil Vapour HSL A/B for Vapour Intrusion",15000,null,"mg/m3","",null,null,"Sand",4,8]
["100-41-4","Ethylbenzene","Gas","NEPM 2013 Table 1A(5) Res Soil Vapour HSL A/B for Vapour Intrusion",4300,null,"mg/m3","",null,null,"Sand",4,8]
["1330-20-7","Xylenes","Gas","NEPM 2013 Table 1A(5) Res Soil Vapour HSL A/B for Vapour Intrusion",3000,null,"mg/m3","",null,null,"Sand",4,8]
["91-20-3","Naphthalene","Gas","NEPM 2013 Table 1A(5) Res Soil Vapour HSL A/B for Vapour Intrusion",10,null,"mg/m3","",null,null,"Sand",4,8]
["71-43-2","Benzene","Gas","NEPM 2013 Table 1A(5) Res Soil Vapour HSL A/B for Vapour Intrusion",10,null,"mg/m3","",null,null,"Sand",4,8]
["F1-BTEX","F1","Gas","NEPM 2013 Table 1A(5) Res Soil Vapour HSL A/B for Vapour Intrusion",2600,null,"mg/m3","",null,"To obtain F1 subtract the sum of BTEX concentrations from the C6  - C10 fraction.","Sand",4,8]
["F2-NAPHTHALENE","F2","Gas","NEPM 2013 Table 1A(5) Res Soil Vapour HSL A/B for Vapour Intrusion",2400,null,"mg/m3","",null,"To obtain F2 subtract napthalene from the >C10 - C16 fraction.","Sand",4,8]
["108-88-3","Toluene","Gas","NEPM 2013 Table 1A(5) Res Soil Vapour HSL A/B for Vapour Intrusion",69000,null,"mg/m3","",null,null,"Silt",4,8]
["100-41-4","Ethylbenzene","Gas","NEPM 2013 Table 1A(5) Res Soil Vapour HSL A/B for Vapour Intrusion",21000,null,"mg/m3","",null,null,"Silt",4,8]
["1330-20-7","Xylenes","Gas","NEPM 2013 Table 1A(5) Res Soil Vapour HSL A/B for Vapour Intrusion",15000,null,"mg/m3","",null,null,"Silt",4,8]
["91-20-3","Naphthalene","Gas","NEPM 2013 Table 1A(5) Res Soil Vapour HSL A/B for Vapour Intrusion",60,null,"mg/m3","",null,null,"Silt",4,8]
["71-43-2","Benzene","Gas","NEPM 2013 Table 1A(5) Res Soil Vapour HSL A/B for Vapour Intrusion",55,null,"mg/m3","",null,null,"Silt",4,8]
["F1-BTEX","F1","Gas","NEPM 2013 Table 1A(5) Res Soil Vapour HSL A/B for Vapour Intrusion",13000,null,"mg/m3","",null,"To obtain F1 subtract the sum of BTEX concentrations from the C6  - C10 fraction.","Silt",4,8]
["F2-NAPHTHALENE","F2","Gas","NEPM 2013 Table 1A(5) Res Soil Vapour HSL A/B for Vapour Intrusion",null,null,"mg/m3","NL",null,"To obtain F2 subtract napthalene from the >C10 - C16 fraction.","Silt",4,8]
["108-88-3","Toluene","Gas","NEPM 2013 Table 1A(5) Res Soil Vapour HSL A/B for Vapour Intrusion",110000,null,"mg/m3","",null,null,"Clay",4,8]
["100-41-4","Ethylbenzene","Gas","NEPM 2013 Table 1A(5) Res Soil Vapour HSL A/B for Vapour Intrusion",35000,null,"mg/m3","",null,null,"Clay",4,8]
["1330-20-7","Xylenes","Gas","NEPM 2013 Table 1A(5) Res Soil Vapour HSL A/B for Vapour Intrusion",24000,null,"mg/m3","",null,null,"Clay",4,8]
["91-20-3","Naphthalene","Gas","NEPM 2013 Table 1A(5) Res Soil Vapour HSL A/B for Vapour Intrusion",95,null,"mg/m3","",null,null,"Clay",4,8]
["71-43-2","Benzene","Gas","NEPM 2013 Table 1A(5) Res Soil Vapour HSL A/B for Vapour Intrusion",90,null,"mg/m3","",null,null,"Clay",4,8]
["F1-BTEX","F1","Gas","NEPM 2013 Table 1A(5) Res Soil Vapour HSL A/B for Vapour Intrusion",21000,null,"mg/m3","",null,"To obtain F1 subtract the sum of BTEX concentrations from the C6  - C10 fraction.","Clay",4,8]
["F2-NAPHTHALENE","F2","Gas","NEPM 2013 Table 1A(5) Res Soil Vapour HSL A/B for Vapour Intrusion",null,null,"mg/m3","NL",null,"To obtain F2 subtract napthalene from the >C10 - C16 fraction.","Clay",4,8]
["108-88-3","Toluene","Gas","NEPM 2013 Table 1A(5) Res Soil Vapour HSL A/B for Vapour Intrusion",29000,null,"mg/m3","",null,null,"Sand",8]
["100-41-4","Ethylbenzene","Gas","NEPM 2013 Table 1A(5) Res Soil Vapour HSL A/B for Vapour Intrusion",8700,null,"mg/m3","",null,null,"Sand",8]
["1330-20-7","Xylenes","Gas","NEPM 2013 Table 1A(5) Res Soil Vapour HSL A/B for Vapour Intrusion",6100,null,"mg/m3","",null,null,"Sand",8]
["91-20-3","Naphthalene","Gas","NEPM 2013 Table 1A(5) Res Soil Vapour HSL A/B for Vapour Intrusion",25,null,"mg/m3","",null,null,"Sand",8]
["71-43-2","Benzene","Gas","NEPM 2013 Table 1A(5) Res Soil Vapour HSL A/B for Vapour Intrusion",20,null,"mg/m3","",null,null,"Sand",8]
["F1-BTEX","F1","Gas","NEPM 2013 Table 1A(5) Res Soil Vapour HSL A/B for Vapour Intrusion",5300,null,"mg/m3","",null,"To obtain F1 subtract the sum of BTEX concentrations from the C6  - C10 fraction.","Sand",8]
["F2-NAPHTHALENE","F2","Gas","NEPM 2013 Table 1A(5) Res Soil Vapour HSL A/B for Vapour Intrusion",4800,null,"mg/m3","",null,"To obtain F2 subtract napthalene from the >C10 - C16 fraction.","Sand",8]
["108-88-3","Toluene","Gas","NEPM 2013 Table 1A(5) Res Soil Vapour HSL A/B for Vapour Intrusion",140000,null,"mg/m3","",null,null,"Silt",8]
["100-41-4","Ethylbenzene","Gas","NEPM 2013 Table 1A(5) Res Soil Vapour HSL A/B for Vapour Intrusion",43000,null,"mg/m3","",null,null,"Silt",8]
["1330-20-7","Xylenes","Gas","NEPM 2013 Table 1A(5) Res Soil Vapour HSL A/B for Vapour Intrusion",30000,null,"mg/m3","",null,null,"Silt",8]
["91-20-3","Naphthalene","Gas","NEPM 2013 Table 1A(5) Res Soil Vapour HSL A/B for Vapour Intrusion",120,null,"mg/m3","",null,null,"Silt",8]
["71-43-2","Benzene","Gas","NEPM 2013 Table 1A(5) Res Soil Vapour HSL A/B for Vapour Intrusion",110,null,"mg/m3","",null,null,"Silt",8]
["F1-BTEX","F1","Gas","NEPM 2013 Table 1A(5) Res Soil Vapour HSL A/B for Vapour Intrusion",26000,null,"mg/m3","",null,"To obtain F1 subtract the sum of BTEX concentrations from the C6  - C10 fraction.","Silt",8]
["F2-NAPHTHALENE","F2","Gas","NEPM 2013 Table 1A(5) Res Soil Vapour HSL A/B for Vapour Intrusion",null,null,"mg/m3","NL",null,"To obtain F2 subtract napthalene from the >C10 - C16 fraction.","Silt",8]
["108-88-3","Toluene","Gas","NEPM 2013 Table 1A(5) Res Soil Vapour HSL A/B for Vapour Intrusion",null,null,"mg/m3","NL",null,null,"Clay",8]
["100-41-4","Ethylbenzene","Gas","NEPM 2013 Table 1A(5) Res Soil Vapour HSL A/B for Vapour Intrusion",null,null,"mg/m3","NL",null,null,"Clay",8]
["1330-20-7","Xylenes","Gas","NEPM 2013 Table 1A(5) Res Soil Vapour HSL A/B for Vapour Intrusion",50000,null,"mg/m3","",null,null,"Clay",8]
["91-20-3","Naphthalene","Gas","NEPM 2013 Table 1A(5) Res Soil Vapour HSL A/B for Vapour Intrusion",200,null,"mg/m3","",null,null,"Clay",8]
["71-43-2","Benzene","Gas","NEPM 2013 Table 1A(5) Res Soil Vapour HSL A/B for Vapour Intrusion",180,null,"mg/m3","",null,null,"Clay",8]
["F1-BTEX","F1","Gas","NEPM 2013 Table 1A(5) Res Soil Vapour HSL A/B for Vapour Intrusion",44000,null,"mg/m3","",null,"To obtain F1 subtract the sum of BTEX concentrations from the C6  - C10 fraction.","Clay",8]
["F2-NAPHTHALENE","F2","Gas","NEPM 2013 Table 1A(5) Res Soil Vapour HSL A/B for Vapour Intrusion",null,null,"mg/m3","NL",null,"To obtain F2 subtract napthalene from the >C10 - C16 fraction.","Clay",8]
["108-88-3","Toluene","Gas","NEPM 2013 Table 1A(5) Rec C Soil Vapour HSL for Vapour Intrusion",null,null,"mg/m3","NL",null,null,"Sand",0,1]
["100-41-4","Ethylbenzene","Gas","NEPM 2013 Table 1A(5) Rec C Soil Vapour HSL for Vapour Intrusion",null,null,"mg/m3","NL",null,null,"Sand",0,1]
["1330-20-7","Xylenes","Gas","NEPM 2013 Table 1A(5) Rec C Soil Vapour HSL for Vapour Intrusion",null,null,"mg/m3","NL",null,null,"Sand",0,1]
["91-20-3","Naphthalene","Gas","NEPM 2013 Table 1A(5) Rec C Soil Vapour HSL for Vapour Intrusion",null,null,"mg/m3","NL",null,null,"Sand",0,1]
["71-43-2","Benzene","Gas","NEPM 2013 Table 1A(5) Rec C Soil Vapour HSL for Vapour Intrusion",360,null,"mg/m3","",null,null,"Sand",0,1]
["F1-BTEX","F1","Gas","NEPM 2013 Table 1A(5) Rec C Soil Vapour HSL for Vapour Intrusion",86000,null,"mg/m3","",null,"To obtain F1 subtract the sum of BTEX concentrations from the C6  - C10 fraction.","Sand",0,1]
["F2-NAPHTHALENE","F2","Gas","NEPM 2013 Table 1A(5) Rec C Soil Vapour HSL for Vapour Intrusion",null,null,"mg/m3","NL",null,"To obtain F2 subtract napthalene from the >C10 - C16 fraction.","Sand",0,1]
["108-88-3","Toluene","Gas","NEPM 2013 Table 1A(5) Rec C Soil Vapour HSL for Vapour Intrusion",null,null,"mg/m3","NL",null,null,"Silt",0,1]
["100-41-4","Ethylbenzene","Gas","NEPM 2013 Table 1A(5) Rec C Soil Vapour HSL for Vapour Intrusion",null,null,"mg/m3","NL",null,null,"Silt",0,1]
["1330-20-7","Xylenes","Gas","NEPM 2013 Table 1A(5) Rec C Soil Vapour HSL for Vapour Intrusion",null,null,"mg/m3","NL",null,null,"Silt",0,1]
["91-20-3","Naphthalene","Gas","NEPM 2013 Table 1A(5) Rec C Soil Vapour HSL for Vapour Intrusion",null,null,"mg/m3","NL",null,null,"Silt",0,1]
["71-43-2","Benzene","Gas","NEPM 2013 Table 1A(5) Rec C Soil Vapour HSL for Vapour Intrusion",1800,null,"mg/m3","",null,null,"Silt",0,1]
["F1-BTEX","F1","Gas","NEPM 2013 Table 1A(5) Rec C Soil Vapour HSL for Vapour Intrusion",null,null,"mg/m3","NL",null,"To obtain F1 subtract the sum of BTEX concentrations from the C6  - C10 fraction.","Silt",0,1]
["F2-NAPHTHALENE","F2","Gas","NEPM 2013 Table 1A(5) Rec C Soil Vapour HSL for Vapour Intrusion",null,null,"mg/m3","NL",null,"To obtain F2 subtract napthalene from the >C10 - C16 fraction.","Silt",0,1]
["108-88-3","Toluene","Gas","NEPM 2013 Table 1A(5) Rec C Soil Vapour HSL for Vapour Intrusion",null,null,"mg/m3","NL",null,null,"Clay",0,1]
["100-41-4","Ethylbenzene","Gas","NEPM 2013 Table 1A(5) Rec C Soil Vapour HSL for Vapour Intrusion",null,null,"mg/m3","NL",null,null,"Clay",0,1]
["1330-20-7","Xylenes","Gas","NEPM 2013 Table 1A(5) Rec C Soil Vapour HSL for Vapour Intrusion",null,null,"mg/m3","NL",null,null,"Clay",0,1]
["91-20-3","Naphthalene","Gas","NEPM 2013 Table 1A(5) Rec C Soil Vapour HSL for Vapour Intrusion",null,null,"mg/m3","NL",null,null,"Clay",0,1]
["71-43-2","Benzene","Gas","NEPM 2013 Table 1A(5) Rec C Soil Vapour HSL for Vapour Intrusion",3000,null,"mg/m3","",null,null,"Clay",0,1]
["F1-BTEX","F1","Gas","NEPM 2013 Table 1A(5) Rec C Soil Vapour HSL for Vapour Intrusion",null,null,"mg/m3","NL",null,"To obtain F1 subtract the sum of BTEX concentrations from the C6  - C10 fraction.","Clay",0,1]
["F2-NAPHTHALENE","F2","Gas","NEPM 2013 Table 1A(5) Rec C Soil Vapour HSL for Vapour Intrusion",null,null,"mg/m3","NL",null,"To obtain F2 subtract napthalene from the >C10 - C16 fraction.","Clay",0,1]
["108-88-3","Toluene","Gas","NEPM 2013 Table 1A(5) Rec C Soil Vapour HSL for Vapour Intrusion",null,null,"mg/m3","NL",null,null,"Sand",1,2]
["100-41-4","Ethylbenzene","Gas","NEPM 2013 Table 1A(5) Rec C Soil Vapour HSL for Vapour Intrusion",null,null,"mg/m3","NL",null,null,"Sand",1,2]
["1330-20-7","Xylenes","Gas","NEPM 2013 Table 1A(5) Rec C Soil Vapour HSL for Vapour Intrusion",null,null,"mg/m3","NL",null,null,"Sand",1,2]
["91-20-3","Naphthalene","Gas","NEPM 2013 Table 1A(5) Rec C Soil Vapour HSL for Vapour Intrusion",null,null,"mg/m3","NL",null,null,"Sand",1,2]
["71-43-2","Benzene","Gas","NEPM 2013 Table 1A(5) Rec C Soil Vapour HSL for Vapour Intrusion",2400,null,"mg/m3","",null,null,"Sand",1,2]
["F1-BTEX","F1","Gas","NEPM 2013 Table 1A(5) Rec C Soil Vapour HSL for Vapour Intrusion",null,null,"mg/m3","NL",null,"To obtain F1 subtract the sum of BTEX concentrations from the C6  - C10 fraction.","Sand",1,2]
["F2-NAPHTHALENE","F2","Gas","NEPM 2013 Table 1A(5) Rec C Soil Vapour HSL for Vapour Intrusion",null,null,"mg/m3","NL",null,"To obtain F2 subtract napthalene from the >C10 - C16 fraction.","Sand",1,2]
["108-88-3","Toluene","Gas","NEPM 2013 Table 1A(5) Rec C Soil Vapour HSL for Vapour Intrusion",null,null,"mg/m3","NL",null,null,"Silt",1,2]
["100-41-4","Ethylbenzene","Gas","NEPM 2013 Table 1A(5) Rec C Soil Vapour HSL for Vapour Intrusion",null,null,"mg/m3","NL",null,null,"Silt",1,2]
["1330-20-7","Xylenes","Gas","NEPM 2013 Table 1A(5) Rec C Soil Vapour HSL for Vapour Intrusion",null,null,"mg/m3","NL",null,null,"Silt",1,2]
["91-20-3","Naphthalene","Gas","NEPM 2013 Table 1A(5) Rec C Soil Vapour HSL for Vapour Intrusion",null,null,"mg/m3","NL",null,null,"Silt",1,2]
["71-43-2","Benzene","Gas","NEPM 2013 Table 1A(5) Rec C Soil Vapour HSL for Vapour Intrusion",12000,null,"mg/m3","",null,null,"Silt",1,2]
["F1-BTEX","F1","Gas","NEPM 2013 Table 1A(5) Rec C Soil Vapour HSL for Vapour Intrusion",null,null,"mg/m3","NL",null,"To obtain F1 subtract the sum of BTEX concentrations from the C6  - C10 fraction.","Silt",1,2]
["F2-NAPHTHALENE","F2","Gas","NEPM 2013 Table 1A(5) Rec C Soil Vapour HSL for Vapour Intrusion",null,null,"mg/m3","NL",null,"To obtain F2 subtract napthalene from the >C10 - C16 fraction.","Silt",1,2]
["108-88-3","Toluene","Gas","NEPM 2013 Table 1A(5) Rec C Soil Vapour HSL for Vapour Intrusion",null,null,"mg/m3","NL",null,null,"Clay",1,2]
["100-41-4","Ethylbenzene","Gas","NEPM 2013 Table 1A(5) Rec C Soil Vapour HSL for Vapour Intrusion",null,null,"mg/m3","NL",null,null,"Clay",1,2]
["1330-20-7","Xylenes","Gas","NEPM 2013 Table 1A(5) Rec C Soil Vapour HSL for Vapour Intrusion",null,null,"mg/m3","NL",null,null,"Clay",1,2]
["91-20-3","Naphthalene","Gas","NEPM 2013 Table 1A(5) Rec C Soil Vapour HSL for Vapour Intrusion",null,null,"mg/m3","NL",null,null,"Clay",1,2]
["71-43-2","Benzene","Gas","NEPM 2013 Table 1A(5) Rec C Soil Vapour HSL for Vapour Intrusion",20000,null,"mg/m3","",null,null,"Clay",1,2]
["F1-BTEX","F1","Gas","NEPM 2013 Table 1A(5) Rec C Soil Vapour HSL for Vapour Intrusion",null,null,"mg/m3","NL",null,"To obtain F1 subtract the sum of BTEX concentrations from the C6  - C10 fraction.","Clay",1,2]
["F2-NAPHTHALENE","F2","Gas","NEPM 2013 Table 1A(5) Rec C Soil Vapour HSL for Vapour Intrusion",null,null,"mg/m3","NL",null,"To obtain F2 subtract napthalene from the >C10 - C16 fraction.","Clay",1,2]
["108-88-3","Toluene","Gas","NEPM 2013 Table 1A(5) Rec C Soil Vapour HSL for Vapour Intrusion",null,null,"mg/m3","NL",null,null,"Sand",2,4]
["100-41-4","Ethylbenzene","Gas","NEPM 2013 Table 1A(5) Rec C Soil Vapour HSL for Vapour Intrusion",null,null,"mg/m3","NL",null,null,"Sand",2,4]
["1330-20-7","Xylenes","Gas","NEPM 2013 Table 1A(5) Rec C Soil Vapour HSL for Vapour Intrusion",null,null,"mg/m3","NL",null,null,"Sand",2,4]
["91-20-3","Naphthalene","Gas","NEPM 2013 Table 1A(5) Rec C Soil Vapour HSL for Vapour Intrusion",null,null,"mg/m3","NL",null,null,"Sand",2,4]
["71-43-2","Benzene","Gas","NEPM 2013 Table 1A(5) Rec C Soil Vapour HSL for Vapour Intrusion",4700,null,"mg/m3","",null,null,"Sand",2,4]
["F1-BTEX","F1","Gas","NEPM 2013 Table 1A(5) Rec C Soil Vapour HSL for Vapour Intrusion",null,null,"mg/m3","NL",null,"To obtain F1 subtract the sum of BTEX concentrations from the C6  - C10 fraction.","Sand",2,4]
["F2-NAPHTHALENE","F2","Gas","NEPM 2013 Table 1A(5) Rec C Soil Vapour HSL for Vapour Intrusion",null,null,"mg/m3","NL",null,"To obtain F2 subtract napthalene from the >C10 - C16 fraction.","Sand",2,4]
["108-88-3","Toluene","Gas","NEPM 2013 Table 1A(5) Rec C Soil Vapour HSL for Vapour Intrusion",null,null,"mg/m3","NL",null,null,"Silt",2,4]
["100-41-4","Ethylbenzene","Gas","NEPM 2013 Table 1A(5) Rec C Soil Vapour HSL for Vapour Intrusion",null,null,"mg/m3","NL",null,null,"Silt",2,4]
["1330-20-7","Xylenes","Gas","NEPM 2013 Table 1A(5) Rec C Soil Vapour HSL for Vapour Intrusion",null,null,"mg/m3","NL",null,null,"Silt",2,4]
["91-20-3","Naphthalene","Gas","NEPM 2013 Table 1A(5) Rec C Soil Vapour HSL for Vapour Intrusion",null,null,"mg/m3","NL",null,null,"Silt",2,4]
["71-43-2","Benzene","Gas","NEPM 2013 Table 1A(5) Rec C Soil Vapour HSL for Vapour Intrusion",24000,null,"mg/m3","",null,null,"Silt",2,4]
["F1-BTEX","F1","Gas","NEPM 2013 Table 1A(5) Rec C Soil Vapour HSL for Vapour Intrusion",null,null,"mg/m3","NL",null,"To obtain F1 subtract the sum of BTEX concentrations from the C6  - C10 fraction.","Silt",2,4]
["F2-NAPHTHALENE","F2","Gas","NEPM 2013 Table 1A(5) Rec C Soil Vapour HSL for Vapour Intrusion",null,null,"mg/m3","NL",null,"To obtain F2 subtract napthalene from the >C10 - C16 fraction.","Silt",2,4]
["108-88-3","Toluene","Gas","NEPM 2013 Table 1A(5) Rec C Soil Vapour HSL for Vapour Intrusion",null,null,"mg/m3","NL",null,null,"Clay",2,4]
["100-41-4","Ethylbenzene","Gas","NEPM 2013 Table 1A(5) Rec C Soil Vapour HSL for Vapour Intrusion",null,null,"mg/m3","NL",null,null,"Clay",2,4]
["1330-20-7","Xylenes","Gas","NEPM 2013 Table 1A(5) Rec C Soil Vapour HSL for Vapour Intrusion",null,null,"mg/m3","NL",null,null,"Clay",2,4]
["91-20-3","Naphthalene","Gas","NEPM 2013 Table 1A(5) Rec C Soil Vapour HSL for Vapour Intrusion",null,null,"mg/m3","NL",null,null,"Clay",2,4]
["71-43-2","Benzene","Gas","NEPM 2013 Table 1A(5) Rec C Soil Vapour HSL for Vapour Intrusion",40000,null,"mg/m3","",null,null,"Clay",2,4]
["F1-BTEX","F1","Gas","NEPM 2013 Table 1A(5) Rec C Soil Vapour HSL for Vapour Intrusion",null,null,"mg/m3","NL",null,"To obtain F1 subtract the sum of BTEX concentrations from the C6  - C10 fraction.","Clay",2,4]
["F2-NAPHTHALENE","F2","Gas","NEPM 2013 Table 1A(5) Rec C Soil Vapour HSL for Vapour Intrusion",null,null,"mg/m3","NL",null,"To obtain F2 subtract napthalene from the >C10 - C16 fraction.","Clay",2,4]
["108-88-3","Toluene","Gas","NEPM 2013 Table 1A(5) Rec C Soil Vapour HSL for Vapour Intrusion",null,null,"mg/m3","NL",null,null,"Sand",4,8]
["100-41-4","Ethylbenzene","Gas","NEPM 2013 Table 1A(5) Rec C Soil Vapour HSL for Vapour Intrusion",null,null,"mg/m3","NL",null,null,"Sand",4,8]
["1330-20-7","Xylenes","Gas","NEPM 2013 Table 1A(5) Rec C Soil Vapour HSL for Vapour Intrusion",null,null,"mg/m3","NL",null,null,"Sand",4,8]
["91-20-3","Naphthalene","Gas","NEPM 2013 Table 1A(5) Rec C Soil Vapour HSL for Vapour Intrusion",null,null,"mg/m3","NL",null,null,"Sand",4,8]
["71-43-2","Benzene","Gas","NEPM 2013 Table 1A(5) Rec C Soil Vapour HSL for Vapour Intrusion",9500,null,"mg/m3","",null,null,"Sand",4,8]
["F1-BTEX","F1","Gas","NEPM 2013 Table 1A(5) Rec C Soil Vapour HSL for Vapour Intrusion",null,null,"mg/m3","NL",null,"To obtain F1 subtract the sum of BTEX concentrations from the C6  - C10 fraction.","Sand",4,8]
["F2-NAPHTHALENE","F2","Gas","NEPM 2013 Table 1A(5) Rec C Soil Vapour HSL for Vapour Intrusion",null,null,"mg/m3","NL",null,"To obtain F2 subtract napthalene from the >C10 - C16 fraction.","Sand",4,8]
["108-88-3","Toluene","Gas","NEPM 2013 Table 1A(5) Rec C Soil Vapour HSL for Vapour Intrusion",null,null,"mg/m3","NL",null,null,"Silt",4,8]
["100-41-4","Ethylbenzene","Gas","NEPM 2013 Table 1A(5) Rec C Soil Vapour HSL for Vapour Intrusion",null,null,"mg/m3","NL",null,null,"Silt",4,8]
["1330-20-7","Xylenes","Gas","NEPM 2013 Table 1A(5) Rec C Soil Vapour HSL for Vapour Intrusion",null,null,"mg/m3","NL",null,null,"Silt",4,8]
["91-20-3","Naphthalene","Gas","NEPM 2013 Table 1A(5) Rec C Soil Vapour HSL for Vapour Intrusion",null,null,"mg/m3","NL",null,null,"Silt",4,8]
["71-43-2","Benzene","Gas","NEPM 2013 Table 1A(5) Rec C Soil Vapour HSL for Vapour Intrusion",48000,null,"mg/m3","",null,null,"Silt",4,8]
["F1-BTEX","F1","Gas","NEPM 2013 Table 1A(5) Rec C Soil Vapour HSL for Vapour Intrusion",null,null,"mg/m3","NL",null,"To obtain F1 subtract the sum of BTEX concentrations from the C6  - C10 fraction.","Silt",4,8]
["F2-NAPHTHALENE","F2","Gas","NEPM 2013 Table 1A(5) Rec C Soil Vapour HSL for Vapour Intrusion",null,null,"mg/m3","NL",null,"To obtain F2 subtract napthalene from the >C10 - C16 fraction.","Silt",4,8]
["108-88-3","Toluene","Gas","NEPM 2013 Table 1A(5) Rec C Soil Vapour HSL for Vapour Intrusion",null,null,"mg/m3","NL",null,null,"Clay",4,8]
["100-41-4","Ethylbenzene","Gas","NEPM 2013 Table 1A(5) Rec C Soil Vapour HSL for Vapour Intrusion",null,null,"mg/m3","NL",null,null,"Clay",4,8]
["1330-20-7","Xylenes","Gas","NEPM 2013 Table 1A(5) Rec C Soil Vapour HSL for Vapour Intrusion",null,null,"mg/m3","NL",null,null,"Clay",4,8]
["91-20-3","Naphthalene","Gas","NEPM 2013 Table 1A(5) Rec C Soil Vapour HSL for Vapour Intrusion",null,null,"mg/m3","NL",null,null,"Clay",4,8]
["71-43-2","Benzene","Gas","NEPM 2013 Table 1A(5) Rec C Soil Vapour HSL for Vapour Intrusion",81000,null,"mg/m3","",null,null,"Clay",4,8]
["F1-BTEX","F1","Gas","NEPM 2013 Table 1A(5) Rec C Soil Vapour HSL for Vapour Intrusion",null,null,"mg/m3","NL",null,"To obtain F1 subtract the sum of BTEX concentrations from the C6  - C10 fraction.","Clay",4,8]
["F2-NAPHTHALENE","F2","Gas","NEPM 2013 Table 1A(5) Rec C Soil Vapour HSL for Vapour Intrusion",null,null,"mg/m3","NL",null,"To obtain F2 subtract napthalene from the >C10 - C16 fraction.","Clay",4,8]
["108-88-3","Toluene","Gas","NEPM 2013 Table 1A(5) Rec C Soil Vapour HSL for Vapour Intrusion",null,null,"mg/m3","NL",null,null,"Sand",8]
["100-41-4","Ethylbenzene","Gas","NEPM 2013 Table 1A(5) Rec C Soil Vapour HSL for Vapour Intrusion",null,null,"mg/m3","NL",null,null,"Sand",8]
["1330-20-7","Xylenes","Gas","NEPM 2013 Table 1A(5) Rec C Soil Vapour HSL for Vapour Intrusion",null,null,"mg/m3","NL",null,null,"Sand",8]
["91-20-3","Naphthalene","Gas","NEPM 2013 Table 1A(5) Rec C Soil Vapour HSL for Vapour Intrusion",null,null,"mg/m3","NL",null,null,"Sand",8]
["71-43-2","Benzene","Gas","NEPM 2013 Table 1A(5) Rec C Soil Vapour HSL for Vapour Intrusion",19000,null,"mg/m3","",null,null,"Sand",8]
["F1-BTEX","F1","Gas","NEPM 2013 Table 1A(5) Rec C Soil Vapour HSL for Vapour Intrusion",null,null,"mg/m3","NL",null,"To obtain F1 subtract the sum of BTEX concentrations from the C6  - C10 fraction.","Sand",8]
["F2-NAPHTHALENE","F2","Gas","NEPM 2013 Table 1A(5) Rec C Soil Vapour HSL for Vapour Intrusion",null,null,"mg/m3","NL",null,"To obtain F2 subtract napthalene from the >C10 - C16 fraction.","Sand",8]
["108-88-3","Toluene","Gas","NEPM 2013 Table 1A(5) Rec C Soil Vapour HSL for Vapour Intrusion",null,null,"mg/m3","NL",null,null,"Silt",8]
["100-41-4","Ethylbenzene","Gas","NEPM 2013 Table 1A(5) Rec C Soil Vapour HSL for Vapour Intrusion",null,null,"mg/m3","NL",null,null,"Silt",8]
["1330-20-7","Xylenes","Gas","NEPM 2013 Table 1A(5) Rec C Soil Vapour HSL for Vapour Intrusion",null,null,"mg/m3","NL",null,null,"Silt",8]
["91-20-3","Naphthalene","Gas","NEPM 2013 Table 1A(5) Rec C Soil Vapour HSL for Vapour Intrusion",null,null,"mg/m3","NL",null,null,"Silt",8]
["71-43-2","Benzene","Gas","NEPM 2013 Table 1A(5) Rec C Soil Vapour HSL for Vapour Intrusion",97000,null,"mg/m3","",null,null,"Silt",8]
["F1-BTEX","F1","Gas","NEPM 2013 Table 1A(5) Rec C Soil Vapour HSL for Vapour Intrusion",null,null,"mg/m3","NL",null,"To obtain F1 subtract the sum of BTEX concentrations from the C6  - C10 fraction.","Silt",8]
["F2-NAPHTHALENE","F2","Gas","NEPM 2013 Table 1A(5) Rec C Soil Vapour HSL for Vapour Intrusion",null,null,"mg/m3","NL",null,"To obtain F2 subtract napthalene from the >C10 - C16 fraction.","Silt",8]
["108-88-3","Toluene","Gas","NEPM 2013 Table 1A(5) Rec C Soil Vapour HSL for Vapour Intrusion",null,null,"mg/m3","NL",null,null,"Clay",8]
["100-41-4","Ethylbenzene","Gas","NEPM 2013 Table 1A(5) Rec C Soil Vapour HSL for Vapour Intrusion",null,null,"mg/m3","NL",null,null,"Clay",8]
["1330-20-7","Xylenes","Gas","NEPM 2013 Table 1A(5) Rec C Soil Vapour HSL for Vapour Intrusion",null,null,"mg/m3","NL",null,null,"Clay",8]
["91-20-3","Naphthalene","Gas","NEPM 2013 Table 1A(5) Rec C Soil Vapour HSL for Vapour Intrusion",null,null,"mg/m3","NL",null,null,"Clay",8]
["71-43-2","Benzene","Gas","NEPM 2013 Table 1A(5) Rec C Soil Vapour HSL for Vapour Intrusion",160000,null,"mg/m3","",null,null,"Clay",8]
["F1-BTEX","F1","Gas","NEPM 2013 Table 1A(5) Rec C Soil Vapour HSL for Vapour Intrusion",null,null,"mg/m3","NL",null,"To obtain F1 subtract the sum of BTEX concentrations from the C6  - C10 fraction.","Clay",8]
["F2-NAPHTHALENE","F2","Gas","NEPM 2013 Table 1A(5) Rec C Soil Vapour HSL for Vapour Intrusion",null,null,"mg/m3","NL",null,"To obtain F2 subtract napthalene from the >C10 - C16 fraction.","Clay",8]
["108-88-3","Toluene","Gas","NEPM 2013 Table 1A(5) Comm/Ind D Soil Vapour HSL for Vapour Intrusion",4800,null,"mg/m3","",null,null,"Sand",0,1]
["100-41-4","Ethylbenzene","Gas","NEPM 2013 Table 1A(5) Comm/Ind D Soil Vapour HSL for Vapour Intrusion",1300,null,"mg/m3","",null,null,"Sand",0,1]
["1330-20-7","Xylenes","Gas","NEPM 2013 Table 1A(5) Comm/Ind D Soil Vapour HSL for Vapour Intrusion",840,null,"mg/m3","",null,null,"Sand",0,1]
["91-20-3","Naphthalene","Gas","NEPM 2013 Table 1A(5) Comm/Ind D Soil Vapour HSL for Vapour Intrusion",3,null,"mg/m3","",null,null,"Sand",0,1]
["71-43-2","Benzene","Gas","NEPM 2013 Table 1A(5) Comm/Ind D Soil Vapour HSL for Vapour Intrusion",4,null,"mg/m3","",null,null,"Sand",0,1]
["F1-BTEX","F1","Gas","NEPM 2013 Table 1A(5) Comm/Ind D Soil Vapour HSL for Vapour Intrusion",680,null,"mg/m3","",null,"To obtain F1 subtract the sum of BTEX concentrations from the C6  - C10 fraction.","Sand",0,1]
["F2-NAPHTHALENE","F2","Gas","NEPM 2013 Table 1A(5) Comm/Ind D Soil Vapour HSL for Vapour Intrusion",500,null,"mg/m3","",null,"To obtain F2 subtract napthalene from the >C10 - C16 fraction.","Sand",0,1]
["108-88-3","Toluene","Gas","NEPM 2013 Table 1A(5) Comm/Ind D Soil Vapour HSL for Vapour Intrusion",5700,null,"mg/m3","",null,null,"Silt",0,1]
["100-41-4","Ethylbenzene","Gas","NEPM 2013 Table 1A(5) Comm/Ind D Soil Vapour HSL for Vapour Intrusion",1500,null,"mg/m3","",null,null,"Silt",0,1]
["1330-20-7","Xylenes","Gas","NEPM 2013 Table 1A(5) Comm/Ind D Soil Vapour HSL for Vapour Intrusion",1000,null,"mg/m3","",null,null,"Silt",0,1]
["91-20-3","Naphthalene","Gas","NEPM 2013 Table 1A(5) Comm/Ind D Soil Vapour HSL for Vapour Intrusion",4,null,"mg/m3","",null,null,"Silt",0,1]
["71-43-2","Benzene","Gas","NEPM 2013 Table 1A(5) Comm/Ind D Soil Vapour HSL for Vapour Intrusion",4,null,"mg/m3","",null,null,"Silt",0,1]
["F1-BTEX","F1","Gas","NEPM 2013 Table 1A(5) Comm/Ind D Soil Vapour HSL for Vapour Intrusion",850,null,"mg/m3","",null,"To obtain F1 subtract the sum of BTEX concentrations from the C6  - C10 fraction.","Silt",0,1]
["F2-NAPHTHALENE","F2","Gas","NEPM 2013 Table 1A(5) Comm/Ind D Soil Vapour HSL for Vapour Intrusion",670,null,"mg/m3","",null,"To obtain F2 subtract napthalene from the >C10 - C16 fraction.","Silt",0,1]
["108-88-3","Toluene","Gas","NEPM 2013 Table 1A(5) Comm/Ind D Soil Vapour HSL for Vapour Intrusion",6500,null,"mg/m3","",null,null,"Clay",0,1]
["100-41-4","Ethylbenzene","Gas","NEPM 2013 Table 1A(5) Comm/Ind D Soil Vapour HSL for Vapour Intrusion",1800,null,"mg/m3","",null,null,"Clay",0,1]
["1330-20-7","Xylenes","Gas","NEPM 2013 Table 1A(5) Comm/Ind D Soil Vapour HSL for Vapour Intrusion",1200,null,"mg/m3","",null,null,"Clay",0,1]
["91-20-3","Naphthalene","Gas","NEPM 2013 Table 1A(5) Comm/Ind D Soil Vapour HSL for Vapour Intrusion",4,null,"mg/m3","",null,null,"Clay",0,1]
["71-43-2","Benzene","Gas","NEPM 2013 Table 1A(5) Comm/Ind D Soil Vapour HSL for Vapour Intrusion",5,null,"mg/m3","",null,null,"Clay",0,1]
["F1-BTEX","F1","Gas","NEPM 2013 Table 1A(5) Comm/Ind D Soil Vapour HSL for Vapour Intrusion",1000,null,"mg/m3","",null,"To obtain F1 subtract the sum of BTEX concentrations from the C6  - C10 fraction.","Clay",0,1]
["F2-NAPHTHALENE","F2","Gas","NEPM 2013 Table 1A(5) Comm/Ind D Soil Vapour HSL for Vapour Intrusion",800,null,"mg/m3","",null,"To obtain F2 subtract napthalene from the >C10 - C16 fraction.","Clay",0,1]
["108-88-3","Toluene","Gas","NEPM 2013 Table 1A(5) Comm/Ind D Soil Vapour HSL for Vapour Intrusion",16000,null,"mg/m3","",null,null,"Sand",1,2]
["100-41-4","Ethylbenzene","Gas","NEPM 2013 Table 1A(5) Comm/Ind D Soil Vapour HSL for Vapour Intrusion",4600,null,"mg/m3","",null,null,"Sand",1,2]
["1330-20-7","Xylenes","Gas","NEPM 2013 Table 1A(5) Comm/Ind D Soil Vapour HSL for Vapour Intrusion",3200,null,"mg/m3","",null,null,"Sand",1,2]
["91-20-3","Naphthalene","Gas","NEPM 2013 Table 1A(5) Comm/Ind D Soil Vapour HSL for Vapour Intrusion",15,null,"mg/m3","",null,null,"Sand",1,2]
["71-43-2","Benzene","Gas","NEPM 2013 Table 1A(5) Comm/Ind D Soil Vapour HSL for Vapour Intrusion",10,null,"mg/m3","",null,null,"Sand",1,2]
["F1-BTEX","F1","Gas","NEPM 2013 Table 1A(5) Comm/Ind D Soil Vapour HSL for Vapour Intrusion",2800,null,"mg/m3","",null,"To obtain F1 subtract the sum of BTEX concentrations from the C6  - C10 fraction.","Sand",1,2]
["F2-NAPHTHALENE","F2","Gas","NEPM 2013 Table 1A(5) Comm/Ind D Soil Vapour HSL for Vapour Intrusion",2400,null,"mg/m3","",null,"To obtain F2 subtract napthalene from the >C10 - C16 fraction.","Sand",1,2]
["108-88-3","Toluene","Gas","NEPM 2013 Table 1A(5) Comm/Ind D Soil Vapour HSL for Vapour Intrusion",63000,null,"mg/m3","",null,null,"Silt",1,2]
["100-41-4","Ethylbenzene","Gas","NEPM 2013 Table 1A(5) Comm/Ind D Soil Vapour HSL for Vapour Intrusion",19000,null,"mg/m3","",null,null,"Silt",1,2]
["1330-20-7","Xylenes","Gas","NEPM 2013 Table 1A(5) Comm/Ind D Soil Vapour HSL for Vapour Intrusion",13000,null,"mg/m3","",null,null,"Silt",1,2]
["91-20-3","Naphthalene","Gas","NEPM 2013 Table 1A(5) Comm/Ind D Soil Vapour HSL for Vapour Intrusion",50,null,"mg/m3","",null,null,"Silt",1,2]
["71-43-2","Benzene","Gas","NEPM 2013 Table 1A(5) Comm/Ind D Soil Vapour HSL for Vapour Intrusion",50,null,"mg/m3","",null,null,"Silt",1,2]
["F1-BTEX","F1","Gas","NEPM 2013 Table 1A(5) Comm/Ind D Soil Vapour HSL for Vapour Intrusion",11000,null,"mg/m3","",null,"To obtain F1 subtract the sum of BTEX concentrations from the C6  - C10 fraction.","Silt",1,2]
["F2-NAPHTHALENE","F2","Gas","NEPM 2013 Table 1A(5) Comm/Ind D Soil Vapour HSL for Vapour Intrusion",null,null,"mg/m3","NL",null,"To obtain F2 subtract napthalene from the >C10 - C16 fraction.","Silt",1,2]
["108-88-3","Toluene","Gas","NEPM 2013 Table 1A(5) Comm/Ind D Soil Vapour HSL for Vapour Intrusion",100000,null,"mg/m3","",null,null,"Clay",1,2]
["100-41-4","Ethylbenzene","Gas","NEPM 2013 Table 1A(5) Comm/Ind D Soil Vapour HSL for Vapour Intrusion",31000,null,"mg/m3","",null,null,"Clay",1,2]
["1330-20-7","Xylenes","Gas","NEPM 2013 Table 1A(5) Comm/Ind D Soil Vapour HSL for Vapour Intrusion",21000,null,"mg/m3","",null,null,"Clay",1,2]
["91-20-3","Naphthalene","Gas","NEPM 2013 Table 1A(5) Comm/Ind D Soil Vapour HSL for Vapour Intrusion",85,null,"mg/m3","",null,null,"Clay",1,2]
["71-43-2","Benzene","Gas","NEPM 2013 Table 1A(5) Comm/Ind D Soil Vapour HSL for Vapour Intrusion",80,null,"mg/m3","",null,null,"Clay",1,2]
["F1-BTEX","F1","Gas","NEPM 2013 Table 1A(5) Comm/Ind D Soil Vapour HSL for Vapour Intrusion",19000,null,"mg/m3","",null,"To obtain F1 subtract the sum of BTEX concentrations from the C6  - C10 fraction.","Clay",1,2]
["F2-NAPHTHALENE","F2","Gas","NEPM 2013 Table 1A(5) Comm/Ind D Soil Vapour HSL for Vapour Intrusion",null,null,"mg/m3","NL",null,"To obtain F2 subtract napthalene from the >C10 - C16 fraction.","Clay",1,2]
["108-88-3","Toluene","Gas","NEPM 2013 Table 1A(5) Comm/Ind D Soil Vapour HSL for Vapour Intrusion",39000,null,"mg/m3","",null,null,"Sand",2,4]
["100-41-4","Ethylbenzene","Gas","NEPM 2013 Table 1A(5) Comm/Ind D Soil Vapour HSL for Vapour Intrusion",11000,null,"mg/m3","",null,null,"Sand",2,4]
["1330-20-7","Xylenes","Gas","NEPM 2013 Table 1A(5) Comm/Ind D Soil Vapour HSL for Vapour Intrusion",8000,null,"mg/m3","",null,null,"Sand",2,4]
["91-20-3","Naphthalene","Gas","NEPM 2013 Table 1A(5) Comm/Ind D Soil Vapour HSL for Vapour Intrusion",35,null,"mg/m3","",null,null,"Sand",2,4]
["71-43-2","Benzene","Gas","NEPM 2013 Table 1A(5) Comm/Ind D Soil Vapour HSL for Vapour Intrusion",30,null,"mg/m3","",null,null,"Sand",2,4]
["F1-BTEX","F1","Gas","NEPM 2013 Table 1A(5) Comm/Ind D Soil Vapour HSL for Vapour Intrusion",7000,null,"mg/m3","",null,"To obtain F1 subtract the sum of BTEX concentrations from the C6  - C10 fraction.","Sand",2,4]
["F2-NAPHTHALENE","F2","Gas","NEPM 2013 Table 1A(5) Comm/Ind D Soil Vapour HSL for Vapour Intrusion",null,null,"mg/m3","NL",null,"To obtain F2 subtract napthalene from the >C10 - C16 fraction.","Sand",2,4]
["108-88-3","Toluene","Gas","NEPM 2013 Table 1A(5) Comm/Ind D Soil Vapour HSL for Vapour Intrusion",null,null,"mg/m3","NL",null,null,"Silt",2,4]
["100-41-4","Ethylbenzene","Gas","NEPM 2013 Table 1A(5) Comm/Ind D Soil Vapour HSL for Vapour Intrusion",54000,null,"mg/m3","",null,null,"Silt",2,4]
["1330-20-7","Xylenes","Gas","NEPM 2013 Table 1A(5) Comm/Ind D Soil Vapour HSL for Vapour Intrusion",38000,null,"mg/m3","",null,null,"Silt",2,4]
["91-20-3","Naphthalene","Gas","NEPM 2013 Table 1A(5) Comm/Ind D Soil Vapour HSL for Vapour Intrusion",150,null,"mg/m3","",null,null,"Silt",2,4]
["71-43-2","Benzene","Gas","NEPM 2013 Table 1A(5) Comm/Ind D Soil Vapour HSL for Vapour Intrusion",140,null,"mg/m3","",null,null,"Silt",2,4]
["F1-BTEX","F1","Gas","NEPM 2013 Table 1A(5) Comm/Ind D Soil Vapour HSL for Vapour Intrusion",33000,null,"mg/m3","",null,"To obtain F1 subtract the sum of BTEX concentrations from the C6  - C10 fraction.","Silt",2,4]
["F2-NAPHTHALENE","F2","Gas","NEPM 2013 Table 1A(5) Comm/Ind D Soil Vapour HSL for Vapour Intrusion",null,null,"mg/m3","NL",null,"To obtain F2 subtract napthalene from the >C10 - C16 fraction.","Silt",2,4]
["108-88-3","Toluene","Gas","NEPM 2013 Table 1A(5) Comm/Ind D Soil Vapour HSL for Vapour Intrusion",null,null,"mg/m3","NL",null,null,"Clay",2,4]
["100-41-4","Ethylbenzene","Gas","NEPM 2013 Table 1A(5) Comm/Ind D Soil Vapour HSL for Vapour Intrusion",null,null,"mg/m3","NL",null,null,"Clay",2,4]
["1330-20-7","Xylenes","Gas","NEPM 2013 Table 1A(5) Comm/Ind D Soil Vapour HSL for Vapour Intrusion",null,null,"mg/m3","NL",null,null,"Clay",2,4]
["91-20-3","Naphthalene","Gas","NEPM 2013 Table 1A(5) Comm/Ind D Soil Vapour HSL for Vapour Intrusion",240,null,"mg/m3","",null,null,"Clay",2,4]
["71-43-2","Benzene","Gas","NEPM 2013 Table 1A(5) Comm/Ind D Soil Vapour HSL for Vapour Intrusion",230,null,"mg/m3","",null,null,"Clay",2,4]
["F1-BTEX","F1","Gas","NEPM 2013 Table 1A(5) Comm/Ind D Soil Vapour HSL for Vapour Intrusion",55000,null,"mg/m3","",null,"To obtain F1 subtract the sum of BTEX concentrations from the C6  - C10 fraction.","Clay",2,4]
["F2-NAPHTHALENE","F2","Gas","NEPM 2013 Table 1A(5) Comm/Ind D Soil Vapour HSL for Vapour Intrusion",null,null,"mg/m3","NL",null,"To obtain F2 subtract napthalene from the >C10 - C16 fraction.","Clay",2,4]
["108-88-3","Toluene","Gas","NEPM 2013 Table 1A(5) Comm/Ind D Soil Vapour HSL for Vapour Intrusion",84000,null,"mg/m3","",null,null,"Sand",4,8]
["100-41-4","Ethylbenzene","Gas","NEPM 2013 Table 1A(5) Comm/Ind D Soil Vapour HSL for Vapour Intrusion",25000,null,"mg/m3","",null,null,"Sand",4,8]
["1330-20-7","Xylenes","Gas","NEPM 2013 Table 1A(5) Comm/Ind D Soil Vapour HSL for Vapour Intrusion",18000,null,"mg/m3","",null,null,"Sand",4,8]
["91-20-3","Naphthalene","Gas","NEPM 2013 Table 1A(5) Comm/Ind D Soil Vapour HSL for Vapour Intrusion",75,null,"mg/m3","",null,null,"Sand",4,8]
["71-43-2","Benzene","Gas","NEPM 2013 Table 1A(5) Comm/Ind D Soil Vapour HSL for Vapour Intrusion",65,null,"mg/m3","",null,null,"Sand",4,8]
["F1-BTEX","F1","Gas","NEPM 2013 Table 1A(5) Comm/Ind D Soil Vapour HSL for Vapour Intrusion",15000,null,"mg/m3","",null,"To obtain F1 subtract the sum of BTEX concentrations from the C6  - C10 fraction.","Sand",4,8]
["F2-NAPHTHALENE","F2","Gas","NEPM 2013 Table 1A(5) Comm/Ind D Soil Vapour HSL for Vapour Intrusion",null,null,"mg/m3","NL",null,"To obtain F2 subtract napthalene from the >C10 - C16 fraction.","Sand",4,8]
["108-88-3","Toluene","Gas","NEPM 2013 Table 1A(5) Comm/Ind D Soil Vapour HSL for Vapour Intrusion",null,null,"mg/m3","NL",null,null,"Silt",4,8]
["100-41-4","Ethylbenzene","Gas","NEPM 2013 Table 1A(5) Comm/Ind D Soil Vapour HSL for Vapour Intrusion",null,null,"mg/m3","NL",null,null,"Silt",4,8]
["1330-20-7","Xylenes","Gas","NEPM 2013 Table 1A(5) Comm/Ind D Soil Vapour HSL for Vapour Intrusion",null,null,"mg/m3","NL",null,null,"Silt",4,8]
["91-20-3","Naphthalene","Gas","NEPM 2013 Table 1A(5) Comm/Ind D Soil Vapour HSL for Vapour Intrusion",350,null,"mg/m3","",null,null,"Silt",4,8]
["71-43-2","Benzene","Gas","NEPM 2013 Table 1A(5) Comm/Ind D Soil Vapour HSL for Vapour Intrusion",320,null,"mg/m3","",null,null,"Silt",4,8]
["F1-BTEX","F1","Gas","NEPM 2013 Table 1A(5) Comm/Ind D Soil Vapour HSL for Vapour Intrusion",77000,null,"mg/m3","",null,"To obtain F1 subtract the sum of BTEX concentrations from the C6  - C10 fraction.","Silt",4,8]
["F2-NAPHTHALENE","F2","Gas","NEPM 2013 Table 1A(5) Comm/Ind D Soil Vapour HSL for Vapour Intrusion",null,null,"mg/m3","NL",null,"To obtain F2 subtract napthalene from the >C10 - C16 fraction.","Silt",4,8]
["108-88-3","Toluene","Gas","NEPM 2013 Table 1A(5) Comm/Ind D Soil Vapour HSL for Vapour Intrusion",null,null,"mg/m3","NL",null,null,"Clay",4,8]
["100-41-4","Ethylbenzene","Gas","NEPM 2013 Table 1A(5) Comm/Ind D Soil Vapour HSL for Vapour Intrusion",null,null,"mg/m3","NL",null,null,"Clay",4,8]
["1330-20-7","Xylenes","Gas","NEPM 2013 Table 1A(5) Comm/Ind D Soil Vapour HSL for Vapour Intrusion",null,null,"mg/m3","NL",null,null,"Clay",4,8]
["91-20-3","Naphthalene","Gas","NEPM 2013 Table 1A(5) Comm/Ind D Soil Vapour HSL for Vapour Intrusion",560,null,"mg/m3","",null,null,"Clay",4,8]
["71-43-2","Benzene","Gas","NEPM 2013 Table 1A(5) Comm/Ind D Soil Vapour HSL for Vapour Intrusion",530,null,"mg/m3","",null,null,"Clay",4,8]
["F1-BTEX","F1","Gas","NEPM 2013 Table 1A(5) Comm/Ind D Soil Vapour HSL for Vapour Intrusion",130000,null,"mg/m3","",null,"To obtain F1 subtract the sum of BTEX concentrations from the C6  - C10 fraction.","Clay",4,8]
["F2-NAPHTHALENE","F2","Gas","NEPM 2013 Table 1A(5) Comm/Ind D Soil Vapour HSL for Vapour Intrusion",null,null,"mg/m3","NL",null,"To obtain F2 subtract napthalene from the >C10 - C16 fraction.","Clay",4,8]
["108-88-3","Toluene","Gas","NEPM 2013 Table 1A(5) Comm/Ind D Soil Vapour HSL for Vapour Intrusion",null,null,"mg/m3","NL",null,null,"Sand",8]
["100-41-4","Ethylbenzene","Gas","NEPM 2013 Table 1A(5) Comm/Ind D Soil Vapour HSL for Vapour Intrusion",53000,null,"mg/m3","",null,null,"Sand",8]
["1330-20-7","Xylenes","Gas","NEPM 2013 Table 1A(5) Comm/Ind D Soil Vapour HSL for Vapour Intrusion",37000,null,"mg/m3","",null,null,"Sand",8]
["91-20-3","Naphthalene","Gas","NEPM 2013 Table 1A(5) Comm/Ind D Soil Vapour HSL for Vapour Intrusion",150,null,"mg/m3","",null,null,"Sand",8]
["71-43-2","Benzene","Gas","NEPM 2013 Table 1A(5) Comm/Ind D Soil Vapour HSL for Vapour Intrusion",130,null,"mg/m3","",null,null,"Sand",8]
["F1-BTEX","F1","Gas","NEPM 2013 Table 1A(5) Comm/Ind D Soil Vapour HSL for Vapour Intrusion",32000,null,"mg/m3","",null,"To obtain F1 subtract the sum of BTEX concentrations from the C6  - C10 fraction.","Sand",8]
["F2-NAPHTHALENE","F2","Gas","NEPM 2013 Table 1A(5) Comm/Ind D Soil Vapour HSL for Vapour Intrusion",null,null,"mg/m3","NL",null,"To obtain F2 subtract napthalene from the >C10 - C16 fraction.","Sand",8]
["108-88-3","Toluene","Gas","NEPM 2013 Table 1A(5) Comm/Ind D Soil Vapour HSL for Vapour Intrusion",null,null,"mg/m3","NL",null,null,"Silt",8]
["100-41-4","Ethylbenzene","Gas","NEPM 2013 Table 1A(5) Comm/Ind D Soil Vapour HSL for Vapour Intrusion",null,null,"mg/m3","NL",null,null,"Silt",8]
["1330-20-7","Xylenes","Gas","NEPM 2013 Table 1A(5) Comm/Ind D Soil Vapour HSL for Vapour Intrusion",null,null,"mg/m3","NL",null,null,"Silt",8]
["91-20-3","Naphthalene","Gas","NEPM 2013 Table 1A(5) Comm/Ind D Soil Vapour HSL for Vapour Intrusion",750,null,"mg/m3","",null,null,"Silt",8]
["71-43-2","Benzene","Gas","NEPM 2013 Table 1A(5) Comm/Ind D Soil Vapour HSL for Vapour Intrusion",670,null,"mg/m3","",null,null,"Silt",8]
["F1-BTEX","F1","Gas","NEPM 2013 Table 1A(5) Comm/Ind D Soil Vapour HSL for Vapour Intrusion",160000,null,"mg/m3","",null,"To obtain F1 subtract the sum of BTEX concentrations from the C6  - C10 fraction.","Silt",8]
["F2-NAPHTHALENE","F2","Gas","NEPM 2013 Table 1A(5) Comm/Ind D Soil Vapour HSL for Vapour Intrusion",null,null,"mg/m3","NL",null,"To obtain F2 subtract napthalene from the >C10 - C16 fraction.","Silt",8]
["108-88-3","Toluene","Gas","NEPM 2013 Table 1A(5) Comm/Ind D Soil Vapour HSL for Vapour Intrusion",null,null,"mg/m3","NL",null,null,"Clay",8]
["100-41-4","Ethylbenzene","Gas","NEPM 2013 Table 1A(5) Comm/Ind D Soil Vapour HSL for Vapour Intrusion",null,null,"mg/m3","NL",null,null,"Clay",8]
["1330-20-7","Xylenes","Gas","NEPM 2013 Table 1A(5) Comm/Ind D Soil Vapour HSL for Vapour Intrusion",null,null,"mg/m3","NL",null,null,"Clay",8]
["91-20-3","Naphthalene","Gas","NEPM 2013 Table 1A(5) Comm/Ind D Soil Vapour HSL for Vapour Intrusion",1200,null,"mg/m3","",null,null,"Clay",8]
["71-43-2","Benzene","Gas","NEPM 2013 Table 1A(5) Comm/Ind D Soil Vapour HSL for Vapour Intrusion",1100,null,"mg/m3","",null,null,"Clay",8]
["F1-BTEX","F1","Gas","NEPM 2013 Table 1A(5) Comm/Ind D Soil Vapour HSL for Vapour Intrusion",270000,null,"mg/m3","",null,"To obtain F1 subtract the sum of BTEX concentrations from the C6  - C10 fraction.","Clay",8]
["F2-NAPHTHALENE","F2","Gas","NEPM 2013 Table 1A(5) Comm/Ind D Soil Vapour HSL for Vapour Intrusion",null,null,"mg/m3","NL",null,"To obtain F2 subtract napthalene from the >C10 - C16 fraction.","Clay",8]

{"sheet":"1B6 ESLs no CM","index":13,"n_rows":58,"n_cols":28,"rows_kept":58,"cut":false,"hidden":false,"merged":[]}
["Project:","Cardno Lane Piper 213152Historical Soil",null,"Table:","[zRef_Environmental_Standards]",null,"Style:",null,null,"Template",null,null,null,"NoLocs"]
["Path:","C:\\Users\\Tom W\\Documents\\Clients\\Cardno Lane Piper\\213152Historical Soil\\213152Historical Soil.mdb",null,"Parent Tables:","zRef_Matrix_Types,zRef_Chemistry_Lookup,Chem_Group_Or_Method"]
[]
["ChemCode","ChemName","MatrixType","ActionLevelSource","ActionLevel","ActionLevel_Min","Units","ActionLevel_Prefix","ActionLevel_Suffix","Comments","Conditional_Matrix_Type","Conditional_Depth_From","Conditional_Depth_To","Leached","Conditional_ChemCode1","Conditional_ChemCode1_Units","Conditional_ChemCode1_Min_Value_Prefix","Conditional_ChemCode1_Value_Min","Conditional_ChemCode1_Max_Value_Prefix","Conditional_ChemCode1_Value_Max","Conditional_ChemCode2","Conditional_ChemCode2_Units","Conditional_ChemCode2_Min_Value_Prefix","Conditional_ChemCode2_Value_Min","Conditional_ChemCode2_Max_Value_Prefix","Conditional_ChemCode2_Value_Max","Applies_To_Total_Result","Applies_To_Filtered_Result"]
["F1-BTEX","F1","Soil","NEPM 2013 Table 1B(6) ESLs for Areas of Ecological Significance, Fine Soil",125,null,"mg/kg",null,null,"Moderate reliability. To obtain F1 subtract the sum of BTEX concentrations from the C6  - C10 fraction."]
["F2-NAPHTHALENE","F2","Soil","NEPM 2013 Table 1B(6) ESLs for Areas of Ecological Significance, Fine Soil",25,null,"mg/kg",null,null,"Moderate reliability. To obtain F2 subtract napthalene from the >C10 - C16 fraction."]
["C16-C34","F3  >C16-C34","Soil","NEPM 2013 Table 1B(6) ESLs for Areas of Ecological Significance, Fine Soil",null,null,"mg/kg","-",null,"Insufficient data to availability to derive a value."]
["C34-C40","F4   >C34-C40","Soil","NEPM 2013 Table 1B(6) ESLs for Areas of Ecological Significance, Fine Soil",null,null,"mg/kg","-",null,"Insufficient data to availability to derive a value."]
["71-43-2","Benzene","Soil","NEPM 2013 Table 1B(6) ESLs for Areas of Ecological Significance, Fine Soil",10,null,"mg/kg"]
["108-88-3","Toluene","Soil","NEPM 2013 Table 1B(6) ESLs for Areas of Ecological Significance, Fine Soil",65,null,"mg/kg"]
["100-41-4","Ethylbenzene","Soil","NEPM 2013 Table 1B(6) ESLs for Areas of Ecological Significance, Fine Soil",40,null,"mg/kg"]
["1330-20-7","Xylenes","Soil","NEPM 2013 Table 1B(6) ESLs for Areas of Ecological Significance, Fine Soil",1.6,null,"mg/kg"]
["50-32-8","Benzo(a)pyrene","Soil","NEPM 2013 Table 1B(6) ESLs for Areas of Ecological Significance, Fine Soil",0.7,null,"mg/kg"]
["F1-BTEX","F1","Soil","NEPM 2013 Table 1B(6) ESLs for Urban Res, Fine Soil",180,null,"mg/kg",null,null,"Moderate reliability. To obtain F1 subtract the sum of BTEX concentrations from the C6  - C10 fraction."]
["F2-NAPHTHALENE","F2","Soil","NEPM 2013 Table 1B(6) ESLs for Urban Res, Fine Soil",120,null,"mg/kg",null,null,"Moderate reliability. To obtain F2 subtract napthalene from the >C10 - C16 fraction."]
["C16-C34","F3  >C16-C34","Soil","NEPM 2013 Table 1B(6) ESLs for Urban Res, Fine Soil",1300,null,"mg/kg"]
["C34-C40","F4   >C34-C40","Soil","NEPM 2013 Table 1B(6) ESLs for Urban Res, Fine Soil",5600,null,"mg/kg"]
["71-43-2","Benzene","Soil","NEPM 2013 Table 1B(6) ESLs for Urban Res, Fine Soil",65,null,"mg/kg"]
["108-88-3","Toluene","Soil","NEPM 2013 Table 1B(6) ESLs for Urban Res, Fine Soil",105,null,"mg/kg"]
["100-41-4","Ethylbenzene","Soil","NEPM 2013 Table 1B(6) ESLs for Urban Res, Fine Soil",125,null,"mg/kg",null,null,null,null,0,2]
["1330-20-7","Xylenes","Soil","NEPM 2013 Table 1B(6) ESLs for Urban Res, Fine Soil",45,null,"mg/kg",null,null,null,null,0,2]
["50-32-8","Benzo(a)pyrene","Soil","NEPM 2013 Table 1B(6) ESLs for Urban Res, Fine Soil",0.7,null,"mg/kg",null,null,null,null,0,2]
["F1-BTEX","F1","Soil","NEPM 2013 Table 1B(6) ESLs for Comm/Ind, Fine Soil",215,null,"mg/kg",null,null,"Moderate reliability. To obtain F1 subtract the sum of BTEX concentrations from the C6  - C10 fraction.",null,0,2]
["F2-NAPHTHALENE","F2","Soil","NEPM 2013 Table 1B(6) ESLs for Comm/Ind, Fine Soil",170,null,"mg/kg",null,null,"Moderate reliability. To obtain F2 subtract napthalene from the >C10 - C16 fraction.",null,0,2]
["C16-C34","F3  >C16-C34","Soil","NEPM 2013 Table 1B(6) ESLs for Comm/Ind, Fine Soil",2500,null,"mg/kg",null,null,null,null,0,2]
["C34-C40","F4   >C34-C40","Soil","NEPM 2013 Table 1B(6) ESLs for Comm/Ind, Fine Soil",6600,null,"mg/kg",null,null,null,null,0,2]
["71-43-2","Benzene","Soil","NEPM 2013 Table 1B(6) ESLs for Comm/Ind, Fine Soil",95,null,"mg/kg",null,null,null,null,0,2]
["108-88-3","Toluene","Soil","NEPM 2013 Table 1B(6) ESLs for Comm/Ind, Fine Soil",135,null,"mg/kg",null,null,null,null,0,2]
["100-41-4","Ethylbenzene","Soil","NEPM 2013 Table 1B(6) ESLs for Comm/Ind, Fine Soil",185,null,"mg/kg",null,null,null,null,0,2]
["1330-20-7","Xylenes","Soil","NEPM 2013 Table 1B(6) ESLs for Comm/Ind, Fine Soil",95,null,"mg/kg",null,null,null,null,0,2]
["50-32-8","Benzo(a)pyrene","Soil","NEPM 2013 Table 1B(6) ESLs for Comm/Ind, Fine Soil",1.4,null,"mg/kg",null,null,null,null,0,2]
["F1-BTEX","F1","Soil","NEPM 2013 Table 1B(6) ESLs for Areas of Ecological Significance, Coarse Soil",125,null,"mg/kg",null,null,"To obtain F1 subtract the sum of BTEX concentrations from the C6  - C10 fraction.",null,0,2]
["F2-NAPHTHALENE","F2","Soil","NEPM 2013 Table 1B(6) ESLs for Areas of Ecological Significance, Coarse Soil",25,null,"mg/kg",null,null,"To obtain F2 subtract napthalene from the >C10 - C16 fraction.",null,0,2]
["C16-C34","F3  >C16-C34","Soil","NEPM 2013 Table 1B(6) ESLs for Areas of Ecological Significance, Coarse Soil",null,null,"mg/kg","-",null,"Insufficient data to availability to derive a value.",null,0,2]
["C34-C40","F4   >C34-C40","Soil","NEPM 2013 Table 1B(6) ESLs for Areas of Ecological Significance, Coarse Soil",null,null,"mg/kg","-",null,"Insufficient data to availability to derive a value.",null,0,2]
["71-43-2","Benzene","Soil","NEPM 2013 Table 1B(6) ESLs for Areas of Ecological Significance, Coarse Soil",8,null,"mg/kg",null,null,null,null,0,2]
["108-88-3","Toluene","Soil","NEPM 2013 Table 1B(6) ESLs for Areas of Ecological Significance, Coarse Soil",10,null,"mg/kg",null,null,null,null,0,2]
["100-41-4","Ethylbenzene","Soil","NEPM 2013 Table 1B(6) ESLs for Areas of Ecological Significance, Coarse Soil",1.5,null,"mg/kg",null,null,null,null,0,2]
["1330-20-7","Xylenes","Soil","NEPM 2013 Table 1B(6) ESLs for Areas of Ecological Significance, Coarse Soil",10,null,"mg/kg",null,null,null,null,0,2]
["50-32-8","Benzo(a)pyrene","Soil","NEPM 2013 Table 1B(6) ESLs for Areas of Ecological Significance, Coarse Soil",1.4,null,"mg/kg",null,null,null,null,0,2]
["F1-BTEX","F1","Soil","NEPM 2013 Table 1B(6) ESLs for Urban Res, Coarse Soil",180,null,"mg/kg",null,null,"To obtain F1 subtract the sum of BTEX concentrations from the C6  - C10 fraction.",null,0,2]
["F2-NAPHTHALENE","F2","Soil","NEPM 2013 Table 1B(6) ESLs for Urban Res, Coarse Soil",120,null,"mg/kg",null,null,"To obtain F2 subtract napthalene from the >C10 - C16 fraction.",null,0,2]
["C16-C34","F3  >C16-C34","Soil","NEPM 2013 Table 1B(6) ESLs for Urban Res, Coarse Soil",300,null,"mg/kg",null,null,null,null,0,2]
["C34-C40","F4   >C34-C40","Soil","NEPM 2013 Table 1B(6) ESLs for Urban Res, Coarse Soil",2800,null,"mg/kg",null,null,null,null,0,2]
["71-43-2","Benzene","Soil","NEPM 2013 Table 1B(6) ESLs for Urban Res, Coarse Soil",50,null,"mg/kg",null,null,null,null,0,2]
["108-88-3","Toluene","Soil","NEPM 2013 Table 1B(6) ESLs for Urban Res, Coarse Soil",85,null,"mg/kg",null,null,null,null,0,2]
["100-41-4","Ethylbenzene","Soil","NEPM 2013 Table 1B(6) ESLs for Urban Res, Coarse Soil",70,null,"mg/kg",null,null,null,null,0,2]
["1330-20-7","Xylenes","Soil","NEPM 2013 Table 1B(6) ESLs for Urban Res, Coarse Soil",105,null,"mg/kg",null,null,null,null,0,2]
["50-32-8","Benzo(a)pyrene","Soil","NEPM 2013 Table 1B(6) ESLs for Urban Res, Coarse Soil",0.7,null,"mg/kg",null,null,null,null,0,2]
["F1-BTEX","F1","Soil","NEPM 2013 Table 1B(6) ESLs for Comm/Ind, Coarse Soil",215,null,"mg/kg",null,null,"To obtain F1 subtract the sum of BTEX concentrations from the C6  - C10 fraction.",null,0,2]
["F2-NAPHTHALENE","F2","Soil","NEPM 2013 Table 1B(6) ESLs for Comm/Ind, Coarse Soil",170,null,"mg/kg",null,null,"To obtain F2 subtract napthalene from the >C10 - C16 fraction.",null,0,2]
["C16-C34","F3  >C16-C34","Soil","NEPM 2013 Table 1B(6) ESLs for Comm/Ind, Coarse Soil",1700,null,"mg/kg",null,null,null,null,0,2]
["C34-C40","F4   >C34-C40","Soil","NEPM 2013 Table 1B(6) ESLs for Comm/Ind, Coarse Soil",3300,null,"mg/kg",null,null,null,null,0,2]
["71-43-2","Benzene","Soil","NEPM 2013 Table 1B(6) ESLs for Comm/Ind, Coarse Soil",75,null,"mg/kg",null,null,null,null,0,2]
["108-88-3","Toluene","Soil","NEPM 2013 Table 1B(6) ESLs for Comm/Ind, Coarse Soil",135,null,"mg/kg",null,null,null,null,0,2]
["100-41-4","Ethylbenzene","Soil","NEPM 2013 Table 1B(6) ESLs for Comm/Ind, Coarse Soil",165,null,"mg/kg",null,null,null,null,0,2]
["1330-20-7","Xylenes","Soil","NEPM 2013 Table 1B(6) ESLs for Comm/Ind, Coarse Soil",180,null,"mg/kg",null,null,null,null,0,2]
["50-32-8","Benzo(a)pyrene","Soil","NEPM 2013 Table 1B(6) ESLs for Comm/Ind, Coarse Soil",0.7,null,"mg/kg",null,null,null,null,0,2]

{"sheet":"1B6 ESLs w CM","index":14,"n_rows":85,"n_cols":28,"rows_kept":85,"cut":false,"hidden":false,"merged":[]}
["Project:","Cardno Lane Piper 213152Historical Soil",null,"Table:","[zRef_Environmental_Standards]",null,"Style:",null,null,"Template",null,null,null,"NoLocs"]
["Path:","C:\\Users\\Tom W\\Documents\\Clients\\Cardno Lane Piper\\213152Historical Soil\\213152Historical Soil.mdb",null,"Parent Tables:","zRef_Matrix_Types,zRef_Chemistry_Lookup,Chem_Group_Or_Method"]
[]
["ChemCode","ChemName","MatrixType","ActionLevelSource","ActionLevel","ActionLevel_Min","Units","ActionLevel_Prefix","ActionLevel_Suffix","Comments","Conditional_Matrix_Type","Conditional_Depth_From","Conditional_Depth_To","Leached","Conditional_ChemCode1","Conditional_ChemCode1_Units","Conditional_ChemCode1_Min_Value_Prefix","Conditional_ChemCode1_Value_Min","Conditional_ChemCode1_Max_Value_Prefix","Conditional_ChemCode1_Value_Max","Conditional_ChemCode2","Conditional_ChemCode2_Units","Conditional_ChemCode2_Min_Value_Prefix","Conditional_ChemCode2_Value_Min","Conditional_ChemCode2_Max_Value_Prefix","Conditional_ChemCode2_Value_Max","Applies_To_Total_Result","Applies_To_Filtered_Result"]
["F1-BTEX","F1","Soil","NEPM 2013 Table 1B(6) ESLs for Areas of Ecological Significance",125,null,"mg/kg",null,null,"Moderate reliability. To obtain F1 subtract the sum of BTEX concentrations from the C6  - C10 fraction.","Clay"]
["F2-NAPHTHALENE","F2","Soil","NEPM 2013 Table 1B(6) ESLs for Areas of Ecological Significance",25,null,"mg/kg",null,null,"Moderate reliability. To obtain F2 subtract napthalene from the >C10 - C16 fraction.","Clay"]
["C16-C34","F3  >C16-C34","Soil","NEPM 2013 Table 1B(6) ESLs for Areas of Ecological Significance",null,null,"mg/kg","-",null,"Insufficient data to availability to derive a value.","Clay"]
["C34-C40","F4   >C34-C40","Soil","NEPM 2013 Table 1B(6) ESLs for Areas of Ecological Significance",null,null,"mg/kg","-",null,"Insufficient data to availability to derive a value.","Clay"]
["71-43-2","Benzene","Soil","NEPM 2013 Table 1B(6) ESLs for Areas of Ecological Significance",10,null,"mg/kg",null,null,null,"Clay"]
["108-88-3","Toluene","Soil","NEPM 2013 Table 1B(6) ESLs for Areas of Ecological Significance",65,null,"mg/kg",null,null,null,"Clay"]
["100-41-4","Ethylbenzene","Soil","NEPM 2013 Table 1B(6) ESLs for Areas of Ecological Significance",40,null,"mg/kg",null,null,null,"Clay"]
["1330-20-7","Xylenes","Soil","NEPM 2013 Table 1B(6) ESLs for Areas of Ecological Significance",1.6,null,"mg/kg",null,null,null,"Clay"]
["50-32-8","Benzo(a)pyrene","Soil","NEPM 2013 Table 1B(6) ESLs for Areas of Ecological Significance",0.7,null,"mg/kg",null,null,null,"Clay"]
["F1-BTEX","F1","Soil","NEPM 2013 Table 1B(6) ESLs for Urban Res",180,null,"mg/kg",null,null,"Moderate reliability. To obtain F1 subtract the sum of BTEX concentrations from the C6  - C10 fraction.","Clay"]
["F2-NAPHTHALENE","F2","Soil","NEPM 2013 Table 1B(6) ESLs for Urban Res",120,null,"mg/kg",null,null,"Moderate reliability. To obtain F2 subtract napthalene from the >C10 - C16 fraction.","Clay"]
["C16-C34","F3  >C16-C34","Soil","NEPM 2013 Table 1B(6) ESLs for Urban Res",1300,null,"mg/kg",null,null,null,"Clay"]
["C34-C40","F4   >C34-C40","Soil","NEPM 2013 Table 1B(6) ESLs for Urban Res",5600,null,"mg/kg",null,null,null,"Clay"]
["71-43-2","Benzene","Soil","NEPM 2013 Table 1B(6) ESLs for Urban Res",65,null,"mg/kg",null,null,null,"Clay"]
["108-88-3","Toluene","Soil","NEPM 2013 Table 1B(6) ESLs for Urban Res",105,null,"mg/kg",null,null,null,"Clay"]
["100-41-4","Ethylbenzene","Soil","NEPM 2013 Table 1B(6) ESLs for Urban Res",125,null,"mg/kg",null,null,null,"Clay",0,2]
["1330-20-7","Xylenes","Soil","NEPM 2013 Table 1B(6) ESLs for Urban Res",45,null,"mg/kg",null,null,null,"Clay",0,2]
["50-32-8","Benzo(a)pyrene","Soil","NEPM 2013 Table 1B(6) ESLs for Urban Res",0.7,null,"mg/kg",null,null,null,"Clay",0,2]
["F1-BTEX","F1","Soil","NEPM 2013 Table 1B(6) ESLs for Comm/Ind",215,null,"mg/kg",null,null,"Moderate reliability. To obtain F1 subtract the sum of BTEX concentrations from the C6  - C10 fraction.","Clay",0,2]
["F2-NAPHTHALENE","F2","Soil","NEPM 2013 Table 1B(6) ESLs for Comm/Ind",170,null,"mg/kg",null,null,"Moderate reliability. To obtain F2 subtract napthalene from the >C10 - C16 fraction.","Clay",0,2]
["C16-C34","F3  >C16-C34","Soil","NEPM 2013 Table 1B(6) ESLs for Comm/Ind",2500,null,"mg/kg",null,null,null,"Clay",0,2]
["C34-C40","F4   >C34-C40","Soil","NEPM 2013 Table 1B(6) ESLs for Comm/Ind",6600,null,"mg/kg",null,null,null,"Clay",0,2]
["71-43-2","Benzene","Soil","NEPM 2013 Table 1B(6) ESLs for Comm/Ind",95,null,"mg/kg",null,null,null,"Clay",0,2]
["108-88-3","Toluene","Soil","NEPM 2013 Table 1B(6) ESLs for Comm/Ind",135,null,"mg/kg",null,null,null,"Clay",0,2]
["100-41-4","Ethylbenzene","Soil","NEPM 2013 Table 1B(6) ESLs for Comm/Ind",185,null,"mg/kg",null,null,null,"Clay",0,2]
["1330-20-7","Xylenes","Soil","NEPM 2013 Table 1B(6) ESLs for Comm/Ind",95,null,"mg/kg",null,null,null,"Clay",0,2]
["50-32-8","Benzo(a)pyrene","Soil","NEPM 2013 Table 1B(6) ESLs for Comm/Ind",0.7,null,"mg/kg",null,null,null,"Silt",0,2]
["F1-BTEX","F1","Soil","NEPM 2013 Table 1B(6) ESLs for Areas of Ecological Significance",125,null,"mg/kg",null,null,"To obtain F1 subtract the sum of BTEX concentrations from the C6  - C10 fraction.","Silt"]
["F2-NAPHTHALENE","F2","Soil","NEPM 2013 Table 1B(6) ESLs for Areas of Ecological Significance",25,null,"mg/kg",null,null,"To obtain F2 subtract napthalene from the >C10 - C16 fraction.","Silt"]
["C16-C34","F3  >C16-C34","Soil","NEPM 2013 Table 1B(6) ESLs for Areas of Ecological Significance",null,null,"mg/kg","-",null,"Insufficient data to availability to derive a value.","Silt"]
["C34-C40","F4   >C34-C40","Soil","NEPM 2013 Table 1B(6) ESLs for Areas of Ecological Significance",null,null,"mg/kg","-",null,"Insufficient data to availability to derive a value.","Silt"]
["71-43-2","Benzene","Soil","NEPM 2013 Table 1B(6) ESLs for Areas of Ecological Significance",10,null,"mg/kg",null,null,null,"Silt"]
["108-88-3","Toluene","Soil","NEPM 2013 Table 1B(6) ESLs for Areas of Ecological Significance",65,null,"mg/kg",null,null,null,"Silt"]
["100-41-4","Ethylbenzene","Soil","NEPM 2013 Table 1B(6) ESLs for Areas of Ecological Significance",40,null,"mg/kg",null,null,null,"Silt"]
["1330-20-7","Xylenes","Soil","NEPM 2013 Table 1B(6) ESLs for Areas of Ecological Significance",1.6,null,"mg/kg",null,null,null,"Silt"]
["50-32-8","Benzo(a)pyrene","Soil","NEPM 2013 Table 1B(6) ESLs for Areas of Ecological Significance",0.7,null,"mg/kg",null,null,null,"Silt"]
["F1-BTEX","F1","Soil","NEPM 2013 Table 1B(6) ESLs for Urban Res",180,null,"mg/kg",null,null,"To obtain F1 subtract the sum of BTEX concentrations from the C6  - C10 fraction.","Silt"]
["F2-NAPHTHALENE","F2","Soil","NEPM 2013 Table 1B(6) ESLs for Urban Res",120,null,"mg/kg",null,null,"To obtain F2 subtract napthalene from the >C10 - C16 fraction.","Silt"]
["C16-C34","F3  >C16-C34","Soil","NEPM 2013 Table 1B(6) ESLs for Urban Res",1300,null,"mg/kg",null,null,null,"Silt"]
["C34-C40","F4   >C34-C40","Soil","NEPM 2013 Table 1B(6) ESLs for Urban Res",5600,null,"mg/kg",null,null,null,"Silt"]
["71-43-2","Benzene","Soil","NEPM 2013 Table 1B(6) ESLs for Urban Res",65,null,"mg/kg",null,null,null,"Silt"]
["108-88-3","Toluene","Soil","NEPM 2013 Table 1B(6) ESLs for Urban Res",105,null,"mg/kg",null,null,null,"Silt"]
["100-41-4","Ethylbenzene","Soil","NEPM 2013 Table 1B(6) ESLs for Urban Res",125,null,"mg/kg",null,null,null,"Silt",0,2]
["1330-20-7","Xylenes","Soil","NEPM 2013 Table 1B(6) ESLs for Urban Res",45,null,"mg/kg",null,null,null,"Silt",0,2]
["50-32-8","Benzo(a)pyrene","Soil","NEPM 2013 Table 1B(6) ESLs for Urban Res",0.7,null,"mg/kg",null,null,null,"Silt",0,2]
["F1-BTEX","F1","Soil","NEPM 2013 Table 1B(6) ESLs for Comm/Ind",215,null,"mg/kg",null,null,"To obtain F1 subtract the sum of BTEX concentrations from the C6  - C10 fraction.","Silt",0,2]
["F2-NAPHTHALENE","F2","Soil","NEPM 2013 Table 1B(6) ESLs for Comm/Ind",170,null,"mg/kg",null,null,"To obtain F2 subtract napthalene from the >C10 - C16 fraction.","Silt",0,2]
["C16-C34","F3  >C16-C34","Soil","NEPM 2013 Table 1B(6) ESLs for Comm/Ind",2500,null,"mg/kg",null,null,null,"Silt",0,2]
["C34-C40","F4   >C34-C40","Soil","NEPM 2013 Table 1B(6) ESLs for Comm/Ind",6600,null,"mg/kg",null,null,null,"Silt",0,2]
["71-43-2","Benzene","Soil","NEPM 2013 Table 1B(6) ESLs for Comm/Ind",95,null,"mg/kg",null,null,null,"Silt",0,2]
["108-88-3","Toluene","Soil","NEPM 2013 Table 1B(6) ESLs for Comm/Ind",135,null,"mg/kg",null,null,null,"Silt",0,2]
["100-41-4","Ethylbenzene","Soil","NEPM 2013 Table 1B(6) ESLs for Comm/Ind",185,null,"mg/kg",null,null,null,"Silt",0,2]
["1330-20-7","Xylenes","Soil","NEPM 2013 Table 1B(6) ESLs for Comm/Ind",95,null,"mg/kg",null,null,null,"Silt",0,2]
["50-32-8","Benzo(a)pyrene","Soil","NEPM 2013 Table 1B(6) ESLs for Comm/Ind",1.4,null,"mg/kg",null,null,null,"Silt",0,2]
["F1-BTEX","F1","Soil","NEPM 2013 Table 1B(6) ESLs for Areas of Ecological Significance",125,null,"mg/kg",null,null,"To obtain F1 subtract the sum of BTEX concentrations from the C6  - C10 fraction.","Sand",0,2]
["F2-NAPHTHALENE","F2","Soil","NEPM 2013 Table 1B(6) ESLs for Areas of Ecological Significance",25,null,"mg/kg",null,null,"To obtain F2 subtract napthalene from the >C10 - C16 fraction.","Sand",0,2]
["C16-C34","F3  >C16-C34","Soil","NEPM 2013 Table 1B(6) ESLs for Areas of Ecological Significance",null,null,"mg/kg","-",null,"Insufficient data to availability to derive a value.","Sand",0,2]
["C34-C40","F4   >C34-C40","Soil","NEPM 2013 Table 1B(6) ESLs for Areas of Ecological Significance",null,null,"mg/kg","-",null,"Insufficient data to availability to derive a value.","Sand",0,2]
["71-43-2","Benzene","Soil","NEPM 2013 Table 1B(6) ESLs for Areas of Ecological Significance",8,null,"mg/kg",null,null,null,"Sand",0,2]
["108-88-3","Toluene","Soil","NEPM 2013 Table 1B(6) ESLs for Areas of Ecological Significance",10,null,"mg/kg",null,null,null,"Sand",0,2]
["100-41-4","Ethylbenzene","Soil","NEPM 2013 Table 1B(6) ESLs for Areas of Ecological Significance",1.5,null,"mg/kg",null,null,null,"Sand",0,2]
["1330-20-7","Xylenes","Soil","NEPM 2013 Table 1B(6) ESLs for Areas of Ecological Significance",10,null,"mg/kg",null,null,null,"Sand",0,2]
["50-32-8","Benzo(a)pyrene","Soil","NEPM 2013 Table 1B(6) ESLs for Areas of Ecological Significance",1.4,null,"mg/kg",null,null,null,"Sand",0,2]
["F1-BTEX","F1","Soil","NEPM 2013 Table 1B(6) ESLs for Urban Res",180,null,"mg/kg",null,null,"To obtain F1 subtract the sum of BTEX concentrations from the C6  - C10 fraction.","Sand",0,2]
["F2-NAPHTHALENE","F2","Soil","NEPM 2013 Table 1B(6) ESLs for Urban Res",120,null,"mg/kg",null,null,"To obtain F2 subtract napthalene from the >C10 - C16 fraction.","Sand",0,2]
["C16-C34","F3  >C16-C34","Soil","NEPM 2013 Table 1B(6) ESLs for Urban Res",300,null,"mg/kg",null,null,null,"Sand",0,2]
["C34-C40","F4   >C34-C40","Soil","NEPM 2013 Table 1B(6) ESLs for Urban Res",2800,null,"mg/kg",null,null,null,"Sand",0,2]
["71-43-2","Benzene","Soil","NEPM 2013 Table 1B(6) ESLs for Urban Res",50,null,"mg/kg",null,null,null,"Sand",0,2]
["108-88-3","Toluene","Soil","NEPM 2013 Table 1B(6) ESLs for Urban Res",85,null,"mg/kg",null,null,null,"Sand",0,2]
["100-41-4","Ethylbenzene","Soil","NEPM 2013 Table 1B(6) ESLs for Urban Res",70,null,"mg/kg",null,null,null,"Sand",0,2]
["1330-20-7","Xylenes","Soil","NEPM 2013 Table 1B(6) ESLs for Urban Res",105,null,"mg/kg",null,null,null,"Sand",0,2]
["50-32-8","Benzo(a)pyrene","Soil","NEPM 2013 Table 1B(6) ESLs for Urban Res",0.7,null,"mg/kg",null,null,"To obtain F1 subtract the sum of BTEX concentrations from the C6  - C10 fraction.","Sand",0,2]
["F1-BTEX","F1","Soil","NEPM 2013 Table 1B(6) ESLs for Comm/Ind",215,null,"mg/kg",null,null,"To obtain F2 subtract napthalene from the >C10 - C16 fraction.","Sand",0,2]
["F2-NAPHTHALENE","F2","Soil","NEPM 2013 Table 1B(6) ESLs for Comm/Ind",170,null,"mg/kg",null,null,null,"Sand",0,2]
["C16-C34","F3  >C16-C34","Soil","NEPM 2013 Table 1B(6) ESLs for Comm/Ind",1700,null,"mg/kg",null,null,null,"Sand",0,2]
["C34-C40","F4   >C34-C40","Soil","NEPM 2013 Table 1B(6) ESLs for Comm/Ind",3300,null,"mg/kg",null,null,null,"Sand",0,2]
["71-43-2","Benzene","Soil","NEPM 2013 Table 1B(6) ESLs for Comm/Ind",75,null,"mg/kg",null,null,null,"Sand",0,2]
["108-88-3","Toluene","Soil","NEPM 2013 Table 1B(6) ESLs for Comm/Ind",135,null,"mg/kg",null,null,null,"Sand",0,2]
["100-41-4","Ethylbenzene","Soil","NEPM 2013 Table 1B(6) ESLs for Comm/Ind",165,null,"mg/kg",null,null,null,"Sand",0,2]
["1330-20-7","Xylenes","Soil","NEPM 2013 Table 1B(6) ESLs for Comm/Ind",180,null,"mg/kg",null,null,null,"Sand",0,2]
["50-32-8","Benzo(a)pyrene","Soil","NEPM 2013 Table 1B(6) ESLs for Comm/Ind",1.4,null,"mg/kg",null,null,null,"Sand",0,2]

{"sheet":"1B7 TPH in soil no CM","index":15,"n_rows":20,"n_cols":28,"rows_kept":20,"cut":false,"hidden":false,"merged":[]}
["Project:","Cardno Lane Piper 213152Historical Soil",null,"Table:","[zRef_Environmental_Standards]",null,"Style:",null,null,"Template",null,null,null,"NoLocs"]
["Path:","C:\\Users\\Tom W\\Documents\\Clients\\Cardno Lane Piper\\213152Historical Soil\\213152Historical Soil.mdb",null,"Parent Tables:","zRef_Matrix_Types,zRef_Chemistry_Lookup,Chem_Group_Or_Method"]
[]
["ChemCode","ChemName","MatrixType","ActionLevelSource","ActionLevel","ActionLevel_Min","Units","ActionLevel_Prefix","ActionLevel_Suffix","Comments","Conditional_Matrix_Type","Conditional_Depth_From","Conditional_Depth_To","Leached","Conditional_ChemCode1","Conditional_ChemCode1_Units","Conditional_ChemCode1_Min_Value_Prefix","Conditional_ChemCode1_Value_Min","Conditional_ChemCode1_Max_Value_Prefix","Conditional_ChemCode1_Value_Max","Conditional_ChemCode2","Conditional_ChemCode2_Units","Conditional_ChemCode2_Min_Value_Prefix","Conditional_ChemCode2_Value_Min","Conditional_ChemCode2_Max_Value_Prefix","Conditional_ChemCode2_Value_Max","Applies_To_Total_Result","Applies_To_Filtered_Result"]
["C6-C10","F1  C6-C10","Soil","NEPM 2013 Table 1B(7) Management Limits in Res / Parkland, Fine Soil",800,null,"mg/kg",null,null,"Separate management limits for BTEX & napthalene are not available hence should not be subtracted from the relevant fractions to obtain F1 & F2"]
["C10-C16","F2  C10-C16","Soil","NEPM 2013 Table 1B(7) Management Limits in Res / Parkland, Fine Soil",1000,null,"mg/kg",null,null,"Separate management limits for BTEX & napthalene are not available hence should not be subtracted from the relevant fractions to obtain F1 & F2"]
["C16-C34","F3  >C16-C34","Soil","NEPM 2013 Table 1B(7) Management Limits in Res / Parkland, Fine Soil",3500,null,"mg/kg"]
["C34-C40","F4   >C34-C40","Soil","NEPM 2013 Table 1B(7) Management Limits in Res / Parkland, Fine Soil",10000,null,"mg/kg"]
["C6-C10","F1  C6-C10","Soil","NEPM 2013 Table 1B(7) Management Limits in Res / Parkland, Coarse Soil",700,null,"mg/kg",null,null,"Separate management limits for BTEX & napthalene are not available hence should not be subtracted from the relevant fractions to obtain F1 & F2"]
["C10-C16","F2  C10-C16","Soil","NEPM 2013 Table 1B(7) Management Limits in Res / Parkland, Coarse Soil",1000,null,"mg/kg",null,null,"Separate management limits for BTEX & napthalene are not available hence should not be subtracted from the relevant fractions to obtain F1 & F2"]
["C16-C34","F3  >C16-C34","Soil","NEPM 2013 Table 1B(7) Management Limits in Res / Parkland, Coarse Soil",2500,null,"mg/kg"]
["C34-C40","F4   >C34-C40","Soil","NEPM 2013 Table 1B(7) Management Limits in Res / Parkland, Coarse Soil",10000,null,"mg/kg"]
["C6-C10","F1  C6-C10","Soil","NEPM 2013 Table 1B(7) Management Limits Comm / Ind, Fine Soil",800,null,"mg/kg",null,null,"Separate management limits for BTEX & napthalene are not available hence should not be subtracted from the relevant fractions to obtain F1 & F2"]
["C10-C16","F2  C10-C16","Soil","NEPM 2013 Table 1B(7) Management Limits Comm / Ind, Fine Soil",1000,null,"mg/kg",null,null,"Separate management limits for BTEX & napthalene are not available hence should not be subtracted from the relevant fractions to obtain F1 & F2"]
["C16-C34","F3  >C16-C34","Soil","NEPM 2013 Table 1B(7) Management Limits Comm / Ind, Fine Soil",5000,null,"mg/kg"]
["C34-C40","F4   >C34-C40","Soil","NEPM 2013 Table 1B(7) Management Limits Comm / Ind, Fine Soil",10000,null,"mg/kg"]
["C6-C10","F1  C6-C10","Soil","NEPM 2013 Table 1B(7) Management Limits Comm / Ind, Coarse Soil",700,null,"mg/kg",null,null,"Separate management limits for BTEX & napthalene are not available hence should not be subtracted from the relevant fractions to obtain F1 & F2"]
["C10-C16","F2  C10-C16","Soil","NEPM 2013 Table 1B(7) Management Limits Comm / Ind, Coarse Soil",1000,null,"mg/kg",null,null,"Separate management limits for BTEX & napthalene are not available hence should not be subtracted from the relevant fractions to obtain F1 & F2"]
["C16-C34","F3  >C16-C34","Soil","NEPM 2013 Table 1B(7) Management Limits Comm / Ind, Coarse Soil",3500,null,"mg/kg"]
["C34-C40","F4   >C34-C40","Soil","NEPM 2013 Table 1B(7) Management Limits Comm / Ind, Coarse Soil",10000,null,"mg/kg"]

{"sheet":"1B7 TPH in soil w CM","index":16,"n_rows":28,"n_cols":28,"rows_kept":28,"cut":false,"hidden":false,"merged":[]}
["Project:","Cardno Lane Piper 213152Historical Soil",null,"Table:","[zRef_Environmental_Standards]",null,"Style:",null,null,"Template",null,null,null,"NoLocs"]
["Path:","C:\\Users\\Tom W\\Documents\\Clients\\Cardno Lane Piper\\213152Historical Soil\\213152Historical Soil.mdb",null,"Parent Tables:","zRef_Matrix_Types,zRef_Chemistry_Lookup,Chem_Group_Or_Method"]
[]
["ChemCode","ChemName","MatrixType","ActionLevelSource","ActionLevel","ActionLevel_Min","Units","ActionLevel_Prefix","ActionLevel_Suffix","Comments","Conditional_Matrix_Type","Conditional_Depth_From","Conditional_Depth_To","Leached","Conditional_ChemCode1","Conditional_ChemCode1_Units","Conditional_ChemCode1_Min_Value_Prefix","Conditional_ChemCode1_Value_Min","Conditional_ChemCode1_Max_Value_Prefix","Conditional_ChemCode1_Value_Max","Conditional_ChemCode2","Conditional_ChemCode2_Units","Conditional_ChemCode2_Min_Value_Prefix","Conditional_ChemCode2_Value_Min","Conditional_ChemCode2_Max_Value_Prefix","Conditional_ChemCode2_Value_Max","Applies_To_Total_Result","Applies_To_Filtered_Result"]
["C6-C10","F1  C6-C10","Soil","NEPM 2013 Table 1B(7) Management Limits in Res / Parkland",800,null,"mg/kg",null,null,"Separate management limits for BTEX & napthalene are not available hence should not be subtracted from the relevant fractions to obtain F1 & F2","Clay"]
["C10-C16","F2  C10-C16","Soil","NEPM 2013 Table 1B(7) Management Limits in Res / Parkland",1000,null,"mg/kg",null,null,"Separate management limits for BTEX & napthalene are not available hence should not be subtracted from the relevant fractions to obtain F1 & F2","Clay"]
["C16-C34","F3  >C16-C34","Soil","NEPM 2013 Table 1B(7) Management Limits in Res / Parkland",3500,null,"mg/kg",null,null,null,"Clay"]
["C34-C40","F4   >C34-C40","Soil","NEPM 2013 Table 1B(7) Management Limits in Res / Parkland",10000,null,"mg/kg",null,null,null,"Clay"]
["C6-C10","F1  C6-C10","Soil","NEPM 2013 Table 1B(7) Management Limits in Res / Parkland",800,null,"mg/kg",null,null,"Separate management limits for BTEX & napthalene are not available hence should not be subtracted from the relevant fractions to obtain F1 & F2","Silt"]
["C10-C16","F2  C10-C16","Soil","NEPM 2013 Table 1B(7) Management Limits in Res / Parkland",1000,null,"mg/kg",null,null,"Separate management limits for BTEX & napthalene are not available hence should not be subtracted from the relevant fractions to obtain F1 & F2","Silt"]
["C16-C34","F3  >C16-C34","Soil","NEPM 2013 Table 1B(7) Management Limits in Res / Parkland",3500,null,"mg/kg",null,null,null,"Silt"]
["C34-C40","F4   >C34-C40","Soil","NEPM 2013 Table 1B(7) Management Limits in Res / Parkland",10000,null,"mg/kg",null,null,null,"Silt"]
["C6-C10","F1  C6-C10","Soil","NEPM 2013 Table 1B(7) Management Limits in Res / Parkland",700,null,"mg/kg",null,null,"Separate management limits for BTEX & napthalene are not available hence should not be subtracted from the relevant fractions to obtain F1 & F2","Sand"]
["C10-C16","F2  C10-C16","Soil","NEPM 2013 Table 1B(7) Management Limits in Res / Parkland",1000,null,"mg/kg",null,null,"Separate management limits for BTEX & napthalene are not available hence should not be subtracted from the relevant fractions to obtain F1 & F2","Sand"]
["C16-C34","F3  >C16-C34","Soil","NEPM 2013 Table 1B(7) Management Limits in Res / Parkland",2500,null,"mg/kg",null,null,null,"Sand"]
["C34-C40","F4   >C34-C40","Soil","NEPM 2013 Table 1B(7) Management Limits in Res / Parkland",10000,null,"mg/kg",null,null,null,"Sand"]
["C6-C10","F1  C6-C10","Soil","NEPM 2013 Table 1B(7) Management Limits Comm / Ind",800,null,"mg/kg",null,null,"Separate management limits for BTEX & napthalene are not available hence should not be subtracted from the relevant fractions to obtain F1 & F2","Clay"]
["C10-C16","F2  C10-C16","Soil","NEPM 2013 Table 1B(7) Management Limits Comm / Ind",1000,null,"mg/kg",null,null,"Separate management limits for BTEX & napthalene are not available hence should not be subtracted from the relevant fractions to obtain F1 & F2","Clay"]
["C16-C34","F3  >C16-C34","Soil","NEPM 2013 Table 1B(7) Management Limits Comm / Ind",5000,null,"mg/kg",null,null,null,"Clay"]
["C34-C40","F4   >C34-C40","Soil","NEPM 2013 Table 1B(7) Management Limits Comm / Ind",10000,null,"mg/kg",null,null,null,"Clay"]
["C6-C10","F1  C6-C10","Soil","NEPM 2013 Table 1B(7) Management Limits Comm / Ind",800,null,"mg/kg",null,null,"Separate management limits for BTEX & napthalene are not available hence should not be subtracted from the relevant fractions to obtain F1 & F2","Silt"]
["C10-C16","F2  C10-C16","Soil","NEPM 2013 Table 1B(7) Management Limits Comm / Ind",1000,null,"mg/kg",null,null,"Separate management limits for BTEX & napthalene are not available hence should not be subtracted from the relevant fractions to obtain F1 & F2","Silt"]
["C16-C34","F3  >C16-C34","Soil","NEPM 2013 Table 1B(7) Management Limits Comm / Ind",5000,null,"mg/kg",null,null,null,"Silt"]
["C34-C40","F4   >C34-C40","Soil","NEPM 2013 Table 1B(7) Management Limits Comm / Ind",10000,null,"mg/kg",null,null,null,"Silt"]
["C6-C10","F1  C6-C10","Soil","NEPM 2013 Table 1B(7) Management Limits Comm / Ind",700,null,"mg/kg",null,null,"Separate management limits for BTEX & napthalene are not available hence should not be subtracted from the relevant fractions to obtain F1 & F2","Sand"]
["C10-C16","F2  C10-C16","Soil","NEPM 2013 Table 1B(7) Management Limits Comm / Ind",1000,null,"mg/kg",null,null,"Separate management limits for BTEX & napthalene are not available hence should not be subtracted from the relevant fractions to obtain F1 & F2","Sand"]
["C16-C34","F3  >C16-C34","Soil","NEPM 2013 Table 1B(7) Management Limits Comm / Ind",3500,null,"mg/kg",null,null,null,"Sand"]
["C34-C40","F4   >C34-C40","Soil","NEPM 2013 Table 1B(7) Management Limits Comm / Ind",10000,null,"mg/kg",null,null,null,"Sand"]

{"sheet":"1C GILs","index":17,"n_rows":300,"n_cols":28,"rows_kept":300,"cut":false,"hidden":false,"merged":[]}
["Project:","Cardno Lane Piper 213152Historical Soil",null,"Table:","[zRef_Environmental_Standards]",null,"Style:","Template","NoLocs"]
["Path:","C:\\Users\\Tom W\\Documents\\Clients\\Cardno Lane Piper\\213152Historical Soil\\213152Historical Soil.mdb",null,"Parent Tables:","zRef_Matrix_Types,zRef_Chemistry_Lookup,Chem_Group_Or_Method"]
[]
["ChemCode","ChemName","MatrixType","ActionLevelSource","ActionLevel","ActionLevel_Min","Units","Comments","Leached","ActionLevel_Prefix","ActionLevel_Suffix","Conditional_Matrix_Type","Conditional_Depth_From","Conditional_Depth_To","Conditional_ChemCode1","Conditional_ChemCode1_Units","Conditional_ChemCode1_Min_Value_Prefix","Conditional_ChemCode1_Value_Min","Conditional_ChemCode1_Max_Value_Prefix","Conditional_ChemCode1_Value_Max","Conditional_ChemCode2","Conditional_ChemCode2_Units","Conditional_ChemCode2_Min_Value_Prefix","Conditional_ChemCode2_Value_Min","Conditional_ChemCode2_Max_Value_Prefix","Conditional_ChemCode2_Value_Max","Applies_To_Total_Result","Applies_To_Filtered_Result"]
["7429-90-5","Aluminium, Al","Water","NEPM 2013 Table 1C GILs, Fresh Waters",55,null,"ug/L","pH>6.5",null,null,null,null,null,null,"pH_Lab","pH_Units",">",6.5,null,null,null,null,null,null,null,null,1,1]
["7429-90-5","Aluminium, Al","Water","NEPM 2013 Table 1C GILs, Fresh Waters",55,null,"ug/L","pH>6.5",null,null,null,null,null,null,"pH_Field","pH_Units",">",6.5,null,null,null,null,null,null,null,null,1,1]
["22569-72-8","As(III)","Water","NEPM 2013 Table 1C GILs, Fresh Waters",24,null,"ug/L",null,null,null,null,null,null,null,null,null,null,null,null,null,null,null,null,null,null,null,1,1]
["17428-41-0","As(V)","Water","NEPM 2013 Table 1C GILs, Fresh Waters",13,null,"ug/L",null,null,null,null,null,null,null,null,null,null,null,null,null,null,null,null,null,null,null,1,1]
["7440-42-8","Boron","Water","NEPM 2013 Table 1C GILs, Fresh Waters",370,null,"ug/L","Figure may not protect key species from chronic toxicity, refer to ANZECC & ARMCANZ (2000) for further guidance.",null,null,null,null,null,null,null,null,null,null,null,null,null,null,null,null,null,null,1,1]
["7440-43-9","Cadmium","Water","NEPM 2013 Table 1C GILs, Fresh Waters",0.2,null,"ug/L","Values calculated using hardness of 30 mg/L CaCO3. Refer ANZECC & ARMCANZ (2000) for site specific hardness guidance",null,null,null,null,null,null,null,null,null,null,null,null,null,null,null,null,null,null,1,1]
["18540-29-9","Chromium,  Cr (VI)","Water","NEPM 2013 Table 1C GILs, Fresh Waters",1,null,"ug/L","Figure may not protect key species from chronic toxicity, refer to ANZECC & ARMCANZ (2000) for further guidance.",null,null,null,null,null,null,null,null,null,null,null,null,null,null,null,null,null,null,1,1]
["7440-50-8","Copper","Water","NEPM 2013 Table 1C GILs, Fresh Waters",1.4,null,"ug/L","Values calculated using hardness of 30 mg/L CaCO3. Refer ANZECC & ARMCANZ (2000) for site specific hardness guidance",null,null,null,null,null,null,null,null,null,null,null,null,null,null,null,null,null,null,1,1]
["7439-92-1","Lead","Water","NEPM 2013 Table 1C GILs, Fresh Waters",3.4,null,"ug/L","Values calculated using hardness of 30 mg/L CaCO3. Refer ANZECC & ARMCANZ (2000) for site specific hardness guidance",null,null,null,null,null,null,null,null,null,null,null,null,null,null,null,null,null,null,1,1]
["7439-96-5","Manganese","Water","NEPM 2013 Table 1C GILs, Fresh Waters",1900,null,"ug/L","Figure may not protect key species from chronic toxicity, refer to ANZECC & ARMCANZ (2000) for further guidance.",null,null,null,null,null,null,null,null,null,null,null,null,null,null,null,null,null,null,1,1]
["7439-97-6","Mercury (Total)","Water","NEPM 2013 Table 1C GILs, Fresh Waters",0.06,null,"ug/L","Chemical for which possible bioaccumulation and secondary poisoning effects should be considered, refer to ANZECC & ARMCANZ (2000) for further guidance.",null,null,null,null,null,null,null,null,null,null,null,null,null,null,null,null,null,null,1,1]
["7440-02-0","Nickel","Water","NEPM 2013 Table 1C GILs, Fresh Waters",11,null,"ug/L","Values calculated using hardness of 30 mg/L CaCO3. Refer ANZECC & ARMCANZ (2000) for site specific hardness guidance",null,null,null,null,null,null,null,null,null,null,null,null,null,null,null,null,null,null,1,1]
["7782-49-2","Selenium (Total)","Water","NEPM 2013 Table 1C GILs, Fresh Waters",5,null,"ug/L","Chemical for which possible bioaccumulation and secondary poisoning effects should be considered, refer to ANZECC & ARMCANZ (2000) for further guidance.",null,null,null,null,null,null,null,null,null,null,null,null,null,null,null,null,null,null,1,1]
["7440-22-4","Silver","Water","NEPM 2013 Table 1C GILs, Fresh Waters",0.05,null,"ug/L",null,null,null,null,null,null,null,null,null,null,null,null,null,null,null,null,null,null,null,1,1]
["7440-66-6","Zinc","Water","NEPM 2013 Table 1C GILs, Fresh Waters",8,null,"ug/L","Values calculated using hardness of 30 mg/L CaCO3. Refer ANZECC & ARMCANZ (2000) for site specific hardness guidance",null,null,null,null,null,null,null,null,null,null,null,null,null,null,null,null,null,null,1,1]
["7664-41-7","Ammonia   (as NH3-N at pH 8)","Water","NEPM 2013 Table 1C GILs, Fresh Waters",900,null,"ug/L","For changes in GIL with pH refer to ANZECC & ARMCANZ (2000). Figure may not protect key species from chronic toxicity, refer ANZECC & ARMCANZ",null,null,null,null,null,null,null,null,null,null,null,null,null,null,null,null,null,null,1,1]
["57-12-5","Cyanide (as un-ionised Cn)","Water","NEPM 2013 Table 1C GILs, Fresh Waters",7,null,"ug/L",null,null,null,null,null,null,null,null,null,null,null,null,null,null,null,null,null,null,null,1,1]
["7783-06-4","Hydrogen sulphide (un-ionised H2Smeasured as S)","Water","NEPM 2013 Table 1C GILs, Fresh Waters",1,null,"ug/L",null,null,null,null,null,null,null,null,null,null,null,null,null,null,null,null,null,null,null,1,1]
["14797-55-8","Nitrate (as NO3)","Water","NEPM 2013 Table 1C GILs, Fresh Waters",null,null,"ug/L","refer to guideline",null,null,null,null,null,null,null,null,null,null,null,null,null,null,null,null,null,null,1,1]
["14797-65-0","Nitrite (as NO2)","Water","NEPM 2013 Table 1C GILs, Fresh Waters",null,null,"ug/L","refer to guideline",null,null,null,null,null,null,null,null,null,null,null,null,null,null,null,null,null,null,1,1]
["7727-37-9","Nitrogen","Water","NEPM 2013 Table 1C GILs, Fresh Waters",null,null,"ug/L","refer to guideline",null,null,null,null,null,null,null,null,null,null,null,null,null,null,null,null,null,null,1,1]
["7723-14-0","Phosphorus","Water","NEPM 2013 Table 1C GILs, Fresh Waters",null,null,"ug/L","refer to guideline",null,null,null,null,null,null,null,null,null,null,null,null,null,null,null,null,null,null,1,1]
["64-17-5","Ethanol","Water","NEPM 2013 Table 1C GILs, Fresh Waters",1400,null,"ug/L",null,null,null,null,null,null,null,null,null,null,null,null,null,null,null,null,null,null,null,1,1]
["62-53-3","Aniline","Water","NEPM 2013 Table 1C GILs, Fresh Waters",8,null,"ug/L",null,null,null,null,null,null,null,null,null,null,null,null,null,null,null,null,null,null,null,1,1]
["554-00-7","2,4-Dichloroaniline","Water","NEPM 2013 Table 1C GILs, Fresh Waters",7,null,"ug/L",null,null,null,null,null,null,null,null,null,null,null,null,null,null,null,null,null,null,null,1,1]
["95-76-1","3,4-Dichloroaniline","Water","NEPM 2013 Table 1C GILs, Fresh Waters",3,null,"ug/L",null,null,null,null,null,null,null,null,null,null,null,null,null,null,null,null,null,null,null,1,1]
["79-00-5","1,1,2-Trichloroethane","Water","NEPM 2013 Table 1C GILs, Fresh Waters",6500,null,"ug/L",null,null,null,null,null,null,null,null,null,null,null,null,null,null,null,null,null,null,null,1,1]
["67-72-1","Hexachloroethane","Water","NEPM 2013 Table 1C GILs, Fresh Waters",290,null,"ug/L","Chemical for which possible bioaccumulation and secondary poisoning effects should be considered, refer to ANZECC & ARMCANZ (2000) for further guidance.",null,null,null,null,null,null,null,null,null,null,null,null,null,null,null,null,null,null,1,1]
["95-50-1","1,2- Dichlorobenzene","Water","NEPM 2013 Table 1C GILs, Fresh Waters",160,null,"ug/L",null,null,null,null,null,null,null,null,null,null,null,null,null,null,null,null,null,null,null,1,1]
["541-73-1","1,3- Dichlorobenzene","Water","NEPM 2013 Table 1C GILs, Fresh Waters",260,null,"ug/L",null,null,null,null,null,null,null,null,null,null,null,null,null,null,null,null,null,null,null,1,1]
["106-46-7","1,4- Dichlorobenzene","Water","NEPM 2013 Table 1C GILs, Fresh Waters",60,null,"ug/L",null,null,null,null,null,null,null,null,null,null,null,null,null,null,null,null,null,null,null,1,1]
["87-61-6","1,2,3- Trichlorobenzene","Water","NEPM 2013 Table 1C GILs, Fresh Waters",3,null,"ug/L","Chemical for which possible bioaccumulation and secondary poisoning effects should be considered, refer to ANZECC & ARMCANZ (2000) for further guidance.",null,null,null,null,null,null,null,null,null,null,null,null,null,null,null,null,null,null,1,1]
["120-82-1","1,2,4- Trichlorobenzene","Water","NEPM 2013 Table 1C GILs, Fresh Waters",85,null,"ug/L","Chemical for which possible bioaccumulation and secondary poisoning effects should be considered, refer to ANZECC & ARMCANZ (2000) for further guidance.",null,null,null,null,null,null,null,null,null,null,null,null,null,null,null,null,null,null,1,1]
["53469-21-9","Aroclor 1242","Water","NEPM 2013 Table 1C GILs, Fresh Waters",0.3,null,"ug/L","Chemical for which possible bioaccumulation and secondary poisoning effects should be considered, refer to ANZECC & ARMCANZ (2000) for further guidance.",null,null,null,null,null,null,null,null,null,null,null,null,null,null,null,null,null,null,1,1]
["11097-69-1","Aroclor 1254","Water","NEPM 2013 Table 1C GILs, Fresh Waters",0.01,null,"ug/L","Chemical for which possible bioaccumulation and secondary poisoning effects should be considered, refer to ANZECC & ARMCANZ (2000) for further guidance.",null,null,null,null,null,null,null,null,null,null,null,null,null,null,null,null,null,null,1,1]
["71-43-2","Benzene","Water","NEPM 2013 Table 1C GILs, Fresh Waters",950,null,"ug/L",null,null,null,null,null,null,null,null,null,null,null,null,null,null,null,null,null,null,null,1,1]
["95-47-6","o-Xylene","Water","NEPM 2013 Table 1C GILs, Fresh Waters",350,null,"ug/L",null,null,null,null,null,null,null,null,null,null,null,null,null,null,null,null,null,null,null,1,1]
["106-42-3","p-Xylene","Water","NEPM 2013 Table 1C GILs, Fresh Waters",200,null,"ug/L",null,null,null,null,null,null,null,null,null,null,null,null,null,null,null,null,null,null,null,1,1]
["91-20-3","Naphthalene","Water","NEPM 2013 Table 1C GILs, Fresh Waters",16,null,"ug/L",null,null,null,null,null,null,null,null,null,null,null,null,null,null,null,null,null,null,null,1,1]
["108-95-2","Phenol","Water","NEPM 2013 Table 1C GILs, Fresh Waters",320,null,"ug/L",null,null,null,null,null,null,null,null,null,null,null,null,null,null,null,null,null,null,null,1,1]
["95-57-8","2-Chlorophenol","Water","NEPM 2013 Table 1C GILs, Fresh Waters",340,null,"ug/L","Figure may not protect key species from chronic toxicity, refer to ANZECC & ARMCANZ (2000) for further guidance.",null,null,null,null,null,null,null,null,null,null,null,null,null,null,null,null,null,null,1,1]
["106-48-9","4-Chlorophenol","Water","NEPM 2013 Table 1C GILs, Fresh Waters",220,null,"ug/L",null,null,null,null,null,null,null,null,null,null,null,null,null,null,null,null,null,null,null,1,1]
["120-83-2","2,4-Dichlorophenol","Water","NEPM 2013 Table 1C GILs, Fresh Waters",120,null,"ug/L",null,null,null,null,null,null,null,null,null,null,null,null,null,null,null,null,null,null,null,1,1]
["88-06-2","2,4,6-Trichlorophenol","Water","NEPM 2013 Table 1C GILs, Fresh Waters",3,null,"ug/L","Chemical for which possible bioaccumulation and secondary poisoning effects should be considered, refer to ANZECC & ARMCANZ (2000) for further guidance.",null,null,null,null,null,null,null,null,null,null,null,null,null,null,null,null,null,null,1,1]
["58-90-2","2,3,4,6-Tetrachlorophenol","Water","NEPM 2013 Table 1C GILs, Fresh Waters",10,null,"ug/L","Chemical for which possible bioaccumulation and secondary poisoning effects should be considered, refer to ANZECC & ARMCANZ (2000) for further guidance.",null,null,null,null,null,null,null,null,null,null,null,null,null,null,null,null,null,null,1,1]
["87-86-5","Pentachlorophenol","Water","NEPM 2013 Table 1C GILs, Fresh Waters",3.6,null,"ug/L","Chemical for which possible bioaccumulation and secondary poisoning effects should be considered, refer to ANZECC & ARMCANZ (2000) for further guidance.",null,null,null,null,null,null,null,null,null,null,null,null,null,null,null,null,null,null,1,1]
["51-28-5","2,4-Dinitrophenol","Water","NEPM 2013 Table 1C GILs, Fresh Waters",45,null,"ug/L",null,null,null,null,null,null,null,null,null,null,null,null,null,null,null,null,null,null,null,1,1]
["131-11-3","Dimethylphthalate","Water","NEPM 2013 Table 1C GILs, Fresh Waters",3700,null,"ug/L",null,null,null,null,null,null,null,null,null,null,null,null,null,null,null,null,null,null,null,1,1]
["84-66-2","Diethylphthalate","Water","NEPM 2013 Table 1C GILs, Fresh Waters",1000,null,"ug/L",null,null,null,null,null,null,null,null,null,null,null,null,null,null,null,null,null,null,null,1,1]
["84-74-2","Dibutylphthalate","Water","NEPM 2013 Table 1C GILs, Fresh Waters",10,null,"ug/L","Chemical for which possible bioaccumulation and secondary poisoning effects should be considered, refer to ANZECC & ARMCANZ (2000) for further guidance.",null,null,null,null,null,null,null,null,null,null,null,null,null,null,null,null,null,null,1,1]
["1912-24-9","Atrazine","Water","NEPM 2013 Table 1C GILs, Fresh Waters",13,null,"ug/L",null,null,null,null,null,null,null,null,null,null,null,null,null,null,null,null,null,null,null,1,1]
["1563-66-2","Carbofuran","Water","NEPM 2013 Table 1C GILs, Fresh Waters",0.06,null,"ug/L",null,null,null,null,null,null,null,null,null,null,null,null,null,null,null,null,null,null,null,1,1]
["57-74-9","Chlordane","Water","NEPM 2013 Table 1C GILs, Fresh Waters",0.03,null,"ug/L","Chemical for which possible bioaccumulation and secondary poisoning effects should be considered, refer to ANZECC & ARMCANZ (2000) for further guidance.",null,null,null,null,null,null,null,null,null,null,null,null,null,null,null,null,null,null,1,1]
["2921-88-2","Chlorpyrifos","Water","NEPM 2013 Table 1C GILs, Fresh Waters",0.01,null,"ug/L","Chemical for which possible bioaccumulation and secondary poisoning effects should be considered, refer to ANZECC & ARMCANZ (2000) for further guidance.",null,null,null,null,null,null,null,null,null,null,null,null,null,null,null,null,null,null,1,1]
["94-75-7","2,4-D [2,4-dichlorophenoxy acetic acid]","Water","NEPM 2013 Table 1C GILs, Fresh Waters",280,null,"ug/L",null,null,null,null,null,null,null,null,null,null,null,null,null,null,null,null,null,null,null,1,1]
["50-29-3","DDT","Water","NEPM 2013 Table 1C GILs, Fresh Waters",6.0000000000000001E-3,null,"ug/L","Chemical for which possible bioaccumulation and secondary poisoning effects should be considered, refer to ANZECC & ARMCANZ (2000) for further guidance.",null,null,null,null,null,null,null,null,null,null,null,null,null,null,null,null,null,null,1,1]
["333-41-5","Diazinon","Water","NEPM 2013 Table 1C GILs, Fresh Waters",0.01,null,"ug/L",null,null,null,null,null,null,null,null,null,null,null,null,null,null,null,null,null,null,null,1,1]
["60-51-5","Dimethoate","Water","NEPM 2013 Table 1C GILs, Fresh Waters",0.15,null,"ug/L",null,null,null,null,null,null,null,null,null,null,null,null,null,null,null,null,null,null,null,1,1]
["2764-72-9","Diquat","Water","NEPM 2013 Table 1C GILs, Fresh Waters",1.4,null,"ug/L",null,null,null,null,null,null,null,null,null,null,null,null,null,null,null,null,null,null,null,1,1]
["115-29-7","Endosulfan","Water","NEPM 2013 Table 1C GILs, Fresh Waters",0.03,null,"ug/L","Chemical for which possible bioaccumulation and secondary poisoning effects should be considered, refer to ANZECC & ARMCANZ (2000) for further guidance.",null,null,null,null,null,null,null,null,null,null,null,null,null,null,null,null,null,null,1,1]
["72-20-8","Endrin","Water","NEPM 2013 Table 1C GILs, Fresh Waters",0.01,null,"ug/L","Chemical for which possible bioaccumulation and secondary poisoning effects should be considered, refer to ANZECC & ARMCANZ (2000) for further guidance.",null,null,null,null,null,null,null,null,null,null,null,null,null,null,null,null,null,null,1,1]
["122-14-5","Fenitrothion","Water","NEPM 2013 Table 1C GILs, Fresh Waters",0.2,null,"ug/L",null,null,null,null,null,null,null,null,null,null,null,null,null,null,null,null,null,null,null,1,1]
["1071-83-6","Glyphosate","Water","NEPM 2013 Table 1C GILs, Fresh Waters",370,null,"ug/L",null,null,null,null,null,null,null,null,null,null,null,null,null,null,null,null,null,null,null,1,1]
["76-44-8","Heptachlor","Water","NEPM 2013 Table 1C GILs, Fresh Waters",0.01,null,"ug/L","Chemical for which possible bioaccumulation and secondary poisoning effects should be considered, refer to ANZECC & ARMCANZ (2000) for further guidance.",null,null,null,null,null,null,null,null,null,null,null,null,null,null,null,null,null,null,1,1]
["58-89-9","Lindane (γ-HCH)","Water","NEPM 2013 Table 1C GILs, Fresh Waters",0.2,null,"ug/L",null,null,null,null,null,null,null,null,null,null,null,null,null,null,null,null,null,null,null,1,1]
["121-75-5","Malathion","Water","NEPM 2013 Table 1C GILs, Fresh Waters",0.05,null,"ug/L",null,null,null,null,null,null,null,null,null,null,null,null,null,null,null,null,null,null,null,1,1]
["16752-77-5","Methomyl","Water","NEPM 2013 Table 1C GILs, Fresh Waters",3.5,null,"ug/L",null,null,null,null,null,null,null,null,null,null,null,null,null,null,null,null,null,null,null,1,1]
["2212-67-1","Molinate","Water","NEPM 2013 Table 1C GILs, Fresh Waters",3.4,null,"ug/L",null,null,null,null,null,null,null,null,null,null,null,null,null,null,null,null,null,null,null,1,1]
["56-38-2","Parathion","Water","NEPM 2013 Table 1C GILs, Fresh Waters",4.0000000000000001E-3,null,"ug/L","Figure may not protect key species from chronic toxicity, refer to ANZECC & ARMCANZ (2000) for further guidance.",null,null,null,null,null,null,null,null,null,null,null,null,null,null,null,null,null,null,1,1]
["122-34-9","Simazine","Water","NEPM 2013 Table 1C GILs, Fresh Waters",3.2,null,"ug/L",null,null,null,null,null,null,null,null,null,null,null,null,null,null,null,null,null,null,null,1,1]
["93-76-5","2,4,5-T","Water","NEPM 2013 Table 1C GILs, Fresh Waters",36,null,"ug/L",null,null,null,null,null,null,null,null,null,null,null,null,null,null,null,null,null,null,null,1,1]
["34014-18-1","Tebuthiuron","Water","NEPM 2013 Table 1C GILs, Fresh Waters",2.2000000000000002,null,"ug/L",null,null,null,null,null,null,null,null,null,null,null,null,null,null,null,null,null,null,null,1,1]
["28249-77-6","Thiobencarb","Water","NEPM 2013 Table 1C GILs, Fresh Waters",2.8,null,"ug/L",null,null,null,null,null,null,null,null,null,null,null,null,null,null,null,null,null,null,null,1,1]
["137-26-8","Thiram","Water","NEPM 2013 Table 1C GILs, Fresh Waters",0.01,null,"ug/L",null,null,null,null,null,null,null,null,null,null,null,null,null,null,null,null,null,null,null,1,1]
["8001-35-2","Toxafene","Water","NEPM 2013 Table 1C GILs, Fresh Waters",0.1,null,"ug/L","Chemical for which possible bioaccumulation and secondary poisoning effects should be considered, refer to ANZECC & ARMCANZ (2000) for further guidance.",null,null,null,null,null,null,null,null,null,null,null,null,null,null,null,null,null,null,1,1]
["1582-09-8","Trifluralin","Water","NEPM 2013 Table 1C GILs, Fresh Waters",2.6,null,"ug/L","Chemical for which possible bioaccumulation and secondary poisoning effects should be considered, refer to ANZECC & ARMCANZ (2000) for further guidance.",null,null,null,null,null,null,null,null,null,null,null,null,null,null,null,null,null,null,1,1]
["LAS","Linear alkylbenzene sulfonates (LAS)","Water","NEPM 2013 Table 1C GILs, Fresh Waters",280,null,"ug/L",null,null,null,null,null,null,null,null,null,null,null,null,null,null,null,null,null,null,null,1,1]
["AES","Alcohol ethoxylated sulfate (AES)","Water","NEPM 2013 Table 1C GILs, Fresh Waters",650,null,"ug/L",null,null,null,null,null,null,null,null,null,null,null,null,null,null,null,null,null,null,null,1,1]
["AESurfactant","Alcohol ethoxylated surfactants (AE)","Water","NEPM 2013 Table 1C GILs, Fresh Waters",140,null,"ug/L",null,null,null,null,null,null,null,null,null,null,null,null,null,null,null,null,null,null,null,1,1]
["7440-43-9","Cadmium","Water","NEPM 2013 Table 1C GILs, Marine Waters",0.7,null,"ug/L","Values calculated using hardness of 30 mg/L CaCO3. Chemical for which possible bioaccumulation and secondary poisoning effects should be considered.",null,null,null,null,null,null,null,null,null,null,null,null,null,null,null,null,null,null,1,1]
["16065-83-1","Chromium,  Cr (III)","Water","NEPM 2013 Table 1C GILs, Marine Waters",27,null,"ug/L","Values calculated using hardness of 30 mg/L CaCO3. Refer ANZECC & ARMCANZ (2000) for site specific hardness guidance",null,null,null,null,null,null,null,null,null,null,null,null,null,null,null,null,null,null,1,1]
["18540-29-9","Chromium,  Cr (VI)","Water","NEPM 2013 Table 1C GILs, Marine Waters",4.4000000000000004,null,"ug/L",null,null,null,null,null,null,null,null,null,null,null,null,null,null,null,null,null,null,null,1,1]
["7440-48-4","Cobalt","Water","NEPM 2013 Table 1C GILs, Marine Waters",1,null,"ug/L",null,null,null,null,null,null,null,null,null,null,null,null,null,null,null,null,null,null,null,1,1]
["7440-50-8","Copper","Water","NEPM 2013 Table 1C GILs, Marine Waters",1.3,null,"ug/L","Values calculated using hardness of 30 mg/L CaCO3. Refer ANZECC & ARMCANZ (2000) for site specific hardness guidance",null,null,null,null,null,null,null,null,null,null,null,null,null,null,null,null,null,null,1,1]
["7439-92-1","Lead","Water","NEPM 2013 Table 1C GILs, Marine Waters",4.4000000000000004,null,"ug/L","Values calculated using hardness of 30 mg/L CaCO3. Refer ANZECC & ARMCANZ (2000) for site specific hardness guidance",null,null,null,null,null,null,null,null,null,null,null,null,null,null,null,null,null,null,1,1]
["7439-97-6","Mercury (Total)","Water","NEPM 2013 Table 1C GILs, Marine Waters",0.1,null,"ug/L","Chemical for which possible bioaccumulation and secondary poisoning effects should be considered, refer to ANZECC & ARMCANZ (2000) for further guidance.",null,null,null,null,null,null,null,null,null,null,null,null,null,null,null,null,null,null,1,1]
["7440-02-0","Nickel","Water","NEPM 2013 Table 1C GILs, Marine Waters",7,null,"ug/L","Values calculated using hardness of 30 mg/L CaCO3. Refer ANZECC & ARMCANZ (2000) for site specific hardness guidance",null,null,null,null,null,null,null,null,null,null,null,null,null,null,null,null,null,null,1,1]
["7440-22-4","Silver","Water","NEPM 2013 Table 1C GILs, Marine Waters",1.4,null,"ug/L",null,null,null,null,null,null,null,null,null,null,null,null,null,null,null,null,null,null,null,1,1]
["56573-85-4(as Sn)","Tributyl tin (as Sn)","Water","NEPM 2013 Table 1C GILs, Marine Waters",6.0000000000000001E-3,null,"ug/L","Figure may not protect key species from chronic toxicity, refer to ANZECC & ARMCANZ (2000) for further guidance.",null,null,null,null,null,null,null,null,null,null,null,null,null,null,null,null,null,null,1,1]
["7440-62-2","Vanadium","Water","NEPM 2013 Table 1C GILs, Marine Waters",100,null,"ug/L",null,null,null,null,null,null,null,null,null,null,null,null,null,null,null,null,null,null,null,1,1]
["7440-66-6","Zinc","Water","NEPM 2013 Table 1C GILs, Marine Waters",15,null,"ug/L","Values calculated using hardness of 30 mg/L CaCO3. Figure may not protect key species from chronic toxicity. Refer ANZECC & ARMCANZ (2000) for guidance",null,null,null,null,null,null,null,null,null,null,null,null,null,null,null,null,null,null,1,1]
["7664-41-7","Ammonia   (as NH3-N at pH 8)","Water","NEPM 2013 Table 1C GILs, Marine Waters",910,null,"ug/L","For changes in GIL with pH refer to ANZECC & ARMCANZ (2000) for further guidance.",null,null,null,null,null,null,null,null,null,null,null,null,null,null,null,null,null,null,1,1]
["57-12-5","Cyanide (as un-ionised Cn)","Water","NEPM 2013 Table 1C GILs, Marine Waters",4,null,"ug/L",null,null,null,null,null,null,null,null,null,null,null,null,null,null,null,null,null,null,null,1,1]
["14797-55-8","Nitrate (as NO3)","Water","NEPM 2013 Table 1C GILs, Marine Waters",null,null,"ug/L","refer to guideline",null,null,null,null,null,null,null,null,null,null,null,null,null,null,null,null,null,null,1,1]
["14797-65-0","Nitrite (as NO2)","Water","NEPM 2013 Table 1C GILs, Marine Waters",null,null,"ug/L","refer to guideline",null,null,null,null,null,null,null,null,null,null,null,null,null,null,null,null,null,null,1,1]
["7727-37-9","Nitrogen","Water","NEPM 2013 Table 1C GILs, Marine Waters",null,null,"ug/L","refer to guideline",null,null,null,null,null,null,null,null,null,null,null,null,null,null,null,null,null,null,1,1]
["7723-14-0","Phosphorus","Water","NEPM 2013 Table 1C GILs, Marine Waters",null,null,"ug/L","refer to guideline",null,null,null,null,null,null,null,null,null,null,null,null,null,null,null,null,null,null,1,1]
["95-76-1","3,4-Dichloroaniline","Water","NEPM 2013 Table 1C GILs, Marine Waters",150,null,"ug/L",null,null,null,null,null,null,null,null,null,null,null,null,null,null,null,null,null,null,null,1,1]
["79-00-5","1,1,2-Trichloroethane","Water","NEPM 2013 Table 1C GILs, Marine Waters",1900,null,"ug/L",null,null,null,null,null,null,null,null,null,null,null,null,null,null,null,null,null,null,null,1,1]
["120-82-1","1,2,4- Trichlorobenzene","Water","NEPM 2013 Table 1C GILs, Marine Waters",20,null,"ug/L","Chemical for which possible bioaccumulation and secondary poisoning effects should be considered, refer to ANZECC & ARMCANZ (2000) for further guidance.",null,null,null,null,null,null,null,null,null,null,null,null,null,null,null,null,null,null,1,1]
["71-43-2","Benzene","Water","NEPM 2013 Table 1C GILs, Marine Waters",500,null,"ug/L","Figure may not protect key species from chronic toxicity, refer to ANZECC & ARMCANZ (2000) for further guidance.",null,null,null,null,null,null,null,null,null,null,null,null,null,null,null,null,null,null,1,1]
["91-20-3","Naphthalene","Water","NEPM 2013 Table 1C GILs, Marine Waters",50,null,"ug/L","Figure may not protect key species from chronic toxicity, refer to ANZECC & ARMCANZ (2000) for further guidance.",null,null,null,null,null,null,null,null,null,null,null,null,null,null,null,null,null,null,1,1]
["108-95-2","Phenol","Water","NEPM 2013 Table 1C GILs, Marine Waters",400,null,"ug/L",null,null,null,null,null,null,null,null,null,null,null,null,null,null,null,null,null,null,null,1,1]
["87-86-5","Pentachlorophenol","Water","NEPM 2013 Table 1C GILs, Marine Waters",11,null,"ug/L","Chemical for which possible bioaccumulation and secondary poisoning effects should be considered, refer to ANZECC & ARMCANZ (2000) for further guidance.",null,null,null,null,null,null,null,null,null,null,null,null,null,null,null,null,null,null,1,1]
["2921-88-2","Chlorpyrifos","Water","NEPM 2013 Table 1C GILs, Marine Waters",8.9999999999999993E-3,null,"ug/L","Chemical for which possible bioaccumulation and secondary poisoning effects should be considered, refer to ANZECC & ARMCANZ (2000) for further guidance.",null,null,null,null,null,null,null,null,null,null,null,null,null,null,null,null,null,null,1,1]
["115-29-7","Endosulfan","Water","NEPM 2013 Table 1C GILs, Marine Waters",5.0000000000000001E-3,null,"ug/L","Chemical for which possible bioaccumulation and secondary poisoning effects should be considered, refer to ANZECC & ARMCANZ (2000) for further guidance.",null,null,null,null,null,null,null,null,null,null,null,null,null,null,null,null,null,null,1,1]
["72-20-8","Endrin","Water","NEPM 2013 Table 1C GILs, Marine Waters",4.0000000000000001E-3,null,"ug/L","Chemical for which possible bioaccumulation and secondary poisoning effects should be considered, refer to ANZECC & ARMCANZ (2000) for further guidance.",null,null,null,null,null,null,null,null,null,null,null,null,null,null,null,null,null,null,1,1]
["3383-96-8","Temephos","Water","NEPM 2013 Table 1C GILs, Marine Waters",0.05,null,"ug/L","Chemical for which possible bioaccumulation and secondary poisoning effects should be considered, refer to ANZECC & ARMCANZ (2000) for further guidance.",null,null,null,null,null,null,null,null,null,null,null,null,null,null,null,null,null,null,1,1]
["7440-36-0","Antimony","Water","NEPM 2013 Table 1C GILs, Drinking Water",3.0000000000000001E-3,null,"mg/L",null,null,null,null,null,null,null,null,null,null,null,null,null,null,null,null,null,null,null,1,1]
["7440-38-2","Arsenic","Water","NEPM 2013 Table 1C GILs, Drinking Water",0.01,null,"mg/L",null,null,null,null,null,null,null,null,null,null,null,null,null,null,null,null,null,null,null,1,1]
["7440-39-3","Barium","Water","NEPM 2013 Table 1C GILs, Drinking Water",2,null,"mg/L",null,null,null,null,null,null,null,null,null,null,null,null,null,null,null,null,null,null,null,1,1]
["7440-41-7","Beryllium","Water","NEPM 2013 Table 1C GILs, Drinking Water",0.06,null,"mg/L",null,null,null,null,null,null,null,null,null,null,null,null,null,null,null,null,null,null,null,1,1]
["7440-42-8","Boron","Water","NEPM 2013 Table 1C GILs, Drinking Water",4,null,"mg/L",null,null,null,null,null,null,null,null,null,null,null,null,null,null,null,null,null,null,null,1,1]
["7440-43-9","Cadmium","Water","NEPM 2013 Table 1C GILs, Drinking Water",2E-3,null,"mg/L","Values calculated using hardness of 30 mg/L CaCO3. Refer ANZECC & ARMCANZ (2000) for site specific hardness guidance",null,null,null,null,null,null,null,null,null,null,null,null,null,null,null,null,null,null,1,1]
["18540-29-9","Chromium,  Cr (VI)","Water","NEPM 2013 Table 1C GILs, Drinking Water",0.05,null,"mg/L",null,null,null,null,null,null,null,null,null,null,null,null,null,null,null,null,null,null,null,1,1]
["7440-50-8","Copper","Water","NEPM 2013 Table 1C GILs, Drinking Water",2,null,"mg/L","Values calculated using hardness of 30 mg/L CaCO3. Refer ANZECC & ARMCANZ (2000) for site specific hardness guidance",null,null,null,null,null,null,null,null,null,null,null,null,null,null,null,null,null,null,1,1]
["7439-92-1","Lead","Water","NEPM 2013 Table 1C GILs, Drinking Water",0.01,null,"mg/L","Values calculated using hardness of 30 mg/L CaCO3. Refer ANZECC & ARMCANZ (2000) for site specific hardness guidance",null,null,null,null,null,null,null,null,null,null,null,null,null,null,null,null,null,null,1,1]
["7439-96-5","Manganese","Water","NEPM 2013 Table 1C GILs, Drinking Water",0.5,null,"mg/L",null,null,null,null,null,null,null,null,null,null,null,null,null,null,null,null,null,null,null,1,1]
["7439-97-6","Mercury (Total)","Water","NEPM 2013 Table 1C GILs, Drinking Water",1E-3,null,"mg/L",null,null,null,null,null,null,null,null,null,null,null,null,null,null,null,null,null,null,null,1,1]
["7439-98-7","Molybdenum","Water","NEPM 2013 Table 1C GILs, Drinking Water",0.05,null,"mg/L",null,null,null,null,null,null,null,null,null,null,null,null,null,null,null,null,null,null,null,1,1]
["7440-02-0","Nickel","Water","NEPM 2013 Table 1C GILs, Drinking Water",0.02,null,"mg/L","Values calculated using hardness of 30 mg/L CaCO3. Refer ANZECC & ARMCANZ (2000) for site specific hardness guidance",null,null,null,null,null,null,null,null,null,null,null,null,null,null,null,null,null,null,1,1]
["7782-49-2","Selenium (Total)","Water","NEPM 2013 Table 1C GILs, Drinking Water",0.01,null,"mg/L",null,null,null,null,null,null,null,null,null,null,null,null,null,null,null,null,null,null,null,1,1]
["7440-22-4","Silver","Water","NEPM 2013 Table 1C GILs, Drinking Water",0.1,null,"mg/L",null,null,null,null,null,null,null,null,null,null,null,null,null,null,null,null,null,null,null,1,1]
["56-35-9","Tributyl tin oxide","Water","NEPM 2013 Table 1C GILs, Drinking Water",1E-3,null,"mg/L",null,null,null,null,null,null,null,null,null,null,null,null,null,null,null,null,null,null,null,1,1]
["7440-61-1","Uranium","Water","NEPM 2013 Table 1C GILs, Drinking Water",1.7000000000000001E-2,null,"mg/L",null,null,null,null,null,null,null,null,null,null,null,null,null,null,null,null,null,null,null,1,1]
["15541-45-4","Bromate","Water","NEPM 2013 Table 1C GILs, Drinking Water",0.02,null,"mg/L",null,null,null,null,null,null,null,null,null,null,null,null,null,null,null,null,null,null,null,1,1]
["57-12-5","Cyanide (as un-ionised Cn)","Water","NEPM 2013 Table 1C GILs, Drinking Water",0.08,null,"mg/L",null,null,null,null,null,null,null,null,null,null,null,null,null,null,null,null,null,null,null,1,1]
["16984-48-8","Fluoride","Water","NEPM 2013 Table 1C GILs, Drinking Water",1.5,null,"mg/L",null,null,null,null,null,null,null,null,null,null,null,null,null,null,null,null,null,null,null,1,1]
["20461-54-5","Iodide","Water","NEPM 2013 Table 1C GILs, Drinking Water",0.5,null,"mg/L",null,null,null,null,null,null,null,null,null,null,null,null,null,null,null,null,null,null,null,1,1]
["14797-55-8","Nitrate (as NO3)","Water","NEPM 2013 Table 1C GILs, Drinking Water",50,null,"mg/L",null,null,null,null,null,null,null,null,null,null,null,null,null,null,null,null,null,null,null,1,1]
["14797-65-0","Nitrite (as NO2)","Water","NEPM 2013 Table 1C GILs, Drinking Water",3,null,"mg/L",null,null,null,null,null,null,null,null,null,null,null,null,null,null,null,null,null,null,null,1,1]
["14808-79-8","Sulphate (as SO4)","Water","NEPM 2013 Table 1C GILs, Drinking Water",500,null,"mg/L",null,null,null,null,null,null,null,null,null,null,null,null,null,null,null,null,null,null,null,1,1]
["60-00-4","Ethylenediamine tetra-acetic acid\n(EDTA)","Water","NEPM 2013 Table 1C GILs, Drinking Water",0.25,null,"mg/L",null,null,null,null,null,null,null,null,null,null,null,null,null,null,null,null,null,null,null,1,1]
["50-00-0","Formaldehyde","Water","NEPM 2013 Table 1C GILs, Drinking Water",0.5,null,"mg/L",null,null,null,null,null,null,null,null,null,null,null,null,null,null,null,null,null,null,null,1,1]
["139-13-9","Nitrilotriacetic acid","Water","NEPM 2013 Table 1C GILs, Drinking Water",0.2,null,"mg/L",null,null,null,null,null,null,null,null,null,null,null,null,null,null,null,null,null,null,null,1,1]
["75-09-2","Dichloromethane","Water","NEPM 2013 Table 1C GILs, Drinking Water",4.0000000000000001E-3,null,"mg/L",null,null,null,null,null,null,null,null,null,null,null,null,null,null,null,null,null,null,null,1,1]
["Trihalomethanes","Trihalomethanes (total)","Water","NEPM 2013 Table 1C GILs, Drinking Water",0.25,null,"mg/L",null,null,null,null,null,null,null,null,null,null,null,null,null,null,null,null,null,null,null,1,1]
["56-23-5","Tetrachloromethane (carbon tetrachloride)","Water","NEPM 2013 Table 1C GILs, Drinking Water",3.0000000000000001E-3,null,"mg/L",null,null,null,null,null,null,null,null,null,null,null,null,null,null,null,null,null,null,null,1,1]
["107-06-2","1,2-Dichloroethane","Water","NEPM 2013 Table 1C GILs, Drinking Water",3.0000000000000001E-3,null,"mg/L",null,null,null,null,null,null,null,null,null,null,null,null,null,null,null,null,null,null,null,1,1]
["75-01-4","Chloroethene (vinyl chloride)","Water","NEPM 2013 Table 1C GILs, Drinking Water",2.9999999999999997E-4,null,"mg/L",null,null,null,null,null,null,null,null,null,null,null,null,null,null,null,null,null,null,null,1,1]
["75-35-4","1,1-Dichloroethene","Water","NEPM 2013 Table 1C GILs, Drinking Water",0.03,null,"mg/L",null,null,null,null,null,null,null,null,null,null,null,null,null,null,null,null,null,null,null,1,1]
["540-59-0","1,2-Dichoroethene","Water","NEPM 2013 Table 1C GILs, Drinking Water",0.06,null,"mg/L",null,null,null,null,null,null,null,null,null,null,null,null,null,null,null,null,null,null,null,1,1]
["127-18-4","Tetrachloroethene (PCE) (Perchloroethene)","Water","NEPM 2013 Table 1C GILs, Drinking Water",0.05,null,"mg/L",null,null,null,null,null,null,null,null,null,null,null,null,null,null,null,null,null,null,null,1,1]
["108-90-7","Chlorobenzene","Water","NEPM 2013 Table 1C GILs, Drinking Water",0.3,null,"mg/L",null,null,null,null,null,null,null,null,null,null,null,null,null,null,null,null,null,null,null,1,1]
["95-50-1","1,2- Dichlorobenzene","Water","NEPM 2013 Table 1C GILs, Drinking Water",1.5,null,"mg/L",null,null,null,null,null,null,null,null,null,null,null,null,null,null,null,null,null,null,null,1,1]
["106-46-7","1,4- Dichlorobenzene","Water","NEPM 2013 Table 1C GILs, Drinking Water",0.04,null,"mg/L",null,null,null,null,null,null,null,null,null,null,null,null,null,null,null,null,null,null,null,1,1]
["87-61-6","1,2,3- Trichlorobenzene","Water","NEPM 2013 Table 1C GILs, Drinking Water",0.03,null,"mg/L",null,null,null,null,null,null,null,null,null,null,null,null,null,null,null,null,null,null,null,1,1]
["120-82-1","1,2,4- Trichlorobenzene","Water","NEPM 2013 Table 1C GILs, Drinking Water",0.03,null,"mg/L",null,null,null,null,null,null,null,null,null,null,null,null,null,null,null,null,null,null,null,1,1]
["108-70-3","1,3,5-Trichlorobenzene","Water","NEPM 2013 Table 1C GILs, Drinking Water",0.03,null,"mg/L",null,null,null,null,null,null,null,null,null,null,null,null,null,null,null,null,null,null,null,1,1]
["12002-48-1","total trichlorobenzenes","Water","NEPM 2013 Table 1C GILs, Drinking Water",0.03,null,"mg/L",null,null,null,null,null,null,null,null,null,null,null,null,null,null,null,null,null,null,null,1,1]
["106-89-8","Epichlorohydrin","Water","NEPM 2013 Table 1C GILs, Drinking Water",0.1,null,"mg/L",null,null,null,null,null,null,null,null,null,null,null,null,null,null,null,null,null,null,null,1,1]
["87-68-3","Hexachlorobutadiene","Water","NEPM 2013 Table 1C GILs, Drinking Water",6.9999999999999999E-4,null,"mg/L",null,null,null,null,null,null,null,null,null,null,null,null,null,null,null,null,null,null,null,1,1]
["10599-90-3","Monochloramine","Water","NEPM 2013 Table 1C GILs, Drinking Water",3,null,"mg/L",null,null,null,null,null,null,null,null,null,null,null,null,null,null,null,null,null,null,null,1,1]
["71-43-2","Benzene","Water","NEPM 2013 Table 1C GILs, Drinking Water",1E-3,null,"mg/L",null,null,null,null,null,null,null,null,null,null,null,null,null,null,null,null,null,null,null,1,1]
["108-88-3","Toluene","Water","NEPM 2013 Table 1C GILs, Drinking Water",0.8,null,"mg/L",null,null,null,null,null,null,null,null,null,null,null,null,null,null,null,null,null,null,null,1,1]
["100-41-4","Ethylbenzene","Water","NEPM 2013 Table 1C GILs, Drinking Water",0.3,null,"mg/L",null,null,null,null,null,null,null,null,null,null,null,null,null,null,null,null,null,null,null,1,1]
["1330-20-7","Xylenes","Water","NEPM 2013 Table 1C GILs, Drinking Water",0.6,null,"mg/L",null,null,null,null,null,null,null,null,null,null,null,null,null,null,null,null,null,null,null,1,1]
["100-42-5","Styrene (Vinyl benzene)","Water","NEPM 2013 Table 1C GILs, Drinking Water",0.03,null,"mg/L",null,null,null,null,null,null,null,null,null,null,null,null,null,null,null,null,null,null,null,1,1]
["50-32-8","Benzo[a]pyrene","Water","NEPM 2013 Table 1C GILs, Drinking Water",1.0000000000000001E-5,null,"mg/L",null,null,null,null,null,null,null,null,null,null,null,null,null,null,null,null,null,null,null,1,1]
["95-57-8","2-Chlorophenol","Water","NEPM 2013 Table 1C GILs, Drinking Water",0.3,null,"mg/L",null,null,null,null,null,null,null,null,null,null,null,null,null,null,null,null,null,null,null,1,1]
["120-83-2","2,4-Dichlorophenol","Water","NEPM 2013 Table 1C GILs, Drinking Water",0.2,null,"mg/L",null,null,null,null,null,null,null,null,null,null,null,null,null,null,null,null,null,null,null,1,1]
["88-06-2","2,4,6-Trichlorophenol","Water","NEPM 2013 Table 1C GILs, Drinking Water",0.02,null,"mg/L",null,null,null,null,null,null,null,null,null,null,null,null,null,null,null,null,null,null,null,1,1]
["87-86-5","Pentachlorophenol","Water","NEPM 2013 Table 1C GILs, Drinking Water",0.01,null,"mg/L",null,null,null,null,null,null,null,null,null,null,null,null,null,null,null,null,null,null,null,1,1]
["117-81-7","Di(2-ethylhexyl) phthalate","Water","NEPM 2013 Table 1C GILs, Drinking Water",0.01,null,"mg/L",null,null,null,null,null,null,null,null,null,null,null,null,null,null,null,null,null,null,null,1,1]
["30560-19-1","Acephate","Water","NEPM 2013 Table 1C GILs, Drinking Water",8.0000000000000002E-3,null,"mg/L",null,null,null,null,null,null,null,null,null,null,null,null,null,null,null,null,null,null,null,1,1]
["116-06-3","Aldicarb","Water","NEPM 2013 Table 1C GILs, Drinking Water",4.0000000000000001E-3,null,"mg/L",null,null,null,null,null,null,null,null,null,null,null,null,null,null,null,null,null,null,null,1,1]
["309-00-2 + 60-57-1","Aldrin plus Dieldrin","Water","NEPM 2013 Table 1C GILs, Drinking Water",2.9999999999999997E-4,null,"mg/L",null,null,null,null,null,null,null,null,null,null,null,null,null,null,null,null,null,null,null,1,1]
["834-12-8","Ametryn","Water","NEPM 2013 Table 1C GILs, Drinking Water",7.0000000000000007E-2,null,"mg/L",null,null,null,null,null,null,null,null,null,null,null,null,null,null,null,null,null,null,null,1,1]
["33089-61-1","Amitraz","Water","NEPM 2013 Table 1C GILs, Drinking Water",8.9999999999999993E-3,null,"mg/L",null,null,null,null,null,null,null,null,null,null,null,null,null,null,null,null,null,null,null,1,1]
["61-82-5","Amitrole","Water","NEPM 2013 Table 1C GILs, Drinking Water",8.9999999999999998E-4,null,"mg/L",null,null,null,null,null,null,null,null,null,null,null,null,null,null,null,null,null,null,null,1,1]
["3337-71-1","Asulam","Water","NEPM 2013 Table 1C GILs, Drinking Water",7.0000000000000007E-2,null,"mg/L",null,null,null,null,null,null,null,null,null,null,null,null,null,null,null,null,null,null,null,1,1]
["1912-24-9","Atrazine","Water","NEPM 2013 Table 1C GILs, Drinking Water",0.02,null,"mg/L",null,null,null,null,null,null,null,null,null,null,null,null,null,null,null,null,null,null,null,1,1]
["86-50-0","Azinphos-methyl","Water","NEPM 2013 Table 1C GILs, Drinking Water",0.03,null,"mg/L",null,null,null,null,null,null,null,null,null,null,null,null,null,null,null,null,null,null,null,1,1]
["17804-35-2","Benomyl","Water","NEPM 2013 Table 1C GILs, Drinking Water",0.09,null,"mg/L",null,null,null,null,null,null,null,null,null,null,null,null,null,null,null,null,null,null,null,1,1]
["25057-89-0","Bentazone","Water","NEPM 2013 Table 1C GILs, Drinking Water",0.4,null,"mg/L",null,null,null,null,null,null,null,null,null,null,null,null,null,null,null,null,null,null,null,1,1]
["28434-01-7","Bioresmethrin","Water","NEPM 2013 Table 1C GILs, Drinking Water",0.1,null,"mg/L",null,null,null,null,null,null,null,null,null,null,null,null,null,null,null,null,null,null,null,1,1]
["314-40-9","Bromacil","Water","NEPM 2013 Table 1C GILs, Drinking Water",0.4,null,"mg/L",null,null,null,null,null,null,null,null,null,null,null,null,null,null,null,null,null,null,null,1,1]
["1689-84-5","Bromoxynil","Water","NEPM 2013 Table 1C GILs, Drinking Water",0.01,null,"mg/L",null,null,null,null,null,null,null,null,null,null,null,null,null,null,null,null,null,null,null,1,1]
["133-06-2","Captan","Water","NEPM 2013 Table 1C GILs, Drinking Water",0.4,null,"mg/L",null,null,null,null,null,null,null,null,null,null,null,null,null,null,null,null,null,null,null,1,1]
["63-25-2","Carbaryl","Water","NEPM 2013 Table 1C GILs, Drinking Water",0.03,null,"mg/L",null,null,null,null,null,null,null,null,null,null,null,null,null,null,null,null,null,null,null,1,1]
["10605-21-7","Carbendazim (Thiophanate-methyl)","Water","NEPM 2013 Table 1C GILs, Drinking Water",0.09,null,"mg/L",null,null,null,null,null,null,null,null,null,null,null,null,null,null,null,null,null,null,null,1,1]
["1563-66-2","Carbofuran","Water","NEPM 2013 Table 1C GILs, Drinking Water",0.01,null,"mg/L",null,null,null,null,null,null,null,null,null,null,null,null,null,null,null,null,null,null,null,1,1]
["5234-68-4","Carboxin","Water","NEPM 2013 Table 1C GILs, Drinking Water",0.3,null,"mg/L",null,null,null,null,null,null,null,null,null,null,null,null,null,null,null,null,null,null,null,1,1]
["128639-02-1","Carfentrazone-ethyl","Water","NEPM 2013 Table 1C GILs, Drinking Water",0.1,null,"mg/L",null,null,null,null,null,null,null,null,null,null,null,null,null,null,null,null,null,null,null,1,1]
["500008-45-7","Chlorantraniliprole","Water","NEPM 2013 Table 1C GILs, Drinking Water",6,null,"mg/L",null,null,null,null,null,null,null,null,null,null,null,null,null,null,null,null,null,null,null,1,1]
["57-74-9","Chlordane","Water","NEPM 2013 Table 1C GILs, Drinking Water",2E-3,null,"mg/L",null,null,null,null,null,null,null,null,null,null,null,null,null,null,null,null,null,null,null,1,1]
["470-90-6","Chlorfenvinphos","Water","NEPM 2013 Table 1C GILs, Drinking Water",2E-3,null,"mg/L",null,null,null,null,null,null,null,null,null,null,null,null,null,null,null,null,null,null,null,1,1]
["1897-45-6","Chlorothalonil","Water","NEPM 2013 Table 1C GILs, Drinking Water",0.05,null,"mg/L",null,null,null,null,null,null,null,null,null,null,null,null,null,null,null,null,null,null,null,1,1]
["2921-88-2","Chlorpyrifos","Water","NEPM 2013 Table 1C GILs, Drinking Water",0.01,null,"mg/L",null,null,null,null,null,null,null,null,null,null,null,null,null,null,null,null,null,null,null,1,1]
["64902-72-3","Chlorsulfuron","Water","NEPM 2013 Table 1C GILs, Drinking Water",0.2,null,"mg/L",null,null,null,null,null,null,null,null,null,null,null,null,null,null,null,null,null,null,null,1,1]
["1702-17-6","Clopyralid","Water","NEPM 2013 Table 1C GILs, Drinking Water",2,null,"mg/L",null,null,null,null,null,null,null,null,null,null,null,null,null,null,null,null,null,null,null,1,1]
["68359-37-5","Cyfluthrin, Beta-cyfluthrin","Water","NEPM 2013 Table 1C GILs, Drinking Water",0.05,null,"mg/L",null,null,null,null,null,null,null,null,null,null,null,null,null,null,null,null,null,null,null,1,1]
["52315-07-8","Cypermethrin isomers","Water","NEPM 2013 Table 1C GILs, Drinking Water",0.2,null,"mg/L",null,null,null,null,null,null,null,null,null,null,null,null,null,null,null,null,null,null,null,1,1]
["121552-61-2","Cyprodinil","Water","NEPM 2013 Table 1C GILs, Drinking Water",0.09,null,"mg/L",null,null,null,null,null,null,null,null,null,null,null,null,null,null,null,null,null,null,null,1,1]
["542-75-6","1,3-Dichloropropene","Water","NEPM 2013 Table 1C GILs, Drinking Water",0.1,null,"mg/L",null,null,null,null,null,null,null,null,null,null,null,null,null,null,null,null,null,null,null,1,1]
["75-99-0","2,2-DPA","Water","NEPM 2013 Table 1C GILs, Drinking Water",0.5,null,"mg/L",null,null,null,null,null,null,null,null,null,null,null,null,null,null,null,null,null,null,null,1,1]
["94-75-7","2,4-D [2,4-dichlorophenoxy acetic acid]","Water","NEPM 2013 Table 1C GILs, Drinking Water",0.03,null,"mg/L",null,null,null,null,null,null,null,null,null,null,null,null,null,null,null,null,null,null,null,1,1]
["50-29-3","DDT","Water","NEPM 2013 Table 1C GILs, Drinking Water",8.9999999999999993E-3,null,"mg/L",null,null,null,null,null,null,null,null,null,null,null,null,null,null,null,null,null,null,null,1,1]
["52918-63-5","Deltramethrin","Water","NEPM 2013 Table 1C GILs, Drinking Water",0.04,null,"mg/L",null,null,null,null,null,null,null,null,null,null,null,null,null,null,null,null,null,null,null,1,1]
["333-41-5","Diazinon","Water","NEPM 2013 Table 1C GILs, Drinking Water",4.0000000000000001E-3,null,"mg/L",null,null,null,null,null,null,null,null,null,null,null,null,null,null,null,null,null,null,null,1,1]
["1918-00-9","Dicamba","Water","NEPM 2013 Table 1C GILs, Drinking Water",0.1,null,"mg/L",null,null,null,null,null,null,null,null,null,null,null,null,null,null,null,null,null,null,null,1,1]
["120-36-5","Dichloroprop","Water","NEPM 2013 Table 1C GILs, Drinking Water",0.1,null,"mg/L",null,null,null,null,null,null,null,null,null,null,null,null,null,null,null,null,null,null,null,1,1]
["62-73-7","Dichlorvos","Water","NEPM 2013 Table 1C GILs, Drinking Water",5.0000000000000001E-3,null,"mg/L",null,null,null,null,null,null,null,null,null,null,null,null,null,null,null,null,null,null,null,1,1]
["115-32-2","Dicofol","Water","NEPM 2013 Table 1C GILs, Drinking Water",4.0000000000000001E-3,null,"mg/L",null,null,null,null,null,null,null,null,null,null,null,null,null,null,null,null,null,null,null,1,1]
["51338- 27-3","Diclofop-methyl","Water","NEPM 2013 Table 1C GILs, Drinking Water",5.0000000000000001E-3,null,"mg/L",null,null,null,null,null,null,null,null,null,null,null,null,null,null,null,null,null,null,null,1,1]
["309-00-2 + 60-57-1","Dieldrin plus Aldrin","Water","NEPM 2013 Table 1C GILs, Drinking Water",2.9999999999999997E-4,null,"mg/L",null,null,null,null,null,null,null,null,null,null,null,null,null,null,null,null,null,null,null,1,1]
["35367-38-5","Diflubenzuron","Water","NEPM 2013 Table 1C GILs, Drinking Water",7.0000000000000007E-2,null,"mg/L",null,null,null,null,null,null,null,null,null,null,null,null,null,null,null,null,null,null,null,1,1]
["60-51-5","Dimethoate","Water","NEPM 2013 Table 1C GILs, Drinking Water",7.0000000000000001E-3,null,"mg/L",null,null,null,null,null,null,null,null,null,null,null,null,null,null,null,null,null,null,null,1,1]
["2764-72-9","Diquat","Water","NEPM 2013 Table 1C GILs, Drinking Water",7.0000000000000001E-3,null,"mg/L",null,null,null,null,null,null,null,null,null,null,null,null,null,null,null,null,null,null,null,1,1]
["298-04-4","Disulfoton","Water","NEPM 2013 Table 1C GILs, Drinking Water",4.0000000000000001E-3,null,"mg/L",null,null,null,null,null,null,null,null,null,null,null,null,null,null,null,null,null,null,null,1,1]
["330-54-1","Diuron","Water","NEPM 2013 Table 1C GILs, Drinking Water",0.02,null,"mg/L",null,null,null,null,null,null,null,null,null,null,null,null,null,null,null,null,null,null,null,1,1]
["115-29-7","Endosulfan","Water","NEPM 2013 Table 1C GILs, Drinking Water",0.02,null,"mg/L",null,null,null,null,null,null,null,null,null,null,null,null,null,null,null,null,null,null,null,1,1]
["145-73-3","Endothal","Water","NEPM 2013 Table 1C GILs, Drinking Water",0.1,null,"mg/L",null,null,null,null,null,null,null,null,null,null,null,null,null,null,null,null,null,null,null,1,1]
["759-94-4","EPTC","Water","NEPM 2013 Table 1C GILs, Drinking Water",0.3,null,"mg/L",null,null,null,null,null,null,null,null,null,null,null,null,null,null,null,null,null,null,null,1,1]
["66230-04-4","Esfenvalerate","Water","NEPM 2013 Table 1C GILs, Drinking Water",0.03,null,"mg/L",null,null,null,null,null,null,null,null,null,null,null,null,null,null,null,null,null,null,null,1,1]
["563-12-2","Ethion","Water","NEPM 2013 Table 1C GILs, Drinking Water",4.0000000000000001E-3,null,"mg/L",null,null,null,null,null,null,null,null,null,null,null,null,null,null,null,null,null,null,null,1,1]
["13194-48-4","Ethoprophos","Water","NEPM 2013 Table 1C GILs, Drinking Water",1E-3,null,"mg/L",null,null,null,null,null,null,null,null,null,null,null,null,null,null,null,null,null,null,null,1,1]
["2593-15-9","Etridiazole","Water","NEPM 2013 Table 1C GILs, Drinking Water",0.1,null,"mg/L",null,null,null,null,null,null,null,null,null,null,null,null,null,null,null,null,null,null,null,1,1]
["22224-92-6","Fenamiphos","Water","NEPM 2013 Table 1C GILs, Drinking Water",5.0000000000000001E-4,null,"mg/L",null,null,null,null,null,null,null,null,null,null,null,null,null,null,null,null,null,null,null,1,1]
["60168-88-9","Fenarimol","Water","NEPM 2013 Table 1C GILs, Drinking Water",0.04,null,"mg/L",null,null,null,null,null,null,null,null,null,null,null,null,null,null,null,null,null,null,null,1,1]
["122-14-5","Fenitrothion","Water","NEPM 2013 Table 1C GILs, Drinking Water",7.0000000000000001E-3,null,"mg/L",null,null,null,null,null,null,null,null,null,null,null,null,null,null,null,null,null,null,null,1,1]
["55-38-9","Fenthion","Water","NEPM 2013 Table 1C GILs, Drinking Water",7.0000000000000001E-3,null,"mg/L",null,null,null,null,null,null,null,null,null,null,null,null,null,null,null,null,null,null,null,1,1]
["51630-58-1","Fenvalerate","Water","NEPM 2013 Table 1C GILs, Drinking Water",0.06,null,"mg/L",null,null,null,null,null,null,null,null,null,null,null,null,null,null,null,null,null,null,null,1,1]
["120068-37-3","Fipronil","Water","NEPM 2013 Table 1C GILs, Drinking Water",6.9999999999999999E-4,null,"mg/L",null,null,null,null,null,null,null,null,null,null,null,null,null,null,null,null,null,null,null,1,1]
["52756-25-9","Flamprop-methyl","Water","NEPM 2013 Table 1C GILs, Drinking Water",4.0000000000000001E-3,null,"mg/L",null,null,null,null,null,null,null,null,null,null,null,null,null,null,null,null,null,null,null,1,1]
["2164-17-2","Fluometuron","Water","NEPM 2013 Table 1C GILs, Drinking Water",7.0000000000000007E-2,null,"mg/L",null,null,null,null,null,null,null,null,null,null,null,null,null,null,null,null,null,null,null,1,1]
["756-09-2","Fluproponate","Water","NEPM 2013 Table 1C GILs, Drinking Water",8.9999999999999993E-3,null,"mg/L",null,null,null,null,null,null,null,null,null,null,null,null,null,null,null,null,null,null,null,1,1]
["1071-83-6","Glyphosate","Water","NEPM 2013 Table 1C GILs, Drinking Water",1,null,"mg/L",null,null,null,null,null,null,null,null,null,null,null,null,null,null,null,null,null,null,null,1,1]
["69806-40-2","Haloxyfop","Water","NEPM 2013 Table 1C GILs, Drinking Water",1E-3,null,"mg/L",null,null,null,null,null,null,null,null,null,null,null,null,null,null,null,null,null,null,null,1,1]
["1024-57-3","Heptachlor epoxide","Water","NEPM 2013 Table 1C GILs, Drinking Water",2.9999999999999997E-4,null,"mg/L",null,null,null,null,null,null,null,null,null,null,null,null,null,null,null,null,null,null,null,1,1]
["51235-04-2","Hexazinone","Water","NEPM 2013 Table 1C GILs, Drinking Water",0.4,null,"mg/L",null,null,null,null,null,null,null,null,null,null,null,null,null,null,null,null,null,null,null,1,1]
["81334-34-1","Imazapyr","Water","NEPM 2013 Table 1C GILs, Drinking Water",9,null,"mg/L",null,null,null,null,null,null,null,null,null,null,null,null,null,null,null,null,null,null,null,1,1]
["36734-19-7","Iprodione","Water","NEPM 2013 Table 1C GILs, Drinking Water",0.1,null,"mg/L",null,null,null,null,null,null,null,null,null,null,null,null,null,null,null,null,null,null,null,1,1]
["58-89-9","Lindane (γ-HCH)","Water","NEPM 2013 Table 1C GILs, Drinking Water",0.01,null,"mg/L",null,null,null,null,null,null,null,null,null,null,null,null,null,null,null,null,null,null,null,1,1]
["121-75-5","Malathion","Water","NEPM 2013 Table 1C GILs, Drinking Water",7.0000000000000007E-2,null,"mg/L",null,null,null,null,null,null,null,null,null,null,null,null,null,null,null,null,null,null,null,1,1]
["8018-01-7","Mancozeb (as ETU, ethylene thiourea)","Water","NEPM 2013 Table 1C GILs, Drinking Water",8.9999999999999993E-3,null,"mg/L",null,null,null,null,null,null,null,null,null,null,null,null,null,null,null,null,null,null,null,1,1]
["94-74-6","MCPA","Water","NEPM 2013 Table 1C GILs, Drinking Water",0.04,null,"mg/L",null,null,null,null,null,null,null,null,null,null,null,null,null,null,null,null,null,null,null,1,1]
["108-62-3","Metaldehyde","Water","NEPM 2013 Table 1C GILs, Drinking Water",0.02,null,"mg/L",null,null,null,null,null,null,null,null,null,null,null,null,null,null,null,null,null,null,null,1,1]
["137-42-8","Metham (as methylisothiocyanate, MITC)","Water","NEPM 2013 Table 1C GILs, Drinking Water",1E-3,null,"mg/L",null,null,null,null,null,null,null,null,null,null,null,null,null,null,null,null,null,null,null,1,1]
["950-37-8","Methidathion","Water","NEPM 2013 Table 1C GILs, Drinking Water",6.0000000000000001E-3,null,"mg/L",null,null,null,null,null,null,null,null,null,null,null,null,null,null,null,null,null,null,null,1,1]
["2032-65-7","Methiocarb","Water","NEPM 2013 Table 1C GILs, Drinking Water",7.0000000000000001E-3,null,"mg/L",null,null,null,null,null,null,null,null,null,null,null,null,null,null,null,null,null,null,null,1,1]
["16752-77-5","Methomyl","Water","NEPM 2013 Table 1C GILs, Drinking Water",0.02,null,"mg/L",null,null,null,null,null,null,null,null,null,null,null,null,null,null,null,null,null,null,null,1,1]
["74-83-9","Methyl bromide","Water","NEPM 2013 Table 1C GILs, Drinking Water",1E-3,null,"mg/L",null,null,null,null,null,null,null,null,null,null,null,null,null,null,null,null,null,null,null,1,1]
["9006-42-2","Metiram (as ETU, ethylene thiourea)","Water","NEPM 2013 Table 1C GILs, Drinking Water",8.9999999999999993E-3,null,"mg/L",null,null,null,null,null,null,null,null,null,null,null,null,null,null,null,null,null,null,null,1,1]
["51218-45-2","Metolachlor/s–Metolachlor","Water","NEPM 2013 Table 1C GILs, Drinking Water",0.3,null,"mg/L",null,null,null,null,null,null,null,null,null,null,null,null,null,null,null,null,null,null,null,1,1]
["21087-64-9","Metribuzin","Water","NEPM 2013 Table 1C GILs, Drinking Water",7.0000000000000007E-2,null,"mg/L",null,null,null,null,null,null,null,null,null,null,null,null,null,null,null,null,null,null,null,1,1]
["74223-64-6","Metsulfuron-methyl","Water","NEPM 2013 Table 1C GILs, Drinking Water",0.04,null,"mg/L",null,null,null,null,null,null,null,null,null,null,null,null,null,null,null,null,null,null,null,1,1]
["7786-34-7","Mevinphos","Water","NEPM 2013 Table 1C GILs, Drinking Water",6.0000000000000001E-3,null,"mg/L",null,null,null,null,null,null,null,null,null,null,null,null,null,null,null,null,null,null,null,1,1]
["2212-67-1","Molinate","Water","NEPM 2013 Table 1C GILs, Drinking Water",4.0000000000000001E-3,null,"mg/L",null,null,null,null,null,null,null,null,null,null,null,null,null,null,null,null,null,null,null,1,1]
["15299-99-7","Napropamide","Water","NEPM 2013 Table 1C GILs, Drinking Water",0.4,null,"mg/L",null,null,null,null,null,null,null,null,null,null,null,null,null,null,null,null,null,null,null,1,1]
["330-95-0","Nicarbazin","Water","NEPM 2013 Table 1C GILs, Drinking Water",1,null,"mg/L",null,null,null,null,null,null,null,null,null,null,null,null,null,null,null,null,null,null,null,1,1]
["27314-13-2","Norflurazon","Water","NEPM 2013 Table 1C GILs, Drinking Water",0.05,null,"mg/L",null,null,null,null,null,null,null,null,null,null,null,null,null,null,null,null,null,null,null,1,1]
["1113-02-6","Omethoate","Water","NEPM 2013 Table 1C GILs, Drinking Water",1E-3,null,"mg/L",null,null,null,null,null,null,null,null,null,null,null,null,null,null,null,null,null,null,null,1,1]
["19044-88-3","Oryzalin","Water","NEPM 2013 Table 1C GILs, Drinking Water",0.4,null,"mg/L",null,null,null,null,null,null,null,null,null,null,null,null,null,null,null,null,null,null,null,1,1]
["23135-22-0","Oxamyl","Water","NEPM 2013 Table 1C GILs, Drinking Water",7.0000000000000001E-3,null,"mg/L",null,null,null,null,null,null,null,null,null,null,null,null,null,null,null,null,null,null,null,1,1]
["4685-14-7","Paraquat","Water","NEPM 2013 Table 1C GILs, Drinking Water",0.02,null,"mg/L",null,null,null,null,null,null,null,null,null,null,null,null,null,null,null,null,null,null,null,1,1]
["56-38-2","Parathion","Water","NEPM 2013 Table 1C GILs, Drinking Water",0.02,null,"mg/L",null,null,null,null,null,null,null,null,null,null,null,null,null,null,null,null,null,null,null,1,1]
["298-00-0","Parathion methyl","Water","NEPM 2013 Table 1C GILs, Drinking Water",6.9999999999999999E-4,null,"mg/L",null,null,null,null,null,null,null,null,null,null,null,null,null,null,null,null,null,null,null,1,1]
["1114-71-2","Pebulate","Water","NEPM 2013 Table 1C GILs, Drinking Water",0.03,null,"mg/L",null,null,null,null,null,null,null,null,null,null,null,null,null,null,null,null,null,null,null,1,1]
["40487-42-1","Pendimethalin","Water","NEPM 2013 Table 1C GILs, Drinking Water",0.4,null,"mg/L",null,null,null,null,null,null,null,null,null,null,null,null,null,null,null,null,null,null,null,1,1]
["87-86-5","Pentachlorophenol","Water","NEPM 2013 Table 1C GILs, Drinking Water",0.01,null,"mg/L",null,null,null,null,null,null,null,null,null,null,null,null,null,null,null,null,null,null,null,1,1]
["52645-53-1","Permethrin","Water","NEPM 2013 Table 1C GILs, Drinking Water",0.2,null,"mg/L",null,null,null,null,null,null,null,null,null,null,null,null,null,null,null,null,null,null,null,1,1]
["1918-02-1","Picloram","Water","NEPM 2013 Table 1C GILs, Drinking Water",0.3,null,"mg/L",null,null,null,null,null,null,null,null,null,null,null,null,null,null,null,null,null,null,null,1,1]
["51-03-6","Piperonyl butoxide","Water","NEPM 2013 Table 1C GILs, Drinking Water",0.6,null,"mg/L",null,null,null,null,null,null,null,null,null,null,null,null,null,null,null,null,null,null,null,1,1]
["23103-98-2","Pirimicarb","Water","NEPM 2013 Table 1C GILs, Drinking Water",7.0000000000000001E-3,null,"mg/L",null,null,null,null,null,null,null,null,null,null,null,null,null,null,null,null,null,null,null,1,1]
["29232-93-7","Pirimiphos methyl","Water","NEPM 2013 Table 1C GILs, Drinking Water",0.09,null,"mg/L",null,null,null,null,null,null,null,null,null,null,null,null,null,null,null,null,null,null,null,1,1]
["32289-58-0","Polihexanide","Water","NEPM 2013 Table 1C GILs, Drinking Water",0.7,null,"mg/L",null,null,null,null,null,null,null,null,null,null,null,null,null,null,null,null,null,null,null,1,1]
["41198-08-7","Profenofos","Water","NEPM 2013 Table 1C GILs, Drinking Water",2.9999999999999997E-4,null,"mg/L",null,null,null,null,null,null,null,null,null,null,null,null,null,null,null,null,null,null,null,1,1]
["1918-16-7","Propachlor","Water","NEPM 2013 Table 1C GILs, Drinking Water",7.0000000000000007E-2,null,"mg/L",null,null,null,null,null,null,null,null,null,null,null,null,null,null,null,null,null,null,null,1,1]
["709-98-8","Propanil","Water","NEPM 2013 Table 1C GILs, Drinking Water",0.7,null,"mg/L",null,null,null,null,null,null,null,null,null,null,null,null,null,null,null,null,null,null,null,1,1]
["2312-35-8","Propargite","Water","NEPM 2013 Table 1C GILs, Drinking Water",7.0000000000000001E-3,null,"mg/L",null,null,null,null,null,null,null,null,null,null,null,null,null,null,null,null,null,null,null,1,1]
[null,"Proparzine","Water","NEPM 2013 Table 1C GILs, Drinking Water",0.05,null,"mg/L",null,null,null,null,null,null,null,null,null,null,null,null,null,null,null,null,null,null,null,1,1]
["60207-90-1","Propiconazole","Water","NEPM 2013 Table 1C GILs, Drinking Water",0.1,null,"mg/L",null,null,null,null,null,null,null,null,null,null,null,null,null,null,null,null,null,null,null,1,1]
["23950-58-5","Propyzamide","Water","NEPM 2013 Table 1C GILs, Drinking Water",7.0000000000000007E-2,null,"mg/L",null,null,null,null,null,null,null,null,null,null,null,null,null,null,null,null,null,null,null,1,1]
["365400-11-9","Pyrasulfatole","Water","NEPM 2013 Table 1C GILs, Drinking Water",0.04,null,"mg/L",null,null,null,null,null,null,null,null,null,null,null,null,null,null,null,null,null,null,null,1,1]
["13457-18-6","Pyrazophos","Water","NEPM 2013 Table 1C GILs, Drinking Water",0.02,null,"mg/L",null,null,null,null,null,null,null,null,null,null,null,null,null,null,null,null,null,null,null,1,1]
["422556-08-9","Pyroxsulam","Water","NEPM 2013 Table 1C GILs, Drinking Water",4,null,"mg/L",null,null,null,null,null,null,null,null,null,null,null,null,null,null,null,null,null,null,null,1,1]
["82-68-8","Quintozene","Water","NEPM 2013 Table 1C GILs, Drinking Water",0.03,null,"mg/L",null,null,null,null,null,null,null,null,null,null,null,null,null,null,null,null,null,null,null,1,1]
["122-34-9","Simazine","Water","NEPM 2013 Table 1C GILs, Drinking Water",0.02,null,"mg/L",null,null,null,null,null,null,null,null,null,null,null,null,null,null,null,null,null,null,null,1,1]
["203313-25-1","Spirotetramat","Water","NEPM 2013 Table 1C GILs, Drinking Water",0.2,null,"mg/L",null,null,null,null,null,null,null,null,null,null,null,null,null,null,null,null,null,null,null,1,1]
["35400-43-2","Sulprofos","Water","NEPM 2013 Table 1C GILs, Drinking Water",0.01,null,"mg/L",null,null,null,null,null,null,null,null,null,null,null,null,null,null,null,null,null,null,null,1,1]
["93-76-5","2,4,5-T","Water","NEPM 2013 Table 1C GILs, Drinking Water",0.1,null,"mg/L",null,null,null,null,null,null,null,null,null,null,null,null,null,null,null,null,null,null,null,1,1]
["3383-96-8","Temephos","Water","NEPM 2013 Table 1C GILs, Drinking Water",0.4,null,"mg/L",null,null,null,null,null,null,null,null,null,null,null,null,null,null,null,null,null,null,null,1,1]
["5902-51-2","Terbacil","Water","NEPM 2013 Table 1C GILs, Drinking Water",0.2,null,"mg/L",null,null,null,null,null,null,null,null,null,null,null,null,null,null,null,null,null,null,null,1,1]
["13071-79-9","Terbufos","Water","NEPM 2013 Table 1C GILs, Drinking Water",8.9999999999999998E-4,null,"mg/L",null,null,null,null,null,null,null,null,null,null,null,null,null,null,null,null,null,null,null,1,1]
["5915-41-3","Terbuthylazine","Water","NEPM 2013 Table 1C GILs, Drinking Water",0.01,null,"mg/L",null,null,null,null,null,null,null,null,null,null,null,null,null,null,null,null,null,null,null,1,1]
["886-50-0","Terbutryn","Water","NEPM 2013 Table 1C GILs, Drinking Water",0.4,null,"mg/L",null,null,null,null,null,null,null,null,null,null,null,null,null,null,null,null,null,null,null,1,1]
["28249-77-6","Thiobencarb","Water","NEPM 2013 Table 1C GILs, Drinking Water",0.04,null,"mg/L",null,null,null,null,null,null,null,null,null,null,null,null,null,null,null,null,null,null,null,1,1]
["640-15-3","Thiometon","Water","NEPM 2013 Table 1C GILs, Drinking Water",4.0000000000000001E-3,null,"mg/L",null,null,null,null,null,null,null,null,null,null,null,null,null,null,null,null,null,null,null,1,1]
["137-26-8","Thiram","Water","NEPM 2013 Table 1C GILs, Drinking Water",7.0000000000000001E-3,null,"mg/L",null,null,null,null,null,null,null,null,null,null,null,null,null,null,null,null,null,null,null,1,1]
["69004-03-1","Toltrazuril","Water","NEPM 2013 Table 1C GILs, Drinking Water",4.0000000000000001E-3,null,"mg/L",null,null,null,null,null,null,null,null,null,null,null,null,null,null,null,null,null,null,null,1,1]
["43121-43-3","Triadimefon","Water","NEPM 2013 Table 1C GILs, Drinking Water",0.09,null,"mg/L",null,null,null,null,null,null,null,null,null,null,null,null,null,null,null,null,null,null,null,1,1]
["52-68-6","Trichlorfon","Water","NEPM 2013 Table 1C GILs, Drinking Water",7.0000000000000001E-3,null,"mg/L",null,null,null,null,null,null,null,null,null,null,null,null,null,null,null,null,null,null,null,1,1]
["55335-06-3","Triclopyr","Water","NEPM 2013 Table 1C GILs, Drinking Water",0.02,null,"mg/L",null,null,null,null,null,null,null,null,null,null,null,null,null,null,null,null,null,null,null,1,1]
["1582-09-8","Trifluralin","Water","NEPM 2013 Table 1C GILs, Drinking Water",0.09,null,"mg/L",null,null,null,null,null,null,null,null,null,null,null,null,null,null,null,null,null,null,null,1,1]
["1929-77-7","Vernolate","Water","NEPM 2013 Table 1C GILs, Drinking Water",0.04,null,"mg/L",null,null,null,null,null,null,null,null,null,null,null,null,null,null,null,null,null,null,null,1,1]

{"sheet":"Table 7 Asbestos HSL ","index":18,"n_rows":9,"n_cols":28,"rows_kept":9,"cut":false,"hidden":false,"merged":[]}
["Project:","Cardno Lane Piper 213152Historical Soil",null,"Table:","[zRef_Environmental_Standards]",null,"Style:","Template","NoLocs"]
["Path:","C:\\Users\\Tom W\\Documents\\Clients\\Cardno Lane Piper\\213152Historical Soil\\213152Historical Soil.mdb",null,"Parent Tables:","zRef_Matrix_Types,zRef_Chemistry_Lookup,Chem_Group_Or_Method"]
[]
["ChemCode","ChemName","MatrixType","ActionLevelSource","ActionLevel","ActionLevel_Min","Units","Comments","Leached","ActionLevel_Prefix","ActionLevel_Suffix","Conditional_Matrix_Type","Conditional_Depth_From","Conditional_Depth_To","Conditional_ChemCode1","Conditional_ChemCode1_Units","Conditional_ChemCode1_Min_Value_Prefix","Conditional_ChemCode1_Value_Min","Conditional_ChemCode1_Max_Value_Prefix","Conditional_ChemCode1_Value_Max","Conditional_ChemCode2","Conditional_ChemCode2_Units","Conditional_ChemCode2_Min_Value_Prefix","Conditional_ChemCode2_Value_Min","Conditional_ChemCode2_Max_Value_Prefix","Conditional_ChemCode2_Value_Max","Applies_To_Total_Result","Applies_To_Filtered_Result"]
["132207-33-1(ACM)","Bonded ACM","Soil","NEPM 2013 Sch B1 Table 7 Asbestos HSLs",0.01,null,"%","Res A with garaden/accessible soil also includes chilren's day care centres, preschools and primary schools"]
["132207-33-1(ACM)","Bonded ACM","Soil","NEPM 2013 Sch B1 Table 7 Asbestos HSLs",0.04,null,"%","Res B with minimal opportunities for soil access; includes dwellings with fully permanently paved yard space such as high-rise buildings and apartments."]
["132207-33-1(ACM)","Bonded ACM","Soil","NEPM 2013 Sch B1 Table 7 Asbestos HSLs",0.02,null,"%","Rec C includes public open space such as parks, playgrounds, playing fields, (e.g. ovals), secondary schools and unpaved footpaths."]
["132207-33-1(ACM)","Bonded ACM","Soil","NEPM 2013 Sch B1 Table 7 Asbestos HSLs",0.05,null,"%","Comm/Ind D includes premises such as shops, offices, factories and industrial sites."]
["132207-33-1(FA&AF)","Friable Asbestos and Asbestos Fines","Soil","NEPM 2013 Sch B1 Table 7 Asbestos HSLs",1E-3,null,"%","Applies where FA & AF are quantified by gravimetric procedures. Screening level not applicable to free fibres."]

{"sheet":"MonRoundInfo","index":19,"n_rows":3,"n_cols":1,"rows_kept":3,"cut":false,"hidden":true,"merged":[]}
["Monitoring_Round"]
["Project_ID"]
["PID"]